Workbook

Sheet Simulateur Couverts
L1: INDICATEURS TECHNIQUES DU MELANGE CHOISIS
Q4: COMPLEMENTARITE DES COUVERTS
A8: CHOISIR SES COUVERTS | C8: REFERENCES | E8: DOSE CONSEILLEE | G8: AJUSTER VOS DOSES | Q8: % | AM8: Conseillé | AR8: Ajusté | AV8: PMG | AW8: NB pieds Conseillé | AX8: NB ajusté
B9: Couvert | C9: Dose unitaire (kg/ha) | D9: Coût unitaire (€/kg) | E9: Dose conseillée (kg/ha) | F9: Coût (€/ha) | G9: Dose ajustée (kg/ha) | H9: Coût (€/ha) | I9: Type | J9: Hauteur | K9: Racine | Q9: =E53 -> 0 | Y9: Conseillé Biomasse | Z9: Dose | AA9: Note | AB9: Conseillé Azote | AC9: Dose | AD9: Note | AE9: Ajusté Biomasse | AF9: Dose | AG9: Note | AH9: Ajusté max | AI9: Ajustée Azote | AJ9: Dose | AK9: Note | AN9: Graminées | AO9: Legumineuse | AP9: Crucifères | AQ9: Autres | AR9: Graminées | AS9: Legumineuse | AT9: Crucifères | AU9: Autres | AZ9: Couvert | BA9: NB Pieds
A10: 1 | B10: Avoine bresilienne | C10: =IF(B10="","",VLOOKUP(B10,Feuil1!$A$5:$I$47,9,0)) -> 35 | D10: =IF(C10="","",VLOOKUP(B10,Feuil1!$A$5:$I$47,8,0)) -> 1.7 | E10: =IF(B10="","",C10/$B$25) -> 35 | F10: =IF(B10="","",E10*D10) -> 59.5 | G10: 50 | H10: =IF(B10="","",G10*D10) -> 85 | I10: =IF(B10="","",VLOOKUP(B10,Feuil1!$A$5:$I$47,2,0)) -> graminée | J10: =IF(B10="","",VLOOKUP(B10,Feuil1!$A$5:$I$47,3,0)) -> 2 | K10: =IF(B10="","",VLOOKUP(B10,Feuil1!$A$5:$I$47,4,0)) -> 2 | Y10: =IF(B10="","",VLOOKUP(B10,Feuil1!$A$5:$I$47,5,0)) -> 1.8 | Z10: =E10 -> 35 | AA10: =IF(B10="", "", Y10*Z10) -> 63 | AB10: =IF(B10="","",VLOOKUP(B10,Feuil1!$A$5:$I$47,7,0)) -> 2.5 | AC10: =E10 -> 35 | AD10: =IF(B10="", "", AB10*AC10) -> 87.5 | AE10: =IF(B10="", "", G10*Y10) -> 90 | AF10: =G10 -> 50 | AG10: =IF(B10="", "", AF10*Y10) -> 90 | AH10: =IF(B10="", "", G10*4) -> 200 | AI10: =IF(B10="", "", G10*AB10) -> 125 | AJ10: =AF10 -> 50 | AM10: =IF(B10="","",VLOOKUP(B10,Feuil1!$A$5:$I$47,2,0)) -> graminée | AN10: =IF(AM10="graminée", E10, "") -> 35 | AO10: =IF(AM10="Légumineuse", E10, "") ->  | AP10: =IF(AM10="Crucifère", E10, "") ->  | AQ10: =IF(SUM(AN10:AP10)>0, "", E10) ->  | AR10: =IF(AM10="graminée", G10, "") -> 50 | AS10: =IF(AM10="Légumineuse", G10, "") ->  | AT10: =IF(AM10="Crucifère", G10, "") ->  | AU10: =IF(SUM(AR10:AT10)>0, "", G10) ->  | AV10: =IF(B10="","",VLOOKUP(B10,Feuil1!$A$5:$J$47,10,0)) -> 35 | AW10: =IF(B10="", "", (E10*100)/AV10) -> 100 | AX10: =IF(B10= "", "", (G10*100)/AV10) -> 142.8571429 | AZ10: =IF(B10="", "", B10) -> Avoine bresilienne | BA10: =IF($Y$28=TRUE, AX10, AW10) -> 142.8571429
A11: 2 | C11: =IF(B11="","",VLOOKUP(B11,Feuil1!$A$5:$I$47,9,0)) ->  | D11: =IF(C11="","",VLOOKUP(B11,Feuil1!$A$5:$I$47,8,0)) ->  | E11: =IF(B11="","",C11/$B$25) ->  | F11: =IF(B11="","",E11*D11) ->  | H11: =IF(B11="","",G11*D11) ->  | I11: =IF(B11="","",VLOOKUP(B11,Feuil1!$A$5:$I$47,2,0)) ->  | J11: =IF(B11="","",VLOOKUP(B11,Feuil1!$A$5:$I$47,3,0)) ->  | K11: =IF(B11="","",VLOOKUP(B11,Feuil1!$A$5:$I$47,4,0)) ->  | Y11: =IF(B11="","",VLOOKUP(B11,Feuil1!$A$5:$I$47,5,0)) ->  | Z11: =E11 ->  | AA11: =IF(B11="", "", Y11*Z11) ->  | AB11: =IF(B11="","",VLOOKUP(B11,Feuil1!$A$5:$I$47,7,0)) ->  | AC11: =E11 ->  | AD11: =IF(B11="", "", AB11*AC11) ->  | AE11: =IF(B11="", "", G11*Y11) ->  | AF11: =G11 -> 0 | AG11: =IF(B11="", "", AF11*Y11) ->  | AH11: =IF(B11="", "", G11*4) ->  | AJ11: =AF11 -> 0 | AM11: =IF(B11="","",VLOOKUP(B11,Feuil1!$A$5:$I$47,2,0)) ->  | AN11: =IF(AM11="graminée", E11, "") ->  | AO11: =IF(AM11="Légumineuse", E11, "") ->  | AP11: =IF(AM11="Crucifère", E11, "") ->  | AQ11: =IF(SUM(AN11:AP11)>0, "", E11) ->  | AR11: =IF(AM11="graminée", G11, "") ->  | AS11: =IF(AM11="Légumineuse", G11, "") ->  | AT11: =IF(AM11="Crucifère", G11, "") ->  | AU11: =IF(SUM(AR11:AT11)>0, "", G11) -> 0 | AV11: =IF(B11="","",VLOOKUP(B11,Feuil1!$A$5:$J$47,10,0)) ->  | AW11: =IF(B11="", "", (E11*100)/AV11) ->  | AX11: =IF(B11= "", "", (G11*100)/AV11) ->  | AZ11: =IF(B11="", "", B11) ->  | BA11: =IF($Y$28=TRUE, AX11, AW11) -> 
A12: 3 | C12: =IF(B12="","",VLOOKUP(B12,Feuil1!$A$5:$I$47,9,0)) ->  | D12: =IF(C12="","",VLOOKUP(B12,Feuil1!$A$5:$I$47,8,0)) ->  | I12: =IF(B12="","",VLOOKUP(B12,Feuil1!$A$5:$I$47,2,0)) ->  | J12: =IF(B12="","",VLOOKUP(B12,Feuil1!$A$5:$I$47,3,0)) ->  | K12: =IF(B12="","",VLOOKUP(B12,Feuil1!$A$5:$I$47,4,0)) ->  | Y12: =IF(B12="","",VLOOKUP(B12,Feuil1!$A$5:$I$47,5,0)) ->  | AB12: =IF(B12="","",VLOOKUP(B12,Feuil1!$A$5:$I$47,7,0)) ->  | AF12: 0 | AJ12: 0 | AM12: =IF(B12="","",VLOOKUP(B12,Feuil1!$A$5:$I$47,2,0)) ->  | AU12: 0 | AV12: =IF(B12="","",VLOOKUP(B12,Feuil1!$A$5:$J$47,10,0)) -> 
A13: 4 | C13: =IF(B13="","",VLOOKUP(B13,Feuil1!$A$5:$I$47,9,0)) ->  | D13: =IF(C13="","",VLOOKUP(B13,Feuil1!$A$5:$I$47,8,0)) ->  | I13: =IF(B13="","",VLOOKUP(B13,Feuil1!$A$5:$I$47,2,0)) ->  | J13: =IF(B13="","",VLOOKUP(B13,Feuil1!$A$5:$I$47,3,0)) ->  | K13: =IF(B13="","",VLOOKUP(B13,Feuil1!$A$5:$I$47,4,0)) ->  | Q13: =E52 -> 100 | Y13: =IF(B13="","",VLOOKUP(B13,Feuil1!$A$5:$I$47,5,0)) ->  | AB13: =IF(B13="","",VLOOKUP(B13,Feuil1!$A$5:$I$47,7,0)) ->  | AF13: 0 | AJ13: 0 | AM13: =IF(B13="","",VLOOKUP(B13,Feuil1!$A$5:$I$47,2,0)) ->  | AU13: 0 | AV13: =IF(B13="","",VLOOKUP(B13,Feuil1!$A$5:$J$47,10,0)) -> 
A14: 5 | C14: =IF(B14="","",VLOOKUP(B14,Feuil1!$A$5:$I$47,9,0)) ->  | D14: =IF(C14="","",VLOOKUP(B14,Feuil1!$A$5:$I$47,8,0)) ->  | I14: =IF(B14="","",VLOOKUP(B14,Feuil1!$A$5:$I$47,2,0)) ->  | J14: =IF(B14="","",VLOOKUP(B14,Feuil1!$A$5:$I$47,3,0)) ->  | K14: =IF(B14="","",VLOOKUP(B14,Feuil1!$A$5:$I$47,4,0)) ->  | Y14: =IF(B14="","",VLOOKUP(B14,Feuil1!$A$5:$I$47,5,0)) ->  | AB14: =IF(B14="","",VLOOKUP(B14,Feuil1!$A$5:$I$47,7,0)) ->  | AF14: 0 | AJ14: 0 | AM14: =IF(B14="","",VLOOKUP(B14,Feuil1!$A$5:$I$47,2,0)) ->  | AU14: 0 | AV14: =IF(B14="","",VLOOKUP(B14,Feuil1!$A$5:$J$47,10,0)) -> 
A15: 6 | C15: =IF(B15="","",VLOOKUP(B15,Feuil1!$A$5:$I$47,9,0)) ->  | D15: =IF(C15="","",VLOOKUP(B15,Feuil1!$A$5:$I$47,8,0)) ->  | I15: =IF(B15="","",VLOOKUP(B15,Feuil1!$A$5:$I$47,2,0)) ->  | J15: =IF(B15="","",VLOOKUP(B15,Feuil1!$A$5:$I$47,3,0)) ->  | K15: =IF(B15="","",VLOOKUP(B15,Feuil1!$A$5:$I$47,4,0)) ->  | Y15: =IF(B15="","",VLOOKUP(B15,Feuil1!$A$5:$I$47,5,0)) ->  | AB15: =IF(B15="","",VLOOKUP(B15,Feuil1!$A$5:$I$47,7,0)) ->  | AF15: 0 | AJ15: 0 | AM15: =IF(B15="","",VLOOKUP(B15,Feuil1!$A$5:$I$47,2,0)) ->  | AU15: 0 | AV15: =IF(B15="","",VLOOKUP(B15,Feuil1!$A$5:$J$47,10,0)) -> 
A16: 7 | C16: =IF(B16="","",VLOOKUP(B16,Feuil1!$A$5:$I$47,9,0)) ->  | D16: =IF(C16="","",VLOOKUP(B16,Feuil1!$A$5:$I$47,8,0)) ->  | I16: =IF(B16="","",VLOOKUP(B16,Feuil1!$A$5:$I$47,2,0)) ->  | J16: =IF(B16="","",VLOOKUP(B16,Feuil1!$A$5:$I$47,3,0)) ->  | K16: =IF(B16="","",VLOOKUP(B16,Feuil1!$A$5:$I$47,4,0)) ->  | Q16: =E51 -> 0 | Y16: =IF(B16="","",VLOOKUP(B16,Feuil1!$A$5:$I$47,5,0)) ->  | AB16: =IF(B16="","",VLOOKUP(B16,Feuil1!$A$5:$I$47,7,0)) ->  | AF16: 0 | AJ16: 0 | AM16: =IF(B16="","",VLOOKUP(B16,Feuil1!$A$5:$I$47,2,0)) ->  | AU16: 0 | AV16: =IF(B16="","",VLOOKUP(B16,Feuil1!$A$5:$J$47,10,0)) -> 
A17: 8 | C17: =IF(B17="","",VLOOKUP(B17,Feuil1!$A$5:$I$47,9,0)) ->  | D17: =IF(C17="","",VLOOKUP(B17,Feuil1!$A$5:$I$47,8,0)) ->  | I17: =IF(B17="","",VLOOKUP(B17,Feuil1!$A$5:$I$47,2,0)) ->  | J17: =IF(B17="","",VLOOKUP(B17,Feuil1!$A$5:$I$47,3,0)) ->  | K17: =IF(B17="","",VLOOKUP(B17,Feuil1!$A$5:$I$47,4,0)) ->  | Y17: =IF(B17="","",VLOOKUP(B17,Feuil1!$A$5:$I$47,5,0)) ->  | AB17: =IF(B17="","",VLOOKUP(B17,Feuil1!$A$5:$I$47,7,0)) ->  | AF17: 0 | AJ17: 0 | AM17: =IF(B17="","",VLOOKUP(B17,Feuil1!$A$5:$I$47,2,0)) ->  | AU17: 0 | AV17: =IF(B17="","",VLOOKUP(B17,Feuil1!$A$5:$J$47,10,0)) -> 
A18: 9 | C18: =IF(B18="","",VLOOKUP(B18,Feuil1!$A$5:$I$47,9,0)) ->  | D18: =IF(C18="","",VLOOKUP(B18,Feuil1!$A$5:$I$47,8,0)) ->  | I18: =IF(B18="","",VLOOKUP(B18,Feuil1!$A$5:$I$47,2,0)) ->  | J18: =IF(B18="","",VLOOKUP(B18,Feuil1!$A$5:$I$47,3,0)) ->  | K18: =IF(B18="","",VLOOKUP(B18,Feuil1!$A$5:$I$47,4,0)) ->  | Q18: =E56 -> 0 | Y18: =IF(B18="","",VLOOKUP(B18,Feuil1!$A$5:$I$47,5,0)) ->  | AB18: =IF(B18="","",VLOOKUP(B18,Feuil1!$A$5:$I$47,7,0)) ->  | AF18: 0 | AJ18: 0 | AM18: =IF(B18="","",VLOOKUP(B18,Feuil1!$A$5:$I$47,2,0)) ->  | AU18: 0 | AV18: =IF(B18="","",VLOOKUP(B18,Feuil1!$A$5:$J$47,10,0)) -> 
A19: 10 | C19: =IF(B19="","",VLOOKUP(B19,Feuil1!$A$5:$I$47,9,0)) ->  | D19: =IF(C19="","",VLOOKUP(B19,Feuil1!$A$5:$I$47,8,0)) ->  | I19: =IF(B19="","",VLOOKUP(B19,Feuil1!$A$5:$I$47,2,0)) ->  | J19: =IF(B19="","",VLOOKUP(B19,Feuil1!$A$5:$I$47,3,0)) ->  | K19: =IF(B19="","",VLOOKUP(B19,Feuil1!$A$5:$I$47,4,0)) ->  | Y19: =IF(B19="","",VLOOKUP(B19,Feuil1!$A$5:$I$47,5,0)) ->  | AB19: =IF(B19="","",VLOOKUP(B19,Feuil1!$A$5:$I$47,7,0)) ->  | AF19: 0 | AJ19: 0 | AM19: =IF(B19="","",VLOOKUP(B19,Feuil1!$A$5:$I$47,2,0)) ->  | AU19: 0 | AV19: =IF(B19="","",VLOOKUP(B19,Feuil1!$A$5:$J$47,10,0)) -> 
A20: 11 | C20: =IF(B20="","",VLOOKUP(B20,Feuil1!$A$5:$I$47,9,0)) ->  | D20: =IF(C20="","",VLOOKUP(B20,Feuil1!$A$5:$I$47,8,0)) ->  | I20: =IF(B20="","",VLOOKUP(B20,Feuil1!$A$5:$I$47,2,0)) ->  | J20: =IF(B20="","",VLOOKUP(B20,Feuil1!$A$5:$I$47,3,0)) ->  | K20: =IF(B20="","",VLOOKUP(B20,Feuil1!$A$5:$I$47,4,0)) ->  | Y20: =IF(B20="","",VLOOKUP(B20,Feuil1!$A$5:$I$47,5,0)) ->  | AB20: =IF(B20="","",VLOOKUP(B20,Feuil1!$A$5:$I$47,7,0)) ->  | AF20: 0 | AJ20: 0 | AM20: =IF(B20="","",VLOOKUP(B20,Feuil1!$A$5:$I$47,2,0)) ->  | AU20: 0 | AV20: =IF(B20="","",VLOOKUP(B20,Feuil1!$A$5:$J$47,10,0)) -> 
A21: 12 | C21: =IF(B21="","",VLOOKUP(B21,Feuil1!$A$5:$I$47,9,0)) ->  | D21: =IF(C21="","",VLOOKUP(B21,Feuil1!$A$5:$I$47,8,0)) ->  | I21: =IF(B21="","",VLOOKUP(B21,Feuil1!$A$5:$I$47,2,0)) ->  | J21: =IF(B21="","",VLOOKUP(B21,Feuil1!$A$5:$I$47,3,0)) ->  | K21: =IF(B21="","",VLOOKUP(B21,Feuil1!$A$5:$I$47,4,0)) ->  | Q21: =E57 -> 100 | Y21: =IF(B21="","",VLOOKUP(B21,Feuil1!$A$5:$I$47,5,0)) ->  | AB21: =IF(B21="","",VLOOKUP(B21,Feuil1!$A$5:$I$47,7,0)) ->  | AF21: 0 | AJ21: 0 | AM21: =IF(B21="","",VLOOKUP(B21,Feuil1!$A$5:$I$47,2,0)) ->  | AU21: 0 | AV21: =IF(B21="","",VLOOKUP(B21,Feuil1!$A$5:$J$47,10,0)) -> 
A22: 13 | C22: =IF(B22="","",VLOOKUP(B22,Feuil1!$A$5:$I$47,9,0)) ->  | D22: =IF(C22="","",VLOOKUP(B22,Feuil1!$A$5:$I$47,8,0)) ->  | I22: =IF(B22="","",VLOOKUP(B22,Feuil1!$A$5:$I$47,2,0)) ->  | J22: =IF(B22="","",VLOOKUP(B22,Feuil1!$A$5:$I$47,3,0)) ->  | K22: =IF(B22="","",VLOOKUP(B22,Feuil1!$A$5:$I$47,4,0)) ->  | Y22: =IF(B22="","",VLOOKUP(B22,Feuil1!$A$5:$I$47,5,0)) ->  | AB22: =IF(B22="","",VLOOKUP(B22,Feuil1!$A$5:$I$47,7,0)) ->  | AF22: 0 | AJ22: 0 | AM22: =IF(B22="","",VLOOKUP(B22,Feuil1!$A$5:$I$47,2,0)) ->  | AU22: 0 | AV22: =IF(B22="","",VLOOKUP(B22,Feuil1!$A$5:$J$47,10,0)) -> 
A23: 14 | C23: =IF(B23="","",VLOOKUP(B23,Feuil1!$A$5:$I$47,9,0)) ->  | D23: =IF(C23="","",VLOOKUP(B23,Feuil1!$A$5:$I$47,8,0)) ->  | I23: =IF(B23="","",VLOOKUP(B23,Feuil1!$A$5:$I$47,2,0)) ->  | J23: =IF(B23="","",VLOOKUP(B23,Feuil1!$A$5:$I$47,3,0)) ->  | K23: =IF(B23="","",VLOOKUP(B23,Feuil1!$A$5:$I$47,4,0)) ->  | Q23: =E58 -> 0 | Y23: =IF(B23="","",VLOOKUP(B23,Feuil1!$A$5:$I$47,5,0)) ->  | AB23: =IF(B23="","",VLOOKUP(B23,Feuil1!$A$5:$I$47,7,0)) ->  | AF23: 0 | AJ23: 0 | AM23: =IF(B23="","",VLOOKUP(B23,Feuil1!$A$5:$I$47,2,0)) ->  | AU23: 0 | AV23: =IF(B23="","",VLOOKUP(B23,Feuil1!$A$5:$J$47,10,0)) -> 
A24: 15 | C24: =IF(B24="","",VLOOKUP(B24,Feuil1!$A$5:$I$47,9,0)) ->  | D24: =IF(C24="","",VLOOKUP(B24,Feuil1!$A$5:$I$47,8,0)) ->  | I24: =IF(B24="","",VLOOKUP(B24,Feuil1!$A$5:$I$47,2,0)) ->  | J24: =IF(B24="","",VLOOKUP(B24,Feuil1!$A$5:$I$47,3,0)) ->  | K24: =IF(B24="","",VLOOKUP(B24,Feuil1!$A$5:$I$47,4,0)) ->  | Y24: =IF(B24="","",VLOOKUP(B24,Feuil1!$A$5:$I$47,5,0)) ->  | AB24: =IF(B24="","",VLOOKUP(B24,Feuil1!$A$5:$I$47,7,0)) ->  | AF24: 0 | AJ24: 0 | AM24: =IF(B24="","",VLOOKUP(B24,Feuil1!$A$5:$I$47,2,0)) ->  | AU24: 0 | AV24: =IF(B24="","",VLOOKUP(B24,Feuil1!$A$5:$J$47,10,0)) -> 
B25: =IF(B10="",1, COUNTA(B10:B24)) -> 1 | D25: TOTAL | E25: =SUM(E10:E24) -> 35 | F25: =SUM(F10:F24) -> 59.5 | G25: =SUM(G10:G24) -> 50 | H25: 85 | X25: Total | Y25: =SUM(Y10:Y24) -> 1.8 | Z25: =SUM(Z10:Z24) -> 35 | AA25: 63 | AB25: =SUM(AB10:AB24) -> 2.5 | AC25: =SUM(AC10:AC24) -> 35 | AD25: 87.5 | AE25: 90 | AG25: =SUM(AG10:AG24) -> 90 | AH25: 200 | AI25: =SUM(AI10:AI24) -> 125 | AM25: SOMME | AN25: =SUM(AN10:AN24) -> 35 | AO25: =SUM(AO10:AO24) -> 0 | AP25: 0 | AQ25: 0 | AR25: 50 | AS25: 0 | AT25: 0 | AU25: 0
X26: Maximum | Y26: =4*$B$25 -> 4 | Z26: 200 | AB26: =4*$B$25 -> 4 | AC26: 200 | AE26: 200 | AI26: =G25*4 -> 200 | AM26: Maximum | AN26: =$E$25 -> 35 | AO26: =$E$25 -> 35 | AP26: 35 | AQ26: 35 | AR26: =$G$25 -> 50 | AS26: =$G$25 -> 50 | AT26: 50 | AU26: 50
X27: % | Y27: =(Y25*100)/Y26 -> 45 | AA27: =IF(AA25<Z26, (AA25*100)/Z26, 99) -> 31.5 | AB27: =(AB25*100)/AB26 -> 62.5 | AD27: =IF(AD25<AC26, IF(B10="", 0, (AD25*100)/AC26), 99) -> 43.75 | AE27: =(AE25*100)/AH25 -> 45 | AG27: =IF(AG25<AH25, (AG25*100)/AE26, 99) -> 45 | AI27: =IF(AI25<AH25, (AI25*100)/AH25, 99) -> 62.5 | AM27: % | AN27: =(AN25*100)/AN26 -> 100 | AO27: =(AO25*100)/AO26 -> 0 | AP27: 0 | AQ27: 0 | AR27: 100 | AS27: 0 | AT27: 0 | AU27: 0
Y28: TRUE
C44: TYPE | D44: NB | E44: % | F44: NB conseillé | G44: NB Ajusté
C45: Graminées | D45: =IF($Y$28=FALSE, F45,G45) -> 100 | E45: =D45 -> 100 | F45: =AN27 -> 100 | G45: =AR27 -> 100
C46: Légumineuses | D46: =IF($Y$28=FALSE, F46,G46) -> 0 | E46: =D46 -> 0 | F46: =AO27 -> 0 | G46: =AS27 -> 0
C47: Crucifères | D47: =IF($Y$28=FALSE, F47,G47) -> 0 | E47: 0 | F47: =AP27 -> 0 | G47: =AT27 -> 0
C48: Autres | D48: =IF($Y$28=FALSE, F48,G48) -> 0 | E48: 0 | F48: =AQ27 -> 0 | G48: =AU27 -> 0
C50: HAUTEUR | D50: NB | E50: %
C51: Basse | D51: =COUNTIFS($J$10:$J$24,"1") -> 0 | E51: =(D51*100)/$B$25 -> 0
C52: Intermédiaire | D52: =COUNTIFS($J$10:$J$24,"2") -> 1 | E52: =(D52*100)/$B$25 -> 100
C53: Haute | D53: =COUNTIFS($J$10:$J$24,"3") -> 0 | E53: 0
C55: RACINES | D55: NB | E55: %
C56: Superficiel | D56: =COUNTIFS($K$10:$K$24,"1") -> 0 | E56: =(D56*100)/$B$25 -> 0
C57: Intermédiaire | D57: =COUNTIFS($K$10:$K$24,"2") -> 1 | E57: =(D57*100)/$B$25 -> 100
C58: Profonde | D58: =COUNTIFS($K$10:$K$24,"3") -> 0 | E58: 0

Sheet Trefle_pipolina_couv
G2: CARACTERISTIQUES DES COUVERTS
G5: TREFLE PIPOLINA
M8: Famille botanique | N8: =U27 -> Légumineuse
G10: Dose de semis (kg/ha) | H10: =H27 -> 2 | K10: Pérennité | L10: =T27 -> Pluri-annuel
G11: Coût (€/kg) | H11: =J27 -> 0
G12: PMG (g) | H12: =K27 -> 0
A13: Notre avis : Micro trèfle nain. Variété très stolonifère qui confère une bonne couverture du sol. Biomasse et enracinement plus faible que les autres trèfles. Expérimentations en cours pour évaluer la variété.
G15: Vitesse d'installation | H15: =L27 -> 1 | K15: Profondeur de semis (cm)
G16: Concurrence adventice | H16: =M27 -> 1 | K16: Mini | L16: =V27 -> 1
G17: Sensibilité au gel | H17: =X27 -> >-10°C | K17: Maxi | L17: =W27 -> 2
G19: Type de port de plante | H19: =Q27 -> Dréssé
G21: Adaptation sol acide | H21: =Y27 -> 3
G22: Risque aphanomyces | H22: =Z27 -> 1
G27: Trèfle blanc PIPOLINA | H27: 2 | L27: 1 | M27: 1 | N27: 2 | O27: 1 | Q27: Dréssé | R27: 1 | S27: 2 | T27: Pluri-annuel | U27: Légumineuse | V27: 1 | W27: 2 | X27: >-10°C | Y27: 3 | Z27: 1

Sheet Vesce_pourpre_couv
G2: CARACTERISTIQUES DES COUVERTS
G5: VESCE POURPRE
M8: Famille botanique | N8: =U27 -> Légumineuse
G10: Dose de semis (kg/ha) | H10: =H27 -> 10 | K10: Pérennité | L10: =T27 -> Annuel
G11: Coût (€/kg) | H11: =J27 -> 1.99
G12: PMG (g) | H12: =K27 -> 60
A13: Notre avis : Bonne plante compagne avec le colza. Bonne croissance à l'automne. Intérêt dans la maitrise des adventices si semée précocement. Couvert parmi les moins sensibles aux herbicides racinaires. Attention à sa moindre sensibilité au gel. Intérêt dans l'alimentation des auxiliaires de culture à l'automne (nectar extra-floraux).
G15: Vitesse d'installation | H15: =L27 -> 2 | K15: Profondeur de semis (cm)
G16: Concurrence adventice | H16: =M27 -> 3 | K16: Mini | L16: =V27 -> 2
G17: Sensibilité au gel | H17: =X27 -> -10°C | K17: Maxi | L17: =W27 -> 3
G19: Type de port de plante | H19: =Q27 -> Etalé
G21: Adaptation sol acide | H21: =Y27 -> 3
G22: Risque aphanomyces | H22: =Z27 -> 2
G27: Vesce pourpre | H27: 10 | I27: 15 | J27: 1.99 | K27: 60 | L27: 2 | M27: 3 | N27: 1 | O27: 3 | P27: -10°C | Q27: Etalé | R27: 2 | S27: 3 | T27: Annuel | U27: Légumineuse | V27: 2 | W27: 3 | X27: -10°C | Y27: 3 | Z27: 2

Sheet Vesce erigée_couv
G2: CARACTERISTIQUES DES COUVERTS
G5: VESCE ERIGEE
M8: Famille botanique | N8: =U27 -> Légumineuse
G10: Dose de semis (kg/ha) | H10: =H27 -> 0 | K10: Pérennité | L10: =T27 -> Annuel
G11: Coût (€/kg) | H11: =J27 -> 0
G12: PMG (g) | H12: =K27 -> 0
A13: Notre avis : Bonne association avec le colza. Production de biomasse légèrement supérieure à celle de la lentille. Plus sensible au gel que les autres vesces (-4°C). Commercialisé en association evec le fenugrec.
G15: Vitesse d'installation | H15: =L27 -> 2 | K15: Profondeur de semis (cm)
G16: Concurrence adventice | H16: =M27 -> 3 | K16: Mini | L16: =V27 -> 2
G17: Sensibilité au gel | H17: =X27 -> -4°C | K17: Maxi | L17: =W27 -> 3
G19: Type de port de plante | H19: =Q27 -> Dressé
G21: Adaptation sol acide | H21: =Y27 -> 3
G22: Risque aphanomyces | H22: =Z27 -> 2
G27: Vesce érigée | I27: 15 | L27: 2 | M27: 3 | N27: 1 | O27: 3 | P27: -4°C | Q27: Dressé | R27: 2 | T27: Annuel | U27: Légumineuse | V27: 2 | W27: 3 | X27: -4°C | Y27: 3 | Z27: 2

Sheet Vesce commune_couv (2)
G2: CARACTERISTIQUES DES COUVERTS
G5: VESCE COMMUNE
M8: Famille botanique | N8: =U27 -> Légumineuse
G10: Dose de semis (kg/ha) | H10: =H27 -> 10 | K10: Pérennité | L10: =T27 -> Annuel
G11: Coût (€/kg) | H11: =J27 -> 1.85
G12: PMG (g) | H12: =K27 -> 60
A13: Notre avis : Couvert intéressant pour sa couverture du sol et la maitrise des adventices. Couvert intéressant pour amener de l'azote après destruction. Couvert parmi les moins sensibles aux herbicides racinaires. Attention , sa moindre sensibilité au gel est un frein dans les secteurs les moins gélifs en hiver. Intérêt dans l'alimentation des auxiliaires de culture à l'automne (nectar extra-floraux).
G15: Vitesse d'installation | H15: =L27 -> 2 | K15: Profondeur de semis (cm)
G16: Concurrence adventice | H16: =M27 -> 3 | K16: Mini | L16: =V27 -> 2
G17: Sensibilité au gel | H17: =X27 -> -10°C | K17: Maxi | L17: =W27 -> 3
G19: Type de port de plante | H19: =Q27 -> Etalé
G21: Adaptation sol acide | H21: =Y27 -> 3
G22: Risque aphanomyces | H22: =Z27 -> 2
G27: Vesce commune | H27: 10 | I27: 15 | J27: 1.85 | K27: 60 | L27: 2 | M27: 3 | N27: 1 | O27: 3 | P27: -10°C | Q27: Etalé | R27: 2 | S27: 3 | T27: Annuel | U27: Légumineuse | V27: 2 | W27: 3 | X27: -10°C | Y27: 3 | Z27: 2

Sheet Trèfle_Violet_couv
G2: CARACTERISTIQUES DES COUVERTS
G5: TREFLE VIOLET
M8: Famille botanique | N8: =U27 -> Légumineuse
G10: Dose de semis (kg/ha) | H10: =H27 -> 7 | K10: Pérennité | L10: =T27 -> Pluri-annuel
G11: Coût (€/kg) | H11: =J27 -> 5.8
G12: PMG (g) | H12: =K27 -> 1.9
A13: Notre avis : Legumineuse pluri-annuelle adaptée à de nombreux types de sols (notamment les sols acides et/ou hydromorphes). Pérennité de 2-3 ans. Bonne couverture du sol. Production de fourrage possible en interculture. Attention au risque aphanomyces selon les variétés.
G15: Vitesse d'installation | H15: =L27 -> 1 | K15: Profondeur de semis (cm)
G16: Concurrence adventice | H16: =M27 -> 1 | K16: Mini | L16: =V27 -> 0
G17: Sensibilité au gel | H17: =X27 -> >-10°C | K17: Maxi | L17: =W27 -> 0
G19: Type de port de plante | H19: =Q27 -> Dressé
G21: Adaptation sol acide | H21: =Y27 -> 3
G22: Risque aphanomyces | H22: =Z27 -> 2
G27: Trèfle violet | H27: 7 | I27: 500 | J27: 5.8 | K27: 1.9 | L27: 1 | M27: 1 | N27: 2 | O27: 1 | P27: -10°C | Q27: Dressé | R27: 1 | S27: 2 | T27: Pluri-annuel | U27: Légumineuse | X27: >-10°C | Y27: 3 | Z27: 2

Sheet Trèfle_Alexandrie_couv
G2: CARACTERISTIQUES DES COUVERTS
G5: TREFLE D'ALEXANDRIE
M8: Famille botanique | N8: =U27 -> Légumineuse
G10: Dose de semis (kg/ha) | H10: =H27 -> 5 | K10: Pérennité | L10: =T27 -> Annuel
G11: Coût (€/kg) | H11: =J27 -> 3.1
G12: PMG (g) | H12: =K27 -> 2.5
A13: Notre avis : Bon partenaire pour le colza. Installation rapide. Bonne production de biomasse à l'automne. Privilégier les variétés monocoupes et gélives. Plante bien adaptée à de nombreux types de sol, y compris les sols à tendance acide.
G15: Vitesse d'installation | H15: =L27 -> 3 | K15: Profondeur de semis (cm)
G16: Concurrence adventice | H16: =M27 -> 2 | K16: Mini | L16: =V27 -> 1
G17: Sensibilité au gel | H17: =X27 -> -5°C | K17: Maxi | L17: =W27 -> 2
G19: Type de port de plante | H19: =Q27 -> Dressé
G21: Adaptation sol acide | H21: =Y27 -> 3
G22: Risque aphanomyces | H22: =Z27 -> 3
G27: Trèfle d'Alexandrie | H27: 5 | I27: 120 | J27: 3.1 | K27: 2.5 | L27: 3 | M27: 2 | N27: 1 | O27: 3 | P27: -4°C | Q27: Dressé | R27: 3 | S27: 2 | T27: Annuel | U27: Légumineuse | V27: 1 | W27: 2 | X27: -5°C | Y27: 3 | Z27: 3

Sheet Trèfle_blanc_couv
G2: CARACTERISTIQUES DES COUVERTS
G5: TREFLE BLANC
M8: Famille botanique | N8: =U27 -> Légumineuse
G10: Dose de semis (kg/ha) | H10: =H27 -> 3 | K10: Pérennité | L10: =T27 -> Pluri-annuel
G11: Coût (€/kg) | H11: =J27 -> 5.8
G12: PMG (g) | H12: =K27 -> 0.6
A13: Notre avis : Légumineuse pluri-annuel adaptée à de nombreux types de sol. Bonne couverture du sol après la culture du colza grâce à ses stolons. Enracinement superficiel : attention à la concurrence vis-à-vis dans les cultures notamment dans les sols les plus superficiels. Sensibilité aphanomyces selon les variétés. Espèce à petit PMG : privilégier les semis à faible profondeur (1 -2 cm max).
G15: Vitesse d'installation | H15: =L27 -> 1 | K15: Profondeur de semis (cm)
G16: Concurrence adventice | H16: =M27 -> 1 | K16: Mini | L16: =V27 -> 1
G17: Sensibilité au gel | H17: =X27 -> >-10°C | K17: Maxi | L17: =W27 -> 2
G19: Type de port de plante | H19: =Q27 -> Dressé
G21: Adaptation sol acide | H21: =Y27 -> 3
G22: Risque aphanomyces | H22: =Z27 -> 1
G27: Trèfle Blanc | H27: 3 | I27: 500 | J27: 5.8 | K27: 0.6 | L27: 1 | M27: 1 | N27: 2 | O27: 1 | P27: -10°C | Q27: Dressé | R27: 1 | S27: 2 | T27: Pluri-annuel | U27: Légumineuse | V27: 1 | W27: 2 | X27: >-10°C | Y27: 3 | Z27: 1

Sheet Tournesol_couv
G2: CARACTERISTIQUES DES COUVERTS
G5: TOURNESOL
M8: Famille botanique | N8: =U27 -> Composée
G10: Dose de semis (kg/ha) | H10: =H27 -> 10 | K10: Pérennité | L10: =T27 -> Annuel
G11: Coût (€/kg) | H11: =J27 -> 0.2
G12: PMG (g) | H12: =K27 -> 60
A13: Notre avis : Couvert avec un système pivotant (effet structure). Bonne vigueur notamment en conditions sèches. Bonne production de biomasse à l'automne. Plante très sensible au gel (-2°C). Attention à l'effet négatif sur le colza (concurrence d'azote à l'automne). Viser 1 à 2 kg/ha maximum. Intérêt dans l'alimentation des auxiliaires de culture à l'automne. Attention au risue sclérotinia dans la rotation.
G15: Vitesse d'installation | H15: =L27 -> 2 | K15: Profondeur de semis (cm)
G16: Concurrence adventice | H16: =M27 -> 2 | K16: Mini | L16: =V27 -> 2
G17: Sensibilité au gel | H17: =X27 -> -2°C | K17: Maxi | L17: =W27 -> 3
G19: Type de port de plante | H19: =Q27 -> Dressé
G21: Adaptation sol acide | H21: =Y27 -> 2
G22: Risque aphanomyces | H22: =Z27 -> 3
G27: Tournesol | H27: 10 | I27: 3 | J27: 0.2 | K27: 60 | L27: 2 | M27: 2 | N27: 3 | O27: 3 | P27: -4°C | Q27: Dressé | R27: 0.5 | S27: 2 | T27: Annuel | U27: Composée | V27: 2 | W27: 3 | X27: -2°C | Y27: 2 | Z27: 3

Sheet Sarrasin_couv
G2: CARACTERISTIQUES DES COUVERTS
G5: SARRASIN
M8: Famille botanique | N8: =U27 -> Polygonacée
G10: Dose de semis (kg/ha) | H10: =H27 -> 40 | K10: Pérennité | L10: =T27 -> Annuel
G11: Coût (€/kg) | H11: =J27 -> 2.1
G12: PMG (g) | H12: =K27 -> 25
A13: Notre avis : Bonne vigueur notamment en conditions sèches. Bonne concurrence vis à vis des adventices. Bonne croissance à l'automne. Double culture possible si semé à 40 kg/ha. Dans ce cas, semis au plus tard le 10 juillet. Attention au risque d'egrenage. Forte concurrence sur le colza (consommation d'azote et réduction de biomasse). Intérêt dans l'alimentation des auxiliaires de culture à l'automne.
G15: Vitesse d'installation | H15: =L27 -> 3 | K15: Profondeur de semis (cm)
G16: Concurrence adventice | H16: =M27 -> 3 | K16: Mini | L16: =V27 -> 2
G17: Sensibilité au gel | H17: =X27 -> -2°C | K17: Maxi | L17: =W27 -> 3
G19: Type de port de plante | H19: =Q27 -> Dressé
G21: Adaptation sol acide | H21: =Y27 -> 2
G22: Risque aphanomyces | H22: =Z27 -> 3
G27: Sarrasin | H27: 40 | I27: 180 | J27: 2.1 | K27: 25 | L27: 3 | M27: 3 | N27: 3 | O27: 3 | P27: -1°C | Q27: Dressé | R27: 1 | S27: 3 | T27: Annuel | U27: Polygonacée | V27: 2 | W27: 3 | X27: -2°C | Y27: 2 | Z27: 3

Sheet Pois_proteagineux_couv
G2: CARACTERISTIQUES DES COUVERTS
G5: POIS PROTEAGINEUX
M8: Famille botanique | N8: =U27 -> Légumineuse
G10: Dose de semis (kg/ha) | H10: =H27 -> 50 | K10: Pérennité | L10: =T27 -> Annuel
G11: Coût (€/kg) | H11: =J27 -> 0.2
G12: PMG (g) | H12: =K27 -> 200
A13: Notre avis : Couvert permettant un bonne biomasse à l'automne. Attention à l'effet pénalisant sur la dynamique du colza (le couvert se couche au sol durant l'hiver). Couvert déconseillé.
G15: Vitesse d'installation | H15: =L27 -> 2 | K15: Profondeur de semis (cm)
G16: Concurrence adventice | H16: =M27 -> 1 | K16: Mini | L16: =V27 -> 2
G17: Sensibilité au gel | H17: =X27 -> -10°C | K17: Maxi | L17: =W27 -> 3
G19: Type de port de plante | H19: =Q27 -> Dressé
G21: Adaptation sol acide | H21: =Y27 -> 2
G22: Risque aphanomyces | H22: =Z27 -> 1
G27: Pois protéagineux | H27: 50 | I27: 18 | J27: 0.2 | K27: 200 | L27: 2 | M27: 1 | N27: 3 | O27: 2 | P27: -10°C | Q27: Dressé | R27: 2 | S27: 2 | T27: Annuel | U27: Légumineuse | V27: 2 | W27: 3 | X27: -10°C | Y27: 2 | Z27: 1

Sheet Pois_fourrager_couv
G2: CARACTERISTIQUES DES COUVERTS
G5: POIS FOURRAGER
M8: Famille botanique | N8: =U27 -> Légumineuse
G10: Dose de semis (kg/ha) | H10: =H27 -> 20 | K10: Pérennité | L10: =T27 -> Annuel
G11: Coût (€/kg) | H11: =J27 -> 1.49
G12: PMG (g) | H12: =K27 -> 100
A13: Notre avis : Couvert permettant une forte biomasse à l'automne. Attention à l'impact sur le comportement du colza (le pois fourrager se couche au sol durant l'hiver et pénalise le développement du colza, notamment la reprise de sortie hiver). Couvert déconseillé.
G15: Vitesse d'installation | H15: =L27 -> 3 | K15: Profondeur de semis (cm)
G16: Concurrence adventice | H16: =M27 -> 3 | K16: Mini | L16: =V27 -> 2
G17: Sensibilité au gel | H17: =X27 -> -15°C | K17: Maxi | L17: =W27 -> 3
G19: Type de port de plante | H19: =Q27 -> Dressé
G21: Adaptation sol acide | H21: =Y27 -> 3
G22: Risque aphanomyces | H22: =Z27 -> 1
G27: Pois fourrager | H27: 20 | I27: 17 | J27: 1.49 | K27: 100 | L27: 3 | M27: 3 | N27: 3 | O27: 3 | P27: -10°C | Q27: Dressé | R27: 2 | S27: 2 | T27: Annuel | U27: Légumineuse | V27: 2 | W27: 3 | X27: -15°C | Y27: 3 | Z27: 1

Sheet Niger_couv
G2: CARACTERISTIQUES DES COUVERTS
G5: NIGER
M8: Famille botanique | N8: =U27 -> Composée
G10: Dose de semis (kg/ha) | H10: =H27 -> 2 | K10: Pérennité | L10: =T27 -> Annuel
G11: Coût (€/kg) | H11: =J27 -> 4.1
G12: PMG (g) | H12: =K27 -> 3
A13: Notre avis : Couvert avec un système pivotant (effet structure). Bonne vigueur notamment en conditions sèches. Bonne production de biomasse à l'automne. Plante très sensible au gel (-1°C). Attention à l'effet négatif sur le colza (concurrence d'azote à l'automne). Viser 1 à 2 kg/ha maximum. Intérêt dans l'alimentation des auxiliaires de culture à l'automne. Attention au risque sclérotinia dans la rotation.
G15: Vitesse d'installation | H15: =L27 -> 2 | K15: Profondeur de semis (cm)
G16: Concurrence adventice | H16: =M27 -> 3 | K16: Mini | L16: =V27 -> 1
G17: Sensibilité au gel | H17: =X27 -> -1°C | K17: Maxi | L17: =W27 -> 1.5
G19: Type de port de plante | H19: =Q27 -> Dressé
G21: Adaptation sol acide | H21: =Y27 -> 2
G22: Risque aphanomyces | H22: =Z27 -> 3
G27: Niger | H27: 2 | I27: 67 | J27: 4.1 | K27: 3 | L27: 2 | M27: 3 | N27: 2 | O27: 3 | P27: -1°C | Q27: Dressé | R27: 0.5 | S27: 2 | T27: Annuel | U27: Composée | V27: 1 | W27: 1.5 | X27: -1°C | Y27: 2 | Z27: 3

Sheet Luzerne_couv
G2: CARACTERISTIQUES DES COUVERTS
G5: LUZERNE FLAMANDE
M8: Famille botanique | N8: =U27 -> Légumineuse
G10: Dose de semis (kg/ha) | H10: =H27 -> 10 | K10: Pérennité | L10: =T27 -> Pluri-annuel
G11: Coût (€/kg) | H11: =J27 -> 5.69
G12: PMG (g) | H12: =K27 -> 2
A13: Notre avis : Légumineuse pluri-annuelle bien adaptée en sol sain et basique (pH>7). Intérêt pour la production de fourrage en interculture. Système racinaire pivotant profond. Déconseillé dans les parcelles drainées. Régulation nécessaire en sortie hiver dans les parcelles avec des colzas peu couvrants. A semer très superficiellement pour assurer la réussite de l'implantation.
G15: Vitesse d'installation | H15: =L27 -> 1 | K15: Profondeur de semis (cm)
G16: Concurrence adventice | H16: =M27 -> 1 | K16: Mini | L16: =V27 -> 0.5
G17: Sensibilité au gel | H17: =X27 -> >-15°C | K17: Maxi | L17: =W27 -> 1.5
G19: Type de port de plante | H19: =Q27 -> Dressé
G21: Adaptation sol acide | H21: =Y27 -> 3
G22: Risque aphanomyces | H22: =Z27 -> 1
G27: Luzerne Flamande | H27: 10 | I27: 500 | J27: 5.69 | K27: 2 | L27: 1 | M27: 1 | N27: 1 | O27: 1 | P27: -10°C | Q27: Dressé | R27: 1 | S27: 2 | T27: Pluri-annuel | U27: Légumineuse | V27: 0.5 | W27: 1.5 | X27: >-15°C | Y27: 3 | Z27: 1

Sheet Lupin_bleu_couv
G2: CARACTERISTIQUES DES COUVERTS
G5: LUPIN BLEU
M8: Famille botanique | N8: =U27 -> 0
G10: Dose de semis (kg/ha) | H10: 40 | K10: Pérennité | L10: =T27 -> 0
G11: Coût (€/kg) | H11: 2.45
G12: PMG (g) | H12: 200
A13: Notre avis : Couvert adapté au sol à tendance acide. Peu sensible aux maladies (ascochytose notamment). Racine pivotante. Expérimentation en cours.
G15: Vitesse d'installation | H15: =L27 -> 0 | K15: Profondeur de semis (cm)
G16: Concurrence adventice | H16: =M27 -> 0 | K16: Mini | L16: =V27 -> 0
G17: Sensibilité au gel | H17: =X27 -> 0 | K17: Maxi | L17: =W27 -> 0
G19: Type de port de plante | H19: =Q27 -> 0
G21: Adaptation sol acide | H21: =Y27 -> 0
G22: Risque aphanomyces | H22: =Z27 -> 0
G27: Lupin bleu | O27: 2

Sheet Lotier_couv
G2: CARACTERISTIQUES DES COUVERTS
G5: LOTIER CORNICULE
M8: Famille botanique | N8: =U27 -> Légumineuse
G10: Dose de semis (kg/ha) | H10: =H27 -> 10 | K10: Pérennité | L10: =T27 -> Pluri-annuel
G11: Coût (€/kg) | H11: =J27 -> 6.1
G12: PMG (g) | H12: =K27 -> 1.1
A13: Notre avis : Légumineuse pluri-annuel adaptée à de nombreux types de sols, hormis les sols hydromorphes. Dynamique de croissance lente. Système racinaire profond (identique à la luzerne) mais racine plus fine. A suivre en sol drainé. Faible production de fourrage en interculture. Davantage adaptée pour du paturage que pour de l'enrubannage. A semer très superficiellement pour assurer la réussite de l'implantation.
G15: Vitesse d'installation | H15: =L27 -> 1 | K15: Profondeur de semis (cm)
G16: Concurrence adventice | H16: =M27 -> 1 | K16: Mini | L16: =V27 -> 1
G17: Sensibilité au gel | H17: =X27 -> >-15°C | K17: Maxi | L17: =W27 -> 2
G19: Type de port de plante | H19: =Q27 -> Dressé
G21: Adaptation sol acide | H21: =Y27 -> 3
G22: Risque aphanomyces | H22: =Z27 -> 3
G27: Lotier Corniculé | H27: 10 | I27: 900 | J27: 6.1 | K27: 1.1 | L27: 1 | M27: 1 | N27: 1 | O27: 1 | P27: -10°C | Q27: Dressé | R27: 1 | S27: 2 | T27: Pluri-annuel | U27: Légumineuse | V27: 1 | W27: 2 | X27: >-15°C | Y27: 3 | Z27: 3

Sheet Lin_couv
G2: CARACTERISTIQUES DES COUVERTS
G5: LIN
M8: Famille botanique | N8: =U27 -> Linacée
G10: Dose de semis (kg/ha) | H10: =H27 -> 20 | K10: Pérennité | L10: =T27 -> Annuel
G11: Coût (€/kg) | H11: =J27 -> 1.25
G12: PMG (g) | H12: =K27 -> 7
A13: Notre avis : Couvert intéressant pour son effet "bouche-trou". Système racinaire peu profond. Bonne production de biomasse à l'automne. Plante assez sensible au gel (-4°C). Plante non légumineuse : peuplement à limiter pour ne pas trop concurrencer le colza (consommation d'azote). Dose de semis recommandée : 1 à 2 kg/ha.
G15: Vitesse d'installation | H15: =L27 -> 3 | K15: Profondeur de semis (cm)
G16: Concurrence adventice | H16: =M27 -> 2 | K16: Mini | L16: =V27 -> 1
G17: Sensibilité au gel | H17: =X27 -> -4°C | K17: Maxi | L17: =W27 -> 1.5
G19: Type de port de plante | H19: =Q27 -> Dressé
G21: Adaptation sol acide | H21: =Y27 -> 2
G22: Risque aphanomyces | H22: =Z27 -> 3
G27: Lin | H27: 20 | I27: 14 | J27: 1.25 | K27: 7 | L27: 3 | M27: 2 | N27: 1 | O27: 1 | P27: -2°C | Q27: Dressé | R27: 0.5 | S27: 2 | T27: Annuel | U27: Linacée | V27: 1 | W27: 1.5 | X27: -4°C | Y27: 2 | Z27: 3

Sheet Lentille_couv
G2: CARACTERISTIQUES DES COUVERTS
G5: LENTILLE
M8: Famille botanique | N8: =U27 -> Légumineuse
G10: Dose de semis (kg/ha) | H10: =H27 -> 20 | K10: Pérennité | L10: =T27 -> Annuel
G11: Coût (€/kg) | H11: =J27 -> 2.4
G12: PMG (g) | H12: =K27 -> 22
A13: Notre avis : Très bon partenaire pour le colza. Implantation et croissance rapide. Sensible aux herbicides. Privilégier les applications de post-levée. Déconseillé en sol acide. Sensible aphanomyces. Attention dans les rotations avec des cultures sensibles (pois / lentille).
G15: Vitesse d'installation | H15: =L27 -> 3 | K15: Profondeur de semis (cm)
G16: Concurrence adventice | H16: =M27 -> 2 | K16: Mini | L16: =V27 -> 2
G17: Sensibilité au gel | H17: =X27 -> -7°C | K17: Maxi | L17: =W27 -> 3
G19: Type de port de plante | H19: =Q27 -> Etalé
G21: Adaptation sol acide | H21: =Y27 -> 1
G22: Risque aphanomyces | H22: =Z27 -> 1
G27: Lentille | H27: 20 | I27: 65 | J27: 2.4 | K27: 22 | L27: 3 | M27: 2 | N27: 1 | O27: 2 | P27: -7°C | Q27: Etalé | R27: 3 | S27: 2 | T27: Annuel | U27: Légumineuse | V27: 2 | W27: 3 | X27: -7°C | Y27: 1 | Z27: 1

Sheet Gesse_couv
G2: CARACTERISTIQUES DES COUVERTS
G5: GESSE
M8: Famille botanique | N8: =U27 -> Légumineuse
G10: Dose de semis (kg/ha) | H10: =H27 -> 10 | K10: Pérennité | L10: =T27 -> Annuel
G11: Coût (€/kg) | H11: =J27 -> 1.52
G12: PMG (g) | H12: =K27 -> 180
A13: Notre avis : Couvert intéresssant pour sa production de biomasse à l'automne. Bonne concurrence vis-à-vis des adventices. Peu sensible au gel : attention au hiver doux. Une intervention herbicide sera justifiée pour le détruire.
G15: Vitesse d'installation | H15: =L27 -> 1 | K15: Profondeur de semis (cm)
G16: Concurrence adventice | H16: =M27 -> 2 | K16: Mini | L16: =V27 -> 3
G17: Sensibilité au gel | H17: =X27 -> -10°C | K17: Maxi | L17: =W27 -> 4
G19: Type de port de plante | H19: =Q27 -> Etalé
G21: Adaptation sol acide | H21: =Y27 -> 2
G22: Risque aphanomyces | H22: =Z27 -> 3
G27: Gesse | H27: 10 | I27: 10 | J27: 1.52 | K27: 180 | L27: 1 | M27: 2 | N27: 1 | O27: 2 | P27: -10°C | Q27: Etalé | R27: 3 | S27: 2 | T27: Annuel | U27: Légumineuse | V27: 3 | W27: 4 | X27: -10°C | Y27: 2 | Z27: 3

Sheet Fenugrec_couv
G2: CARACTERISTIQUES DES COUVERTS
G5: FENUGREC
M8: Famille botanique | N8: =U27 -> Légumineuse
G10: Dose de semis (kg/ha) | H10: =H27 -> 20 | K10: Pérennité | L10: =T27 -> Annuel
G11: Coût (€/kg) | H11: =J27 -> 2.6
G12: PMG (g) | H12: =K27 -> 22
A13: Notre avis : Bonne plante compagne pour le colza. Bonne couverture du sol. Plus lent en développement que la lentille. Tolérant aphanomyces, le fenugrec trouvera sa place dans les rotations avec pois ou lentille. Odeur caractéristique. Couvert aux propriétés répulsives pour les lapins, elle a l'inconvénient d'être appétente pour les cerfs.
G15: Vitesse d'installation | H15: =L27 -> 3 | K15: Profondeur de semis (cm)
G16: Concurrence adventice | H16: =M27 -> 2 | K16: Mini | L16: =V27 -> 2
G17: Sensibilité au gel | H17: =X27 -> -7°C | K17: Maxi | L17: =W27 -> 3
G19: Type de port de plante | H19: =Q27 -> Dressé
G21: Adaptation sol acide | H21: =Y27 -> 2
G22: Risque aphanomyces | H22: =Z27 -> 3
G27: Fenugrec | H27: 20 | I27: 65 | J27: 2.6 | K27: 22 | L27: 3 | M27: 2 | N27: 1 | O27: 2 | P27: -7°C | Q27: Dressé | R27: 2 | S27: 2 | T27: Annuel | U27: Légumineuse | V27: 2 | W27: 3 | X27: -7°C | Y27: 2 | Z27: 3

Sheet Feverole_couv
G2: CARACTERISTIQUES DES COUVERTS
G5: FEVEROLE
M8: Famille botanique | N8: =U27 -> Légumineuse
G10: Dose de semis (kg/ha) | H10: =H27 -> 80 | K10: Pérennité | L10: =T27 -> Annuel
G11: Coût (€/kg) | H11: =J27 -> 0.26
G12: PMG (g) | H12: =K27 -> 500
A13: Notre avis : Très bonne complémentarité avec le colza (aérien et racinaire). Effet répulsif supposé sur les insectes d'automne. Adapté à de nombreux types de sol, y compris les sols à tendance acide. Système racinaire pivotant, bénéfique en sol humide pour améliorer le drainage. Intérêt dans l'alimentation des auxiliaires de culture à l'automne (nectar extra-floraux). Grosse graine : nécessite un semoir adapté et une humidité suffisante pour germer (inconvénient en automne sec).
G15: Vitesse d'installation | H15: =L27 -> 2 | K15: Profondeur de semis (cm)
G16: Concurrence adventice | H16: =M27 -> 1 | K16: Mini | L16: =V27 -> 2
G17: Sensibilité au gel | H17: =X27 -> -5°C | K17: Maxi | L17: =W27 -> 3
G19: Type de port de plante | H19: =Q27 -> Dressé
G21: Adaptation sol acide | H21: =Y27 -> 3
G22: Risque aphanomyces | H22: =Z27 -> 3
G27: Feverole | H27: 80 | I27: 15 | J27: 0.26 | K27: 500 | L27: 2 | M27: 1 | N27: 1 | O27: 3 | P27: -5°C | Q27: Dressé | R27: 1 | S27: 3 | T27: Annuel | U27: Légumineuse | V27: 2 | W27: 3 | X27: -5°C | Y27: 3 | Z27: 3

Sheet Cameline_couv
G2: CARACTERISTIQUES DES COUVERTS
G5: CAMELINE
M8: Famille botanique | N8: =U27 -> Crucifère
G10: Dose de semis (kg/ha) | H10: =H27 -> 3 | K10: Pérennité | L10: =T27 -> Annuel
G11: Coût (€/kg) | H11: =J27 -> 5.7
G12: PMG (g) | H12: =K27 -> 1.2
A13: Notre avis : Couvert intéressant pour son effet de couverture du sol et de maîtrise des adventices. Attention à la densité pour ne pas pénaliser l'implantation et le développement du colza (consommation d'azote au détriment du colza). N'apprécie pas les sols lourds (argile). Attention, au risque sclérotinia dans la rotation (crucifère).
G15: Vitesse d'installation | H15: =L27 -> 3 | K15: Profondeur de semis (cm)
G16: Concurrence adventice | H16: =M27 -> 3 | K16: Mini | L16: =V27 -> 1
G17: Sensibilité au gel | H17: =X27 -> -10°C | K17: Maxi | L17: =W27 -> 1.5
G19: Type de port de plante | H19: =Q27 -> Dressé
G21: Adaptation sol acide | H21: =Y27 -> 2
G22: Risque aphanomyces | H22: =Z27 -> 3
G27: Cameline | H27: 3 | I27: 15 | J27: 5.7 | K27: 1.2 | L27: 3 | M27: 3 | N27: 2 | O27: 1 | P27: -10°C | Q27: Dressé | R27: 0.5 | S27: 2 | T27: Annuel | U27: Crucifère | V27: 1 | W27: 1.5 | X27: -10°C | Y27: 2 | Z27: 3

Sheet Stratégies_herbicides
C49: 1
C50: 2 | D50: COLZAMID 2 l | E50: METAZACHLORE 1.2 l
E51: COLZOR TRIO 3 l
E52: AXTER 1.5 l
E53: ALABAMA 1 l
E54: ALABAMA 1.5 l
E55: SPRINGBOK 1 l
E56: NOVALL 1 l
E57: NOVALL 1.5 l
E58: NOVALL + CENTIUM 36 CS 0.16 l

Sheet Composition_Colza
D11: Couvert | E11: Dose de semis en pur (kg/ha) | F11: Objectif de densité en pur (pieds/m²) | G11: Dose de semis (kg/ha) | H11: Densité de semis (pieds/m²) | I11: Coût indicatif (€/ha) | J11: Adapatation en sol acide | K11: Risque aphanomyces | L11: Impact culture | M11: Sensibilité au gel | N11: type botanique | O11: Type de plante | Q11: =H11 -> Densité de semis (pieds/m²) | T11: Concurrence adventice | U11: Minéralisation | V11: Biomasse | W11: Concurrence | X11: Minéralisation | Y11: Biomasse
C12: 1 | D12: 2 | E12: =IF(D12=1, "", VLOOKUP(D12,BDD_colza!$B$6:$D$27,3,TRUE)) -> 3 | F12: =IF(D12=1, "", VLOOKUP(D12,BDD_colza!$B$6:$V$27,4,TRUE)) -> 250 | H12: =IF(G12="", "",G12*1000/(IF(D12=1, "", VLOOKUP(D12,BDD_colza!$B$6:$W$27,6,TRUE)))/10) ->  | I12: =IF(D12=1, "", G12*VLOOKUP(D12,BDD_colza!$B$6:$W$27,5,TRUE)) -> 0 | J12: =IF(D12=1, "", VLOOKUP(D12,BDD_colza!$B$6:$V$27,20,TRUE)) -> 2 | K12: =IF(D12=1, "", VLOOKUP(D12,BDD_colza!$B$6:$V$27,21,TRUE)) -> 3 | L12: =IF(D12=1, "", VLOOKUP(D12,BDD_colza!$B$6:$V$27,9,TRUE)) -> 1 | M12: =IF(D12=1, "", VLOOKUP(D12,BDD_colza!$B$6:$W$27,19,TRUE)) -> -10°C | N12: =IF(D12=1, "", VLOOKUP(D12,BDD_colza!$B$6:$W$27,15,TRUE)) -> Annuel | O12: =IF(D12=1, "", VLOOKUP(D12,BDD_colza!$B$6:$W$27,16,TRUE)) -> Crucifère | P12: =IF(D10=1,"",VLOOKUP(D12,BDD_colza!$B$6:$C$27,2)) -> Cameline | Q12: =H12 ->  | S12: =IF(N12=$E$59,H12,"") ->  | T12: =IF(D12=1, "", VLOOKUP(D12,BDD_colza!$B$6:$W$27,8,TRUE)) -> 3 | U12: =IF(D12=1, "", VLOOKUP(D12,BDD_colza!$B$6:$W$27,13,TRUE)) -> 0.5 | V12: =IF(D12=1, "", VLOOKUP(D12,BDD_colza!$B$6:$W$27,10,TRUE)) -> 1 | W12: =IF(S12="","",(G12)/E12) ->  | X12: =W12 ->  | Y12: =W12 -> 
C13: 2 | D13: 1 | E13: =IF(D13=1, "", VLOOKUP(D13,BDD_colza!$B$6:$D$27,3,TRUE)) ->  | F13: =IF(D13=1, "", VLOOKUP(D13,BDD_colza!$B$6:$V$27,4,TRUE)) ->  | H13: =IF(G13="", "",G13*1000/(IF(D13=1, "", VLOOKUP(D13,BDD_colza!$B$6:$W$27,6,TRUE)))/10) ->  | I13: =IF(D13=1, "", G13*VLOOKUP(D13,BDD_colza!$B$6:$W$27,5,TRUE)) ->  | J13: =IF(D13=1, "", VLOOKUP(D13,BDD_colza!$B$6:$V$27,20,TRUE)) ->  | K13: =IF(D13=1, "", VLOOKUP(D13,BDD_colza!$B$6:$V$27,21,TRUE)) ->  | L13: =IF(D13=1, "", VLOOKUP(D13,BDD_colza!$B$6:$V$27,9,TRUE)) ->  | M13: =IF(D13=1, "", VLOOKUP(D13,BDD_colza!$B$6:$W$27,19,TRUE)) ->  | N13: =IF(D13=1, "", VLOOKUP(D13,BDD_colza!$B$6:$W$27,15,TRUE)) ->  | O13: =IF(D13=1, "", VLOOKUP(D13,BDD_colza!$B$6:$W$27,16,TRUE)) ->  | P13: =IF(D11=1,"",VLOOKUP(D13,BDD_colza!$B$6:$C$27,2)) -> 0 | S13: =IF(N13=$E$59,H13,"") ->  | T13: =IF(D13=1, "", VLOOKUP(D13,BDD_colza!$B$6:$W$27,8,TRUE)) ->  | U13: =IF(D13=1, "", VLOOKUP(D13,BDD_colza!$B$6:$W$27,13,TRUE)) ->  | V13: =IF(D13=1, "", VLOOKUP(D13,BDD_colza!$B$6:$W$27,10,TRUE)) ->  | W13: =IF(S13="","",(G13)/E13) ->  | X13: =W13 ->  | Y13: =W13 -> 
C14: 3 | D14: 1 | E14: =IF(D14=1, "", VLOOKUP(D14,BDD_colza!$B$6:$D$27,3,TRUE)) ->  | F14: =IF(D14=1, "", VLOOKUP(D14,BDD_colza!$B$6:$V$27,4,TRUE)) ->  | H14: =IF(G14="", "",G14*1000/(IF(D14=1, "", VLOOKUP(D14,BDD_colza!$B$6:$W$27,6,TRUE)))/10) ->  | I14: =IF(D14=1, "", G14*VLOOKUP(D14,BDD_colza!$B$6:$W$27,5,TRUE)) ->  | J14: =IF(D14=1, "", VLOOKUP(D14,BDD_colza!$B$6:$V$27,20,TRUE)) ->  | K14: =IF(D14=1, "", VLOOKUP(D14,BDD_colza!$B$6:$V$27,21,TRUE)) ->  | L14: =IF(D14=1, "", VLOOKUP(D14,BDD_colza!$B$6:$V$27,9,TRUE)) ->  | M14: =IF(D14=1, "", VLOOKUP(D14,BDD_colza!$B$6:$W$27,19,TRUE)) ->  | N14: =IF(D14=1, "", VLOOKUP(D14,BDD_colza!$B$6:$W$27,15,TRUE)) ->  | O14: =IF(D14=1, "", VLOOKUP(D14,BDD_colza!$B$6:$W$27,16,TRUE)) ->  | P14: =IF(D12=1,"",VLOOKUP(D14,BDD_colza!$B$6:$C$27,2)) -> 0 | T14: =IF(D14=1, "", VLOOKUP(D14,BDD_colza!$B$6:$W$27,8,TRUE)) ->  | U14: =IF(D14=1, "", VLOOKUP(D14,BDD_colza!$B$6:$W$27,13,TRUE)) ->  | V14: =IF(D14=1, "", VLOOKUP(D14,BDD_colza!$B$6:$W$27,10,TRUE)) -> 
C15: 4 | D15: 1 | E15: =IF(D15=1, "", VLOOKUP(D15,BDD_colza!$B$6:$D$27,3,TRUE)) ->  | F15: =IF(D15=1, "", VLOOKUP(D15,BDD_colza!$B$6:$V$27,4,TRUE)) ->  | H15: =IF(G15="", "",G15*1000/(IF(D15=1, "", VLOOKUP(D15,BDD_colza!$B$6:$W$27,6,TRUE)))/10) ->  | I15: =IF(D15=1, "", G15*VLOOKUP(D15,BDD_colza!$B$6:$W$27,5,TRUE)) ->  | J15: =IF(D15=1, "", VLOOKUP(D15,BDD_colza!$B$6:$V$27,20,TRUE)) ->  | K15: =IF(D15=1, "", VLOOKUP(D15,BDD_colza!$B$6:$V$27,21,TRUE)) ->  | L15: =IF(D15=1, "", VLOOKUP(D15,BDD_colza!$B$6:$V$27,9,TRUE)) ->  | M15: =IF(D15=1, "", VLOOKUP(D15,BDD_colza!$B$6:$W$27,19,TRUE)) ->  | N15: =IF(D15=1, "", VLOOKUP(D15,BDD_colza!$B$6:$W$27,15,TRUE)) ->  | O15: =IF(D15=1, "", VLOOKUP(D15,BDD_colza!$B$6:$W$27,16,TRUE)) ->  | P15: =IF(D13=1,"",VLOOKUP(D15,BDD_colza!$B$6:$C$27,2)) ->  | T15: =IF(D15=1, "", VLOOKUP(D15,BDD_colza!$B$6:$W$27,8,TRUE)) ->  | U15: =IF(D15=1, "", VLOOKUP(D15,BDD_colza!$B$6:$W$27,13,TRUE)) ->  | V15: =IF(D15=1, "", VLOOKUP(D15,BDD_colza!$B$6:$W$27,10,TRUE)) -> 
C16: 5 | D16: 1 | E16: =IF(D16=1, "", VLOOKUP(D16,BDD_colza!$B$6:$D$27,3,TRUE)) ->  | F16: =IF(D16=1, "", VLOOKUP(D16,BDD_colza!$B$6:$V$27,4,TRUE)) ->  | H16: =IF(G16="", "",G16*1000/(IF(D16=1, "", VLOOKUP(D16,BDD_colza!$B$6:$W$27,6,TRUE)))/10) ->  | I16: =IF(D16=1, "", G16*VLOOKUP(D16,BDD_colza!$B$6:$W$27,5,TRUE)) ->  | J16: =IF(D16=1, "", VLOOKUP(D16,BDD_colza!$B$6:$V$27,20,TRUE)) ->  | K16: =IF(D16=1, "", VLOOKUP(D16,BDD_colza!$B$6:$V$27,21,TRUE)) ->  | L16: =IF(D16=1, "", VLOOKUP(D16,BDD_colza!$B$6:$V$27,9,TRUE)) ->  | M16: =IF(D16=1, "", VLOOKUP(D16,BDD_colza!$B$6:$W$27,19,TRUE)) ->  | N16: =IF(D16=1, "", VLOOKUP(D16,BDD_colza!$B$6:$W$27,15,TRUE)) ->  | O16: =IF(D16=1, "", VLOOKUP(D16,BDD_colza!$B$6:$W$27,16,TRUE)) ->  | P16: =IF(D14=1,"",VLOOKUP(D16,BDD_colza!$B$6:$C$27,2)) ->  | T16: =IF(D16=1, "", VLOOKUP(D16,BDD_colza!$B$6:$W$27,8,TRUE)) ->  | U16: =IF(D16=1, "", VLOOKUP(D16,BDD_colza!$B$6:$W$27,13,TRUE)) ->  | V16: =IF(D16=1, "", VLOOKUP(D16,BDD_colza!$B$6:$W$27,10,TRUE)) -> 
C17: 6 | D17: 1 | E17: =IF(D17=1, "", VLOOKUP(D17,BDD_colza!$B$6:$D$27,3,TRUE)) ->  | F17: =IF(D17=1, "", VLOOKUP(D17,BDD_colza!$B$6:$V$27,4,TRUE)) ->  | H17: =IF(G17="", "",G17*1000/(IF(D17=1, "", VLOOKUP(D17,BDD_colza!$B$6:$W$27,6,TRUE)))/10) ->  | I17: =IF(D17=1, "", G17*VLOOKUP(D17,BDD_colza!$B$6:$W$27,5,TRUE)) ->  | J17: =IF(D17=1, "", VLOOKUP(D17,BDD_colza!$B$6:$V$27,20,TRUE)) ->  | K17: =IF(D17=1, "", VLOOKUP(D17,BDD_colza!$B$6:$V$27,21,TRUE)) ->  | L17: =IF(D17=1, "", VLOOKUP(D17,BDD_colza!$B$6:$V$27,9,TRUE)) ->  | M17: =IF(D17=1, "", VLOOKUP(D17,BDD_colza!$B$6:$W$27,19,TRUE)) ->  | N17: =IF(D17=1, "", VLOOKUP(D17,BDD_colza!$B$6:$W$27,15,TRUE)) ->  | O17: =IF(D17=1, "", VLOOKUP(D17,BDD_colza!$B$6:$W$27,16,TRUE)) ->  | P17: =IF(D15=1,"",VLOOKUP(D17,BDD_colza!$B$6:$C$27,2)) ->  | T17: =IF(D17=1, "", VLOOKUP(D17,BDD_colza!$B$6:$W$27,8,TRUE)) ->  | U17: =IF(D17=1, "", VLOOKUP(D17,BDD_colza!$B$6:$W$27,13,TRUE)) ->  | V17: =IF(D17=1, "", VLOOKUP(D17,BDD_colza!$B$6:$W$27,10,TRUE)) -> 
C18: 7 | D18: 1 | E18: =IF(D18=1, "", VLOOKUP(D18,BDD_colza!$B$6:$D$27,3,TRUE)) ->  | F18: =IF(D18=1, "", VLOOKUP(D18,BDD_colza!$B$6:$V$27,4,TRUE)) ->  | H18: =IF(G18="", "",G18*1000/(IF(D18=1, "", VLOOKUP(D18,BDD_colza!$B$6:$W$27,6,TRUE)))/10) ->  | I18: =IF(D18=1, "", G18*VLOOKUP(D18,BDD_colza!$B$6:$W$27,5,TRUE)) ->  | J18: =IF(D18=1, "", VLOOKUP(D18,BDD_colza!$B$6:$V$27,20,TRUE)) ->  | K18: =IF(D18=1, "", VLOOKUP(D18,BDD_colza!$B$6:$V$27,21,TRUE)) ->  | L18: =IF(D18=1, "", VLOOKUP(D18,BDD_colza!$B$6:$V$27,9,TRUE)) ->  | M18: =IF(D18=1, "", VLOOKUP(D18,BDD_colza!$B$6:$W$27,19,TRUE)) ->  | N18: =IF(D18=1, "", VLOOKUP(D18,BDD_colza!$B$6:$W$27,15,TRUE)) ->  | O18: =IF(D18=1, "", VLOOKUP(D18,BDD_colza!$B$6:$W$27,16,TRUE)) ->  | P18: =IF(D16=1,"",VLOOKUP(D18,BDD_colza!$B$6:$C$27,2)) ->  | T18: =IF(D18=1, "", VLOOKUP(D18,BDD_colza!$B$6:$W$27,8,TRUE)) ->  | U18: =IF(D18=1, "", VLOOKUP(D18,BDD_colza!$B$6:$W$27,13,TRUE)) ->  | V18: =IF(D18=1, "", VLOOKUP(D18,BDD_colza!$B$6:$W$27,10,TRUE)) -> 
C19: 8 | D19: 1 | E19: =IF(D19=1, "", VLOOKUP(D19,BDD_colza!$B$6:$D$27,3,TRUE)) ->  | F19: =IF(D19=1, "", VLOOKUP(D19,BDD_colza!$B$6:$V$27,4,TRUE)) ->  | H19: =IF(G19="", "",G19*1000/(IF(D19=1, "", VLOOKUP(D19,BDD_colza!$B$6:$W$27,6,TRUE)))/10) ->  | I19: =IF(D19=1, "", G19*VLOOKUP(D19,BDD_colza!$B$6:$W$27,5,TRUE)) ->  | J19: =IF(D19=1, "", VLOOKUP(D19,BDD_colza!$B$6:$V$27,20,TRUE)) ->  | K19: =IF(D19=1, "", VLOOKUP(D19,BDD_colza!$B$6:$V$27,21,TRUE)) ->  | L19: =IF(D19=1, "", VLOOKUP(D19,BDD_colza!$B$6:$V$27,9,TRUE)) ->  | M19: =IF(D19=1, "", VLOOKUP(D19,BDD_colza!$B$6:$W$27,19,TRUE)) ->  | N19: =IF(D19=1, "", VLOOKUP(D19,BDD_colza!$B$6:$W$27,15,TRUE)) ->  | O19: =IF(D19=1, "", VLOOKUP(D19,BDD_colza!$B$6:$W$27,16,TRUE)) ->  | P19: =IF(D17=1,"",VLOOKUP(D19,BDD_colza!$B$6:$C$27,2)) ->  | T19: =IF(D19=1, "", VLOOKUP(D19,BDD_colza!$B$6:$W$27,8,TRUE)) ->  | U19: =IF(D19=1, "", VLOOKUP(D19,BDD_colza!$B$6:$W$27,13,TRUE)) ->  | V19: =IF(D19=1, "", VLOOKUP(D19,BDD_colza!$B$6:$W$27,10,TRUE)) -> 
C20: 9 | D20: 1 | E20: =IF(D20=1, "", VLOOKUP(D20,BDD_colza!$B$6:$D$27,3,TRUE)) ->  | F20: =IF(D20=1, "", VLOOKUP(D20,BDD_colza!$B$6:$V$27,4,TRUE)) ->  | H20: =IF(G20="", "",G20*1000/(IF(D20=1, "", VLOOKUP(D20,BDD_colza!$B$6:$W$27,6,TRUE)))/10) ->  | I20: =IF(D20=1, "", G20*VLOOKUP(D20,BDD_colza!$B$6:$W$27,5,TRUE)) ->  | J20: =IF(D20=1, "", VLOOKUP(D20,BDD_colza!$B$6:$V$27,20,TRUE)) ->  | K20: =IF(D20=1, "", VLOOKUP(D20,BDD_colza!$B$6:$V$27,21,TRUE)) ->  | L20: =IF(D20=1, "", VLOOKUP(D20,BDD_colza!$B$6:$V$27,9,TRUE)) ->  | M20: =IF(D20=1, "", VLOOKUP(D20,BDD_colza!$B$6:$W$27,19,TRUE)) ->  | N20: =IF(D20=1, "", VLOOKUP(D20,BDD_colza!$B$6:$W$27,15,TRUE)) ->  | O20: =IF(D20=1, "", VLOOKUP(D20,BDD_colza!$B$6:$W$27,16,TRUE)) ->  | P20: =IF(D18=1,"",VLOOKUP(D20,BDD_colza!$B$6:$C$27,2)) ->  | T20: =IF(D20=1, "", VLOOKUP(D20,BDD_colza!$B$6:$W$27,8,TRUE)) ->  | U20: =IF(D20=1, "", VLOOKUP(D20,BDD_colza!$B$6:$W$27,13,TRUE)) ->  | V20: =IF(D20=1, "", VLOOKUP(D20,BDD_colza!$B$6:$W$27,10,TRUE)) -> 
C21: 10 | D21: 1 | E21: =IF(D21=1, "", VLOOKUP(D21,BDD_colza!$B$6:$D$27,3,TRUE)) ->  | F21: =IF(D21=1, "", VLOOKUP(D21,BDD_colza!$B$6:$V$27,4,TRUE)) ->  | H21: =IF(G21="", "",G21*1000/(IF(D21=1, "", VLOOKUP(D21,BDD_colza!$B$6:$W$27,6,TRUE)))/10) ->  | I21: =IF(D21=1, "", G21*VLOOKUP(D21,BDD_colza!$B$6:$W$27,5,TRUE)) ->  | J21: =IF(D21=1, "", VLOOKUP(D21,BDD_colza!$B$6:$V$27,20,TRUE)) ->  | K21: =IF(D21=1, "", VLOOKUP(D21,BDD_colza!$B$6:$V$27,21,TRUE)) ->  | L21: =IF(D21=1, "", VLOOKUP(D21,BDD_colza!$B$6:$V$27,9,TRUE)) ->  | M21: =IF(D21=1, "", VLOOKUP(D21,BDD_colza!$B$6:$W$27,19,TRUE)) ->  | N21: =IF(D21=1, "", VLOOKUP(D21,BDD_colza!$B$6:$W$27,15,TRUE)) ->  | O21: =IF(D21=1, "", VLOOKUP(D21,BDD_colza!$B$6:$W$27,16,TRUE)) ->  | P21: =IF(D19=1,"",VLOOKUP(D21,BDD_colza!$B$6:$C$27,2)) ->  | T21: =IF(D21=1, "", VLOOKUP(D21,BDD_colza!$B$6:$W$27,8,TRUE)) ->  | U21: =IF(D21=1, "", VLOOKUP(D21,BDD_colza!$B$6:$W$27,13,TRUE)) ->  | V21: =IF(D21=1, "", VLOOKUP(D21,BDD_colza!$B$6:$W$27,10,TRUE)) -> 
F22: TOTAL | G22: =SUM(G12:G21) -> 0 | H22: =SUM(H12:H21) -> 0 | I22: =SUM(I12:I21) -> 0 | S22: =SUM(S12:S21) -> 0 | T22: =SUMPRODUCT(S12:S21,T12:T21)/S22 ->  | U22: =SUMPRODUCT(S12:S21,U12:U21)/S22 ->  | V22: =SUMPRODUCT(S12:S21,V12:V21)/S22 -> 
V24: Somme | W24: =SUM(W12:W21) -> 0 | X24: =SUM(X12:X21) -> 0 | Y24: 0
V25: Sommeprod | W25: =SUMPRODUCT(T12:T21,W12:W21) -> 0 | X25: =SUMPRODUCT(U12:U21,X12:X21) -> 0 | Y25: 0
N26: Nombre de pieds/m² | V26: Moyenne | W26: =W25/W24 ->  | X26: =X25/X24 -> 
O27: Annuel | P27: =S22 -> 0 | V27: Max | W27: 5 | X27: 5 | Y27: 5
O28: Pluri-annuel | P28: =H22-S22 -> 0 | V28: % | W28: =IF((W25*100)/W27>90,90,(W25*100)/W27) -> 0 | X28: =IF((X25*100)/X27>90,90,(X25*100)/X27) -> 0 | Y28: =IF((Y25*100)/Y27>90,90,(Y25*100)/Y27) -> 0
D45: Concurrence Adventice | G45: Concurrence Adventice | J45: Impact CULTURE
D46: Vert | E46: 33 | G46: Vert | H46: 33 | J46: Vert | K46: 33
D47: Orange | E47: 33 | G47: Orange | H47: 33 | J47: Orange | K47: 33
D48: Rouge | E48: 33 | G48: Rouge | H48: 33 | J48: Rouge | K48: 33
D49: Invisible | E49: =SUM(E46:E48) -> 99 | G49: Invisible | H49: =SUM(H46:H48) -> 99 | J49: Invisible | K49: =SUM(K46:K48) -> 99
D51: Valeur aiguille | E51: =W28 -> 0 | G51: Valeur aiguille | H51: =X28 -> 0 | J51: Valeur aiguille | K51: =Y28 -> 0
D52: Largeur aiguille | E52: 2 | G52: Largeur aiguille | H52: 2 | J52: Largeur aiguille | K52: 2
D53: Invisible | E53: =SUM(E46:E49)-E51-E52 -> 196 | G53: Invisible | H53: =SUM(H46:H49)-H51-H52 -> 196 | J53: Invisible | K53: =SUM(K46:K49)-K51-K52 -> 196
D55: Valeur de 0 à 97
E58: Type botanique | H58: Famille Plante | I58: NB
E59: Annuel | F59: =COUNTIF(N12:N21,"annuel") -> 1 | H59: Légumineuses | I59: =COUNTIF($O$12:$O$21,"Légumineuse") -> 0
E60: Puri-annuel | F60: =COUNTIF(N12:N21,"Pluri-annuel") -> 0 | H60: Autres | I60: =SUM(I61:I64) -> 1
H61: Crucifère | I61: =COUNTIF($O$12:$O$21,"Crucifère") -> 1
H62: Linacée | I62: =COUNTIF($O$12:$O$21,"Linacée") -> 0
H63: Composée | I63: =COUNTIF($O$12:$O$21,"Composée") -> 0
H64: Polygonacée | I64: =COUNTIF($O$12:$O$21,"Polygonacée") -> 0

Sheet Caractéristiques_couverts_colza
G10: TOURNESOL | K10: LIN | N10: CAMELINE
D11: ANNUELLES | G11: NIGER
D12: LENTILLE
D13: FENUGREC
D14: TREFLE D'ALEXANDRIE
D15: FEVEROLE
D16: VESCE COMMUNE | G16: SARRASIN
D17: VESCE POURPRE
D18: VESCE ERIGEE
D19: GESSE
D20: LUPIN BLEU
D21: POIS FOURRAGER
D22: POIS PROTEAGINEUX
D24: PLURI-ANNUELLES
D25: LUZERNE
D26: LOTIER CORNICULE
D27: TREFLE BLANC
D28: TREFLE VIOLET
D29: TREFLE BLANC PIPOLINA
D32: Sensibilité aphanomyces selon les variétés

Sheet Paramètres_Couverts
A2: PARAMETRES DES COUVERTS ASSOCIES
G4: Retour
B7: Dose de semis (kg/ha) | C7: Densité de pieds/m² objectif | D7: Coût (€/ha) | E7: PMG
A9: Cameline | B9: 3 | C9: 250 | D9: 5.7 | E9: 1.2
A10: Fenugrec | B10: 10 | C10: 40 | D10: 2.6 | E10: 25
A11: Feverole | B11: 80 | C11: 15 | D11: 0.26 | E11: 500
A12: Gesse | B12: 20 | C12: 10 | D12: 1.52 | E12: 180
A13: Lentille | B13: 10 | C13: 40 | D13: 2.4 | E13: 25
A14: Lin | B14: 20 | C14: 14 | D14: 1.25 | E14: 7
A15: Lotier Corniculé | B15: 10 | C15: 900 | D15: 6.1 | E15: 1.1
A16: Lupin bleu | B16: 40 | C16: 20 | D16: 2.45 | E16: 200
A17: Luzerne Flamande | B17: 10 | C17: 500 | D17: 5.69 | E17: 2
A18: Niger | B18: 2 | C18: 67 | D18: 4.1 | E18: 3
A19: Pois fourrager | B19: 20 | C19: 17 | D19: 1.49 | E19: 100
A20: Pois protéagineux | B20: 50 | C20: 18 | D20: 0.2 | E20: 200
A21: Sarrasin | B21: 40 | C21: 180 | D21: 2.1 | E21: 22
A22: Tournesol | B22: 10 | C22: 3 | D22: 0.2 | E22: 60
A23: Trèfle Blanc | B23: 3 | C23: 500 | D23: 5.8 | E23: 0.6
A24: Trèfle blanc PIPOLINA | B24: 2 | C24: 500 | D24: 24 | E24: 0.6
A25: Trèfle d'Alexandrie | B25: 5 | C25: 120 | D25: 3.1 | E25: 2.5
A26: Trèfle violet | B26: 7 | C26: 500 | D26: 5.8 | E26: 1.9
A27: Vesce commune | B27: 10 | C27: 15 | D27: 1.85 | E27: 50
A28: Vesce érigée | B28: 40 | C28: 50 | D28: 1.9 | E28: 23
A29: Vesce pourpre | B29: 10 | C29: 15 | D29: 1.99 | E29: 50

Sheet Aphano
N2: Source : Terres Inovia
O3: Retour

Sheet Feuil1
A4: Couvert | B4: Type | C4: Hauteur | D4: Racine | E4: Biomasse | F4: Piégeage N | G4: Fourniture N | H4: Coût | I4: Dose/ha | J4: PMG (g)
A6: Avoine bresilienne | B6: graminée | C6: 2 | D6: 2 | E6: 1.8 | F6: 2 | G6: 2.5 | H6: 1.7 | I6: 35 | J6: 35 | K6: =I6*G6 -> 87.5 | N6: =E6*I6 -> 63
A7: Avoine de printemps | B7: graminée | C7: 2 | D7: 2 | E7: 1 | F7: 2 | G7: 1.5 | H7: 0.25 | I7: 60 | J7: 20 | K7: =I7*G7 -> 90 | N7: =E7*I7 -> 60
A8: Avoine d'hiver | B8: graminée | C8: 2 | D8: 2 | E8: 1 | F8: 2 | G8: 1.5 | H8: 0.25 | I8: 60 | J8: 20 | K8: 90 | N8: 60
A9: Cameline | B9: Crucifère | C9: 1 | D9: 1 | E9: 6 | F9: 3 | G9: 7 | H9: 5.7 | I9: 5 | J9: 1.2 | K9: 35 | N9: 30
A10: Colza | B10: Crucifère | C10: 2 | D10: 3 | E10: 20 | F10: 3 | G10: 7 | H10: 2.49 | I10: 5 | J10: 6 | K10: 35 | N10: 100
A11: Fénugrec | B11: Légumineuse | C11: 1 | D11: 1 | E11: 1.5 | G11: 4 | H11: 2.6 | I11: 30 | J11: 22 | K11: 120 | N11: 45
A12: Féverole | B12: Légumineuse | C12: 3 | D12: 3 | E12: 0.4 | G12: 1.5 | H12: 0.26 | I12: 180 | J12: 500 | K12: 270 | N12: 72
A13: Gesse | B13: Légumineuse | C13: 1 | D13: 2 | E13: 1.2 | G13: 3 | H13: 2.2 | I13: 50 | J13: 180 | K13: 150 | N13: 60
A14: Lentille fourragère | B14: Légumineuse | C14: 1 | D14: 1 | E14: 1.2 | G14: 3 | H14: 2.75 | I14: 45 | J14: 22 | K14: 135 | N14: 54
A15: Lin | B15: Linacée | C15: 1 | D15: 1 | E15: 1 | F15: 2 | G15: 1 | H15: 1.25 | I15: 40 | J15: 7 | K15: 40 | N15: 40
A16: Lotier Corniculé | B16: Légumineuse | C16: 1 | D16: 3 | E16: 7 | G16: 14 | H16: 9 | I16: 10 | J16: 1.1 | K16: 140 | N16: 70
A17: Luzerne Flamande | B17: Légumineuse | C17: 1 | D17: 3 | E17: 9 | G17: 20 | H17: 5.69 | I17: 8 | J17: 2 | K17: 160 | N17: 72
A18: Mélilot | B18: Légumineuse | C18: 1 | D18: 3 | E18: 3.5 | G18: 7 | H18: 4.95 | I18: 20 | J18: 2 | K18: 140 | N18: 70
A19: Millet perlé | B19: Graminée | C19: 3 | D19: 3 | E19: 5 | F19: 1 | G19: 6 | H19: 2.99 | I19: 15 | J19: 8 | K19: 90 | N19: 75
A20: Minette | B20: Légumineuse | C20: 1 | D20: 2 | E20: 7 | G20: 14 | H20: 4.9 | I20: 10 | J20: 1.7 | K20: 140 | N20: 70
A21: Moha fourrager | B21: graminée | C21: 3 | D21: 3 | E21: 3 | F21: 2 | G21: 4.5 | H21: 1.49 | I21: 20 | J21: 5 | K21: 90 | N21: 60
A22: Moutarde blanche | B22: Crucifère | C22: 3 | D22: 3 | E22: 12 | F22: 3 | G22: 5 | H22: 1.65 | I22: 8 | J22: 7 | K22: 40 | N22: 96
A23: Moutarde brune | B23: Crucifère | C23: 3 | D23: 3 | E23: 28 | F23: 3 | G23: 14 | H23: 8.4 | I23: 3 | J23: 2.5 | K23: 42 | N23: 84
A24: Moutarde d'Abyssinie | B24: Crucifère | C24: 3 | D24: 3 | E24: 14 | F24: 3 | G24: 7 | H24: 5.15 | I24: 6 | J24: 6 | K24: 42 | N24: 84
A25: Niger | B25: Composée | C25: 2 | D25: 2 | E25: 6 | F25: 2 | G25: 11 | H25: 4.1 | I25: 8 | J25: 3 | K25: 88 | N25: 48
A26: Phacélie | B26: Hydrophyllacée | C26: 2 | D26: 2 | E26: 6 | F26: 2 | G26: 4 | H26: 3.59 | I26: 10 | J26: 2 | K26: 40 | N26: 60
A27: Pois fourrager | B27: Légumineuse | C27: 2 | D27: 2 | E27: 0.8 | G27: 1.5 | H27: 1.49 | I27: 100 | J27: 100 | K27: 150 | N27: 80
A28: Pois protéagineux | B28: Légumineuse | C28: 2 | D28: 2 | E28: 0.2 | G28: 0.55 | H28: 0.2 | I28: 200 | J28: 200 | K28: 110 | N28: 40
A29: Radis chinois | B29: Crucifère | C29: 2 | D29: 3 | E29: 6 | F29: 3 | G29: 3.5 | H29: 5.1 | I29: 10 | J29: 8 | K29: 35 | N29: 60
A30: Radis fourrager | B30: Crucifère | C30: 3 | D30: 3 | E30: 10 | F30: 3 | G30: 3 | H30: 2.99 | I30: 12 | J30: 9 | K30: 36 | N30: 120
A31: Ray-grass Italien | B31: graminée | C31: 2 | D31: 2 | E31: 10 | F31: 3 | G31: 4.5 | H31: 2.05 | I31: 20 | J31: 2 | K31: 90 | N31: 200
A32: Sainfoin (cosse) | B32: Légumineuse | C32: 1 | D32: 3 | E32: 0.7 | G32: 1 | H32: 1.99 | I32: 130 | J32: 22 | K32: 130 | N32: 91
A33: Sainfoin (décortiqué) | B33: Légumineuse | C33: 1 | D33: 3 | E33: 2 | G33: 3.2 | H33: 2.79 | I33: 40 | J33: 22 | K33: 128 | N33: 80
A34: Sarrasin | B34: Polygonacée | C34: 2 | D34: 1 | E34: 2 | F34: 3 | G34: 2.5 | H34: 2.1 | I34: 35 | J34: 25 | K34: 87.5 | N34: 70
A35: Seigle forestier | B35: graminée | C35: 3 | D35: 3 | E35: 3 | F35: 1 | G35: 3.5 | H35: 1.1 | I35: 25 | J35: 30 | K35: 87.5 | N35: 75
A36: Seigle fourrager | B36: graminée | C36: 3 | D36: 3 | E36: 1.2 | F36: 2 | G36: 1.5 | H36: 1.5 | I36: 60 | J36: 45 | K36: 90 | N36: 72
A37: Sorgho fourrager | B37: graminée | C37: 3 | D37: 3 | E37: 6.2 | F37: 3 | G37: 6 | H37: 4.74 | I37: 15 | J37: 30 | K37: 90 | N37: 93
A38: Tournesol | B38: Composée | C38: 3 | D38: 3 | E38: 1.5 | F38: 3 | G38: 1.8 | H38: 0.2 | I38: 50 | J38: 60 | K38: 90 | N38: 75
A39: Trèfle Blanc | B39: Légumineuse | C39: 1 | D39: 2 | E39: 18 | G39: 40 | H39: 5.8 | I39: 4 | J39: 0.6 | K39: 160 | N39: 72
A40: Trèfle d'Alexandrie | B40: Légumineuse | C40: 1 | D40: 2 | E40: 3.5 | G40: 10 | H40: 2.39 | I40: 15 | J40: 2.5 | K40: 150 | N40: 52.5
A41: Trèfle de Micheli | B41: Légumineuse | C41: 1 | D41: 2 | E41: 7 | G41: 15 | H41: 3.99 | I41: 10 | J41: 0.8 | K41: 150 | N41: 70
A42: Trèfle de perse | B42: Légumineuse | C42: 1 | D42: 2 | E42: 3 | G42: 6 | H42: 5.85 | I42: 20 | J42: 2 | K42: 120 | N42: 60
A43: Trèfle incarnat | B43: Légumineuse | C43: 1 | D43: 2 | E43: 6 | G43: 10 | H43: 2.69 | I43: 15 | J43: 2.5 | K43: 150 | N43: 90
A44: Trèfle violet | B44: Légumineuse | C44: 1 | D44: 2 | E44: 4 | G44: 10 | H44: 5.8 | I44: 15 | J44: 1.9 | K44: 150 | N44: 60
A45: Vesce commune | B45: Légumineuse | C45: 1 | D45: 2 | E45: 1 | G45: 3 | H45: 1.85 | I45: 50 | J45: 60 | K45: 150 | N45: 50
A46: Vesce pourpre | B46: Légumineuse | C46: 1 | D46: 2 | E46: 2.2 | G46: 3.8 | H46: 1.99 | I46: 40 | J46: 60 | K46: 152 | N46: 88
A47: Vesce velue | B47: Légumineuse | C47: 1 | D47: 2 | E47: 2.5 | G47: 4.3 | H47: 3.13 | I47: 35 | J47: 60 | K47: 150.5 | N47: 87.5

Sheet Feuil3
B3: AZOTE | E3: BIOMASSE
B4: verte | C4: 33 | E4: verte | F4: 33
B5: orange | C5: 33 | E5: orange | F5: 33
B6: rouge | C6: 33 | E6: rouge | F6: 33
B7: invisible | C7: =SUM(C4:C6) -> 99 | E7: invisible | F7: =SUM(F4:F6) -> 99
B10: Aiguille | C10: =IF(Composition!AA28=FALSE, Feuil3!B15, Feuil3!B16) -> 28.7 | E10: Aiguille | F10: =IF(Composition!AA28=FALSE, Feuil3!E15, Feuil3!E16) -> 33.75
B11: Largeur | C11: 2 | E11: Largeur | F11: 2
B12: Invisible | C12: =SUM(C4:C7)-(C10+C11) -> 167.3 | E12: Invisible | F12: =SUM(F4:F7)-(F10+F11) -> 162.25
A15: Conseillé | B15: =Composition!AF27 -> 16.32 | E15: =Composition!AC27 -> 29
A16: Ajusté | B16: =Composition!AK27 -> 28.7 | E16: =Composition!AI27 -> 33.75

Sheet Conseil_semis
F11: Profondeur mini (cm) | G11: Profondeur maxi (cm) | Q11: =H11 -> 0 | T11: Concurrence adventice | U11: Minéralisation | V11: Biomasse | W11: Concurrence | X11: Minéralisation | Y11: Biomasse
C12: =Composition_Colza!D12 -> 2 | D12: =IF(C12=1,"", VLOOKUP(C12,BDD_colza!$B$6:$C$27,2)) -> Cameline | E12: 0 | F12: =IF(C12=1, "", VLOOKUP(C12,BDD_colza!$B$6:$S$27,17)) -> 1 | G12: =IF(C12=1,"",H12-F12) -> 2 | H12: 3 | S12: =IF(N12=$E$59,#REF!,"") ->  | T12: =IF(D12=1, "", VLOOKUP(D12,BDD_colza!$B$6:$W$27,8,TRUE)) ->  | U12: =IF(D12=1, "", VLOOKUP(D12,BDD_colza!$B$6:$W$27,13,TRUE)) ->  | V12: =IF(D12=1, "", VLOOKUP(D12,BDD_colza!$B$6:$W$27,10,TRUE)) ->  | W12: =IF(S12="","",(#REF!)/F12) ->  | X12: =W12 ->  | Y12: =W12 -> 
C13: =Composition_Colza!D13 -> 1 | D13: =IF(C13=1,"", VLOOKUP(C13,BDD_colza!$B$6:$C$27,2)) ->  | E13: 0 | F13: =IF(C13=1, "", VLOOKUP(C13,BDD_colza!$B$6:$S$27,17)) ->  | G13: =IF(C13=1,"",H13-F13) ->  | H13: =IF(C13=1, "", VLOOKUP(C13,BDD_colza!$B$6:$S$27,18)) ->  | S13: =IF(N13=$E$59,#REF!,"") ->  | T13: =IF(D13=1, "", VLOOKUP(D13,BDD_colza!$B$6:$W$27,8,TRUE)) ->  | U13: =IF(D13=1, "", VLOOKUP(D13,BDD_colza!$B$6:$W$27,13,TRUE)) ->  | V13: =IF(D13=1, "", VLOOKUP(D13,BDD_colza!$B$6:$W$27,10,TRUE)) ->  | W13: =IF(S13="","",(#REF!)/F13) ->  | X13: =W13 ->  | Y13: =W13 -> 
C14: =Composition_Colza!D14 -> 1 | D14: =IF(C14=1,"", VLOOKUP(C14,BDD_colza!$B$6:$C$27,2)) ->  | E14: 0 | F14: =IF(C14=1, "", VLOOKUP(C14,BDD_colza!$B$6:$S$27,17)) ->  | H14: =IF(C14=1, "", VLOOKUP(C14,BDD_colza!$B$6:$S$27,18)) ->  | S14: =IF(N14=$E$59,#REF!,"") ->  | T14: =IF(D14=1, "", VLOOKUP(D14,BDD_colza!$B$6:$W$27,8,TRUE)) ->  | U14: =IF(D14=1, "", VLOOKUP(D14,BDD_colza!$B$6:$W$27,13,TRUE)) ->  | V14: =IF(D14=1, "", VLOOKUP(D14,BDD_colza!$B$6:$W$27,10,TRUE)) ->  | W14: =IF(S14="","",(#REF!)/F14) -> 
C15: =Composition_Colza!D15 -> 1 | D15: =IF(C15=1,"", VLOOKUP(C15,BDD_colza!$B$6:$C$27,2)) ->  | E15: 0 | F15: =IF(C15=1, "", VLOOKUP(C15,BDD_colza!$B$6:$S$27,17)) ->  | H15: =IF(C15=1, "", VLOOKUP(C15,BDD_colza!$B$6:$S$27,18)) ->  | S15: =IF(N15=$E$59,#REF!,"") ->  | T15: =IF(D15=1, "", VLOOKUP(D15,BDD_colza!$B$6:$W$27,8,TRUE)) ->  | U15: =IF(D15=1, "", VLOOKUP(D15,BDD_colza!$B$6:$W$27,13,TRUE)) ->  | V15: =IF(D15=1, "", VLOOKUP(D15,BDD_colza!$B$6:$W$27,10,TRUE)) ->  | W15: =IF(S15="","",(#REF!)/F15) -> 
C16: =Composition_Colza!D16 -> 1 | D16: =IF(C16=1,"", VLOOKUP(C16,BDD_colza!$B$6:$C$27,2)) ->  | E16: 0 | F16: =IF(C16=1, "", VLOOKUP(C16,BDD_colza!$B$6:$S$27,17)) ->  | H16: =IF(C16=1, "", VLOOKUP(C16,BDD_colza!$B$6:$S$27,18)) ->  | S16: =IF(N16=$E$59,#REF!,"") ->  | T16: =IF(D16=1, "", VLOOKUP(D16,BDD_colza!$B$6:$W$27,8,TRUE)) ->  | U16: =IF(D16=1, "", VLOOKUP(D16,BDD_colza!$B$6:$W$27,13,TRUE)) ->  | V16: =IF(D16=1, "", VLOOKUP(D16,BDD_colza!$B$6:$W$27,10,TRUE)) ->  | W16: =IF(S16="","",(#REF!)/F16) -> 
C17: =Composition_Colza!D17 -> 1 | D17: =IF(C17=1,"", VLOOKUP(C17,BDD_colza!$B$6:$C$27,2)) ->  | E17: 0 | F17: =IF(C17=1, "", VLOOKUP(C17,BDD_colza!$B$6:$S$27,17)) ->  | H17: =IF(C17=1, "", VLOOKUP(C17,BDD_colza!$B$6:$S$27,18)) ->  | S17: =IF(N17=$E$59,#REF!,"") ->  | T17: =IF(D17=1, "", VLOOKUP(D17,BDD_colza!$B$6:$W$27,8,TRUE)) ->  | U17: =IF(D17=1, "", VLOOKUP(D17,BDD_colza!$B$6:$W$27,13,TRUE)) ->  | V17: =IF(D17=1, "", VLOOKUP(D17,BDD_colza!$B$6:$W$27,10,TRUE)) ->  | W17: =IF(S17="","",(#REF!)/F17) -> 
C18: =Composition_Colza!D18 -> 1 | D18: =IF(C18=1,"", VLOOKUP(C18,BDD_colza!$B$6:$C$27,2)) ->  | E18: 0 | F18: =IF(C18=1, "", VLOOKUP(C18,BDD_colza!$B$6:$S$27,17)) ->  | H18: =IF(C18=1, "", VLOOKUP(C18,BDD_colza!$B$6:$S$27,18)) ->  | S18: =IF(N18=$E$59,#REF!,"") ->  | T18: =IF(D18=1, "", VLOOKUP(D18,BDD_colza!$B$6:$W$27,8,TRUE)) ->  | U18: =IF(D18=1, "", VLOOKUP(D18,BDD_colza!$B$6:$W$27,13,TRUE)) ->  | V18: =IF(D18=1, "", VLOOKUP(D18,BDD_colza!$B$6:$W$27,10,TRUE)) ->  | W18: =IF(S18="","",(#REF!)/F18) -> 
C19: =Composition_Colza!D19 -> 1 | D19: =IF(C19=1,"", VLOOKUP(C19,BDD_colza!$B$6:$C$27,2)) ->  | E19: 0 | F19: =IF(C19=1, "", VLOOKUP(C19,BDD_colza!$B$6:$S$27,17)) ->  | H19: =IF(C19=1, "", VLOOKUP(C19,BDD_colza!$B$6:$S$27,18)) ->  | S19: =IF(N19=$E$59,#REF!,"") ->  | T19: =IF(D19=1, "", VLOOKUP(D19,BDD_colza!$B$6:$W$27,8,TRUE)) ->  | U19: =IF(D19=1, "", VLOOKUP(D19,BDD_colza!$B$6:$W$27,13,TRUE)) ->  | V19: =IF(D19=1, "", VLOOKUP(D19,BDD_colza!$B$6:$W$27,10,TRUE)) ->  | W19: =IF(S19="","",(#REF!)/F19) -> 
C20: =Composition_Colza!D20 -> 1 | D20: =IF(C20=1,"", VLOOKUP(C20,BDD_colza!$B$6:$C$27,2)) ->  | E20: 0 | F20: =IF(C20=1, "", VLOOKUP(C20,BDD_colza!$B$6:$S$27,17)) ->  | H20: =IF(C20=1, "", VLOOKUP(C20,BDD_colza!$B$6:$S$27,18)) ->  | S20: =IF(N20=$E$59,#REF!,"") ->  | T20: =IF(D20=1, "", VLOOKUP(D20,BDD_colza!$B$6:$W$27,8,TRUE)) ->  | U20: =IF(D20=1, "", VLOOKUP(D20,BDD_colza!$B$6:$W$27,13,TRUE)) ->  | V20: =IF(D20=1, "", VLOOKUP(D20,BDD_colza!$B$6:$W$27,10,TRUE)) ->  | W20: =IF(S20="","",(#REF!)/F20) -> 
C21: =Composition_Colza!D21 -> 1 | D21: =IF(C21=1,"", VLOOKUP(C21,BDD_colza!$B$6:$C$27,2)) ->  | E21: 0 | F21: =IF(C21=1, "", VLOOKUP(C21,BDD_colza!$B$6:$S$27,17)) ->  | H21: =IF(C21=1, "", VLOOKUP(C21,BDD_colza!$B$6:$S$27,18)) ->  | S21: =IF(N21=$E$59,#REF!,"") ->  | T21: =IF(D21=1, "", VLOOKUP(D21,BDD_colza!$B$6:$W$27,8,TRUE)) ->  | U21: =IF(D21=1, "", VLOOKUP(D21,BDD_colza!$B$6:$W$27,13,TRUE)) ->  | V21: =IF(D21=1, "", VLOOKUP(D21,BDD_colza!$B$6:$W$27,10,TRUE)) ->  | W21: =IF(S21="","",(#REF!)/F21) -> 
S22: =SUM(S12:S21) -> 0 | T22: =SUMPRODUCT(S12:S21,T12:T21)/S22 ->  | U22: =SUMPRODUCT(S12:S21,U12:U21)/S22 ->  | V22: =SUMPRODUCT(S12:S21,V12:V21)/S22 -> 
V24: Somme | W24: =SUM(W12:W21) -> 0 | X24: =SUM(X12:X21) -> 0 | Y24: 0
V25: Sommeprod | W25: =SUMPRODUCT(T12:T21,W12:W21) ->  | X25: =SUMPRODUCT(U12:U21,X12:X21) -> 
V26: Moyenne | W26: =W25/W24 ->  | X26: =X25/X24 -> 
V27: Max | W27: 5 | X27: 5 | Y27: 5
V28: % | W28: =IF((W25*100)/W27>90,90,(W25*100)/W27) ->  | X28: =IF((X25*100)/X27>90,90,(X25*100)/X27) ->  | Y28: =IF((Y25*100)/Y27>90,90,(Y25*100)/Y27) -> 
D45: Concurrence Adventice | G45: Concurrence Adventice | J45: Impact CULTURE
D46: Vert | E46: 33 | G46: Vert | H46: 33 | J46: Vert | K46: 33
D47: Orange | E47: 33 | G47: Orange | H47: 33 | J47: Orange | K47: 33
D48: Rouge | E48: 33 | G48: Rouge | H48: 33 | J48: Rouge | K48: 33
D49: Invisible | E49: =SUM(E46:E48) -> 99 | G49: Invisible | H49: =SUM(H46:H48) -> 99 | J49: Invisible | K49: =SUM(K46:K48) -> 99
D51: Valeur aiguille | E51: =W28 ->  | G51: Valeur aiguille | H51: =X28 ->  | J51: Valeur aiguille | K51: =Y28 -> 
D52: Largeur aiguille | E52: 2 | G52: Largeur aiguille | H52: 2 | J52: Largeur aiguille | K52: 2
D53: Invisible | E53: =SUM(E46:E49)-E51-E52 ->  | G53: Invisible | H53: =SUM(H46:H49)-H51-H52 ->  | J53: Invisible | K53: =SUM(K46:K49)-K51-K52 -> 
D55: Valeur de 0 à 97
E58: Type botanique | H58: Famille Plante | I58: NB
E59: Annuel | F59: =COUNTIF(N12:N21,"annuel") -> 0 | H59: Légumineuses | I59: =COUNTIF($O$12:$O$21,"Légumineuse") -> 0
E60: Puri-annuel | F60: =COUNTIF(N12:N21,"Pluri-annuel") -> 0 | H60: Autres | I60: =SUM(I61:I64) -> 0
H61: Crucifère | I61: =COUNTIF($O$12:$O$21,"Crucifère") -> 0
H62: Linacée | I62: =COUNTIF($O$12:$O$21,"Linacée") -> 0
H63: Composée | I63: =COUNTIF($O$12:$O$21,"Composée") -> 0
H64: Polygonacée | I64: =COUNTIF($O$12:$O$21,"Polygonacée") -> 0

Sheet Conseil_principes
Q11: =H11 -> 0 | T11: Concurrence adventice | U11: Minéralisation | V11: Biomasse | W11: Concurrence | X11: Minéralisation | Y11: Biomasse
S12: =IF(N12=$E$59,#REF!,"") ->  | T12: =IF(D12=1, "", VLOOKUP(D12,BDD_colza!$B$6:$W$27,8,TRUE)) ->  | U12: =IF(D12=1, "", VLOOKUP(D12,BDD_colza!$B$6:$W$27,13,TRUE)) ->  | V12: =IF(D12=1, "", VLOOKUP(D12,BDD_colza!$B$6:$W$27,10,TRUE)) ->  | W12: =IF(S12="","",(#REF!)/F12) ->  | X12: =W12 ->  | Y12: =W12 -> 
S13: =IF(N13=$E$59,#REF!,"") ->  | T13: =IF(D13=1, "", VLOOKUP(D13,BDD_colza!$B$6:$W$27,8,TRUE)) ->  | U13: =IF(D13=1, "", VLOOKUP(D13,BDD_colza!$B$6:$W$27,13,TRUE)) ->  | V13: =IF(D13=1, "", VLOOKUP(D13,BDD_colza!$B$6:$W$27,10,TRUE)) ->  | W13: =IF(S13="","",(#REF!)/F13) ->  | X13: =W13 ->  | Y13: =W13 -> 
S14: =IF(N14=$E$59,#REF!,"") ->  | T14: =IF(D14=1, "", VLOOKUP(D14,BDD_colza!$B$6:$W$27,8,TRUE)) ->  | U14: =IF(D14=1, "", VLOOKUP(D14,BDD_colza!$B$6:$W$27,13,TRUE)) ->  | V14: =IF(D14=1, "", VLOOKUP(D14,BDD_colza!$B$6:$W$27,10,TRUE)) ->  | W14: =IF(S14="","",(#REF!)/F14) -> 
S15: =IF(N15=$E$59,#REF!,"") ->  | T15: =IF(D15=1, "", VLOOKUP(D15,BDD_colza!$B$6:$W$27,8,TRUE)) ->  | U15: =IF(D15=1, "", VLOOKUP(D15,BDD_colza!$B$6:$W$27,13,TRUE)) ->  | V15: =IF(D15=1, "", VLOOKUP(D15,BDD_colza!$B$6:$W$27,10,TRUE)) ->  | W15: =IF(S15="","",(#REF!)/F15) -> 
S16: =IF(N16=$E$59,#REF!,"") ->  | T16: =IF(D16=1, "", VLOOKUP(D16,BDD_colza!$B$6:$W$27,8,TRUE)) ->  | U16: =IF(D16=1, "", VLOOKUP(D16,BDD_colza!$B$6:$W$27,13,TRUE)) ->  | V16: =IF(D16=1, "", VLOOKUP(D16,BDD_colza!$B$6:$W$27,10,TRUE)) ->  | W16: =IF(S16="","",(#REF!)/F16) -> 
S17: =IF(N17=$E$59,#REF!,"") ->  | T17: =IF(D17=1, "", VLOOKUP(D17,BDD_colza!$B$6:$W$27,8,TRUE)) ->  | U17: =IF(D17=1, "", VLOOKUP(D17,BDD_colza!$B$6:$W$27,13,TRUE)) ->  | V17: =IF(D17=1, "", VLOOKUP(D17,BDD_colza!$B$6:$W$27,10,TRUE)) ->  | W17: =IF(S17="","",(#REF!)/F17) -> 
S18: =IF(N18=$E$59,#REF!,"") ->  | T18: =IF(D18=1, "", VLOOKUP(D18,BDD_colza!$B$6:$W$27,8,TRUE)) ->  | U18: =IF(D18=1, "", VLOOKUP(D18,BDD_colza!$B$6:$W$27,13,TRUE)) ->  | V18: =IF(D18=1, "", VLOOKUP(D18,BDD_colza!$B$6:$W$27,10,TRUE)) ->  | W18: =IF(S18="","",(#REF!)/F18) -> 
S19: =IF(N19=$E$59,#REF!,"") ->  | T19: =IF(D19=1, "", VLOOKUP(D19,BDD_colza!$B$6:$W$27,8,TRUE)) ->  | U19: =IF(D19=1, "", VLOOKUP(D19,BDD_colza!$B$6:$W$27,13,TRUE)) ->  | V19: =IF(D19=1, "", VLOOKUP(D19,BDD_colza!$B$6:$W$27,10,TRUE)) ->  | W19: =IF(S19="","",(#REF!)/F19) -> 
S20: =IF(N20=$E$59,#REF!,"") ->  | T20: =IF(D20=1, "", VLOOKUP(D20,BDD_colza!$B$6:$W$27,8,TRUE)) ->  | U20: =IF(D20=1, "", VLOOKUP(D20,BDD_colza!$B$6:$W$27,13,TRUE)) ->  | V20: =IF(D20=1, "", VLOOKUP(D20,BDD_colza!$B$6:$W$27,10,TRUE)) ->  | W20: =IF(S20="","",(#REF!)/F20) -> 
S21: =IF(N21=$E$59,#REF!,"") ->  | T21: =IF(D21=1, "", VLOOKUP(D21,BDD_colza!$B$6:$W$27,8,TRUE)) ->  | U21: =IF(D21=1, "", VLOOKUP(D21,BDD_colza!$B$6:$W$27,13,TRUE)) ->  | V21: =IF(D21=1, "", VLOOKUP(D21,BDD_colza!$B$6:$W$27,10,TRUE)) ->  | W21: =IF(S21="","",(#REF!)/F21) -> 
S22: =SUM(S12:S21) -> 0 | T22: =SUMPRODUCT(S12:S21,T12:T21)/S22 ->  | U22: =SUMPRODUCT(S12:S21,U12:U21)/S22 ->  | V22: =SUMPRODUCT(S12:S21,V12:V21)/S22 -> 
V24: Somme | W24: =SUM(W12:W21) -> 0 | X24: =SUM(X12:X21) -> 0 | Y24: 0
V25: Sommeprod | W25: =SUMPRODUCT(T12:T21,W12:W21) ->  | X25: =SUMPRODUCT(U12:U21,X12:X21) -> 
V26: Moyenne | W26: =W25/W24 ->  | X26: =X25/X24 -> 
V27: Max | W27: 5 | X27: 5 | Y27: 5
V28: % | W28: =IF((W25*100)/W27>90,90,(W25*100)/W27) ->  | X28: =IF((X25*100)/X27>90,90,(X25*100)/X27) ->  | Y28: =IF((Y25*100)/Y27>90,90,(Y25*100)/Y27) -> 
D45: Concurrence Adventice | G45: Concurrence Adventice | J45: Impact CULTURE
D46: Vert | E46: 33 | G46: Vert | H46: 33 | J46: Vert | K46: 33
D47: Orange | E47: 33 | G47: Orange | H47: 33 | J47: Orange | K47: 33
D48: Rouge | E48: 33 | G48: Rouge | H48: 33 | J48: Rouge | K48: 33
D49: Invisible | E49: =SUM(E46:E48) -> 99 | G49: Invisible | H49: =SUM(H46:H48) -> 99 | J49: Invisible | K49: =SUM(K46:K48) -> 99
D51: Valeur aiguille | E51: =W28 ->  | G51: Valeur aiguille | H51: =X28 ->  | J51: Valeur aiguille | K51: =Y28 -> 
D52: Largeur aiguille | E52: 2 | G52: Largeur aiguille | H52: 2 | J52: Largeur aiguille | K52: 2
D53: Invisible | E53: =SUM(E46:E49)-E51-E52 ->  | G53: Invisible | H53: =SUM(H46:H49)-H51-H52 ->  | J53: Invisible | K53: =SUM(K46:K49)-K51-K52 -> 
D55: Valeur de 0 à 97
E58: Type botanique | H58: Famille Plante | I58: NB
E59: Annuel | F59: =COUNTIF(N12:N21,"annuel") -> 0 | H59: Légumineuses | I59: =COUNTIF($O$12:$O$21,"Légumineuse") -> 0
E60: Puri-annuel | F60: =COUNTIF(N12:N21,"Pluri-annuel") -> 0 | H60: Autres | I60: =SUM(I61:I64) -> 0
H61: Crucifère | I61: =COUNTIF($O$12:$O$21,"Crucifère") -> 0
H62: Linacée | I62: =COUNTIF($O$12:$O$21,"Linacée") -> 0
H63: Composée | I63: =COUNTIF($O$12:$O$21,"Composée") -> 0
H64: Polygonacée | I64: =COUNTIF($O$12:$O$21,"Polygonacée") -> 0

Sheet Conseil_colza_asso
Q11: =H11 -> 0 | T11: Concurrence adventice | U11: Minéralisation | V11: Biomasse | W11: Concurrence | X11: Minéralisation | Y11: Biomasse
S12: =IF(N12=$E$59,#REF!,"") ->  | T12: =IF(D12=1, "", VLOOKUP(D12,BDD_colza!$B$6:$W$27,8,TRUE)) ->  | U12: =IF(D12=1, "", VLOOKUP(D12,BDD_colza!$B$6:$W$27,13,TRUE)) ->  | V12: =IF(D12=1, "", VLOOKUP(D12,BDD_colza!$B$6:$W$27,10,TRUE)) ->  | W12: =IF(S12="","",(#REF!)/F12) ->  | X12: =W12 ->  | Y12: =W12 -> 
S13: =IF(N13=$E$59,#REF!,"") ->  | T13: =IF(D13=1, "", VLOOKUP(D13,BDD_colza!$B$6:$W$27,8,TRUE)) ->  | U13: =IF(D13=1, "", VLOOKUP(D13,BDD_colza!$B$6:$W$27,13,TRUE)) ->  | V13: =IF(D13=1, "", VLOOKUP(D13,BDD_colza!$B$6:$W$27,10,TRUE)) ->  | W13: =IF(S13="","",(#REF!)/F13) ->  | X13: =W13 ->  | Y13: =W13 -> 
S14: =IF(N14=$E$59,#REF!,"") ->  | T14: =IF(D14=1, "", VLOOKUP(D14,BDD_colza!$B$6:$W$27,8,TRUE)) ->  | U14: =IF(D14=1, "", VLOOKUP(D14,BDD_colza!$B$6:$W$27,13,TRUE)) ->  | V14: =IF(D14=1, "", VLOOKUP(D14,BDD_colza!$B$6:$W$27,10,TRUE)) ->  | W14: =IF(S14="","",(#REF!)/F14) -> 
S15: =IF(N15=$E$59,#REF!,"") ->  | T15: =IF(D15=1, "", VLOOKUP(D15,BDD_colza!$B$6:$W$27,8,TRUE)) ->  | U15: =IF(D15=1, "", VLOOKUP(D15,BDD_colza!$B$6:$W$27,13,TRUE)) ->  | V15: =IF(D15=1, "", VLOOKUP(D15,BDD_colza!$B$6:$W$27,10,TRUE)) ->  | W15: =IF(S15="","",(#REF!)/F15) -> 
S16: =IF(N16=$E$59,#REF!,"") ->  | T16: =IF(D16=1, "", VLOOKUP(D16,BDD_colza!$B$6:$W$27,8,TRUE)) ->  | U16: =IF(D16=1, "", VLOOKUP(D16,BDD_colza!$B$6:$W$27,13,TRUE)) ->  | V16: =IF(D16=1, "", VLOOKUP(D16,BDD_colza!$B$6:$W$27,10,TRUE)) ->  | W16: =IF(S16="","",(#REF!)/F16) -> 
S17: =IF(N17=$E$59,#REF!,"") ->  | T17: =IF(D17=1, "", VLOOKUP(D17,BDD_colza!$B$6:$W$27,8,TRUE)) ->  | U17: =IF(D17=1, "", VLOOKUP(D17,BDD_colza!$B$6:$W$27,13,TRUE)) ->  | V17: =IF(D17=1, "", VLOOKUP(D17,BDD_colza!$B$6:$W$27,10,TRUE)) ->  | W17: =IF(S17="","",(#REF!)/F17) -> 
S18: =IF(N18=$E$59,#REF!,"") ->  | T18: =IF(D18=1, "", VLOOKUP(D18,BDD_colza!$B$6:$W$27,8,TRUE)) ->  | U18: =IF(D18=1, "", VLOOKUP(D18,BDD_colza!$B$6:$W$27,13,TRUE)) ->  | V18: =IF(D18=1, "", VLOOKUP(D18,BDD_colza!$B$6:$W$27,10,TRUE)) ->  | W18: =IF(S18="","",(#REF!)/F18) -> 
S19: =IF(N19=$E$59,#REF!,"") ->  | T19: =IF(D19=1, "", VLOOKUP(D19,BDD_colza!$B$6:$W$27,8,TRUE)) ->  | U19: =IF(D19=1, "", VLOOKUP(D19,BDD_colza!$B$6:$W$27,13,TRUE)) ->  | V19: =IF(D19=1, "", VLOOKUP(D19,BDD_colza!$B$6:$W$27,10,TRUE)) ->  | W19: =IF(S19="","",(#REF!)/F19) -> 
S20: =IF(N20=$E$59,#REF!,"") ->  | T20: =IF(D20=1, "", VLOOKUP(D20,BDD_colza!$B$6:$W$27,8,TRUE)) ->  | U20: =IF(D20=1, "", VLOOKUP(D20,BDD_colza!$B$6:$W$27,13,TRUE)) ->  | V20: =IF(D20=1, "", VLOOKUP(D20,BDD_colza!$B$6:$W$27,10,TRUE)) ->  | W20: =IF(S20="","",(#REF!)/F20) -> 
S21: =IF(N21=$E$59,#REF!,"") ->  | T21: =IF(D21=1, "", VLOOKUP(D21,BDD_colza!$B$6:$W$27,8,TRUE)) ->  | U21: =IF(D21=1, "", VLOOKUP(D21,BDD_colza!$B$6:$W$27,13,TRUE)) ->  | V21: =IF(D21=1, "", VLOOKUP(D21,BDD_colza!$B$6:$W$27,10,TRUE)) ->  | W21: =IF(S21="","",(#REF!)/F21) -> 
S22: =SUM(S12:S21) -> 0 | T22: =SUMPRODUCT(S12:S21,T12:T21)/S22 ->  | U22: =SUMPRODUCT(S12:S21,U12:U21)/S22 ->  | V22: =SUMPRODUCT(S12:S21,V12:V21)/S22 -> 
V24: Somme | W24: =SUM(W12:W21) -> 0 | X24: =SUM(X12:X21) -> 0 | Y24: 0
V25: Sommeprod | W25: =SUMPRODUCT(T12:T21,W12:W21) ->  | X25: =SUMPRODUCT(U12:U21,X12:X21) -> 
V26: Moyenne | W26: =W25/W24 ->  | X26: =X25/X24 -> 
V27: Max | W27: 5 | X27: 5 | Y27: 5
V28: % | W28: =IF((W25*100)/W27>90,90,(W25*100)/W27) ->  | X28: =IF((X25*100)/X27>90,90,(X25*100)/X27) ->  | Y28: =IF((Y25*100)/Y27>90,90,(Y25*100)/Y27) -> 
D45: Concurrence Adventice | G45: Concurrence Adventice | J45: Impact CULTURE
D46: Vert | E46: 33 | G46: Vert | H46: 33 | J46: Vert | K46: 33
D47: Orange | E47: 33 | G47: Orange | H47: 33 | J47: Orange | K47: 33
D48: Rouge | E48: 33 | G48: Rouge | H48: 33 | J48: Rouge | K48: 33
D49: Invisible | E49: =SUM(E46:E48) -> 99 | G49: Invisible | H49: =SUM(H46:H48) -> 99 | J49: Invisible | K49: =SUM(K46:K48) -> 99
D51: Valeur aiguille | E51: =W28 ->  | G51: Valeur aiguille | H51: =X28 ->  | J51: Valeur aiguille | K51: =Y28 -> 
D52: Largeur aiguille | E52: 2 | G52: Largeur aiguille | H52: 2 | J52: Largeur aiguille | K52: 2
D53: Invisible | E53: =SUM(E46:E49)-E51-E52 ->  | G53: Invisible | H53: =SUM(H46:H49)-H51-H52 ->  | J53: Invisible | K53: =SUM(K46:K49)-K51-K52 -> 
D55: Valeur de 0 à 97
E58: Type botanique | H58: Famille Plante | I58: NB
E59: Annuel | F59: =COUNTIF(N12:N21,"annuel") -> 0 | H59: Légumineuses | I59: =COUNTIF($O$12:$O$21,"Légumineuse") -> 0
E60: Puri-annuel | F60: =COUNTIF(N12:N21,"Pluri-annuel") -> 0 | H60: Autres | I60: =SUM(I61:I64) -> 0
H61: Crucifère | I61: =COUNTIF($O$12:$O$21,"Crucifère") -> 0
H62: Linacée | I62: =COUNTIF($O$12:$O$21,"Linacée") -> 0
H63: Composée | I63: =COUNTIF($O$12:$O$21,"Composée") -> 0
H64: Polygonacée | I64: =COUNTIF($O$12:$O$21,"Polygonacée") -> 0

Sheet Conseil_colza_CP
Q11: =H11 -> 0 | T11: Concurrence adventice | U11: Minéralisation | V11: Biomasse | W11: Concurrence | X11: Minéralisation | Y11: Biomasse
S12: =IF(N12=$E$59,#REF!,"") ->  | T12: =IF(D12=1, "", VLOOKUP(D12,BDD_colza!$B$6:$W$27,8,TRUE)) ->  | U12: =IF(D12=1, "", VLOOKUP(D12,BDD_colza!$B$6:$W$27,13,TRUE)) ->  | V12: =IF(D12=1, "", VLOOKUP(D12,BDD_colza!$B$6:$W$27,10,TRUE)) ->  | W12: =IF(S12="","",(#REF!)/F12) ->  | X12: =W12 ->  | Y12: =W12 -> 
S13: =IF(N13=$E$59,#REF!,"") ->  | T13: =IF(D13=1, "", VLOOKUP(D13,BDD_colza!$B$6:$W$27,8,TRUE)) ->  | U13: =IF(D13=1, "", VLOOKUP(D13,BDD_colza!$B$6:$W$27,13,TRUE)) ->  | V13: =IF(D13=1, "", VLOOKUP(D13,BDD_colza!$B$6:$W$27,10,TRUE)) ->  | W13: =IF(S13="","",(#REF!)/F13) ->  | X13: =W13 ->  | Y13: =W13 -> 
S14: =IF(N14=$E$59,#REF!,"") ->  | T14: =IF(D14=1, "", VLOOKUP(D14,BDD_colza!$B$6:$W$27,8,TRUE)) ->  | U14: =IF(D14=1, "", VLOOKUP(D14,BDD_colza!$B$6:$W$27,13,TRUE)) ->  | V14: =IF(D14=1, "", VLOOKUP(D14,BDD_colza!$B$6:$W$27,10,TRUE)) ->  | W14: =IF(S14="","",(#REF!)/F14) -> 
S15: =IF(N15=$E$59,#REF!,"") ->  | T15: =IF(D15=1, "", VLOOKUP(D15,BDD_colza!$B$6:$W$27,8,TRUE)) ->  | U15: =IF(D15=1, "", VLOOKUP(D15,BDD_colza!$B$6:$W$27,13,TRUE)) ->  | V15: =IF(D15=1, "", VLOOKUP(D15,BDD_colza!$B$6:$W$27,10,TRUE)) ->  | W15: =IF(S15="","",(#REF!)/F15) -> 
S16: =IF(N16=$E$59,#REF!,"") ->  | T16: =IF(D16=1, "", VLOOKUP(D16,BDD_colza!$B$6:$W$27,8,TRUE)) ->  | U16: =IF(D16=1, "", VLOOKUP(D16,BDD_colza!$B$6:$W$27,13,TRUE)) ->  | V16: =IF(D16=1, "", VLOOKUP(D16,BDD_colza!$B$6:$W$27,10,TRUE)) ->  | W16: =IF(S16="","",(#REF!)/F16) -> 
S17: =IF(N17=$E$59,#REF!,"") ->  | T17: =IF(D17=1, "", VLOOKUP(D17,BDD_colza!$B$6:$W$27,8,TRUE)) ->  | U17: =IF(D17=1, "", VLOOKUP(D17,BDD_colza!$B$6:$W$27,13,TRUE)) ->  | V17: =IF(D17=1, "", VLOOKUP(D17,BDD_colza!$B$6:$W$27,10,TRUE)) ->  | W17: =IF(S17="","",(#REF!)/F17) -> 
S18: =IF(N18=$E$59,#REF!,"") ->  | T18: =IF(D18=1, "", VLOOKUP(D18,BDD_colza!$B$6:$W$27,8,TRUE)) ->  | U18: =IF(D18=1, "", VLOOKUP(D18,BDD_colza!$B$6:$W$27,13,TRUE)) ->  | V18: =IF(D18=1, "", VLOOKUP(D18,BDD_colza!$B$6:$W$27,10,TRUE)) ->  | W18: =IF(S18="","",(#REF!)/F18) -> 
S19: =IF(N19=$E$59,#REF!,"") ->  | T19: =IF(D19=1, "", VLOOKUP(D19,BDD_colza!$B$6:$W$27,8,TRUE)) ->  | U19: =IF(D19=1, "", VLOOKUP(D19,BDD_colza!$B$6:$W$27,13,TRUE)) ->  | V19: =IF(D19=1, "", VLOOKUP(D19,BDD_colza!$B$6:$W$27,10,TRUE)) ->  | W19: =IF(S19="","",(#REF!)/F19) -> 
S20: =IF(N20=$E$59,#REF!,"") ->  | T20: =IF(D20=1, "", VLOOKUP(D20,BDD_colza!$B$6:$W$27,8,TRUE)) ->  | U20: =IF(D20=1, "", VLOOKUP(D20,BDD_colza!$B$6:$W$27,13,TRUE)) ->  | V20: =IF(D20=1, "", VLOOKUP(D20,BDD_colza!$B$6:$W$27,10,TRUE)) ->  | W20: =IF(S20="","",(#REF!)/F20) -> 
S21: =IF(N21=$E$59,#REF!,"") ->  | T21: =IF(D21=1, "", VLOOKUP(D21,BDD_colza!$B$6:$W$27,8,TRUE)) ->  | U21: =IF(D21=1, "", VLOOKUP(D21,BDD_colza!$B$6:$W$27,13,TRUE)) ->  | V21: =IF(D21=1, "", VLOOKUP(D21,BDD_colza!$B$6:$W$27,10,TRUE)) ->  | W21: =IF(S21="","",(#REF!)/F21) -> 
S22: =SUM(S12:S21) -> 0 | T22: =SUMPRODUCT(S12:S21,T12:T21)/S22 ->  | U22: =SUMPRODUCT(S12:S21,U12:U21)/S22 ->  | V22: =SUMPRODUCT(S12:S21,V12:V21)/S22 -> 
V24: Somme | W24: =SUM(W12:W21) -> 0 | X24: =SUM(X12:X21) -> 0 | Y24: 0
V25: Sommeprod | W25: =SUMPRODUCT(T12:T21,W12:W21) ->  | X25: =SUMPRODUCT(U12:U21,X12:X21) -> 
V26: Moyenne | W26: =W25/W24 ->  | X26: =X25/X24 -> 
V27: Max | W27: 5 | X27: 5 | Y27: 5
V28: % | W28: =IF((W25*100)/W27>90,90,(W25*100)/W27) ->  | X28: =IF((X25*100)/X27>90,90,(X25*100)/X27) ->  | Y28: =IF((Y25*100)/Y27>90,90,(Y25*100)/Y27) -> 
D45: Concurrence Adventice | G45: Concurrence Adventice | J45: Impact CULTURE
D46: Vert | E46: 33 | G46: Vert | H46: 33 | J46: Vert | K46: 33
D47: Orange | E47: 33 | G47: Orange | H47: 33 | J47: Orange | K47: 33
D48: Rouge | E48: 33 | G48: Rouge | H48: 33 | J48: Rouge | K48: 33
D49: Invisible | E49: =SUM(E46:E48) -> 99 | G49: Invisible | H49: =SUM(H46:H48) -> 99 | J49: Invisible | K49: =SUM(K46:K48) -> 99
D51: Valeur aiguille | E51: =W28 ->  | G51: Valeur aiguille | H51: =X28 ->  | J51: Valeur aiguille | K51: =Y28 -> 
D52: Largeur aiguille | E52: 2 | G52: Largeur aiguille | H52: 2 | J52: Largeur aiguille | K52: 2
D53: Invisible | E53: =SUM(E46:E49)-E51-E52 ->  | G53: Invisible | H53: =SUM(H46:H49)-H51-H52 ->  | J53: Invisible | K53: =SUM(K46:K49)-K51-K52 -> 
D55: Valeur de 0 à 97
E58: Type botanique | H58: Famille Plante | I58: NB
E59: Annuel | F59: =COUNTIF(N12:N21,"annuel") -> 0 | H59: Légumineuses | I59: =COUNTIF($O$12:$O$21,"Légumineuse") -> 0
E60: Puri-annuel | F60: =COUNTIF(N12:N21,"Pluri-annuel") -> 0 | H60: Autres | I60: =SUM(I61:I64) -> 0
H61: Crucifère | I61: =COUNTIF($O$12:$O$21,"Crucifère") -> 0
H62: Linacée | I62: =COUNTIF($O$12:$O$21,"Linacée") -> 0
H63: Composée | I63: =COUNTIF($O$12:$O$21,"Composée") -> 0
H64: Polygonacée | I64: =COUNTIF($O$12:$O$21,"Polygonacée") -> 0

Sheet BDD_colza
D5: Dose de semis (kg/ha) | E5: Densité de pieds/m² objectif | F5: Coût (€/ha) | G5: PMG | H5: Vitesse d'installation | I5: Concurrence adventices | J5: Impact cultures | K5: Biomasse automne | L5: Sensibilité au gel | M5: Type de port de plante | N5: Minéralisation | O5: Sensibilité herbicides | P5: Perennité | Q5: Famille botanique | R5: Profondeur de semis mini | S5: Profondeur de semis maxi | T5: Sensibilité au gel | U5: Sol acide | V5: Risque aphanomyces
B6: 1
B7: 2 | C7: Cameline | D7: =Paramètres_Couverts!B9 -> 3 | E7: =Paramètres_Couverts!C9 -> 250 | F7: =Paramètres_Couverts!D9 -> 5.7 | G7: =Paramètres_Couverts!E9 -> 1.2 | H7: 3 | I7: 3 | J7: 1 | K7: 1 | L7: -10°C | M7: Dressé | N7: 0.5 | O7: 2 | P7: Annuel | Q7: Crucifère | R7: 1 | S7: 1.5 | T7: -10°C | U7: 2 | V7: 3
B8: 3 | C8: Fenugrec | D8: =Paramètres_Couverts!B10 -> 10 | E8: =Paramètres_Couverts!C10 -> 40 | F8: =Paramètres_Couverts!D10 -> 2.6 | G8: =Paramètres_Couverts!E10 -> 25 | H8: 3 | I8: 2 | J8: 3 | K8: 2 | L8: -7°C | M8: Dressé | N8: 2 | O8: 2 | P8: Annuel | Q8: Légumineuse | R8: 2 | S8: 3 | T8: -7°C | U8: 2 | V8: 3
B9: 4 | C9: Feverole | D9: =Paramètres_Couverts!B11 -> 80 | E9: =Paramètres_Couverts!C11 -> 15 | F9: =Paramètres_Couverts!D11 -> 0.26 | G9: =Paramètres_Couverts!E11 -> 500 | H9: 2 | I9: 1 | J9: 3 | K9: 3 | L9: -5°C | M9: Dressé | N9: 0.5 | O9: 3 | P9: Annuel | Q9: Légumineuse | R9: 2 | S9: 3 | T9: -5°C | U9: 3 | V9: 3
B10: 5 | C10: Gesse | D10: =Paramètres_Couverts!B12 -> 20 | E10: =Paramètres_Couverts!C12 -> 10 | F10: =Paramètres_Couverts!D12 -> 1.52 | G10: =Paramètres_Couverts!E12 -> 180 | H10: 1 | I10: 2 | J10: 3 | K10: 2 | L10: -10°C | M10: Etalé | N10: 2 | O10: 2 | P10: Annuel | Q10: Légumineuse | R10: 3 | S10: 4 | T10: -10°C | U10: 2 | V10: 3
B11: 6 | C11: Lentille | D11: =Paramètres_Couverts!B13 -> 10 | E11: =Paramètres_Couverts!C13 -> 40 | F11: =Paramètres_Couverts!D13 -> 2.4 | G11: =Paramètres_Couverts!E13 -> 25 | H11: 3 | I11: 2 | J11: 3 | K11: 2 | L11: -7°C | M11: Etalé | N11: 2 | O11: 2 | P11: Annuel | Q11: Légumineuse | R11: 2 | S11: 3 | T11: -7°C | U11: 1 | V11: 1
B12: 7 | C12: Lin | D12: =Paramètres_Couverts!B14 -> 20 | E12: =Paramètres_Couverts!C14 -> 14 | F12: =Paramètres_Couverts!D14 -> 1.25 | G12: =Paramètres_Couverts!E14 -> 7 | H12: 3 | I12: 2 | J12: 1 | K12: 1 | L12: -2°C | M12: Dressé | N12: 0.5 | O12: 2 | P12: Annuel | Q12: Linacée | R12: 1 | S12: 1.5 | T12: -4°C | U12: 2 | V12: 3
B13: 8 | C13: Lotier Corniculé | D13: =Paramètres_Couverts!B15 -> 10 | E13: =Paramètres_Couverts!C15 -> 900 | F13: =Paramètres_Couverts!D15 -> 6.1 | G13: =Paramètres_Couverts!E15 -> 1.1 | H13: 1 | I13: 0 | J13: 3 | K13: 1 | L13: -10°C | M13: Dressé | N13: 0 | O13: 2 | P13: Pluri-annuel | Q13: Légumineuse | R13: 0.5 | S13: 1.5 | T13: >-15°C | U13: 3 | V13: 3
B14: 9 | C14: Lupin bleu | D14: =Paramètres_Couverts!B16 -> 40 | E14: =Paramètres_Couverts!C16 -> 20 | F14: =Paramètres_Couverts!D16 -> 2.45 | G14: =Paramètres_Couverts!E16 -> 200 | H14: 2 | I14: 2 | J14: 3 | K14: 2 | L14: -10°C | M14: Dressé | N14: 0.5 | O14: 2 | P14: Annuel | Q14: Légumineuse | R14: 2 | S14: 3 | T14: -10°C | U14: 3 | V14: 3
B15: 10 | C15: Luzerne Flamande | D15: =Paramètres_Couverts!B17 -> 10 | E15: =Paramètres_Couverts!C17 -> 500 | F15: =Paramètres_Couverts!D17 -> 5.69 | G15: =Paramètres_Couverts!E17 -> 2 | H15: 1 | I15: 0 | J15: 2 | K15: 1 | L15: -10°C | M15: Dressé | N15: 0 | O15: 2 | P15: Pluri-annuel | Q15: Légumineuse | R15: 0.5 | S15: 1.5 | T15: >-15°C | U15: 3 | V15: 1
B16: 11 | C16: Niger | D16: =Paramètres_Couverts!B18 -> 2 | E16: =Paramètres_Couverts!C18 -> 67 | F16: =Paramètres_Couverts!D18 -> 4.1 | G16: =Paramètres_Couverts!E18 -> 3 | H16: 2 | I16: 0 | J16: 1 | K16: 3 | L16: -1°C | M16: Dressé | N16: 0.5 | O16: 2 | P16: Annuel | Q16: Composée | R16: 1 | S16: 1.5 | T16: -1°C | U16: 2 | V16: 3
B17: 12 | C17: Pois fourrager | D17: =Paramètres_Couverts!B19 -> 20 | E17: =Paramètres_Couverts!C19 -> 17 | F17: =Paramètres_Couverts!D19 -> 1.49 | G17: =Paramètres_Couverts!E19 -> 100 | H17: 3 | I17: 3 | J17: 1 | K17: 3 | L17: -10°C | M17: Dressé | N17: 1 | O17: 2 | P17: Annuel | Q17: Légumineuse | R17: 2 | S17: 3 | T17: -15°C | U17: 3 | V17: 1
B18: 13 | C18: Pois protéagineux | D18: =Paramètres_Couverts!B20 -> 50 | E18: =Paramètres_Couverts!C20 -> 18 | F18: =Paramètres_Couverts!D20 -> 0.2 | G18: =Paramètres_Couverts!E20 -> 200 | H18: 2 | I18: 1 | J18: 1 | K18: 2 | L18: -10°C | M18: Dressé | N18: 1 | O18: 2 | P18: Annuel | Q18: Légumineuse | R18: 2 | S18: 3 | T18: -10°C | U18: 2 | V18: 1
B19: 14 | C19: Sarrasin | D19: =Paramètres_Couverts!B21 -> 40 | E19: =Paramètres_Couverts!C21 -> 180 | F19: =Paramètres_Couverts!D21 -> 2.1 | G19: =Paramètres_Couverts!E21 -> 22 | H19: 3 | I19: 3 | J19: 1 | K19: 3 | L19: -1°C | M19: Dressé | N19: 1 | O19: 3 | P19: Annuel | Q19: Polygonacée | R19: 2 | S19: 3 | T19: -2°C | U19: 2 | V19: 3
B20: 15 | C20: Tournesol | D20: =Paramètres_Couverts!B22 -> 10 | E20: =Paramètres_Couverts!C22 -> 3 | F20: =Paramètres_Couverts!D22 -> 0.2 | G20: =Paramètres_Couverts!E22 -> 60 | H20: 2 | I20: 1 | J20: 1 | K20: 3 | L20: -4°C | M20: Dressé | N20: 0.5 | O20: 2 | P20: Annuel | Q20: Composée | R20: 2 | S20: 3 | T20: -2°C | U20: 2 | V20: 3
B21: 16 | C21: Trèfle Blanc | D21: =Paramètres_Couverts!B23 -> 3 | E21: =Paramètres_Couverts!C23 -> 500 | F21: =Paramètres_Couverts!D23 -> 5.8 | G21: =Paramètres_Couverts!E23 -> 0.6 | H21: 1 | I21: 0 | J21: 2 | K21: 1 | L21: -10°C | M21: Dressé | N21: 1 | O21: 2 | P21: Pluri-annuel | Q21: Légumineuse | R21: 0.5 | S21: 1.5 | T21: >-10°C | U21: 3 | V21: 1
B22: 17 | C22: Trèfle blanc PIPOLINA | D22: =Paramètres_Couverts!B24 -> 2 | E22: =Paramètres_Couverts!C24 -> 500 | F22: =Paramètres_Couverts!D24 -> 24 | G22: =Paramètres_Couverts!E24 -> 0.6 | H22: 1 | I22: 0 | J22: 2 | K22: 1 | M22: Dréssé | N22: 1 | O22: 2 | P22: Pluri-annuel | Q22: Légumineuse | R22: 0.5 | S22: 1.5 | T22: >-10°C | U22: 3 | V22: 1
B23: 18 | C23: Trèfle d'Alexandrie | D23: =Paramètres_Couverts!B25 -> 5 | E23: =Paramètres_Couverts!C25 -> 120 | F23: =Paramètres_Couverts!D25 -> 3.1 | G23: =Paramètres_Couverts!E25 -> 2.5 | H23: 3 | I23: 2 | J23: 2 | K23: 3 | L23: -4°C | M23: Dressé | N23: 2 | O23: 2 | P23: Annuel | Q23: Légumineuse | R23: 1 | S23: 2 | T23: -5°C | U23: 3 | V23: 3
B24: 19 | C24: Trèfle violet | D24: =Paramètres_Couverts!B26 -> 7 | E24: =Paramètres_Couverts!C26 -> 500 | F24: =Paramètres_Couverts!D26 -> 5.8 | G24: =Paramètres_Couverts!E26 -> 1.9 | H24: 1 | I24: 0 | J24: 2 | K24: 1 | L24: -10°C | M24: Dressé | N24: 1 | O24: 2 | P24: Pluri-annuel | Q24: Légumineuse | R24: 0.5 | S24: 1 | T24: >-10°C | U24: 3 | V24: 2
B25: 20 | C25: Vesce commune | D25: =Paramètres_Couverts!B27 -> 10 | E25: =Paramètres_Couverts!C27 -> 15 | F25: =Paramètres_Couverts!D27 -> 1.85 | G25: =Paramètres_Couverts!E27 -> 50 | H25: 2 | I25: 3 | J25: 2 | K25: 3 | L25: -10°C | M25: Etalé | N25: 2 | O25: 3 | P25: Annuel | Q25: Légumineuse | R25: 2 | S25: 3 | T25: -10°C | U25: 3 | V25: 2
B26: 21 | C26: Vesce érigée | D26: =Paramètres_Couverts!B28 -> 40 | E26: =Paramètres_Couverts!C28 -> 50 | F26: =Paramètres_Couverts!D28 -> 1.9 | G26: =Paramètres_Couverts!E28 -> 23 | H26: 2 | I26: 2 | J26: 3 | K26: 3 | L26: -4°C | M26: Dressé | N26: 2 | P26: Annuel | Q26: Légumineuse | R26: 2 | S26: 3 | T26: -4°C | U26: 3 | V26: 2
B27: 22 | C27: Vesce pourpre | D27: =Paramètres_Couverts!B29 -> 10 | E27: =Paramètres_Couverts!C29 -> 15 | F27: =Paramètres_Couverts!D29 -> 1.99 | G27: =Paramètres_Couverts!E29 -> 50 | H27: 2 | I27: 3 | J27: 2 | K27: 3 | L27: -10°C | M27: Etalé | N27: 2 | O27: 3 | P27: Annuel | Q27: Légumineuse | R27: 2 | S27: 3 | T27: -10°C | U27: 3 | V27: 2
F34: Qualite d'implantation
G35: profondeur de semis
G36: Vitesse d'installation
G37: Levee en condition seche
F39: Mineralisation
F40: Type de port de plante

Sheet Acceuil

Sheet Aphano (2)
N2: Source : Terres Inovia
O3: Retour

Sheet Composition
B8: CHOISIR SES COUVERTS | D8: REFERENCES | F8: DOSE CONSEILLEE | H8: AJUSTER VOS DOSES | AO8: Conseillé | AT8: Ajusté | AX8: PMG | AY8: NB pieds Conseillé | AZ8: NB ajusté
C9: Couvert | D9: Dose unitaire (kg/ha) | E9: Coût unitaire (€/kg) | F9: Dose conseillée (kg/ha) | G9: Coût (€/ha) | H9: Dose ajustée (kg/ha) | I9: Coût (€/ha) | J9: Type | K9: Hauteur | L9: Racine | AA9: Conseillé Biomasse | AB9: Dose | AC9: Note | AD9: Conseillé Azote | AE9: Dose | AF9: Note | AG9: Ajusté Biomasse | AH9: Dose | AI9: Note | AJ9: Ajusté max | AK9: Ajustée Azote | AL9: Dose | AM9: Note | AP9: Graminées | AQ9: Legumineuse | AR9: Crucifères | AS9: Autres | AT9: Graminées | AU9: Legumineuse | AV9: Crucifères | AW9: Autres | BB9: Couvert | BC9: NB Pieds | BD9: GNIS | BE9: Méllifères
B10: 1 | C10: Radis chinois | D10: =IF(C10="","",VLOOKUP(C10,BDD!$A$5:$I$64,9,0)) -> 8 | E10: =IF(D10="","",VLOOKUP(C10,BDD!$A$5:$I$64,8,0)) -> 1.49 | F10: =IF(C10="","",D10/O47) -> 1.6 | G10: =IF(C10="","",F10*E10) -> 2.384 | H10: 0.75 | I10: =IF(C10="","",H10*E10) -> 1.1175 | J10: =IF(C10="","",VLOOKUP(C10,BDD!$A$5:$I$64,2,0)) -> Crucifère | K10: =IF(C10="","",VLOOKUP(C10,BDD!$A$5:$I$64,3,0)) -> 2 | L10: =IF(C10="","",VLOOKUP(C10,BDD!$A$5:$I$64,4,0)) -> 3 | U10: =V10 -> 1 | V10: =VLOOKUP(C10,BDD!$A$6:$Q$64,16) -> 1 | W10: =VLOOKUP(C10,BDD!$A$6:$Q$64,17) -> 2 | X10: =W10 -> 2 | Y10: =IF(C10="","",VLOOKUP(C10,BDD!$A$5:$S$64,15,0)) -> annuel | Z10: =IF(D10="","",VLOOKUP(C10,BDD!$A$5:$S$64,12,0)) -> courte | AA10: =IF(C10="","",VLOOKUP(C10,BDD!$A$5:$I$64,5,0)) -> 12 | AB10: =F10 -> 1.6 | AC10: =IF(C10="", "", AA10*AB10) -> 19.2 | AD10: =IF(C10="","",VLOOKUP(C10,BDD!$A$5:$I$64,7,0)) -> 3.5 | AE10: =F10 -> 1.6 | AF10: =IF(C10="", "", AD10*AE10) -> 5.6 | AG10: =IF(C10="", "", H10*AA10) -> 9 | AH10: =H10 -> 0.75 | AI10: =IF(C10="", "", AH10*AA10) -> 9 | AJ10: =IF(C10="", "", H10*4) -> 3 | AK10: =IF(C10="", "", H10*AD10) -> 2.625 | AL10: =AH10 -> 0.75 | AO10: =IF(C10="","",VLOOKUP(C10,BDD!$A$5:$I$64,2,0)) -> Crucifère | AP10: =IF(AO10="graminée", F10, "") ->  | AQ10: =IF(AO10="Légumineuse", F10, "") ->  | AR10: =IF(AO10="Crucifère", F10, "") -> 1.6 | AS10: =IF(SUM(AP10:AR10)>0, "", F10) ->  | AT10: =IF(AO10="graminée", H10, "") ->  | AU10: =IF(AO10="Légumineuse", H10, "") ->  | AV10: =IF(AO10="Crucifère", H10, "") -> 0.75 | AW10: =IF(SUM(AT10:AV10)>0, "", H10) ->  | AX10: =IF(C10="","",VLOOKUP(C10,BDD!$A$5:$J$64,10,0)) -> 14 | AY10: =IF(C10="", "", (F10*100)/AX10) -> 11.42857143 | AZ10: =IF(C10= "", "", (H10*100)/AX10) -> 5.357142857 | BB10: =IF(C10="", "", C10) -> Radis chinois | BC10: =IF($AA$28=TRUE, AZ10, AY10) -> 5.357142857 | BD10: =IF(C10="","",VLOOKUP(C10,BDD!$A$5:$X$64,24,0)) -> Parapluie | BE10: =IF(C10="","",VLOOKUP(C10,BDD!$A$5:$Y$64,25,0)) -> oui
B11: 2 | C11: Moutarde d'Abyssinie | D11: =IF(C11="","",VLOOKUP(C11,BDD!$A$5:$I$64,9,0)) -> 6 | E11: =IF(D11="","",VLOOKUP(C11,BDD!$A$5:$I$64,8,0)) -> 1.65 | F11: 1.2 | G11: =IF(C11="","",F11*E11) -> 1.98 | H11: 0.75 | I11: =IF(C11="","",H11*E11) -> 1.2375 | J11: =IF(C11="","",VLOOKUP(C11,BDD!$A$5:$I$64,2,0)) -> Crucifère | K11: =IF(C11="","",VLOOKUP(C11,BDD!$A$5:$I$64,3,0)) -> 3 | L11: =IF(C11="","",VLOOKUP(C11,BDD!$A$5:$I$64,4,0)) -> 3 | U11: =V11 -> 1 | V11: =VLOOKUP(C11,BDD!$A$6:$Q$64,16) -> 1 | W11: =VLOOKUP(C11,BDD!$A$6:$Q$64,17) -> 2 | X11: =W11 -> 2 | Y11: =IF(C11="","",VLOOKUP(C11,BDD!$A$5:$S$64,15,0)) -> annuel | Z11: =IF(D11="","",VLOOKUP(C11,BDD!$A$5:$S$64,12,0)) -> courte | AA11: =IF(C11="","",VLOOKUP(C11,BDD!$A$5:$I$64,5,0)) -> 14 | AB11: =F11 -> 1.2 | AC11: =IF(C11="", "", AA11*AB11) -> 16.8 | AD11: =IF(C11="","",VLOOKUP(C11,BDD!$A$5:$I$64,7,0)) -> 3.7 | AE11: =F11 -> 1.2 | AF11: =IF(C11="", "", AD11*AE11) -> 4.44 | AG11: =IF(C11="", "", H11*AA11) -> 10.5 | AH11: =H11 -> 0.75 | AI11: =IF(C11="", "", AH11*AA11) -> 10.5 | AJ11: =IF(C11="", "", H11*4) -> 3 | AK11: 2.775 | AL11: =AH11 -> 0.75 | AO11: =IF(C11="","",VLOOKUP(C11,BDD!$A$5:$I$64,2,0)) -> Crucifère | AP11: =IF(AO11="graminée", F11, "") ->  | AQ11: =IF(AO11="Légumineuse", F11, "") ->  | AR11: =IF(AO11="Crucifère", F11, "") -> 1.2 | AS11: =IF(SUM(AP11:AR11)>0, "", F11) ->  | AT11: =IF(AO11="graminée", H11, "") ->  | AU11: =IF(AO11="Légumineuse", H11, "") ->  | AV11: =IF(AO11="Crucifère", H11, "") -> 0.75 | AW11: =IF(SUM(AT11:AV11)>0, "", H11) ->  | AX11: =IF(C11="","",VLOOKUP(C11,BDD!$A$5:$J$64,10,0)) -> 5 | AY11: =IF(C11="", "", (F11*100)/AX11) -> 24 | AZ11: =IF(C11= "", "", (H11*100)/AX11) -> 15 | BB11: =IF(C11="", "", C11) -> Moutarde d'Abyssinie | BC11: =IF($AA$28=TRUE, AZ11, AY11) -> 15 | BD11: =IF(C11="","",VLOOKUP(C11,BDD!$A$5:$X$64,24,0)) -> Parapluie | BE11: =IF(C11="","",VLOOKUP(C11,BDD!$A$5:$Y$64,25,0)) -> oui
B12: 3 | C12: Phacélie | D12: =IF(C12="","",VLOOKUP(C12,BDD!$A$5:$I$64,9,0)) -> 8 | E12: =IF(D12="","",VLOOKUP(C12,BDD!$A$5:$I$64,8,0)) -> 5.15 | F12: 1.6 | G12: 8.24 | H12: 2 | I12: 10.3 | J12: =IF(C12="","",VLOOKUP(C12,BDD!$A$5:$I$64,2,0)) -> Hydrophyllacée | K12: =IF(C12="","",VLOOKUP(C12,BDD!$A$5:$I$64,3,0)) -> 2 | L12: =IF(C12="","",VLOOKUP(C12,BDD!$A$5:$I$64,4,0)) -> 2 | U12: 2 | V12: =VLOOKUP(C12,BDD!$A$6:$Q$64,16) -> 2 | W12: =VLOOKUP(C12,BDD!$A$6:$Q$64,17) -> 3 | X12: 3 | Y12: =IF(C12="","",VLOOKUP(C12,BDD!$A$5:$S$64,15,0)) -> annuel | Z12: =IF(D12="","",VLOOKUP(C12,BDD!$A$5:$S$64,12,0)) -> courte | AA12: =IF(C12="","",VLOOKUP(C12,BDD!$A$5:$I$64,5,0)) -> 6 | AB12: 1.6 | AC12: 9.6 | AD12: =IF(C12="","",VLOOKUP(C12,BDD!$A$5:$I$64,7,0)) -> 4 | AE12: 1.6 | AF12: 6.4 | AG12: 12 | AH12: 2 | AI12: 12 | AJ12: 8 | AK12: 8 | AL12: 2 | AO12: =IF(C12="","",VLOOKUP(C12,BDD!$A$5:$I$64,2,0)) -> Hydrophyllacée | AS12: 1.6 | AW12: 2 | AX12: =IF(C12="","",VLOOKUP(C12,BDD!$A$5:$J$64,10,0)) -> 2 | AY12: 80 | AZ12: 100 | BB12: Phacélie | BC12: 100 | BD12: =IF(C12="","",VLOOKUP(C12,BDD!$A$5:$X$64,24,0)) -> Jungle | BE12: =IF(C12="","",VLOOKUP(C12,BDD!$A$5:$Y$64,25,0)) -> oui
B13: 4 | C13: Trèfle d'Alexandrie | D13: =IF(C13="","",VLOOKUP(C13,BDD!$A$5:$I$64,9,0)) -> 4 | E13: =IF(D13="","",VLOOKUP(C13,BDD!$A$5:$I$64,8,0)) -> 5.8 | F13: 0.8 | G13: 4.64 | H13: 2 | I13: 11.6 | J13: =IF(C13="","",VLOOKUP(C13,BDD!$A$5:$I$64,2,0)) -> Légumineuse | K13: =IF(C13="","",VLOOKUP(C13,BDD!$A$5:$I$64,3,0)) -> 2 | L13: =IF(C13="","",VLOOKUP(C13,BDD!$A$5:$I$64,4,0)) -> 2 | U13: 1 | V13: =VLOOKUP(C13,BDD!$A$6:$Q$64,16) -> 1 | W13: =VLOOKUP(C13,BDD!$A$6:$Q$64,17) -> 2 | X13: 2 | Y13: =IF(C13="","",VLOOKUP(C13,BDD!$A$5:$S$64,15,0)) -> annuel | Z13: =IF(D13="","",VLOOKUP(C13,BDD!$A$5:$S$64,12,0)) -> courte | AA13: =IF(C13="","",VLOOKUP(C13,BDD!$A$5:$I$64,5,0)) -> 8 | AB13: 0.8 | AC13: 6.4 | AD13: =IF(C13="","",VLOOKUP(C13,BDD!$A$5:$I$64,7,0)) -> 15 | AE13: 0.8 | AF13: 12 | AG13: 16 | AH13: 2 | AI13: 16 | AJ13: 8 | AK13: 30 | AL13: 2 | AO13: =IF(C13="","",VLOOKUP(C13,BDD!$A$5:$I$64,2,0)) -> Légumineuse | AQ13: 0.8 | AU13: 2 | AX13: =IF(C13="","",VLOOKUP(C13,BDD!$A$5:$J$64,10,0)) -> 3.1 | AY13: 25.80645161 | AZ13: 64.51612903 | BB13: Trèfle d'Alexandrie | BC13: 64.51612903 | BD13: =IF(C13="","",VLOOKUP(C13,BDD!$A$5:$X$64,24,0)) -> Jungle | BE13: =IF(C13="","",VLOOKUP(C13,BDD!$A$5:$Y$64,25,0)) -> oui
B14: 5 | C14: Niger | D14: =IF(C14="","",VLOOKUP(C14,BDD!$A$5:$I$64,9,0)) -> 3 | E14: =IF(D14="","",VLOOKUP(C14,BDD!$A$5:$I$64,8,0)) -> 8.4 | F14: 0.6 | G14: 5.04 | H14: 2 | I14: 16.8 | J14: =IF(C14="","",VLOOKUP(C14,BDD!$A$5:$I$64,2,0)) -> Composée | K14: =IF(C14="","",VLOOKUP(C14,BDD!$A$5:$I$64,3,0)) -> 2 | L14: =IF(C14="","",VLOOKUP(C14,BDD!$A$5:$I$64,4,0)) -> 2 | U14: 1 | V14: =VLOOKUP(C14,BDD!$A$6:$Q$64,16) -> 1 | W14: =VLOOKUP(C14,BDD!$A$6:$Q$64,17) -> 1.5 | X14: 1.5 | Y14: =IF(C14="","",VLOOKUP(C14,BDD!$A$5:$S$64,15,0)) -> annuel | Z14: =IF(D14="","",VLOOKUP(C14,BDD!$A$5:$S$64,12,0)) -> courte | AA14: =IF(C14="","",VLOOKUP(C14,BDD!$A$5:$I$64,5,0)) -> 10 | AB14: 0.6 | AC14: 6 | AD14: =IF(C14="","",VLOOKUP(C14,BDD!$A$5:$I$64,7,0)) -> 7 | AE14: 0.6 | AF14: 4.2 | AG14: 20 | AH14: 2 | AI14: 20 | AJ14: 8 | AK14: 14 | AL14: 2 | AO14: =IF(C14="","",VLOOKUP(C14,BDD!$A$5:$I$64,2,0)) -> Composée | AS14: 0.6 | AW14: 2 | AX14: =IF(C14="","",VLOOKUP(C14,BDD!$A$5:$J$64,10,0)) -> 2.5 | AY14: 24 | AZ14: 80 | BB14: Niger | BC14: 80 | BD14: =IF(C14="","",VLOOKUP(C14,BDD!$A$5:$X$64,24,0)) -> Parapluie | BE14: =IF(C14="","",VLOOKUP(C14,BDD!$A$5:$Y$64,25,0)) -> oui
B15: 6 | D15: =IF(C15="","",VLOOKUP(C15,BDD!$A$5:$I$64,9,0)) ->  | E15: =IF(D15="","",VLOOKUP(C15,BDD!$A$5:$I$64,8,0)) ->  | J15: =IF(C15="","",VLOOKUP(C15,BDD!$A$5:$I$64,2,0)) ->  | K15: =IF(C15="","",VLOOKUP(C15,BDD!$A$5:$I$64,3,0)) ->  | L15: =IF(C15="","",VLOOKUP(C15,BDD!$A$5:$I$64,4,0)) ->  | V15: =VLOOKUP(C15,BDD!$A$6:$Q$64,16) ->  | W15: =VLOOKUP(C15,BDD!$A$6:$Q$64,17) ->  | Y15: =IF(C15="","",VLOOKUP(C15,BDD!$A$5:$S$64,15,0)) ->  | Z15: =IF(D15="","",VLOOKUP(C15,BDD!$A$5:$S$64,12,0)) ->  | AA15: =IF(C15="","",VLOOKUP(C15,BDD!$A$5:$I$64,5,0)) ->  | AD15: =IF(C15="","",VLOOKUP(C15,BDD!$A$5:$I$64,7,0)) ->  | AH15: 0 | AL15: 0 | AO15: =IF(C15="","",VLOOKUP(C15,BDD!$A$5:$I$64,2,0)) ->  | AW15: 0 | AX15: =IF(C15="","",VLOOKUP(C15,BDD!$A$5:$J$64,10,0)) ->  | BD15: =IF(C15="","",VLOOKUP(C15,BDD!$A$5:$X$64,24,0)) ->  | BE15: =IF(C15="","",VLOOKUP(C15,BDD!$A$5:$Y$64,25,0)) -> 
B16: 7 | D16: =IF(C16="","",VLOOKUP(C16,BDD!$A$5:$I$64,9,0)) ->  | E16: =IF(D16="","",VLOOKUP(C16,BDD!$A$5:$I$64,8,0)) ->  | J16: =IF(C16="","",VLOOKUP(C16,BDD!$A$5:$I$64,2,0)) ->  | K16: =IF(C16="","",VLOOKUP(C16,BDD!$A$5:$I$64,3,0)) ->  | L16: =IF(C16="","",VLOOKUP(C16,BDD!$A$5:$I$64,4,0)) ->  | V16: =VLOOKUP(C16,BDD!$A$6:$Q$64,16) ->  | W16: =VLOOKUP(C16,BDD!$A$6:$Q$64,17) ->  | Y16: =IF(C16="","",VLOOKUP(C16,BDD!$A$5:$S$64,15,0)) ->  | Z16: =IF(D16="","",VLOOKUP(C16,BDD!$A$5:$S$64,12,0)) ->  | AA16: =IF(C16="","",VLOOKUP(C16,BDD!$A$5:$I$64,5,0)) ->  | AD16: =IF(C16="","",VLOOKUP(C16,BDD!$A$5:$I$64,7,0)) ->  | AH16: 0 | AL16: 0 | AO16: =IF(C16="","",VLOOKUP(C16,BDD!$A$5:$I$64,2,0)) ->  | AW16: 0 | AX16: =IF(C16="","",VLOOKUP(C16,BDD!$A$5:$J$64,10,0)) ->  | BD16: =IF(C16="","",VLOOKUP(C16,BDD!$A$5:$X$64,24,0)) ->  | BE16: =IF(C16="","",VLOOKUP(C16,BDD!$A$5:$Y$64,25,0)) -> 
B17: 8 | D17: =IF(C17="","",VLOOKUP(C17,BDD!$A$5:$I$64,9,0)) ->  | E17: =IF(D17="","",VLOOKUP(C17,BDD!$A$5:$I$64,8,0)) ->  | J17: =IF(C17="","",VLOOKUP(C17,BDD!$A$5:$I$64,2,0)) ->  | K17: =IF(C17="","",VLOOKUP(C17,BDD!$A$5:$I$64,3,0)) ->  | L17: =IF(C17="","",VLOOKUP(C17,BDD!$A$5:$I$64,4,0)) ->  | V17: =VLOOKUP(C17,BDD!$A$6:$Q$64,16) ->  | W17: =VLOOKUP(C17,BDD!$A$6:$Q$64,17) ->  | Y17: =IF(C17="","",VLOOKUP(C17,BDD!$A$5:$S$64,15,0)) ->  | Z17: =IF(D17="","",VLOOKUP(C17,BDD!$A$5:$S$64,12,0)) ->  | AA17: =IF(C17="","",VLOOKUP(C17,BDD!$A$5:$I$64,5,0)) ->  | AD17: =IF(C17="","",VLOOKUP(C17,BDD!$A$5:$I$64,7,0)) ->  | AH17: 0 | AL17: 0 | AO17: =IF(C17="","",VLOOKUP(C17,BDD!$A$5:$I$64,2,0)) ->  | AW17: 0 | AX17: =IF(C17="","",VLOOKUP(C17,BDD!$A$5:$J$64,10,0)) ->  | BD17: =IF(C17="","",VLOOKUP(C17,BDD!$A$5:$X$64,24,0)) ->  | BE17: =IF(C17="","",VLOOKUP(C17,BDD!$A$5:$Y$64,25,0)) -> 
B18: 9 | D18: =IF(C18="","",VLOOKUP(C18,BDD!$A$5:$I$64,9,0)) ->  | E18: =IF(D18="","",VLOOKUP(C18,BDD!$A$5:$I$64,8,0)) ->  | J18: =IF(C18="","",VLOOKUP(C18,BDD!$A$5:$I$64,2,0)) ->  | K18: =IF(C18="","",VLOOKUP(C18,BDD!$A$5:$I$64,3,0)) ->  | L18: =IF(C18="","",VLOOKUP(C18,BDD!$A$5:$I$64,4,0)) ->  | V18: =VLOOKUP(C18,BDD!$A$6:$Q$64,16) ->  | W18: =VLOOKUP(C18,BDD!$A$6:$Q$64,17) ->  | Y18: =IF(C18="","",VLOOKUP(C18,BDD!$A$5:$S$64,15,0)) ->  | Z18: =IF(D18="","",VLOOKUP(C18,BDD!$A$5:$S$64,12,0)) ->  | AA18: =IF(C18="","",VLOOKUP(C18,BDD!$A$5:$I$64,5,0)) ->  | AD18: =IF(C18="","",VLOOKUP(C18,BDD!$A$5:$I$64,7,0)) ->  | AH18: 0 | AL18: 0 | AO18: =IF(C18="","",VLOOKUP(C18,BDD!$A$5:$I$64,2,0)) ->  | AW18: 0 | AX18: =IF(C18="","",VLOOKUP(C18,BDD!$A$5:$J$64,10,0)) ->  | BD18: =IF(C18="","",VLOOKUP(C18,BDD!$A$5:$X$64,24,0)) ->  | BE18: =IF(C18="","",VLOOKUP(C18,BDD!$A$5:$Y$64,25,0)) -> 
B19: 10 | D19: =IF(C19="","",VLOOKUP(C19,BDD!$A$5:$I$64,9,0)) ->  | E19: =IF(D19="","",VLOOKUP(C19,BDD!$A$5:$I$64,8,0)) ->  | J19: =IF(C19="","",VLOOKUP(C19,BDD!$A$5:$I$64,2,0)) ->  | K19: =IF(C19="","",VLOOKUP(C19,BDD!$A$5:$I$64,3,0)) ->  | L19: =IF(C19="","",VLOOKUP(C19,BDD!$A$5:$I$64,4,0)) ->  | V19: =VLOOKUP(C19,BDD!$A$6:$Q$64,16) ->  | W19: =VLOOKUP(C19,BDD!$A$6:$Q$64,17) ->  | Y19: =IF(C19="","",VLOOKUP(C19,BDD!$A$5:$S$64,15,0)) ->  | Z19: =IF(D19="","",VLOOKUP(C19,BDD!$A$5:$S$64,12,0)) ->  | AA19: =IF(C19="","",VLOOKUP(C19,BDD!$A$5:$I$64,5,0)) ->  | AD19: =IF(C19="","",VLOOKUP(C19,BDD!$A$5:$I$64,7,0)) ->  | AH19: 0 | AL19: 0 | AO19: =IF(C19="","",VLOOKUP(C19,BDD!$A$5:$I$64,2,0)) ->  | AW19: 0 | AX19: =IF(C19="","",VLOOKUP(C19,BDD!$A$5:$J$64,10,0)) ->  | BD19: =IF(C19="","",VLOOKUP(C19,BDD!$A$5:$X$64,24,0)) ->  | BE19: =IF(C19="","",VLOOKUP(C19,BDD!$A$5:$Y$64,25,0)) -> 
B20: 11 | D20: =IF(C20="","",VLOOKUP(C20,BDD!$A$5:$I$64,9,0)) ->  | E20: =IF(D20="","",VLOOKUP(C20,BDD!$A$5:$I$64,8,0)) ->  | J20: =IF(C20="","",VLOOKUP(C20,BDD!$A$5:$I$64,2,0)) ->  | K20: =IF(C20="","",VLOOKUP(C20,BDD!$A$5:$I$64,3,0)) ->  | L20: =IF(C20="","",VLOOKUP(C20,BDD!$A$5:$I$64,4,0)) ->  | V20: =VLOOKUP(C20,BDD!$A$6:$Q$64,16) ->  | W20: =VLOOKUP(C20,BDD!$A$6:$Q$64,17) ->  | Y20: =IF(C20="","",VLOOKUP(C20,BDD!$A$5:$S$64,15,0)) ->  | Z20: =IF(D20="","",VLOOKUP(C20,BDD!$A$5:$S$64,12,0)) ->  | AA20: =IF(C20="","",VLOOKUP(C20,BDD!$A$5:$I$64,5,0)) ->  | AD20: =IF(C20="","",VLOOKUP(C20,BDD!$A$5:$I$64,7,0)) ->  | AH20: 0 | AL20: 0 | AO20: =IF(C20="","",VLOOKUP(C20,BDD!$A$5:$I$64,2,0)) ->  | AW20: 0 | AX20: =IF(C20="","",VLOOKUP(C20,BDD!$A$5:$J$64,10,0)) ->  | BD20: =IF(C20="","",VLOOKUP(C20,BDD!$A$5:$X$64,24,0)) ->  | BE20: =IF(C20="","",VLOOKUP(C20,BDD!$A$5:$Y$64,25,0)) -> 
B21: 12 | D21: =IF(C21="","",VLOOKUP(C21,BDD!$A$5:$I$64,9,0)) ->  | E21: =IF(D21="","",VLOOKUP(C21,BDD!$A$5:$I$64,8,0)) ->  | J21: =IF(C21="","",VLOOKUP(C21,BDD!$A$5:$I$64,2,0)) ->  | K21: =IF(C21="","",VLOOKUP(C21,BDD!$A$5:$I$64,3,0)) ->  | L21: =IF(C21="","",VLOOKUP(C21,BDD!$A$5:$I$64,4,0)) ->  | V21: =VLOOKUP(C21,BDD!$A$6:$Q$64,16) ->  | W21: =VLOOKUP(C21,BDD!$A$6:$Q$64,17) ->  | Y21: =IF(C21="","",VLOOKUP(C21,BDD!$A$5:$S$64,15,0)) ->  | Z21: =IF(D21="","",VLOOKUP(C21,BDD!$A$5:$S$64,12,0)) ->  | AA21: =IF(C21="","",VLOOKUP(C21,BDD!$A$5:$I$64,5,0)) ->  | AD21: =IF(C21="","",VLOOKUP(C21,BDD!$A$5:$I$64,7,0)) ->  | AH21: 0 | AL21: 0 | AO21: =IF(C21="","",VLOOKUP(C21,BDD!$A$5:$I$64,2,0)) ->  | AW21: 0 | AX21: =IF(C21="","",VLOOKUP(C21,BDD!$A$5:$J$64,10,0)) ->  | BD21: =IF(C21="","",VLOOKUP(C21,BDD!$A$5:$X$64,24,0)) ->  | BE21: =IF(C21="","",VLOOKUP(C21,BDD!$A$5:$Y$64,25,0)) -> 
B22: 13 | D22: =IF(C22="","",VLOOKUP(C22,BDD!$A$5:$I$64,9,0)) ->  | E22: =IF(D22="","",VLOOKUP(C22,BDD!$A$5:$I$64,8,0)) ->  | J22: =IF(C22="","",VLOOKUP(C22,BDD!$A$5:$I$64,2,0)) ->  | K22: =IF(C22="","",VLOOKUP(C22,BDD!$A$5:$I$64,3,0)) ->  | L22: =IF(C22="","",VLOOKUP(C22,BDD!$A$5:$I$64,4,0)) ->  | V22: =VLOOKUP(C22,BDD!$A$6:$Q$64,16) ->  | W22: =VLOOKUP(C22,BDD!$A$6:$Q$64,17) ->  | Y22: =IF(C22="","",VLOOKUP(C22,BDD!$A$5:$S$64,15,0)) ->  | Z22: =IF(D22="","",VLOOKUP(C22,BDD!$A$5:$S$64,12,0)) ->  | AA22: =IF(C22="","",VLOOKUP(C22,BDD!$A$5:$I$64,5,0)) ->  | AD22: =IF(C22="","",VLOOKUP(C22,BDD!$A$5:$I$64,7,0)) ->  | AH22: 0 | AL22: 0 | AO22: =IF(C22="","",VLOOKUP(C22,BDD!$A$5:$I$64,2,0)) ->  | AW22: 0 | AX22: =IF(C22="","",VLOOKUP(C22,BDD!$A$5:$J$64,10,0)) ->  | BD22: =IF(C22="","",VLOOKUP(C22,BDD!$A$5:$X$64,24,0)) ->  | BE22: =IF(C22="","",VLOOKUP(C22,BDD!$A$5:$Y$64,25,0)) -> 
B23: 14 | D23: =IF(C23="","",VLOOKUP(C23,BDD!$A$5:$I$64,9,0)) ->  | E23: =IF(D23="","",VLOOKUP(C23,BDD!$A$5:$I$64,8,0)) ->  | J23: =IF(C23="","",VLOOKUP(C23,BDD!$A$5:$I$64,2,0)) ->  | K23: =IF(C23="","",VLOOKUP(C23,BDD!$A$5:$I$64,3,0)) ->  | L23: =IF(C23="","",VLOOKUP(C23,BDD!$A$5:$I$64,4,0)) ->  | V23: =VLOOKUP(C23,BDD!$A$6:$Q$64,16) ->  | W23: =VLOOKUP(C23,BDD!$A$6:$Q$64,17) ->  | Y23: =IF(C23="","",VLOOKUP(C23,BDD!$A$5:$S$64,15,0)) ->  | Z23: =IF(D23="","",VLOOKUP(C23,BDD!$A$5:$S$64,12,0)) ->  | AA23: =IF(C23="","",VLOOKUP(C23,BDD!$A$5:$I$64,5,0)) ->  | AD23: =IF(C23="","",VLOOKUP(C23,BDD!$A$5:$I$64,7,0)) ->  | AH23: 0 | AL23: 0 | AO23: =IF(C23="","",VLOOKUP(C23,BDD!$A$5:$I$64,2,0)) ->  | AW23: 0 | AX23: =IF(C23="","",VLOOKUP(C23,BDD!$A$5:$J$64,10,0)) ->  | BD23: =IF(C23="","",VLOOKUP(C23,BDD!$A$5:$X$64,24,0)) ->  | BE23: =IF(C23="","",VLOOKUP(C23,BDD!$A$5:$Y$64,25,0)) -> 
B24: 15 | D24: =IF(C24="","",VLOOKUP(C24,BDD!$A$5:$I$64,9,0)) ->  | E24: =IF(D24="","",VLOOKUP(C24,BDD!$A$5:$I$64,8,0)) ->  | J24: =IF(C24="","",VLOOKUP(C24,BDD!$A$5:$I$64,2,0)) ->  | K24: =IF(C24="","",VLOOKUP(C24,BDD!$A$5:$I$64,3,0)) ->  | L24: =IF(C24="","",VLOOKUP(C24,BDD!$A$5:$I$64,4,0)) ->  | V24: =VLOOKUP(C24,BDD!$A$6:$Q$64,16) ->  | W24: =VLOOKUP(C24,BDD!$A$6:$Q$64,17) ->  | Y24: =IF(C24="","",VLOOKUP(C24,BDD!$A$5:$S$64,15,0)) ->  | Z24: =IF(D24="","",VLOOKUP(C24,BDD!$A$5:$S$64,12,0)) ->  | AA24: =IF(C24="","",VLOOKUP(C24,BDD!$A$5:$I$64,5,0)) ->  | AD24: =IF(C24="","",VLOOKUP(C24,BDD!$A$5:$I$64,7,0)) ->  | AH24: 0 | AL24: 0 | AO24: =IF(C24="","",VLOOKUP(C24,BDD!$A$5:$I$64,2,0)) ->  | AW24: 0 | AX24: =IF(C24="","",VLOOKUP(C24,BDD!$A$5:$J$64,10,0)) ->  | BD24: =IF(C24="","",VLOOKUP(C24,BDD!$A$5:$X$64,24,0)) ->  | BE24: =IF(C24="","",VLOOKUP(C24,BDD!$A$5:$Y$64,25,0)) -> 
E25: TOTAL | F25: =SUM(F10:F24) -> 5.8 | G25: =SUM(G10:G24) -> 22.284 | H25: =SUM(H10:H24) -> 7.5 | I25: 41.055 | Y25: Total | AA25: =SUM(AA10:AA24) -> 50 | AB25: =SUM(AB10:AB24) -> 5.8 | AC25: 58 | AD25: =SUM(AD10:AD24) -> 33.2 | AE25: =SUM(AE10:AE24) -> 5.8 | AF25: 32.64 | AG25: 67.5 | AI25: =SUM(AI10:AI24) -> 67.5 | AJ25: 200 | AK25: =SUM(AK10:AK24) -> 57.4 | AO25: SOMME | AP25: =SUM(AP10:AP24) -> 0 | AQ25: =SUM(AQ10:AQ24) -> 0.8 | AR25: 2.8 | AS25: 2.2 | AT25: 0 | AU25: 2 | AV25: 1.5 | AW25: 4 | BC25: =SUM(BC10:BC24) -> 264.8732719
C26: =IF(C10="",1, COUNTA(C10:C24)) -> 5 | Y26: Maximum | AA26: =4*$C$26 -> 20 | AB26: 200 | AD26: =4*$C$26 -> 20 | AE26: 200 | AG26: 200 | AK26: =H25*4 -> 30 | AO26: Maximum | AP26: =$F$25 -> 5.8 | AQ26: =$F$25 -> 5.8 | AR26: 5.8 | AS26: 5.8 | AT26: =$H$25 -> 7.5 | AU26: =$H$25 -> 7.5 | AV26: 7.5 | AW26: 7.5 | BD26: Gazon | BE26: =COUNTIF(BD10:BD24,BD26) -> 0 | BF26: =(BE26*100)/$BE$30 -> 0
B27: Pour aller plus loin | Q27: Nombre total de pieds/m² | S27: =BC25 -> 264.8732719 | Y27: % | AA27: =(AA25*100)/AA26 -> 250 | AC27: =IF(AC25<AB26, (AC25*100)/AB26, 99) -> 29 | AD27: =(AD25*100)/AD26 -> 166 | AF27: =IF(AF25<AE26, IF(C10="", 0, (AF25*100)/AE26), 99) -> 16.32 | AG27: =(AG25*100)/AJ25 -> 33.75 | AI27: =IF(AI25<AJ25, (AI25*100)/AG26, 99) -> 33.75 | AK27: =IF(AK25<AJ25, (AK25*100)/AJ25, 99) -> 28.7 | AO27: % | AP27: =(AP25*100)/AP26 -> 0 | AQ27: =(AQ25*100)/AQ26 -> 13.79310345 | AR27: 48.27586207 | AS27: 37.93103448 | AT27: 0 | AU27: 26.66666667 | AV27: 20 | AW27: 53.33333333 | BD27: Jungle | BE27: =COUNTIF(BD10:BD24, BD27) -> 2 | BF27: =(BE27*100)/$BE$30 -> 40
AA28: TRUE | BD28: Phare | BE28: =COUNTIF(BD10:BD24, BD28) -> 0 | BF28: 0
BD29: Parapluie | BE29: =COUNTIF(BD10:BD24, BD29) -> 3 | BF29: 60
BD30: Somme | BE30: =SUM(BE26:BE29) -> 5 | BF30: 100
Y33: =COUNTIF(Y10:Y24,AB33) -> 5 | Z33: =COUNTIF(Z10:Z24,AB35) -> 5 | AB33: annuel | BD33: oui | BE33: =COUNTIF(BE10:BE24, BD33) -> 5 | BF33: =(BE33*100)/BE35 -> 100
B34: % de couvert annuel | D34: =((Y33*100)/Y35) -> 100 | Y34: =COUNTIF(Y10:Y24,AB34) -> 0 | Z34: =COUNTIF(Z10:Z24,AB36) -> 0 | AB34: Permanent | BD34: non | BE34: =COUNTIF(BE10:BE24, BD34) -> 0 | BF34: =(BE34*100)/BE35 -> 0
B35: % de couvert permanent | D35: =100-D34 -> 0 | X35: Total | Y35: =SUM(Y33:Y34) -> 5 | Z35: =SUM(Z33:Z34) -> 5 | AB35: courte | AC35: =(Z33*100)/Z35 -> 100 | BD35: Somme | BE35: =SUM(BE33:BE34) -> 5
AB36: longue | AC36: =(Z34*100)/Z35 -> 0
C37: =COUNTIF(Y10:Y24, AB33) -> 5 | D37: annuel
C38: =COUNTIF(Y10:Y24, AB34) -> 0 | D38: permanent
D44: TYPE | E44: NB | F44: % | G44: NB conseillé | H44: NB Ajusté
D45: Graminées | E45: =IF($AA$28=FALSE, G45,H45) -> 0 | F45: =E45 -> 0 | G45: =AP27 -> 0 | H45: =AT27 -> 0
D46: Légumineuses | E46: =IF($AA$28=FALSE, G46,H46) -> 26.66666667 | F46: =E46 -> 26.66666667 | G46: =AQ27 -> 13.79310345 | H46: =AU27 -> 26.66666667
D47: Crucifères | E47: =IF($AA$28=FALSE, G47,H47) -> 20 | F47: 20 | G47: =AR27 -> 48.27586207 | H47: =AV27 -> 20 | N47: =C10 -> Radis chinois | O47: =IF(Y10=$D$37,$C$37,$C$38) -> 5
D48: Autres | E48: =IF($AA$28=FALSE, G48,H48) -> 53.33333333 | F48: 53.33333333 | G48: =AS27 -> 37.93103448 | H48: =AW27 -> 53.33333333 | N48: =C11 -> Moutarde d'Abyssinie | O48: =IF(Y11=$D$37,$C$37,$C$38) -> 5
N49: Phacélie | O49: 5
D50: HAUTEUR | E50: NB | F50: % | N50: Trèfle d'Alexandrie | O50: 5
D51: Basse | E51: =COUNTIFS($K$10:$K$24,"1") -> 0 | F51: =(E51*100)/$C$26 -> 0 | N51: Niger | O51: 5
D52: Intermédiaire | E52: =COUNTIFS($K$10:$K$24,"2") -> 4 | F52: =(E52*100)/$C$26 -> 80 | N52: 0 | O52: 0
D53: Haute | E53: =COUNTIFS($K$10:$K$24,"3") -> 1 | F53: =(E53*100)/$C$26 -> 20 | N53: 0 | O53: 0
N54: 0 | O54: 0
D55: RACINES | E55: NB | F55: % | N55: 0 | O55: 0
D56: Superficiel | E56: =COUNTIFS($L$10:$L$24,"1") -> 0 | F56: =(E56*100)/$C$26 -> 0 | N56: 0 | O56: 0
D57: Intermédiaire | E57: =COUNTIFS($L$10:$L$24,"2") -> 3 | F57: =(E57*100)/$C$26 -> 60 | N57: 0 | O57: 0
D58: Profonde | E58: =COUNTIFS($L$10:$L$24,"3") -> 2 | F58: =(E58*100)/$C$26 -> 40 | N58: 0 | O58: 0
N59: 0 | O59: 0
N60: 0 | O60: 0
N61: 0 | O61: 0

Sheet Indicateurs_Technique
M4: en %
M6: =Composition!F53 -> 20
AN8: Conseillé | AS8: Ajusté | AW8: PMG | AX8: NB pieds Conseillé | AY8: NB ajusté
J9: Type | K9: Hauteur | L9: Racine | Z9: Conseillé Biomasse | AA9: Dose | AB9: Note | AC9: Conseillé Azote | AD9: Dose | AE9: Note | AF9: Ajusté Biomasse | AG9: Dose | AH9: Note | AI9: Ajusté max | AJ9: Ajustée Azote | AK9: Dose | AL9: Note | AO9: Graminées | AP9: Legumineuse | AQ9: Crucifères | AR9: Autres | AS9: Graminées | AT9: Legumineuse | AU9: Crucifères | AV9: Autres | BA9: Couvert | BB9: NB Pieds
J10: =IF(C62="","",VLOOKUP(C62,BDD!$A$5:$I$64,2,0)) ->  | K10: =IF(C62="","",VLOOKUP(C62,BDD!$A$5:$I$64,3,0)) ->  | L10: =IF(C62="","",VLOOKUP(C62,BDD!$A$5:$I$64,4,0)) ->  | Z10: =IF(C62="","",VLOOKUP(C62,BDD!$A$5:$I$64,5,0)) ->  | AA10: =F62 -> 0 | AB10: =IF(C62="", "", Z10*AA10) ->  | AC10: =IF(C62="","",VLOOKUP(C62,BDD!$A$5:$I$64,7,0)) ->  | AD10: =F62 -> 0 | AE10: =IF(C62="", "", AC10*AD10) ->  | AF10: =IF(C62="", "", H62*Z10) ->  | AG10: =H62 -> 0 | AH10: =IF(C62="", "", AG10*Z10) ->  | AI10: =IF(C62="", "", H62*4) ->  | AJ10: =IF(C62="", "", H62*AC10) ->  | AK10: =AG10 -> 0 | AN10: =IF(C62="","",VLOOKUP(C62,BDD!$A$5:$I$64,2,0)) ->  | AO10: =IF(AN10="graminée", F62, "") ->  | AP10: =IF(AN10="Légumineuse", F62, "") ->  | AQ10: =IF(AN10="Crucifère", F62, "") ->  | AR10: =IF(SUM(AO10:AQ10)>0, "", F62) -> 0 | AS10: =IF(AN10="graminée", H62, "") ->  | AT10: =IF(AN10="Légumineuse", H62, "") ->  | AU10: =IF(AN10="Crucifère", H62, "") ->  | AV10: =IF(SUM(AS10:AU10)>0, "", H62) -> 0 | AW10: =IF(C62="","",VLOOKUP(C62,BDD!$A$5:$J$64,10,0)) ->  | AX10: =IF(C62="", "", (F62*100)/AW10) ->  | AY10: =IF(C62= "", "", (H62*100)/AW10) ->  | BA10: =IF(C62="", "", C62) ->  | BB10: =IF($Z$28=TRUE, AY10, AX10) -> 
J11: =IF(C63="","",VLOOKUP(C63,BDD!$A$5:$I$64,2,0)) ->  | K11: =IF(C63="","",VLOOKUP(C63,BDD!$A$5:$I$64,3,0)) ->  | L11: =IF(C63="","",VLOOKUP(C63,BDD!$A$5:$I$64,4,0)) ->  | Z11: =IF(C63="","",VLOOKUP(C63,BDD!$A$5:$I$64,5,0)) ->  | AA11: 0 | AC11: =IF(C63="","",VLOOKUP(C63,BDD!$A$5:$I$64,7,0)) ->  | AD11: 0 | AG11: 0 | AK11: =AG11 -> 0 | AN11: =IF(C63="","",VLOOKUP(C63,BDD!$A$5:$I$64,2,0)) ->  | AR11: 0 | AV11: 0 | AW11: =IF(C63="","",VLOOKUP(C63,BDD!$A$5:$J$64,10,0)) ->  | BB11: =IF($Z$28=TRUE, AY11, AX11) -> 
J12: =IF(C64="","",VLOOKUP(C64,BDD!$A$5:$I$64,2,0)) ->  | K12: =IF(C64="","",VLOOKUP(C64,BDD!$A$5:$I$64,3,0)) ->  | L12: =IF(C64="","",VLOOKUP(C64,BDD!$A$5:$I$64,4,0)) ->  | M12: =Composition!F52 -> 80 | Z12: =IF(C64="","",VLOOKUP(C64,BDD!$A$5:$I$64,5,0)) ->  | AA12: 0 | AC12: =IF(C64="","",VLOOKUP(C64,BDD!$A$5:$I$64,7,0)) ->  | AD12: 0 | AG12: 0 | AK12: 0 | AN12: =IF(C64="","",VLOOKUP(C64,BDD!$A$5:$I$64,2,0)) ->  | AR12: 0 | AV12: 0 | AW12: =IF(C64="","",VLOOKUP(C64,BDD!$A$5:$J$64,10,0)) -> 
D13: Appétence limaces | E13: Vitesse de croissance | F13: Sensibilité au gel | G13: Maitrise des adventices | J13: =IF(C65="","",VLOOKUP(C65,BDD!$A$5:$I$64,2,0)) ->  | K13: =IF(C65="","",VLOOKUP(C65,BDD!$A$5:$I$64,3,0)) ->  | L13: =IF(C65="","",VLOOKUP(C65,BDD!$A$5:$I$64,4,0)) ->  | Z13: =IF(C65="","",VLOOKUP(C65,BDD!$A$5:$I$64,5,0)) ->  | AA13: 0 | AC13: =IF(C65="","",VLOOKUP(C65,BDD!$A$5:$I$64,7,0)) ->  | AD13: 0 | AG13: 0 | AK13: 0 | AN13: =IF(C65="","",VLOOKUP(C65,BDD!$A$5:$I$64,2,0)) ->  | AR13: 0 | AV13: 0 | AW13: =IF(C65="","",VLOOKUP(C65,BDD!$A$5:$J$64,10,0)) -> 
J14: =IF(C66="","",VLOOKUP(C66,BDD!$A$5:$I$64,2,0)) ->  | K14: =IF(C66="","",VLOOKUP(C66,BDD!$A$5:$I$64,3,0)) ->  | L14: =IF(C66="","",VLOOKUP(C66,BDD!$A$5:$I$64,4,0)) ->  | Z14: =IF(C66="","",VLOOKUP(C66,BDD!$A$5:$I$64,5,0)) ->  | AA14: 0 | AC14: =IF(C66="","",VLOOKUP(C66,BDD!$A$5:$I$64,7,0)) ->  | AD14: 0 | AG14: 0 | AK14: 0 | AN14: =IF(C66="","",VLOOKUP(C66,BDD!$A$5:$I$64,2,0)) ->  | AR14: 0 | AV14: 0 | AW14: =IF(C66="","",VLOOKUP(C66,BDD!$A$5:$J$64,10,0)) -> 
C15: =IF(Composition!C10<>"", Composition!C10, "") -> Radis chinois | D15: =IF(C15="","",VLOOKUP(C15,BDD!$A$5:$S$64,18,0)) -> Faible | E15: =IF(C15="","",VLOOKUP(C15,BDD!$A$5:$S$64,19,0)) -> Rapide | F15: =IF(C15="","",VLOOKUP(C15,BDD!$A$5:$AC$64,20,0)) -> -8°C | G15: =IF(C15="","",VLOOKUP(C15,BDD!$A$5:$AD$64,30,0)) -> 3 | H15: =IF(E15="","",VLOOKUP(E15,BDD!$A$5:$AC$64,29,0)) ->  | J15: =IF(C67="","",VLOOKUP(C67,BDD!$A$5:$I$64,2,0)) ->  | K15: =IF(C67="","",VLOOKUP(C67,BDD!$A$5:$I$64,3,0)) ->  | L15: =IF(C67="","",VLOOKUP(C67,BDD!$A$5:$I$64,4,0)) ->  | Z15: =IF(C67="","",VLOOKUP(C67,BDD!$A$5:$I$64,5,0)) ->  | AA15: 0 | AC15: =IF(C67="","",VLOOKUP(C67,BDD!$A$5:$I$64,7,0)) ->  | AD15: 0 | AG15: 0 | AK15: 0 | AN15: =IF(C67="","",VLOOKUP(C67,BDD!$A$5:$I$64,2,0)) ->  | AR15: 0 | AV15: 0 | AW15: =IF(C67="","",VLOOKUP(C67,BDD!$A$5:$J$64,10,0)) -> 
C16: =IF(Composition!C11<>"", Composition!C11, "") -> Moutarde d'Abyssinie | D16: =IF(C16="","",VLOOKUP(C16,BDD!$A$5:$S$64,18,0)) -> Faible | E16: =IF(C16="","",VLOOKUP(C16,BDD!$A$5:$S$64,19,0)) -> Rapide | F16: =IF(C16="","",VLOOKUP(C16,BDD!$A$5:$AC$64,20,0)) -> -10°C | G16: =IF(C16="","",VLOOKUP(C16,BDD!$A$5:$AD$64,30,0)) -> 3 | H16: =IF(E16="","",VLOOKUP(E16,BDD!$A$5:$AC$64,29,0)) ->  | J16: =IF(C68="","",VLOOKUP(C68,BDD!$A$5:$I$64,2,0)) ->  | K16: =IF(C68="","",VLOOKUP(C68,BDD!$A$5:$I$64,3,0)) ->  | L16: =IF(C68="","",VLOOKUP(C68,BDD!$A$5:$I$64,4,0)) ->  | Z16: =IF(C68="","",VLOOKUP(C68,BDD!$A$5:$I$64,5,0)) ->  | AA16: 0 | AC16: =IF(C68="","",VLOOKUP(C68,BDD!$A$5:$I$64,7,0)) ->  | AD16: 0 | AG16: 0 | AK16: 0 | AN16: =IF(C68="","",VLOOKUP(C68,BDD!$A$5:$I$64,2,0)) ->  | AR16: 0 | AV16: 0 | AW16: =IF(C68="","",VLOOKUP(C68,BDD!$A$5:$J$64,10,0)) -> 
C17: =IF(Composition!C12<>"", Composition!C12, "") -> Phacélie | D17: =IF(C17="","",VLOOKUP(C17,BDD!$A$5:$S$64,18,0)) -> Faible | E17: =IF(C17="","",VLOOKUP(C17,BDD!$A$5:$S$64,19,0)) -> Rapide | F17: =IF(C17="","",VLOOKUP(C17,BDD!$A$5:$AC$64,20,0)) -> -10°C | G17: =IF(C17="","",VLOOKUP(C17,BDD!$A$5:$AD$64,30,0)) -> 3 | H17: =IF(E17="","",VLOOKUP(E17,BDD!$A$5:$AC$64,29,0)) ->  | J17: =IF(C69="","",VLOOKUP(C69,BDD!$A$5:$I$64,2,0)) ->  | K17: =IF(C69="","",VLOOKUP(C69,BDD!$A$5:$I$64,3,0)) ->  | L17: =IF(C69="","",VLOOKUP(C69,BDD!$A$5:$I$64,4,0)) ->  | M17: =Composition!F51 -> 0 | Z17: =IF(C69="","",VLOOKUP(C69,BDD!$A$5:$I$64,5,0)) ->  | AA17: 0 | AC17: =IF(C69="","",VLOOKUP(C69,BDD!$A$5:$I$64,7,0)) ->  | AD17: 0 | AG17: 0 | AK17: 0 | AN17: =IF(C69="","",VLOOKUP(C69,BDD!$A$5:$I$64,2,0)) ->  | AR17: 0 | AV17: 0 | AW17: =IF(C69="","",VLOOKUP(C69,BDD!$A$5:$J$64,10,0)) -> 
C18: =IF(Composition!C13<>"", Composition!C13, "") -> Trèfle d'Alexandrie | D18: =IF(C18="","",VLOOKUP(C18,BDD!$A$5:$S$64,18,0)) -> Moyen | E18: =IF(C18="","",VLOOKUP(C18,BDD!$A$5:$S$64,19,0)) -> Rapide | F18: =IF(C18="","",VLOOKUP(C18,BDD!$A$5:$AC$64,20,0)) -> -5°C | G18: =IF(C18="","",VLOOKUP(C18,BDD!$A$5:$AD$64,30,0)) -> 2 | H18: =IF(E18="","",VLOOKUP(E18,BDD!$A$5:$AC$64,29,0)) ->  | J18: =IF(C70="","",VLOOKUP(C70,BDD!$A$5:$I$64,2,0)) ->  | K18: =IF(C70="","",VLOOKUP(C70,BDD!$A$5:$I$64,3,0)) ->  | L18: =IF(C70="","",VLOOKUP(C70,BDD!$A$5:$I$64,4,0)) ->  | Z18: =IF(C70="","",VLOOKUP(C70,BDD!$A$5:$I$64,5,0)) ->  | AA18: 0 | AC18: =IF(C70="","",VLOOKUP(C70,BDD!$A$5:$I$64,7,0)) ->  | AD18: 0 | AG18: 0 | AK18: 0 | AN18: =IF(C70="","",VLOOKUP(C70,BDD!$A$5:$I$64,2,0)) ->  | AR18: 0 | AV18: 0 | AW18: =IF(C70="","",VLOOKUP(C70,BDD!$A$5:$J$64,10,0)) -> 
C19: =IF(Composition!C14<>"", Composition!C14, "") -> Niger | D19: =IF(C19="","",VLOOKUP(C19,BDD!$A$5:$S$64,18,0)) -> Fort | E19: =IF(C19="","",VLOOKUP(C19,BDD!$A$5:$S$64,19,0)) -> Rapide | F19: =IF(C19="","",VLOOKUP(C19,BDD!$A$5:$AC$64,20,0)) -> -1°C | G19: =IF(C19="","",VLOOKUP(C19,BDD!$A$5:$AD$64,30,0)) -> 3 | H19: =IF(E19="","",VLOOKUP(E19,BDD!$A$5:$AC$64,29,0)) ->  | J19: =IF(C71="","",VLOOKUP(C71,BDD!$A$5:$I$64,2,0)) ->  | K19: =IF(C71="","",VLOOKUP(C71,BDD!$A$5:$I$64,3,0)) ->  | L19: =IF(C71="","",VLOOKUP(C71,BDD!$A$5:$I$64,4,0)) ->  | Z19: =IF(C71="","",VLOOKUP(C71,BDD!$A$5:$I$64,5,0)) ->  | AA19: 0 | AC19: =IF(C71="","",VLOOKUP(C71,BDD!$A$5:$I$64,7,0)) ->  | AD19: 0 | AG19: 0 | AK19: 0 | AN19: =IF(C71="","",VLOOKUP(C71,BDD!$A$5:$I$64,2,0)) ->  | AR19: 0 | AV19: 0 | AW19: =IF(C71="","",VLOOKUP(C71,BDD!$A$5:$J$64,10,0)) -> 
C20: =IF(Composition!C15<>"", Composition!C15, "") ->  | D20: =IF(C20="","",VLOOKUP(C20,BDD!$A$5:$S$64,18,0)) ->  | E20: =IF(C20="","",VLOOKUP(C20,BDD!$A$5:$S$64,19,0)) ->  | F20: =IF(C20="","",VLOOKUP(C20,BDD!$A$5:$AC$64,20,0)) ->  | G20: =IF(C20="","",VLOOKUP(C20,BDD!$A$5:$AD$64,30,0)) ->  | H20: =IF(E20="","",VLOOKUP(E20,BDD!$A$5:$AC$64,29,0)) ->  | J20: =IF(C72="","",VLOOKUP(C72,BDD!$A$5:$I$64,2,0)) ->  | K20: =IF(C72="","",VLOOKUP(C72,BDD!$A$5:$I$64,3,0)) ->  | L20: =IF(C72="","",VLOOKUP(C72,BDD!$A$5:$I$64,4,0)) ->  | M20: =Composition!F56 -> 0 | Z20: =IF(C72="","",VLOOKUP(C72,BDD!$A$5:$I$64,5,0)) ->  | AA20: 0 | AC20: =IF(C72="","",VLOOKUP(C72,BDD!$A$5:$I$64,7,0)) ->  | AD20: 0 | AG20: 0 | AK20: 0 | AN20: =IF(C72="","",VLOOKUP(C72,BDD!$A$5:$I$64,2,0)) ->  | AR20: 0 | AV20: 0 | AW20: =IF(C72="","",VLOOKUP(C72,BDD!$A$5:$J$64,10,0)) -> 
C21: =IF(Composition!C16<>"", Composition!C16, "") ->  | D21: =IF(C21="","",VLOOKUP(C21,BDD!$A$5:$S$64,18,0)) ->  | E21: =IF(C21="","",VLOOKUP(C21,BDD!$A$5:$S$64,19,0)) ->  | F21: =IF(C21="","",VLOOKUP(C21,BDD!$A$5:$AC$64,20,0)) ->  | G21: =IF(C21="","",VLOOKUP(C21,BDD!$A$5:$AD$64,30,0)) ->  | H21: =IF(E21="","",VLOOKUP(E21,BDD!$A$5:$AC$64,29,0)) ->  | J21: =IF(C73="","",VLOOKUP(C73,BDD!$A$5:$I$64,2,0)) ->  | K21: =IF(C73="","",VLOOKUP(C73,BDD!$A$5:$I$64,3,0)) ->  | L21: =IF(C73="","",VLOOKUP(C73,BDD!$A$5:$I$64,4,0)) ->  | Z21: =IF(C73="","",VLOOKUP(C73,BDD!$A$5:$I$64,5,0)) ->  | AA21: 0 | AC21: =IF(C73="","",VLOOKUP(C73,BDD!$A$5:$I$64,7,0)) ->  | AD21: 0 | AG21: 0 | AK21: 0 | AN21: =IF(C73="","",VLOOKUP(C73,BDD!$A$5:$I$64,2,0)) ->  | AR21: 0 | AV21: 0 | AW21: =IF(C73="","",VLOOKUP(C73,BDD!$A$5:$J$64,10,0)) -> 
C22: =IF(Composition!C17<>"", Composition!C17, "") ->  | D22: =IF(C22="","",VLOOKUP(C22,BDD!$A$5:$S$64,18,0)) ->  | E22: =IF(C22="","",VLOOKUP(C22,BDD!$A$5:$S$64,19,0)) ->  | F22: =IF(C22="","",VLOOKUP(C22,BDD!$A$5:$AC$64,20,0)) ->  | G22: =IF(C22="","",VLOOKUP(C22,BDD!$A$5:$AD$64,30,0)) ->  | H22: =IF(E22="","",VLOOKUP(E22,BDD!$A$5:$AC$64,29,0)) ->  | J22: =IF(C74="","",VLOOKUP(C74,BDD!$A$5:$I$64,2,0)) ->  | K22: =IF(C74="","",VLOOKUP(C74,BDD!$A$5:$I$64,3,0)) ->  | L22: =IF(C74="","",VLOOKUP(C74,BDD!$A$5:$I$64,4,0)) ->  | Z22: =IF(C74="","",VLOOKUP(C74,BDD!$A$5:$I$64,5,0)) ->  | AA22: 0 | AC22: =IF(C74="","",VLOOKUP(C74,BDD!$A$5:$I$64,7,0)) ->  | AD22: 0 | AG22: 0 | AK22: 0 | AN22: =IF(C74="","",VLOOKUP(C74,BDD!$A$5:$I$64,2,0)) ->  | AR22: 0 | AV22: 0 | AW22: =IF(C74="","",VLOOKUP(C74,BDD!$A$5:$J$64,10,0)) -> 
C23: =IF(Composition!C18<>"", Composition!C18, "") ->  | D23: =IF(C23="","",VLOOKUP(C23,BDD!$A$5:$S$64,18,0)) ->  | E23: =IF(C23="","",VLOOKUP(C23,BDD!$A$5:$S$64,19,0)) ->  | F23: =IF(C23="","",VLOOKUP(C23,BDD!$A$5:$AC$64,20,0)) ->  | G23: =IF(C23="","",VLOOKUP(C23,BDD!$A$5:$AD$64,30,0)) ->  | H23: =IF(E23="","",VLOOKUP(E23,BDD!$A$5:$AC$64,29,0)) ->  | J23: =IF(C75="","",VLOOKUP(C75,BDD!$A$5:$I$64,2,0)) ->  | K23: =IF(C75="","",VLOOKUP(C75,BDD!$A$5:$I$64,3,0)) ->  | L23: =IF(C75="","",VLOOKUP(C75,BDD!$A$5:$I$64,4,0)) ->  | Z23: =IF(C75="","",VLOOKUP(C75,BDD!$A$5:$I$64,5,0)) ->  | AA23: 0 | AC23: =IF(C75="","",VLOOKUP(C75,BDD!$A$5:$I$64,7,0)) ->  | AD23: 0 | AG23: 0 | AK23: 0 | AN23: =IF(C75="","",VLOOKUP(C75,BDD!$A$5:$I$64,2,0)) ->  | AR23: 0 | AV23: 0 | AW23: =IF(C75="","",VLOOKUP(C75,BDD!$A$5:$J$64,10,0)) -> 
C24: =IF(Composition!C19<>"", Composition!C19, "") ->  | D24: =IF(C24="","",VLOOKUP(C24,BDD!$A$5:$S$64,18,0)) ->  | E24: =IF(C24="","",VLOOKUP(C24,BDD!$A$5:$S$64,19,0)) ->  | F24: =IF(C24="","",VLOOKUP(C24,BDD!$A$5:$AC$64,20,0)) ->  | G24: =IF(C24="","",VLOOKUP(C24,BDD!$A$5:$AD$64,30,0)) ->  | H24: =IF(E24="","",VLOOKUP(E24,BDD!$A$5:$AC$64,29,0)) ->  | J24: =IF(C76="","",VLOOKUP(C76,BDD!$A$5:$I$64,2,0)) ->  | K24: =IF(C76="","",VLOOKUP(C76,BDD!$A$5:$I$64,3,0)) ->  | L24: =IF(C76="","",VLOOKUP(C76,BDD!$A$5:$I$64,4,0)) ->  | M24: =Composition!F57 -> 60 | Z24: =IF(C76="","",VLOOKUP(C76,BDD!$A$5:$I$64,5,0)) ->  | AA24: 0 | AC24: =IF(C76="","",VLOOKUP(C76,BDD!$A$5:$I$64,7,0)) ->  | AD24: 0 | AG24: 0 | AK24: 0 | AN24: =IF(C76="","",VLOOKUP(C76,BDD!$A$5:$I$64,2,0)) ->  | AR24: 0 | AV24: 0 | AW24: =IF(C76="","",VLOOKUP(C76,BDD!$A$5:$J$64,10,0)) -> 
C25: =IF(Composition!C20<>"", Composition!C20, "") ->  | D25: =IF(C25="","",VLOOKUP(C25,BDD!$A$5:$S$64,18,0)) ->  | E25: =IF(C25="","",VLOOKUP(C25,BDD!$A$5:$S$64,19,0)) ->  | F25: =IF(C25="","",VLOOKUP(C25,BDD!$A$5:$AC$64,20,0)) ->  | G25: =IF(C25="","",VLOOKUP(C25,BDD!$A$5:$AD$64,30,0)) ->  | H25: =IF(E25="","",VLOOKUP(E25,BDD!$A$5:$AC$64,29,0)) ->  | Y25: Total | Z25: =SUM(Z10:Z24) -> 0 | AA25: =SUM(AA10:AA24) -> 0 | AB25: 0 | AC25: =SUM(AC10:AC24) -> 0 | AD25: =SUM(AD10:AD24) -> 0 | AE25: 0 | AF25: 0 | AH25: =SUM(AH10:AH24) -> 0 | AI25: 200 | AJ25: =SUM(AJ10:AJ24) -> 0 | AN25: SOMME | AO25: =SUM(AO10:AO24) -> 0 | AP25: =SUM(AP10:AP24) -> 0 | AQ25: 0 | AR25: 0 | AS25: 0 | AT25: 0 | AU25: 0 | AV25: 0
C26: =IF(Composition!C21<>"", Composition!C21, "") ->  | D26: =IF(C26="","",VLOOKUP(C26,BDD!$A$5:$S$64,18,0)) ->  | E26: =IF(C26="","",VLOOKUP(C26,BDD!$A$5:$S$64,19,0)) ->  | F26: =IF(C26="","",VLOOKUP(C26,BDD!$A$5:$AC$64,20,0)) ->  | G26: =IF(C26="","",VLOOKUP(C26,BDD!$A$5:$AD$64,30,0)) ->  | H26: =IF(E26="","",VLOOKUP(E26,BDD!$A$5:$AC$64,29,0)) ->  | Y26: Maximum | Z26: =4*$C$77 -> 0 | AA26: 200 | AC26: =4*$C$77 -> 0 | AD26: 200 | AF26: 200 | AJ26: =H77*4 -> 0 | AN26: Maximum | AO26: =$F$77 -> 0 | AP26: =$F$77 -> 0 | AQ26: =$F$77 -> 0 | AR26: =$F$77 -> 0 | AS26: =$H$77 -> 0 | AT26: =$H$77 -> 0 | AU26: =$H$77 -> 0 | AV26: =$H$77 -> 0
C27: =IF(Composition!C22<>"", Composition!C22, "") ->  | D27: =IF(C27="","",VLOOKUP(C27,BDD!$A$5:$S$64,18,0)) ->  | E27: =IF(C27="","",VLOOKUP(C27,BDD!$A$5:$S$64,19,0)) ->  | F27: =IF(C27="","",VLOOKUP(C27,BDD!$A$5:$AC$64,20,0)) ->  | G27: =IF(C27="","",VLOOKUP(C27,BDD!$A$5:$AD$64,30,0)) ->  | H27: =IF(E27="","",VLOOKUP(E27,BDD!$A$5:$AC$64,29,0)) ->  | M27: =Composition!F58 -> 40 | Y27: % | Z27: =(Z25*100)/Z26 ->  | AB27: =IF(AB25<AA26, (AB25*100)/AA26, 99) -> 0 | AC27: =(AC25*100)/AC26 ->  | AE27: =IF(AE25<AD26, IF(C62="", 0, (AE25*100)/AD26), 99) -> 0 | AF27: =(AF25*100)/AI25 -> 0 | AH27: =IF(AH25<AI25, (AH25*100)/AF26, 99) -> 0 | AJ27: =IF(AJ25<AI25, (AJ25*100)/AI25, 99) -> 0 | AN27: % | AO27: =(AO25*100)/AO26 ->  | AP27: =(AP25*100)/AP26 -> 
C28: =IF(Composition!C23<>"", Composition!C23, "") ->  | D28: =IF(C28="","",VLOOKUP(C28,BDD!$A$5:$S$64,18,0)) ->  | E28: =IF(C28="","",VLOOKUP(C28,BDD!$A$5:$S$64,19,0)) ->  | F28: =IF(C28="","",VLOOKUP(C28,BDD!$A$5:$AC$64,20,0)) ->  | G28: =IF(C28="","",VLOOKUP(C28,BDD!$A$5:$AD$64,30,0)) ->  | H28: =IF(E28="","",VLOOKUP(E28,BDD!$A$5:$AC$64,29,0)) ->  | Z28: TRUE
C29: =IF(Composition!C24<>"", Composition!C24, "") ->  | D29: =IF(C29="","",VLOOKUP(C29,BDD!$A$5:$S$64,18,0)) ->  | E29: =IF(C29="","",VLOOKUP(C29,BDD!$A$5:$S$64,19,0)) ->  | F29: =IF(C29="","",VLOOKUP(C29,BDD!$A$5:$AC$64,20,0)) ->  | G29: =IF(C29="","",VLOOKUP(C29,BDD!$A$5:$AD$64,30,0)) ->  | H29: =IF(E29="","",VLOOKUP(E29,BDD!$A$5:$AC$64,29,0)) -> 
G30: =IF(C30="","",VLOOKUP(C30,BDD!$A$5:$AD$64,30,0)) ->  | H30: =IF(E30="","",VLOOKUP(E30,BDD!$A$5:$AC$64,29,0)) -> 
G31: =IF(C31="","",VLOOKUP(C31,BDD!$A$5:$AD$64,30,0)) ->  | H31: =IF(E31="","",VLOOKUP(E31,BDD!$A$5:$AC$64,29,0)) -> 
G32: 1 | H32: =IF(E32="","",VLOOKUP(E32,BDD!$A$5:$AC$64,29,0)) -> 
G33: 2 | H33: =IF(E33="","",VLOOKUP(E33,BDD!$A$5:$AC$64,29,0)) -> 
G34: 3 | H34: =IF(E34="","",VLOOKUP(E34,BDD!$A$5:$AC$64,29,0)) -> 
D44: TYPE | E44: NB | F44: % | G44: NB conseillé | H44: NB Ajusté
D45: Graminées | E45: =IF($Z$28=FALSE, G45,H45) ->  | F45: =E45 ->  | G45: =AO27 ->  | H45: =AS27 -> 
D46: Légumineuses | E46: =IF($Z$28=FALSE, G46,H46) ->  | F46: =E46 ->  | G46: =AP27 ->  | H46: =AT27 -> 
D47: Crucifères | E47: =IF($Z$28=FALSE, G47,H47) ->  | G47: =AQ27 ->  | H47: =AU27 -> 
D48: Autres | E48: =IF($Z$28=FALSE, G48,H48) ->  | G48: =AR27 ->  | H48: =AV27 -> 
D50: HAUTEUR | E50: NB | F50: %
D51: Basse | E51: =COUNTIFS($K$10:$K$24,"1") -> 0 | F51: =(E51*100)/$C$77 -> 
D52: Intermédiaire | E52: =COUNTIFS($K$10:$K$24,"2") -> 0 | F52: =(E52*100)/$C$77 -> 
D53: Haute | E53: =COUNTIFS($K$10:$K$24,"3") -> 0 | F53: =(E53*100)/$C$77 -> 
D55: RACINES | E55: NB | F55: %
D56: Superficiel | E56: =COUNTIFS($L$10:$L$24,"1") -> 0 | F56: =(E56*100)/$C$77 -> 
D57: Intermédiaire | E57: =COUNTIFS($L$10:$L$24,"2") -> 0 | F57: =(E57*100)/$C$77 -> 
D58: Profonde | E58: =COUNTIFS($L$10:$L$24,"3") -> 0 | F58: =(E58*100)/$C$77 -> 

Sheet BDD
K2: Fourniture
N3: Biomasse
A4: Couvert | B4: Type | C4: Hauteur | D4: Racine | E4: Biomasse | F4: Piégeage N | G4: Fourniture N | H4: Coût | I4: Dose/ha | J4: PMG (g) | L4: Interculture | M4: Numéro couvert | O4: Type de couvert | P4: Profondeur de semis | Q4: Profondeur de semis | R4: Appetence limace | S4: Vitesse de développement | T4: Sensibilité au gel | U4: Avant le 05 août | V4: Du 05 au 25 août | W4: Après le 25 août | X4: Type cynegetique | Y4: Méllifères | Z4: Semis à la volée | AA4: Travail du sol | AB4: Semis direct | AC4: Fourrage | AD4: Maitrise adventice | AE4: Observation
M5: 0
A6: Alpiste des canaries | B6: graminée | C6: 2 | D6: 2 | E6: 3 | F6: 1 | G6: 1 | H6: ='Parametres_couverts (2)'!B9 -> 2.5 | I6: ='Parametres_couverts (2)'!C9 -> 15 | J6: ='Parametres_couverts (2)'!D9 -> 6 | K6: =I6*G6 -> 15 | L6: courte | M6: 1 | N6: =E6*I6 -> 45 | O6: annuel | P6: 1 | Q6: 2 | R6: Faible | S6: Rapide | T6: -4 à -6°C | U6: 1 | V6: 1 | W6: 1 | X6: Gazon | Y6: non | Z6: 3 | AA6: 1 | AB6: 1 | AC6: oui | AD6: 2 | AE6: Intérêt pour sa rusticité vis-à-vis des maladies
A7: Aneth | B7: Ombéllifères | C7: 2 | D7: 2 | E7: 4 | F7: 1 | G7: 2 | H7: ='Parametres_couverts (2)'!B10 -> 3.5 | I7: ='Parametres_couverts (2)'!C10 -> 8 | J7: ='Parametres_couverts (2)'!D10 -> 1.8 | K7: =I7*G7 -> 16 | L7: Courte | M7: 2 | N7: =E7*I7 -> 32 | O7: Annuel | P7: 0.5 | Q7: 1.5 | R7: Moyen | S7: Rapide | T7: -3°C | U7: 1 | V7: 1 | W7: 2 | X7: Parapluie | Y7: oui | Z7: 3 | AA7: 1 | AB7: 2 | AC7: non | AD7: 2 | AE7: Plante intéressante pour les auxiliaires de cultures
A8: Avoine bresilienne | B8: graminée | C8: 2 | D8: 2 | E8: 5 | F8: 2 | G8: 1.5 | H8: ='Parametres_couverts (2)'!B11 -> 1.6 | I8: ='Parametres_couverts (2)'!C11 -> 35 | J8: ='Parametres_couverts (2)'!D11 -> 22 | K8: =I8*G8 -> 52.5 | L8: courte | M8: 3 | N8: =E8*I8 -> 175 | O8: annuel | P8: 2 | Q8: 3 | R8: Faible | S8: Rapide | T8: -7 à -10°C | U8: 1 | V8: 2 | W8: 3 | X8: Gazon | Y8: non | Z8: 3 | AA8: 1 | AB8: 1 | AC8: oui | AD8: 2 | AE8: Bonne production de biomasse
A9: Avoine de printemps | B9: graminée | C9: 2 | D9: 2 | E9: 1 | F9: 2 | G9: 0.25 | H9: ='Parametres_couverts (2)'!B12 -> 0.85 | I9: ='Parametres_couverts (2)'!C12 -> 60 | J9: ='Parametres_couverts (2)'!D12 -> 35 | K9: =I9*G9 -> 15 | L9: courte | M9: 4 | N9: =E9*I9 -> 60 | O9: annuel | P9: 2 | Q9: 3 | R9: Faible | S9: Rapide | T9: -3°C | U9: 1 | V9: 2 | W9: 3 | X9: Jungle | Y9: non | Z9: 3 | AA9: 1 | AB9: 1 | AC9: oui | AD9: 2 | AE9: Attention aux maladies et pucerons
A10: Avoine d'hiver | B10: graminée | C10: 2 | D10: 2 | E10: 1 | F10: 2 | G10: 0.25 | H10: ='Parametres_couverts (2)'!B13 -> 0.25 | I10: ='Parametres_couverts (2)'!C13 -> 60 | J10: ='Parametres_couverts (2)'!D13 -> 20 | K10: 15 | L10: longue | M10: 5 | N10: 60 | O10: annuel | P10: 2 | Q10: 3 | R10: Faible | S10: Rapide | T10: -7 à -10°C | U10: 3 | V10: 2 | W10: 1 | X10: Jungle | Y10: non | Z10: 3 | AA10: 1 | AB10: 1 | AC10: oui | AD10: 2 | AE10: A privilégier avant tournesol ou soja
A11: Cameline | B11: Crucifère | C11: 1 | D11: 1 | E11: 6 | F11: 3 | G11: 7 | H11: ='Parametres_couverts (2)'!B14 -> 0.25 | I11: ='Parametres_couverts (2)'!C14 -> 4 | J11: ='Parametres_couverts (2)'!D14 -> 1.2 | K11: 28 | L11: longue | M11: 6 | N11: 24 | O11: annuel | P11: 1 | Q11: 1.5 | R11: Faible | S11: Rapide | T11: -10°C | U11: 1 | V11: 1 | W11: 1 | X11: Parapluie | Y11: non | Z11: 3 | AA11: 1 | AB11: 1 | AC11: non | AD11: 2 | AE11: Bon effet étouffant des adventices
A12: Carthame | B12: Composée | C12: 3 | D12: 3 | E12: 3 | F12: 2 | G12: 2 | H12: ='Parametres_couverts (2)'!B15 -> 5.45 | I12: ='Parametres_couverts (2)'!C15 -> 15 | J12: ='Parametres_couverts (2)'!D15 -> 50 | K12: 30 | L12: Courte | M12: 7 | N12: 45 | O12: annuel | P12: 1.5 | Q12: 2.5 | R12: Faible | S12: Rapide | T12: -5°C | U12: 1 | V12: 1 | W12: 3 | X12: Parapluie | Y12: oui | Z12: 3 | AA12: 1 | AB12: 1 | AC12: non | AD12: 3 | AE12: Bon effet structure du sol
A13: Chia | B13: Lamiacée | C13: 1 | D13: 1 | E13: 3 | F13: 1 | G13: 3 | H13: ='Parametres_couverts (2)'!B16 -> 5 | I13: ='Parametres_couverts (2)'!C16 -> 5 | J13: ='Parametres_couverts (2)'!D16 -> 1.3 | K13: =I13*G13 -> 15 | L13: Courte | M13: 8 | N13: =E13*I13 -> 15 | O13: annuel | P13: 0.5 | Q13: 1 | R13: Moyen | S13: Rapide | T13: -1°C | U13: 1 | V13: 1 | W13: 2 | X13: Jungle | Y13: oui | Z13: 2 | AA13: 1 | AB13: 2 | AC13: non | AD13: 2 | AE13: Bon comportement en conditions sèches
A14: Colza | B14: Crucifère | C14: 2 | D14: 3 | E14: 30 | F14: 3 | G14: 7 | H14: ='Parametres_couverts (2)'!B17 -> 2.49 | I14: ='Parametres_couverts (2)'!C17 -> 5 | J14: ='Parametres_couverts (2)'!D17 -> 6 | K14: 35 | L14: longue | M14: 9 | N14: 150 | O14: annuel | P14: 1 | Q14: 2 | R14: Fort | S14: Rapide | T14: -10°C | U14: 1 | V14: 1 | W14: 2 | X14: Parapluie | Y14: oui | Z14: 1 | AA14: 1 | AB14: 2 | AC14: oui | AD14: 2 | AE14: Attention à l'effet limaces
A15: Crotalaire | B15: Légumineuse | C15: 1 | D15: 2 | E15: 0.5 | G15: 0.7 | H15: ='Parametres_couverts (2)'!B18 -> 3.6 | I15: ='Parametres_couverts (2)'!C18 -> 60 | J15: ='Parametres_couverts (2)'!D18 -> 33 | K15: 42 | L15: Courte | M15: 10 | N15: 30 | O15: annuel | P15: 1.5 | Q15: 2.5 | R15: Faible | S15: Rapide | T15: 0°C | U15: 1 | V15: 2 | W15: 3 | X15: Jungle | Y15: Oui | Z15: 3 | AA15: 1 | AB15: 2 | AC15: non | AD15: 1 | AE15: Effet structure du sol
A16: Cowpea | B16: Légumineuse | C16: 2 | D16: 2 | E16: 4 | G16: 4 | H16: ='Parametres_couverts (2)'!B19 -> 3.5 | I16: ='Parametres_couverts (2)'!C19 -> 12 | J16: ='Parametres_couverts (2)'!D19 -> 66 | K16: 48 | L16: Courte | M16: 11 | N16: 48 | O16: Annuel | P16: 2 | Q16: 4 | R16: Moyen | S16: Moyen | T16: -4°C | U16: 1 | V16: 1 | W16: 2 | X16: Jungle | Y16: oui | Z16: 3 | AA16: 1 | AB16: 2 | AC16: oui | AD16: 2 | AE16: Sensible altise
A17: Dactyle | B17: Graminée | C17: 2 | D17: 2 | E17: 3 | F17: 3 | G17: 0.75 | H17: ='Parametres_couverts (2)'!B20 -> 4.2 | I17: ='Parametres_couverts (2)'!C20 -> 20 | J17: ='Parametres_couverts (2)'!D20 -> 1.2 | K17: 15 | L17: Longue | M17: 12 | N17: 60 | O17: Permanent | P17: 0.5 | Q17: 1 | R17: Moyen | S17: Moyen | T17: >-15°C | U17: 1 | V17: 1 | W17: 2 | X17: Jungle | Y17: non | Z17: 3 | AA17: 1 | AB17: 1 | AC17: oui | AD17: 2 | AE17: Risque d'asséchement du sol
A18: Fénugrec | B18: Légumineuse | C18: 1 | D18: 1 | E18: 1.5 | G18: 4 | H18: ='Parametres_couverts (2)'!B21 -> 4.2 | I18: ='Parametres_couverts (2)'!C21 -> 15 | J18: ='Parametres_couverts (2)'!D21 -> 1.2 | K18: 60 | L18: courte | M18: 13 | N18: 22.5 | O18: annuel | P18: 2 | Q18: 3 | R18: Faible | S18: Rapide | T18: -7°C | U18: 1 | V18: 1 | W18: 2 | X18: Jungle | Y18: oui | Z18: 1 | AA18: 1 | AB18: 1 | AC18: oui | AD18: 2 | AE18: Intérêt en interculture courte
A19: Fetuque élevée | B19: graminée | C19: 2 | D19: 2 | E19: 3 | F19: 3 | G19: 1.8 | H19: ='Parametres_couverts (2)'!B22 -> 3.9 | I19: ='Parametres_couverts (2)'!C22 -> 18 | J19: ='Parametres_couverts (2)'!D22 -> 2 | K19: 32.4 | L19: Longue | M19: 14 | N19: 54 | O19: Permanent | P19: 0.5 | Q19: 1 | R19: Moyen | S19: Moyen | T19: >-15°C | U19: 1 | V19: 1 | W19: 2 | X19: Jungle | Y19: non | Z19: 3 | AA19: 1 | AB19: 1 | AC19: oui | AD19: 2 | AE19: Risque d'asséchement du sol
A20: Féverole | B20: Légumineuse | C20: 3 | D20: 2 | E20: 0.4 | G20: 0.5 | H20: ='Parametres_couverts (2)'!B23 -> 1.15 | I20: ='Parametres_couverts (2)'!C23 -> 180 | J20: ='Parametres_couverts (2)'!D23 -> 500 | K20: 90 | L20: courte | M20: 15 | N20: 72 | O20: annuel | P20: 2 | Q20: 3 | R20: Faible | S20: Moyen | T20: -5°C | U20: 1 | V20: 1 | W20: 2 | X20: Phare | Y20: oui | Z20: 3 | AA20: 1 | AB20: 1 | AC20: oui | AD20: 2 | AE20: Base des couverts d'interculture !
A21: Gesse | B21: Légumineuse | C21: 1 | D21: 2 | E21: 0.7 | G21: 1.5 | H21: ='Parametres_couverts (2)'!B24 -> 3.9 | I21: ='Parametres_couverts (2)'!C24 -> 50 | J21: ='Parametres_couverts (2)'!D24 -> 170 | K21: 75 | L21: courte | M21: 16 | N21: 35 | O21: annuel | P21: 3 | Q21: 4 | R21: Faible | S21: Moyen | T21: -10°C | U21: 1 | V21: 1 | W21: 2 | X21: Jungle | Y21: oui | Z21: 3 | AA21: 1 | AB21: 1 | AC21: oui | AD21: 3 | AE21: Bonne fourniture d'azote
A22: Lentille fourragère | B22: Légumineuse | C22: 1 | D22: 1 | E22: 1.4 | G22: 4 | H22: ='Parametres_couverts (2)'!B25 -> 0.26 | I22: ='Parametres_couverts (2)'!C25 -> 15 | J22: ='Parametres_couverts (2)'!D25 -> 20 | K22: 60 | L22: courte | M22: 17 | N22: 21 | O22: annuel | P22: 2 | Q22: 3 | R22: Faible | S22: Rapide | T22: -7°C | U22: 1 | V22: 1 | W22: 2 | X22: Jungle | Y22: oui | Z22: 2 | AA22: 1 | AB22: 1 | AC22: oui | AD22: 2 | AE22: Bon effet "bouche trou"
A23: Lin | B23: Linacée | C23: 1 | D23: 1 | E23: 0.5 | F23: 2 | G23: 0.5 | H23: ='Parametres_couverts (2)'!B26 -> 1.52 | I23: ='Parametres_couverts (2)'!C26 -> 50 | J23: ='Parametres_couverts (2)'!D26 -> 5.5 | K23: 25 | L23: courte | M23: 18 | N23: 25 | O23: annuel | P23: 1 | Q23: 1.5 | R23: Faible | S23: Rapide | T23: -4°C | U23: 1 | V23: 1 | W23: 2 | X23: Phare | Y23: oui | Z23: 1 | AA23: 1 | AB23: 1 | AC23: non | AD23: 1 | AE23: Bon effet "bouche trou"
A24: Lotier Corniculé | B24: Légumineuse | C24: 1 | D24: 3 | E24: 5 | G24: 15 | H24: ='Parametres_couverts (2)'!B27 -> 2.4 | I24: ='Parametres_couverts (2)'!C27 -> 10 | J24: ='Parametres_couverts (2)'!D27 -> 1.1 | K24: 150 | L24: longue | M24: 19 | N24: 50 | O24: Permanent | P24: 1 | Q24: 2 | R24: Moyen | S24: Lent | T24: > -15°C | U24: 1 | V24: 1 | W24: 2 | X24: Jungle | Y24: oui | Z24: 1 | AA24: 1 | AB24: 1 | AC24: oui | AD24: 2 | AE24: Intérêt en couvert permanent
A25: Luzerne Flamande | B25: Légumineuse | C25: 3 | D25: 3 | E25: 7 | G25: 8 | H25: ='Parametres_couverts (2)'!B28 -> 1.25 | I25: ='Parametres_couverts (2)'!C28 -> 20 | J25: ='Parametres_couverts (2)'!D28 -> 2 | K25: 160 | L25: longue | M25: 20 | N25: 140 | O25: Permanent | P25: 0.5 | Q25: 1.5 | R25: Moyen | S25: Moyen | T25: > -15°C | U25: 1 | V25: 1 | W25: 2 | X25: Jungle | Y25: oui | Z25: 1 | AA25: 1 | AB25: 1 | AC25: oui | AD25: 2 | AE25: Intérêt en couvert permanent
A26: Mauve | B26: Malvacée | C26: 2 | D26: 2 | E26: 6 | G26: 5 | H26: ='Parametres_couverts (2)'!B29 -> 0 | I26: ='Parametres_couverts (2)'!C29 -> 5 | J26: ='Parametres_couverts (2)'!D29 -> 2 | K26: 25 | L26: Courte | M26: 21 | N26: 30 | O26: annuel | P26: 0.5 | Q26: 1.5 | R26: Moyen | S26: Moyen | T26: -5°C | U26: 1 | V26: 1 | W26: 2 | X26: Jungle | Y26: oui | Z26: 2 | AA26: 1 | AB26: 2 | AC26: non | AD26: 2 | AE26: Effet structure du sol
A27: Mélilot | B27: Légumineuse | C27: 2 | D27: 3 | E27: 3.5 | G27: 9 | H27: ='Parametres_couverts (2)'!B30 -> 6.1 | I27: ='Parametres_couverts (2)'!C30 -> 10 | J27: ='Parametres_couverts (2)'!D30 -> 1.1 | K27: 90 | L27: longue | M27: 22 | N27: 35 | O27: Permanent | P27: 1 | Q27: 3 | R27: Moyen à Fort | S27: Lent | T27: -15°C | U27: 1 | V27: 1 | W27: 2 | X27: Jungle | Y27: oui | Z27: 1 | AA27: 1 | AB27: 1 | AC27: oui | AD27: 2 | AE27: Intérêt en couvert permanent
A28: Millet perlé | B28: Graminée | C28: 3 | D28: 3 | E28: 5 | F28: 1 | G28: 6 | H28: ='Parametres_couverts (2)'!B31 -> 3.1 | I28: ='Parametres_couverts (2)'!C31 -> 15 | J28: ='Parametres_couverts (2)'!D31 -> 2 | K28: 90 | L28: courte | M28: 23 | N28: 75 | O28: annuel | P28: 1 | Q28: 2 | R28: Faible | S28: Lent | T28: -1°C | U28: 1 | V28: 2 | W28: 3 | X28: Parapluie | Y28: non | Z28: 1 | AA28: 1 | AB28: 1 | AC28: oui | AD28: 2 | AE28: Bonne production de biomasse
A29: Minette | B29: Légumineuse | C29: 1 | D29: 2 | E29: 5 | G29: 5 | H29: ='Parametres_couverts (2)'!B32 -> 4.95 | I29: ='Parametres_couverts (2)'!C32 -> 20 | J29: ='Parametres_couverts (2)'!D32 -> 2 | K29: 100 | L29: longue | M29: 24 | N29: 100 | O29: Permanent | P29: 2 | Q29: 3 | R29: Moyen à Fort | S29: Lent | T29: -15°C | U29: 1 | V29: 1 | W29: 2 | X29: Jungle | Y29: oui | Z29: 1 | AA29: 1 | AB29: 1 | AC29: oui | AD29: 2 | AE29: Intérêt en couvert permanent
A30: Moha fourrager | B30: graminée | C30: 3 | D30: 3 | E30: 6 | F30: 2 | G30: 1.2 | H30: ='Parametres_couverts (2)'!B33 -> 2.99 | I30: ='Parametres_couverts (2)'!C33 -> 15 | J30: ='Parametres_couverts (2)'!D33 -> 2.3 | K30: 18 | L30: courte | M30: 25 | N30: 90 | O30: annuel | P30: 1 | Q30: 1.5 | R30: Fort | S30: Rapide | T30: 0°C | U30: 1 | V30: 3 | W30: 3 | X30: Jungle | Y30: non | Z30: 1 | AA30: 1 | AB30: 1 | AC30: oui | AD30: 3 | AE30: Bonne production de biomasse
A31: Moutarde blanche précoce | B31: Crucifère | C31: 3 | D31: 3 | E31: 10 | F31: 3 | G31: 3 | H31: ='Parametres_couverts (2)'!B34 -> 4.9 | I31: ='Parametres_couverts (2)'!C34 -> 10 | J31: ='Parametres_couverts (2)'!D34 -> 1.7 | K31: =I31*G31 -> 30 | L31: courte | M31: 26 | N31: =E31*I31 -> 100 | O31: annuel | P31: 1 | Q31: 2 | R31: Faible | S31: Rapide | T31: -7°C | U31: 2 | V31: 1 | W31: 2 | X31: Parapluie | Y31: oui | Z31: 1 | AA31: 1 | AB31: 1 | AC31: oui | AD31: 3 | AE31: Risque de mise à graine à l'automne
A32: Moutarde blanche tardive | B32: Crucifère | C32: 3 | D32: 3 | E32: 10 | F32: 3 | G32: 3 | H32: ='Parametres_couverts (2)'!B35 -> 4.9 | I32: ='Parametres_couverts (2)'!C35 -> 10 | J32: ='Parametres_couverts (2)'!D35 -> 1.7 | K32: 30 | L32: courte | M32: 27 | N32: 100 | O32: annuel | P32: 1 | Q32: 2 | R32: Faible | S32: Rapide | T32: -7°C | U32: 2 | V32: 1 | W32: 2 | X32: Parapluie | Y32: oui | Z32: 1 | AA32: 1 | AB32: 1 | AC32: oui | AD32: 3 | AE32: Risque de mise à graine à l'automne
A33: Moutarde brune | B33: Crucifère | C33: 3 | D33: 3 | E33: 70 | F33: 3 | G33: 15 | H33: ='Parametres_couverts (2)'!B36 -> 1.49 | I33: ='Parametres_couverts (2)'!C36 -> 2 | J33: ='Parametres_couverts (2)'!D36 -> 3 | K33: 30 | L33: courte | M33: 28 | N33: 140 | O33: annuel | P33: 1 | Q33: 2 | R33: Faible | S33: Rapide | T33: -7°C | U33: 1 | V33: 1 | W33: 2 | X33: Parapluie | Y33: oui | Z33: 1 | AA33: 1 | AB33: 1 | AC33: oui | AD33: 3 | AE33: Bonne production de biomasse
A34: Moutarde d'Abyssinie | B34: Crucifère | C34: 3 | D34: 3 | E34: 14 | F34: 3 | G34: 3.7 | H34: ='Parametres_couverts (2)'!B37 -> 1.65 | I34: ='Parametres_couverts (2)'!C37 -> 6 | J34: ='Parametres_couverts (2)'!D37 -> 5 | K34: 22.2 | L34: courte | M34: 29 | N34: 84 | O34: annuel | P34: 1 | Q34: 2 | R34: Faible | S34: Rapide | T34: -10°C | U34: 1 | V34: 1 | W34: 1 | X34: Parapluie | Y34: oui | Z34: 1 | AA34: 1 | AB34: 1 | AC34: oui | AD34: 3 | AE34: Tardive à floraison
A35: Navette | B35: Crucifère | C35: 3 | D35: 3 | E35: 24 | F35: 3 | G35: 10 | H35: ='Parametres_couverts (2)'!B38 -> 4 | I35: ='Parametres_couverts (2)'!C38 -> 5 | J35: ='Parametres_couverts (2)'!D38 -> 3.9 | K35: 50 | L35: longue | M35: 30 | N35: 120 | O35: annuel | P35: 1 | Q35: 2 | R35: Faible | S35: Rapide | T35: -10°C | U35: 1 | V35: 1 | W35: 1 | X35: Parapluie | Y35: oui | Z35: 1 | AA35: 1 | AB35: 1 | AC35: oui | AD35: 3 | AE35: Tardif à floraison
A36: Niger | B36: Composée | C36: 2 | D36: 2 | E36: 10 | F36: 2 | G36: 7 | H36: ='Parametres_couverts (2)'!B39 -> 8.4 | I36: ='Parametres_couverts (2)'!C39 -> 3 | J36: ='Parametres_couverts (2)'!D39 -> 2.5 | K36: 21 | L36: courte | M36: 31 | N36: 30 | O36: annuel | P36: 1 | Q36: 1.5 | R36: Fort | S36: Rapide | T36: -1°C | U36: 1 | V36: 2 | W36: 3 | X36: Parapluie | Y36: oui | Z36: 1 | AA36: 1 | AB36: 1 | AC36: oui | AD36: 3 | AE36: Intérêt en interculture courte
A37: Phacélie | B37: Hydrophyllacée | C37: 2 | D37: 2 | E37: 6 | F37: 2 | G37: 4 | H37: ='Parametres_couverts (2)'!B40 -> 5.15 | I37: ='Parametres_couverts (2)'!C40 -> 8 | J37: ='Parametres_couverts (2)'!D40 -> 2 | K37: 32 | L37: courte | M37: 32 | N37: 48 | O37: annuel | P37: 2 | Q37: 3 | R37: Faible | S37: Rapide | T37: -10°C | U37: 2 | V37: 1 | W37: 3 | X37: Jungle | Y37: oui | Z37: 2 | AA37: 1 | AB37: 1 | AC37: oui | AD37: 3 | AE37: Famille botanique différente
A38: Pois fourrager | B38: Légumineuse | C38: 2 | D38: 2 | E38: 0.5 | G38: 0.6 | H38: ='Parametres_couverts (2)'!B41 -> 4.1 | I38: ='Parametres_couverts (2)'!C41 -> 100 | J38: ='Parametres_couverts (2)'!D41 -> 182 | K38: 60 | L38: courte | M38: 33 | N38: 50 | O38: annuel | P38: 2 | Q38: 3 | R38: Moyen | S38: Lent | T38: -15°C | U38: 1 | V38: 1 | W38: 2 | X38: Jungle | Y38: oui | Z38: 3 | AA38: 1 | AB38: 1 | AC38: oui | AD38: 3 | AE38: Bonne production d'azote
A39: Pois protéagineux | B39: Légumineuse | C39: 2 | D39: 2 | E39: 0.2 | G39: 0.35 | H39: ='Parametres_couverts (2)'!B42 -> 3.59 | I39: ='Parametres_couverts (2)'!C42 -> 180 | J39: ='Parametres_couverts (2)'!D42 -> 280 | K39: 63 | L39: longue | M39: 34 | N39: 36 | O39: annuel | P39: 2 | Q39: 3 | R39: Moyen à Fort | S39: Rapide | T39: -10°C | U39: 1 | V39: 1 | W39: 2 | X39: Jungle | Y39: oui | Z39: 3 | AA39: 1 | AB39: 1 | AC39: oui | AD39: 1 | AE39: A réserver aux intercultures longues
A40: Radis chinois | B40: Crucifère | C40: 2 | D40: 3 | E40: 12 | F40: 3 | G40: 3.5 | H40: ='Parametres_couverts (2)'!B43 -> 1.49 | I40: ='Parametres_couverts (2)'!C43 -> 8 | J40: ='Parametres_couverts (2)'!D43 -> 14 | K40: 28 | L40: courte | M40: 35 | N40: 96 | O40: annuel | P40: 1 | Q40: 2 | R40: Faible | S40: Rapide | T40: -8°C | U40: 1 | V40: 1 | W40: 2 | X40: Parapluie | Y40: oui | Z40: 1 | AA40: 1 | AB40: 1 | AC40: oui | AD40: 3 | AE40: Intérêt dans la lutte contre les adventices
A41: Radis fourrager | B41: Crucifère | C41: 3 | D41: 3 | E41: 15 | F41: 3 | G41: 3 | H41: ='Parametres_couverts (2)'!B44 -> 0.2 | I41: ='Parametres_couverts (2)'!C44 -> 8 | J41: ='Parametres_couverts (2)'!D44 -> 17 | K41: 24 | L41: courte | M41: 36 | N41: 120 | O41: annuel | P41: 1 | Q41: 2 | R41: Faible | S41: Rapide | T41: -13°C | U41: 2 | V41: 1 | W41: 3 | X41: Parapluie | Y41: oui | Z41: 1 | AA41: 1 | AB41: 1 | AC41: oui | AD41: 3 | AE41: Bon effet structure
A42: Ray-grass Italien | B42: graminée | C42: 2 | D42: 2 | E42: 15 | F42: 3 | G42: 1.5 | H42: ='Parametres_couverts (2)'!B45 -> 2.99 | I42: ='Parametres_couverts (2)'!C45 -> 12 | J42: ='Parametres_couverts (2)'!D45 -> 12 | K42: 18 | L42: longue | M42: 37 | N42: 180 | O42: annuel | P42: 1 | Q42: 1.5 | R42: Moyen | S42: Rapide | T42: > -15°C | U42: 1 | V42: 1 | W42: 2 | X42: Jungle | Y42: non | Z42: 2 | AA42: 1 | AB42: 1 | AC42: oui | AD42: 2 | AE42: Risque d'asséchement du sol
A43: Sainfoin (cosse) | B43: Légumineuse | C43: 2 | D43: 3 | E43: 2 | G43: 4 | H43: ='Parametres_couverts (2)'!B46 -> 2.05 | I43: ='Parametres_couverts (2)'!C46 -> 20 | J43: ='Parametres_couverts (2)'!D46 -> 21 | K43: 80 | L43: longue | M43: 38 | N43: 40 | O43: Permanent | P43: 2 | Q43: 3 | R43: Moyen à Fort | S43: Moyen | T43: > -15°C | U43: 1 | V43: 1 | W43: 2 | X43: Jungle | Y43: oui | Z43: 1 | AA43: 1 | AB43: 1 | AC43: oui | AD43: 2 | AE43: Intérêt en couvert permanent
A44: Sainfoin (décortiqué) | B44: Légumineuse | C44: 2 | D44: 3 | E44: 0.3 | G44: 0.6 | H44: ='Parametres_couverts (2)'!B47 -> 1.99 | I44: ='Parametres_couverts (2)'!C47 -> 130 | J44: ='Parametres_couverts (2)'!D47 -> 22 | K44: 78 | L44: longue | M44: 39 | N44: 39 | O44: Permanent | P44: 2 | Q44: 3 | R44: Moyen à Fort | S44: Moyen | T44: > -15°C | U44: 1 | V44: 1 | W44: 2 | X44: Jungle | Y44: oui | Z44: 1 | AA44: 1 | AB44: 1 | AC44: oui | AD44: 2 | AE44: Intérêt en couvert permanent
A45: Sarrasin | B45: Polygonacée | C45: 2 | D45: 2 | E45: 1.5 | F45: 3 | G45: 0.4 | H45: ='Parametres_couverts (2)'!B48 -> 2.1 | I45: ='Parametres_couverts (2)'!C48 -> 40 | J45: ='Parametres_couverts (2)'!D48 -> 22 | K45: 16 | L45: courte | M45: 40 | N45: 60 | O45: annuel | P45: 2 | Q45: 3 | R45: Moyen | S45: Rapide | T45: -2°C | U45: 1 | V45: 2 | W45: 3 | X45: Parapluie | Y45: oui | Z45: 1 | AA45: 1 | AB45: 1 | AC45: non | AD45: 3 | AE45: Intérêt en condition sèche
A46: Seigle forestier | B46: graminée | C46: 3 | D46: 3 | E46: 3 | F46: 1 | G46: 0.5 | H46: ='Parametres_couverts (2)'!B49 -> 2.1 | I46: ='Parametres_couverts (2)'!C49 -> 25 | J46: ='Parametres_couverts (2)'!D49 -> 15 | K46: 12.5 | L46: longue | M46: 41 | N46: 75 | O46: annuel | P46: 2 | Q46: 3 | R46: Faible | S46: Lent | T46: -15°C | U46: 1 | V46: 1 | W46: 2 | X46: Jungle | Y46: non | Z46: 3 | AA46: 1 | AB46: 1 | AC46: oui | AD46: 2 | AE46: Attenition à l'effet dépressif
A47: Seigle fourrager | B47: graminée | C47: 3 | D47: 3 | E47: 4 | F47: 2 | G47: 0.7 | H47: ='Parametres_couverts (2)'!B50 -> 1.1 | I47: ='Parametres_couverts (2)'!C50 -> 60 | J47: ='Parametres_couverts (2)'!D50 -> 32 | K47: 42 | L47: longue | M47: 42 | N47: 240 | O47: annuel | P47: 2 | Q47: 3 | R47: Faible | S47: Lent | T47: > -15°C | U47: 1 | V47: 1 | W47: 2 | X47: Jungle | Y47: non | Z47: 3 | AA47: 1 | AB47: 1 | AC47: oui | AD47: 2 | AE47: Attenition à l'effet dépressif
A48: Sorgho fourrager | B48: graminée | C48: 3 | D48: 3 | E48: 1.8 | F48: 3 | G48: 0.3 | H48: ='Parametres_couverts (2)'!B51 -> 1.5 | I48: ='Parametres_couverts (2)'!C51 -> 20 | J48: ='Parametres_couverts (2)'!D51 -> 15 | K48: 6 | L48: courte | M48: 43 | N48: 36 | O48: annuel | P48: 1.5 | Q48: 2.5 | R48: Moyen | S48: Lent | T48: 0°C | U48: 1 | V48: 3 | W48: 3 | X48: Parapluie | Y48: non | Z48: 2 | AA48: 1 | AB48: 1 | AC48: oui | AD48: 2 | AE48: Bon production de biomasse
A49: Tournesol | B49: Composée | C49: 3 | D49: 3 | E49: 8 | F49: 3 | G49: 1.2 | H49: ='Parametres_couverts (2)'!B52 -> 4.74 | I49: ='Parametres_couverts (2)'!C52 -> 15 | J49: ='Parametres_couverts (2)'!D52 -> 40 | K49: 18 | L49: courte | M49: 44 | N49: 120 | O49: annuel | P49: 2 | Q49: 3 | R49: Fort | S49: Rapide | T49: -2°C | U49: 1 | V49: 1 | W49: 3 | X49: Phare | Y49: oui | Z49: 2 | AA49: 1 | AB49: 1 | AC49: non | AD49: 2 | AE49: Bon effet structure
A50: Trèfle Blanc | B50: Légumineuse | C50: 1 | D50: 2 | E50: 10 | G50: 20 | H50: ='Parametres_couverts (2)'!B53 -> 0.2 | I50: ='Parametres_couverts (2)'!C53 -> 3 | J50: ='Parametres_couverts (2)'!D53 -> 0.6 | K50: 60 | L50: longue | M50: 45 | N50: 30 | O50: Permanent | P50: 1 | Q50: 2 | R50: Faible | S50: Lent | T50: -10°C | U50: 1 | V50: 1 | W50: 2 | X50: Gazon | Y50: oui | Z50: 1 | AA50: 1 | AB50: 1 | AC50: oui | AD50: 3 | AE50: Intérêt en couvert permanent
A51: Trèfle d'Alexandrie | B51: Légumineuse | C51: 2 | D51: 2 | E51: 8 | G51: 15 | H51: ='Parametres_couverts (2)'!B54 -> 5.8 | I51: ='Parametres_couverts (2)'!C54 -> 4 | J51: ='Parametres_couverts (2)'!D54 -> 3.1 | K51: 60 | L51: courte | M51: 46 | N51: 32 | O51: annuel | P51: 1 | Q51: 2 | R51: Moyen | S51: Rapide | T51: -5°C | U51: 1 | V51: 1 | W51: 2 | X51: Jungle | Y51: oui | Z51: 1 | AA51: 1 | AB51: 1 | AC51: oui | AD51: 2 | AE51: Intérêt en interculture courte
A52: Trèfle de Micheli | B52: Légumineuse | C52: 2 | D52: 2 | E52: 3 | G52: 5.5 | H52: ='Parametres_couverts (2)'!B55 -> 3.1 | I52: ='Parametres_couverts (2)'!C55 -> 10 | J52: ='Parametres_couverts (2)'!D55 -> 0.82 | K52: 55 | L52: longue | M52: 47 | N52: 30 | O52: annuel | P52: 1 | Q52: 2 | R52: Moyen à Fort | S52: Lent | T52: -10°C | U52: 1 | V52: 2 | W52: 1 | X52: Jungle | Y52: oui | Z52: 1 | AA52: 1 | AB52: 1 | AC52: oui | AD52: 2 | AE52: Intérêt en interculture longue
A53: Trèfle de perse | B53: Légumineuse | C53: 2 | D53: 2 | E53: 3 | G53: 6 | H53: ='Parametres_couverts (2)'!B56 -> 3.99 | I53: ='Parametres_couverts (2)'!C56 -> 10 | J53: ='Parametres_couverts (2)'!D56 -> 0.8 | K53: 60 | L53: courte | M53: 48 | N53: 30 | O53: annuel | P53: 1 | Q53: 2 | R53: Moyen à Fort | S53: Lent | T53: -10°C | U53: 1 | V53: 2 | W53: 1 | X53: Parapluie | Y53: oui | Z53: 1 | AA53: 1 | AB53: 1 | AC53: oui | AD53: 2 | AE53: Intérêt en interculture courte
A54: Trèfle incarnat | B54: Légumineuse | C54: 1 | D54: 2 | E54: 1.8 | G54: 3.5 | H54: ='Parametres_couverts (2)'!B57 -> 5.85 | I54: ='Parametres_couverts (2)'!C57 -> 18 | J54: ='Parametres_couverts (2)'!D57 -> 3.5 | K54: 63 | L54: longue | M54: 49 | N54: 32.4 | O54: annuel | P54: 1 | Q54: 2 | R54: Moyen à Fort | S54: Lent | T54: -10°C | U54: 1 | V54: 2 | W54: 1 | X54: Gazon | Y54: oui | Z54: 1 | AA54: 1 | AB54: 1 | AC54: oui | AD54: 2 | AE54: Intérêt en interculture longue
A55: Trèfle squarrosum | B55: Légumineuse | C55: 1 | D55: 2 | E55: 1.5 | G55: 2.5 | H55: ='Parametres_couverts (2)'!B58 -> 2.6 | I55: ='Parametres_couverts (2)'!C58 -> 25 | J55: ='Parametres_couverts (2)'!D58 -> 4.2 | K55: 62.5 | L55: Courte | M55: 50 | N55: 37.5 | O55: annuel | P55: 0.5 | Q55: 1.5 | R55: Moyen | S55: Rapide | T55: -7°C | U55: 1 | V55: 2 | W55: 1 | X55: Gazon | Y55: oui | Z55: 1 | AA55: 1 | AB55: 1 | AC55: oui | AD55: 2 | AE55: Profil proche de celui du trèfle d'Alexandrie
A56: Triticale | B56: graminée | C56: 3 | D56: 3 | E56: 0.4 | F56: 2 | G56: 0.1 | H56: ='Parametres_couverts (2)'!B59 -> 0.3 | I56: ='Parametres_couverts (2)'!C59 -> 150 | J56: ='Parametres_couverts (2)'!D59 -> 45 | K56: 15 | L56: longue | M56: 51 | N56: 60 | O56: annuel | P56: 2 | Q56: 3 | R56: Moyen | S56: Lent | T56: > -15°C | U56: 2 | V56: 1 | W56: 1 | X56: Jungle | Y56: non | Z56: 3 | AA56: 1 | AB56: 1 | AC56: oui | AD56: 2 | AE56: Intérêt en méteil
A57: Trèfle vesiculeux | B57: Légumineuse | C57: 1 | D57: 2 | E57: 3 | G57: 6 | H57: ='Parametres_couverts (2)'!B60 -> 3.5 | I57: ='Parametres_couverts (2)'!C60 -> 10 | J57: ='Parametres_couverts (2)'!D60 -> 1.5 | K57: 60 | M57: 52 | N57: 30 | O57: annuel | P57: 1.5 | Q57: 2.5 | R57: Moyen | S57: Rapide | T57: -10°C | U57: 1 | V57: 2 | W57: 1 | X57: Gazon | Y57: oui | Z57: 1 | AA57: 1 | AB57: 1 | AC57: oui | AD57: 2 | AE57: Bien adapté en conditions sèches
A58: Trèfle violet | B58: Légumineuse | C58: 2 | D58: 2 | E58: 6 | G58: 7 | H58: ='Parametres_couverts (2)'!B61 -> 0.3 | I58: ='Parametres_couverts (2)'!C61 -> 15 | J58: ='Parametres_couverts (2)'!D61 -> 2 | K58: 105 | L58: longue | M58: 53 | N58: 90 | O58: Permanent | P58: 1 | Q58: 2 | R58: Moyen | S58: Rapide | T58: -10°C | U58: 1 | V58: 1 | W58: 2 | X58: Gazon | Y58: oui | Z58: 1 | AA58: 1 | AB58: 1 | AC58: oui | AD58: 2 | AE58: Intérêt en couvert permanent
A59: Vesce commune | B59: Légumineuse | C59: 2 | D59: 2 | E59: 0.9 | G59: 1.3 | H59: ='Parametres_couverts (2)'!B62 -> 5.8 | I59: ='Parametres_couverts (2)'!C62 -> 40 | J59: ='Parametres_couverts (2)'!D62 -> 40 | K59: =I59*G59 -> 52 | L59: courte | M59: 54 | N59: =E59*I59 -> 36 | O59: annuel | P59: 2 | Q59: 3 | R59: Faible | S59: Lent | T59: -10°C | U59: 1 | V59: 1 | W59: 2 | X59: Jungle | Y59: oui | Z59: 1 | AA59: 1 | AB59: 1 | AC59: oui | AD59: 3 | AE59: A semer tôt
A60: Vesce érigée | B60: Légumineuse | C60: 2 | D60: 2 | E60: 0.9 | G60: 1.3 | H60: ='Parametres_couverts (2)'!B63 -> 0 | I60: ='Parametres_couverts (2)'!C63 -> 40 | J60: ='Parametres_couverts (2)'!D63 -> 23 | K60: =I60*G60 -> 52 | L60: Courte | M60: 55 | N60: =E60*I60 -> 36 | O60: annuel | P60: 1 | Q60: 1.5 | R60: Faible | S60: Rapide | T60: -4°C | U60: 1 | V60: 1 | W60: 1 | X60: Jungle | Y60: oui | Z60: 3 | AA60: 1 | AB60: 1 | AC60: oui | AD60: 2 | AE60: Sensible au gel
A61: Vesce de Narbonne | B61: Légumineuse | C61: 2 | D61: 2 | E61: 0.3 | G61: 0.45 | H61: ='Parametres_couverts (2)'!B64 -> 0.3 | I61: ='Parametres_couverts (2)'!C64 -> 120 | J61: ='Parametres_couverts (2)'!D64 -> 200 | K61: 54 | L61: Longue | M61: 56 | N61: 36 | O61: annuel | P61: 2 | Q61: 3 | R61: Faible | S61: Moyen | T61: -5°C | U61: 1 | V61: 1 | W61: 2 | X61: Phare | Y61: oui | Z61: 3 | AA61: 1 | AB61: 1 | AC61: oui | AD61: 2 | AE61: Profil proche de celui de la féverole
A62: Vesce de Pannonie | B62: Légumineuse | C62: 2 | D62: 2 | E62: 0.6 | G62: 1 | H62: ='Parametres_couverts (2)'!B65 -> 2.5 | I62: ='Parametres_couverts (2)'!C65 -> 50 | J62: ='Parametres_couverts (2)'!D65 -> 38 | K62: 50 | L62: Courte | M62: 57 | N62: 30 | O62: annuel | P62: 1.5 | Q62: 2.5 | R62: Faible | S62: Moyen | T62: -17°C | U62: 1 | V62: 1 | W62: 1 | X62: Jungle | Y62: oui | Z62: 1 | AA62: 1 | AB62: 2 | AC62: oui | AD62: 2 | AE62: Bien en sol lourd argileux
A63: Vesce pourpre | B63: Légumineuse | C63: 2 | D63: 2 | E63: 0.6 | G63: 1 | H63: ='Parametres_couverts (2)'!B66 -> 1.85 | I63: ='Parametres_couverts (2)'!C66 -> 50 | J63: ='Parametres_couverts (2)'!D66 -> 60 | K63: 50 | L63: courte | M63: 58 | N63: 30 | O63: annuel | P63: 2 | Q63: 3 | R63: Faible | S63: Lent | T63: -10°C | U63: 1 | V63: 1 | W63: 2 | X63: Jungle | Y63: oui | Z63: 1 | AA63: 1 | AB63: 1 | AC63: oui | AD63: 3 | AE63: A semer tôt
A64: Vesce velue | B64: Légumineuse | C64: 2 | D64: 2 | E64: 1 | G64: 1.3 | H64: ='Parametres_couverts (2)'!B67 -> 1.99 | I64: ='Parametres_couverts (2)'!C67 -> 40 | J64: ='Parametres_couverts (2)'!D67 -> 60 | K64: 52 | L64: longue | M64: 59 | N64: 40 | O64: annuel | P64: 2 | Q64: 3 | R64: Faible | S64: Lent | T64: > -15°C | U64: 1 | V64: 1 | W64: 2 | X64: Jungle | Y64: oui | Z64: 2 | AA64: 1 | AB64: 1 | AC64: oui | AD64: 3 | AE64: Destruction mécanique compliquée
H65: =Parametres_couverts!B58 -> 3.13 | I65: =Parametres_couverts!C58 -> 35 | J65: =Parametres_couverts!D58 -> 60
H66: =Parametres_couverts!B59 -> 0 | I66: =Parametres_couverts!C59 -> 0 | J66: =Parametres_couverts!D59 -> 0
H67: =Parametres_couverts!B60 -> 0 | I67: =Parametres_couverts!C60 -> 0 | J67: =Parametres_couverts!D60 -> 0
H68: =Parametres_couverts!B61 -> 0 | I68: =Parametres_couverts!C61 -> 0 | J68: =Parametres_couverts!D61 -> 0
D82: Choisir | E82: 1000
D83: Maïs | E83: 1
D84: Tournesol | E84: 2
D85: Soja | E85: 3
D86: Pois | E86: 4
D87: Feverole | E87: 5
D88: Lentille | E88: 6
D89: Pois Chiche | E89: 7
D90: Betterave | E90: 8
D91: Chanvre | E91: 9
D92: Orge de printemps | E92: 10

Sheet Somme_temp
A4: Couvert | B4: Somme de températures jusqu'à floraison
A5: Alpistre des Canaries | B5: 1200
A6: Aneth | B6: 600
A7: Avoine bresilienne | B7: 900
A8: Avoine de printemps | B8: 1000
A9: Avoine d'hiver | B9: 1600
A10: Cameline | B10: 800
A11: Carthame | B11: 1200
A12: Chia | B12: 1100 | C12: 60 jours
A13: Colza | B13: 1500
A14: Crotalaire | B14: 1100
A15: Cowpea | B15: 800
A16: Dactyle | B16: 1000
A17: Fénugrec | B17: 1000
A18: Fetuque | B18: 1100
A19: Féverole | B19: 950
A20: Gesse | B20: 1000
A21: Lentille fourragère | B21: 940
A22: Lin | B22: 650
A23: Lotier Corniculé | B23: 1000
A24: Luzerne Flamande | B24: 900
A25: Mauve | B25: 700
A26: Mélilot | B26: 1100
A27: Millet perlé | B27: 800
A28: Minette | B28: 900
A29: Moha fourrager | B29: 800
A30: Moutarde blanche précoce | B30: 800
A31: Moutarde blanche tardive | B31: 1000
A32: Moutarde blanche très tardive | B32: 1200
A33: Moutarde brune | B33: 1000
A34: Moutarde d'Abyssinie | B34: 1200
A35: Navette | B35: 1200
A36: Niger | B36: 1050
A37: Phacélie | B37: 1200
A38: Pois fourrager | B38: 600
A39: Pois protéagineux | B39: 520
A40: Radis chinois | B40: 1200
A41: Radis fourrager | B41: 900
A42: Ray-grass Italien | B42: 1100
A43: Sainfoin (cosse) | B43: 1100
A44: Sainfoin (décortiqué) | B44: 1100
A45: Sarrasin | B45: 450
A46: Seigle forestier | B46: 2000
A47: Seigle fourrager | B47: 2000
A48: Sorgho fourrager | B48: 985
A49: Tournesol | B49: 1250
A50: Trèfle Blanc | B50: 1000
A51: Trèfle d'Alexandrie | B51: 1050
A52: Trèfle de Micheli | B52: 900
A53: Trèfle de perse | B53: 900
A54: Trèfle incarnat | B54: 1100
A55: Trèfle squarossum | B55: 900
A56: Triticale | B56: 1100
A57: Trèfle vésiculeux | B57: 900
A58: Trèfle violet | B58: 1300
A59: Vesce commune | B59: 1000
A60: Vesce érigée | B60: 900
A61: Vesce de Narbonne | B61: 1000
A62: Vesce de Pannonie | B62: 1100
A63: Vesce pourpre | B63: 800
A64: Vesce velue | B64: 800

Sheet Temp_moyenne
M2: Température | N2: Somme_temp | O2: Somme_temp
L3: 2024-06-01 | M3: =INDEX($B$6:$J$55,Simulation_floraison!$C$6,2) -> 18.5 | N3: =IF(Simulation_floraison!$C$8<=Temp_moyenne!L3,Temp_moyenne!M3,0) -> 0 | O3: =N3 -> 0
B4: NB jours | C4: 30 | D4: 31 | E4: 31 | F4: 30 | G4: 31 | H4: 30 | I4: 31 | J4: 31 | L4: 2024-06-02 | M4: =INDEX($B$6:$J$55,Simulation_floraison!$C$6,2) -> 18.5 | N4: =IF(Simulation_floraison!$C$8<=Temp_moyenne!L4,Temp_moyenne!M4,0) -> 0 | O4: =N4+O3 -> 0
A5: Numero | B5: Station | C5: Juin | D5: Juillet | E5: Aout | F5: Sept | G5: Octo | H5: Novembre | I5: Decembre | J5: Janvier | L5: 2024-06-03 | M5: =INDEX($B$6:$J$55,Simulation_floraison!$C$6,2) -> 18.5 | N5: =IF(Simulation_floraison!$C$8<=Temp_moyenne!L5,Temp_moyenne!M5,0) -> 0 | O5: =N5+O4 -> 0
A6: 1 | B6: Agen | C6: 19.8 | D6: 21.9 | E6: 22 | F6: 18.6 | G6: 14.9 | H6: 9.6 | I6: 6.6 | J6: 6.1 | L6: 2024-06-04 | M6: =INDEX($B$6:$J$55,Simulation_floraison!$C$6,2) -> 18.5 | N6: =IF(Simulation_floraison!$C$8<=Temp_moyenne!L6,Temp_moyenne!M6,0) -> 0 | O6: 0
A7: 2 | B7: Angoulême | C7: 18.9 | D7: 21 | E7: 19.6 | F7: 17 | G7: 14.3 | H7: 9.3 | I7: 5.4 | J7: 4.7 | L7: 2024-06-05 | M7: =INDEX($B$6:$J$55,Simulation_floraison!$C$6,2) -> 18.5 | N7: =IF(Simulation_floraison!$C$8<=Temp_moyenne!L7,Temp_moyenne!M7,0) -> 0 | O7: 0
A8: 3 | B8: Arras | C8: 15.7 | D8: 18.1 | E8: 18.2 | F8: 15.2 | G8: 11.4 | H8: 6.7 | I8: 3.7 | J8: 3.4 | L8: 2024-06-06 | M8: =INDEX($B$6:$J$55,Simulation_floraison!$C$6,2) -> 18.5 | N8: =IF(Simulation_floraison!$C$8<=Temp_moyenne!L8,Temp_moyenne!M8,0) -> 0 | O8: 0
A9: 4 | B9: Aurillac | C9: 16.5 | D9: 18.5 | E9: 18.5 | F9: 14.8 | G9: 11.5 | H9: 6.7 | I9: 4 | J9: 3.2 | L9: 2024-06-07 | M9: =INDEX($B$6:$J$55,Simulation_floraison!$C$6,2) -> 18.5 | N9: =IF(Simulation_floraison!$C$8<=Temp_moyenne!L9,Temp_moyenne!M9,0) -> 0 | O9: 0
A10: 5 | B10: Auxerre | C10: 18.3 | D10: 20.5 | E10: 20.5 | F10: 16.4 | G10: 12.4 | H10: 7.3 | I10: 4.2 | J10: 3.8 | L10: 2024-06-08 | M10: =INDEX($B$6:$J$55,Simulation_floraison!$C$6,2) -> 18.5 | N10: =IF(Simulation_floraison!$C$8<=Temp_moyenne!L10,Temp_moyenne!M10,0) -> 0 | O10: 0
A11: 6 | B11: Avignon | C11: 22.1 | D11: 24.8 | E11: 24.3 | F11: 19.9 | G11: 15.8 | H11: 10.3 | I11: 6.7 | J11: 6.3 | L11: 2024-06-09 | M11: =INDEX($B$6:$J$55,Simulation_floraison!$C$6,2) -> 18.5 | N11: =IF(Simulation_floraison!$C$8<=Temp_moyenne!L11,Temp_moyenne!M11,0) -> 0 | O11: 0
A12: 7 | B12: Beauvais | C12: 16.4 | D12: 18.6 | E12: 18.6 | F12: 15.4 | G12: 11.7 | H12: 7.4 | I12: 4.5 | J12: 4.1 | L12: 2024-06-10 | M12: =INDEX($B$6:$J$55,Simulation_floraison!$C$6,2) -> 18.5 | N12: =IF(Simulation_floraison!$C$8<=Temp_moyenne!L12,Temp_moyenne!M12,0) -> 0 | O12: 0
A13: 8 | B13: Belfort | C13: 18 | D13: 19.9 | E13: 19.4 | F13: 15.8 | G13: 11.2 | H13: 5.9 | I13: 2.7 | J13: 2 | L13: 2024-06-11 | M13: =INDEX($B$6:$J$55,Simulation_floraison!$C$6,2) -> 18.5 | N13: =IF(Simulation_floraison!$C$8<=Temp_moyenne!L13,Temp_moyenne!M13,0) -> 0 | O13: 0
A14: 9 | B14: Bordeaux | C14: 19.8 | D14: 21.7 | E14: 21.9 | F14: 18.8 | G14: 15.2 | H14: 10.4 | I14: 7.7 | J14: 7.1 | L14: 2024-06-12 | M14: =INDEX($B$6:$J$55,Simulation_floraison!$C$6,2) -> 18.5 | N14: =IF(Simulation_floraison!$C$8<=Temp_moyenne!L14,Temp_moyenne!M14,0) -> 0 | O14: 0
A15: 10 | B15: Bourges | C15: 18.4 | D15: 20.5 | E15: 20.5 | F15: 16.7 | G15: 12.9 | H15: 7.9 | I15: 5 | J15: 4.5 | L15: 2024-06-13 | M15: =INDEX($B$6:$J$55,Simulation_floraison!$C$6,2) -> 18.5 | N15: =IF(Simulation_floraison!$C$8<=Temp_moyenne!L15,Temp_moyenne!M15,0) -> 0 | O15: 0
A16: 11 | B16: Brest | C16: 15.3 | D16: 17 | E16: 17.1 | F16: 15.4 | G16: 12.8 | H16: 9.8 | I16: 7.7 | J16: 7.1 | L16: 2024-06-14 | M16: =INDEX($B$6:$J$55,Simulation_floraison!$C$6,2) -> 18.5 | N16: =IF(Simulation_floraison!$C$8<=Temp_moyenne!L16,Temp_moyenne!M16,0) -> 0 | O16: 0
A17: 12 | B17: Chalons en Champagne | C17: 16.7 | D17: 18.9 | E17: 18.2 | F17: 15 | G17: 10.9 | H17: 6.2 | I17: 2.2 | J17: 2.4 | L17: 2024-06-15 | M17: =INDEX($B$6:$J$55,Simulation_floraison!$C$6,2) -> 18.5 | N17: =IF(Simulation_floraison!$C$8<=Temp_moyenne!L17,Temp_moyenne!M17,0) -> 0 | O17: 0
A18: 13 | B18: Charleville-Mézières | C18: 15.6 | D18: 17.7 | E18: 17.3 | F18: 13.7 | G18: 10.1 | H18: 5.7 | I18: 2.6 | J18: 2.4 | L18: 2024-06-16 | M18: =INDEX($B$6:$J$55,Simulation_floraison!$C$6,2) -> 18.5 | N18: =IF(Simulation_floraison!$C$8<=Temp_moyenne!L18,Temp_moyenne!M18,0) -> 0 | O18: 0
A19: 14 | B19: Chartres | C19: 17 | D19: 19.4 | E19: 19.4 | F19: 15.9 | G19: 12.1 | H19: 7.6 | I19: 4.8 | J19: 4.3 | L19: 2024-06-17 | M19: =INDEX($B$6:$J$55,Simulation_floraison!$C$6,2) -> 18.5 | N19: =IF(Simulation_floraison!$C$8<=Temp_moyenne!L19,Temp_moyenne!M19,0) -> 0 | O19: 0
A20: 15 | B20: Chateaudun | C20: 17.3 | D20: 19.6 | E20: 19.6 | F20: 16 | G20: 12.1 | H20: 7.5 | I20: 4.7 | J20: 4.3 | L20: 2024-06-18 | M20: =INDEX($B$6:$J$55,Simulation_floraison!$C$6,2) -> 18.5 | N20: =IF(Simulation_floraison!$C$8<=Temp_moyenne!L20,Temp_moyenne!M20,0) -> 0 | O20: 0
A21: 16 | B21: Chateauroux | C21: 18.2 | D21: 20.4 | E21: 20.4 | F21: 16.7 | G21: 12.9 | H21: 8 | I21: 5.1 | J21: 3.7 | L21: 2024-06-19 | M21: =INDEX($B$6:$J$55,Simulation_floraison!$C$6,2) -> 18.5 | N21: =IF(Simulation_floraison!$C$8<=Temp_moyenne!L21,Temp_moyenne!M21,0) -> 0 | O21: 0
A22: 17 | B22: Clermont Ferrand | C22: 18.4 | D22: 20.6 | E22: 20.6 | F22: 16.7 | G22: 13 | H22: 7.9 | I22: 5 | J22: 4.3 | L22: 2024-06-20 | M22: =INDEX($B$6:$J$55,Simulation_floraison!$C$6,2) -> 18.5 | N22: =IF(Simulation_floraison!$C$8<=Temp_moyenne!L22,Temp_moyenne!M22,0) -> 0 | O22: 0
A23: 18 | B23: Dieppe | C23: 15.4 | D23: 17.4 | E23: 17.8 | F23: 15.8 | G23: 12.8 | H23: 9 | I23: 6.2 | J23: 5.6 | L23: 2024-06-21 | M23: =INDEX($B$6:$J$55,Simulation_floraison!$C$6,2) -> 18.5 | N23: =IF(Simulation_floraison!$C$8<=Temp_moyenne!L23,Temp_moyenne!M23,0) -> 0 | O23: 0
A24: 19 | B24: Dijon | C24: 18.5 | D24: 20.8 | E24: 20.4 | F24: 16.4 | G24: 11.8 | H24: 6.5 | I24: 3.4 | J24: 2.7 | L24: 2024-06-22 | M24: =INDEX($B$6:$J$55,Simulation_floraison!$C$6,2) -> 18.5 | N24: =IF(Simulation_floraison!$C$8<=Temp_moyenne!L24,Temp_moyenne!M24,0) -> 0 | O24: 0
A25: 20 | B25: Dole | C25: 18.8 | D25: 20.6 | E25: 2033 | F25: 16.5 | G25: 12.5 | H25: 6.9 | I25: 3.7 | J25: 3 | L25: 2024-06-23 | M25: =INDEX($B$6:$J$55,Simulation_floraison!$C$6,2) -> 18.5 | N25: =IF(Simulation_floraison!$C$8<=Temp_moyenne!L25,Temp_moyenne!M25,0) -> 0 | O25: 0
A26: 21 | B26: Dunkerque | C26: 15.7 | D26: 18.1 | E26: 18.4 | F26: 16.2 | G26: 12.7 | H26: 8.7 | I26: 5.7 | J26: 5 | L26: 2024-06-24 | M26: =INDEX($B$6:$J$55,Simulation_floraison!$C$6,2) -> 18.5 | N26: =IF(Simulation_floraison!$C$8<=Temp_moyenne!L26,Temp_moyenne!M26,0) -> 0 | O26: 0
A27: 22 | B27: Evreux | C27: 16.5 | D27: 18.8 | E27: 18.8 | F27: 15.6 | G27: 11.9 | H27: 7.6 | I27: 4.7 | J27: 4.3 | L27: 2024-06-25 | M27: =INDEX($B$6:$J$55,Simulation_floraison!$C$6,2) -> 18.5 | N27: =IF(Simulation_floraison!$C$8<=Temp_moyenne!L27,Temp_moyenne!M27,0) -> 0 | O27: 0
A28: 23 | B28: Grenoble | C28: 20.7 | D28: 22.6 | E28: 21.1 | F28: 18 | G28: 13.4 | H28: 7.6 | I28: 3.5 | J28: 3.7 | L28: 2024-06-26 | M28: =INDEX($B$6:$J$55,Simulation_floraison!$C$6,2) -> 18.5 | N28: =IF(Simulation_floraison!$C$8<=Temp_moyenne!L28,Temp_moyenne!M28,0) -> 0 | O28: 0
A29: 24 | B29: La Rochelle | C29: 18.6 | D29: 20.5 | E29: 20.6 | F29: 18 | G29: 14.7 | H29: 10.4 | I29: 7.5 | J29: 7 | L29: 2024-06-27 | M29: =INDEX($B$6:$J$55,Simulation_floraison!$C$6,2) -> 18.5 | N29: =IF(Simulation_floraison!$C$8<=Temp_moyenne!L29,Temp_moyenne!M29,0) -> 0 | O29: 0
A30: 25 | B30: Le Mans | C30: 18.2 | D30: 20.3 | E30: 20.1 | F30: 16.7 | G30: 13 | H30: 8.6 | I30: 5.9 | J30: 5.5 | L30: 2024-06-28 | M30: =INDEX($B$6:$J$55,Simulation_floraison!$C$6,2) -> 18.5 | N30: =IF(Simulation_floraison!$C$8<=Temp_moyenne!L30,Temp_moyenne!M30,0) -> 0 | O30: 0
A31: 26 | B31: Lille | C31: 16.2 | D31: 18.6 | E31: 18.4 | F31: 15.4 | G31: 11.6 | H31: 7.1 | I31: 4.2 | J31: 3.6 | L31: 2024-06-29 | M31: =INDEX($B$6:$J$55,Simulation_floraison!$C$6,2) -> 18.5 | N31: =IF(Simulation_floraison!$C$8<=Temp_moyenne!L31,Temp_moyenne!M31,0) -> 0 | O31: 0
A32: 27 | B32: Limoges | C32: 17.5 | D32: 19.5 | E32: 19.6 | F32: 16.2 | G32: 12.7 | H32: 7.8 | I32: 5.3 | J32: 4.6 | L32: 2024-06-30 | M32: =INDEX($B$6:$J$55,Simulation_floraison!$C$6,2) -> 18.5 | N32: =IF(Simulation_floraison!$C$8<=Temp_moyenne!L32,Temp_moyenne!M32,0) -> 0 | O32: 0
A33: 28 | B33: Lyon | C33: 19.9 | D33: 22.1 | E33: 21.9 | F33: 17.7 | G33: 13.5 | H33: 7.9 | I33: 4.6 | J33: 3.9 | L33: 2024-07-01 | M33: =INDEX($B$6:$J$55,Simulation_floraison!$C$6,3) -> 20.8 | N33: =IF(Simulation_floraison!$C$8<=Temp_moyenne!L33,Temp_moyenne!M33,0) -> 0 | O33: 0
A34: 29 | B34: Macon | C34: 19.5 | D34: 21.5 | E34: 21.1 | F34: 17 | G34: 12.7 | H34: 7.4 | I34: 4.1 | J34: 3.5 | L34: 2024-07-02 | M34: =INDEX($B$6:$J$55,Simulation_floraison!$C$6,3) -> 20.8 | N34: =IF(Simulation_floraison!$C$8<=Temp_moyenne!L34,Temp_moyenne!M34,0) -> 0 | O34: 0
A35: 30 | B35: Marseille | C35: 22.5 | D35: 25.2 | E35: 24.9 | F35: 20.9 | G35: 17 | H35: 11.7 | I35: 8.4 | J35: 7.7 | L35: 2024-07-03 | M35: =INDEX($B$6:$J$55,Simulation_floraison!$C$6,3) -> 20.8 | N35: =IF(Simulation_floraison!$C$8<=Temp_moyenne!L35,Temp_moyenne!M35,0) -> 0 | O35: 0
A36: 31 | B36: Melun | C36: 17.5 | D36: 19.8 | E36: 19.6 | F36: 16 | G36: 12.2 | H36: 7.6 | I36: 4.7 | J36: 4.2 | L36: 2024-07-04 | M36: =INDEX($B$6:$J$55,Simulation_floraison!$C$6,3) -> 20.8 | N36: =IF(Simulation_floraison!$C$8<=Temp_moyenne!L36,Temp_moyenne!M36,0) -> 0 | O36: 0
A37: 32 | B37: Metz | C37: 17.6 | D37: 20 | E37: 19.5 | F37: 15.6 | G37: 11.3 | H37: 6.2 | I37: 3.2 | J37: 2.3 | L37: 2024-07-05 | M37: =INDEX($B$6:$J$55,Simulation_floraison!$C$6,3) -> 20.8 | N37: =IF(Simulation_floraison!$C$8<=Temp_moyenne!L37,Temp_moyenne!M37,0) -> 0 | O37: 0
A38: 33 | B38: Montélimar | C38: 21.1 | D38: 23.7 | E38: 23.5 | F38: 19.2 | G38: 14.8 | H38: 9.5 | I38: 6.2 | J38: 5.7 | L38: 2024-07-06 | M38: =INDEX($B$6:$J$55,Simulation_floraison!$C$6,3) -> 20.8 | N38: =IF(Simulation_floraison!$C$8<=Temp_moyenne!L38,Temp_moyenne!M38,0) -> 0 | O38: 0
A39: 34 | B39: Montpellier | C39: 21.8 | D39: 24.4 | E39: 24.1 | F39: 20.2 | G39: 16.4 | H39: 11.6 | I39: 8.3 | J39: 7.6 | L39: 2024-07-07 | M39: =INDEX($B$6:$J$55,Simulation_floraison!$C$6,3) -> 20.8 | N39: =IF(Simulation_floraison!$C$8<=Temp_moyenne!L39,Temp_moyenne!M39,0) -> 0 | O39: 0
A40: 35 | B40: Nancy | C40: 17.1 | D40: 19.4 | E40: 19 | F40: 15.2 | G40: 11 | H40: 5.8 | I40: 2.9 | J40: 1.9 | L40: 2024-07-08 | M40: =INDEX($B$6:$J$55,Simulation_floraison!$C$6,3) -> 20.8 | N40: =IF(Simulation_floraison!$C$8<=Temp_moyenne!L40,Temp_moyenne!M40,0) -> 0 | O40: 0
A41: 36 | B41: Nantes | C41: 17.8 | D41: 19.7 | E41: 19.8 | F41: 17.1 | G41: 13.5 | H41: 9.4 | I41: 6.7 | J41: 6.4 | L41: 2024-07-09 | M41: =INDEX($B$6:$J$55,Simulation_floraison!$C$6,3) -> 20.8 | N41: =IF(Simulation_floraison!$C$8<=Temp_moyenne!L41,Temp_moyenne!M41,0) -> 0 | O41: 0
A42: 37 | B42: Nevers | C42: 17.6 | D42: 19.6 | E42: 19.4 | F42: 15.5 | G42: 12.1 | H42: 7.3 | I42: 4.5 | J42: 3.9 | L42: 2024-07-10 | M42: =INDEX($B$6:$J$55,Simulation_floraison!$C$6,3) -> 20.8 | N42: =IF(Simulation_floraison!$C$8<=Temp_moyenne!L42,Temp_moyenne!M42,0) -> 0 | O42: 0
A43: 38 | B43: Nice | C43: 21.4 | D43: 24.1 | E43: 24.5 | F43: 21.2 | G43: 17.5 | H43: 13.3 | I43: 10.3 | J43: 9.5 | L43: 2024-07-11 | M43: =INDEX($B$6:$J$55,Simulation_floraison!$C$6,3) -> 20.8 | N43: =IF(Simulation_floraison!$C$8<=Temp_moyenne!L43,Temp_moyenne!M43,0) -> 0 | O43: 0
A44: 39 | B44: Niort | C44: 18.4 | D44: 20.4 | E44: 20.4 | F44: 17.4 | G44: 13.8 | H44: 9.1 | I44: 6.3 | J44: 5.9 | L44: 2024-07-12 | M44: =INDEX($B$6:$J$55,Simulation_floraison!$C$6,3) -> 20.8 | N44: =IF(Simulation_floraison!$C$8<=Temp_moyenne!L44,Temp_moyenne!M44,0) -> 0 | O44: 0
A45: 40 | B45: Pau | C45: 19.1 | D45: 20.9 | E45: 21.1 | F45: 18.3 | G45: 15 | H45: 10 | I45: 7.5 | J45: 6.8 | L45: 2024-07-13 | M45: =INDEX($B$6:$J$55,Simulation_floraison!$C$6,3) -> 20.8 | N45: =IF(Simulation_floraison!$C$8<=Temp_moyenne!L45,Temp_moyenne!M45,0) -> 0 | O45: 0
A46: 41 | B46: Poitiers | C46: 17.9 | D46: 19.9 | E46: 20 | F46: 16.6 | G46: 13 | H46: 8.4 | I46: 5.6 | J46: 5.2 | L46: 2024-07-14 | M46: =INDEX($B$6:$J$55,Simulation_floraison!$C$6,3) -> 20.8 | N46: =IF(Simulation_floraison!$C$8<=Temp_moyenne!L46,Temp_moyenne!M46,0) -> 0 | O46: 0
A47: 42 | B47: Reims | C47: 16.3 | D47: 18.8 | E47: 18.5 | F47: 14.9 | G47: 11.2 | H47: 6.4 | I47: 3.7 | J47: 2.9 | L47: 2024-07-15 | M47: =INDEX($B$6:$J$55,Simulation_floraison!$C$6,3) -> 20.8 | N47: =IF(Simulation_floraison!$C$8<=Temp_moyenne!L47,Temp_moyenne!M47,0) -> 0 | O47: 0
A48: 43 | B48: Rennes | C48: 17.3 | D48: 19.2 | E48: 19.3 | F48: 16.6 | G48: 13.2 | H48: 9.2 | I48: 6.6 | J48: 6.2 | L48: 2024-07-16 | M48: =INDEX($B$6:$J$55,Simulation_floraison!$C$6,3) -> 20.8 | N48: =IF(Simulation_floraison!$C$8<=Temp_moyenne!L48,Temp_moyenne!M48,0) -> 0 | O48: 0
A49: 44 | B49: Saint Brieuc | C49: 15.3 | D49: 17.2 | E49: 17.4 | F49: 15.5 | G49: 12.6 | H49: 9.2 | I49: 6.9 | J49: 6.3 | L49: 2024-07-17 | M49: =INDEX($B$6:$J$55,Simulation_floraison!$C$6,3) -> 20.8 | N49: =IF(Simulation_floraison!$C$8<=Temp_moyenne!L49,Temp_moyenne!M49,0) -> 0 | O49: 0
A50: 45 | B50: Saint Dizier | C50: 18.1 | D50: 20.2 | E50: 19.9 | F50: 16 | G50: 12.1 | H50: 7.3 | I50: 4.4 | J50: 3.7 | L50: 2024-07-18 | M50: =INDEX($B$6:$J$55,Simulation_floraison!$C$6,3) -> 20.8 | N50: =IF(Simulation_floraison!$C$8<=Temp_moyenne!L50,Temp_moyenne!M50,0) -> 0 | O50: 0
A51: 46 | B51: Saint Quentin | C51: 15.7 | D51: 18 | E51: 17.9 | F51: 14.9 | G51: 11.1 | H51: 6.4 | I51: 3.6 | J51: 3 | L51: 2024-07-19 | M51: =INDEX($B$6:$J$55,Simulation_floraison!$C$6,3) -> 20.8 | N51: =IF(Simulation_floraison!$C$8<=Temp_moyenne!L51,Temp_moyenne!M51,0) -> 0 | O51: 0
A52: 47 | B52: Strasbourg | C52: 18.1 | D52: 20.1 | E52: 19.7 | F52: 15.8 | G52: 11.2 | H52: 5.8 | I52: 2.8 | J52: 1.8 | L52: 2024-07-20 | M52: =INDEX($B$6:$J$55,Simulation_floraison!$C$6,3) -> 20.8 | N52: =IF(Simulation_floraison!$C$8<=Temp_moyenne!L52,Temp_moyenne!M52,0) -> 0 | O52: 0
A53: 48 | B53: Toulouse | C53: 20.3 | D53: 22.6 | E53: 22.8 | F53: 19.3 | G53: 15.3 | H53: 9.9 | I53: 7 | J53: 6.3 | L53: 2024-07-21 | M53: =INDEX($B$6:$J$55,Simulation_floraison!$C$6,3) -> 20.8 | N53: =IF(Simulation_floraison!$C$8<=Temp_moyenne!L53,Temp_moyenne!M53,0) -> 0 | O53: 0
A54: 49 | B54: Tours | C54: 18 | D54: 20.2 | E54: 20.2 | F54: 16.8 | G54: 13 | H54: 8.3 | I54: 5.5 | J54: 5.1 | L54: 2024-07-22 | M54: =INDEX($B$6:$J$55,Simulation_floraison!$C$6,3) -> 20.8 | N54: =IF(Simulation_floraison!$C$8<=Temp_moyenne!L54,Temp_moyenne!M54,0) -> 0 | O54: 0
A55: 50 | B55: Troyes | C55: 17.4 | D55: 19.8 | E55: 19.6 | F55: 15.7 | G55: 11.9 | H55: 7.1 | I55: 4.3 | J55: 3.6 | L55: 2024-07-23 | M55: =INDEX($B$6:$J$55,Simulation_floraison!$C$6,3) -> 20.8 | N55: =IF(Simulation_floraison!$C$8<=Temp_moyenne!L55,Temp_moyenne!M55,0) -> 0 | O55: 0
L56: 2024-07-24 | M56: =INDEX($B$6:$J$55,Simulation_floraison!$C$6,3) -> 20.8 | N56: =IF(Simulation_floraison!$C$8<=Temp_moyenne!L56,Temp_moyenne!M56,0) -> 0 | O56: 0
L57: 2024-07-25 | M57: =INDEX($B$6:$J$55,Simulation_floraison!$C$6,3) -> 20.8 | N57: =IF(Simulation_floraison!$C$8<=Temp_moyenne!L57,Temp_moyenne!M57,0) -> 0 | O57: 0
L58: 2024-07-26 | M58: =INDEX($B$6:$J$55,Simulation_floraison!$C$6,3) -> 20.8 | N58: =IF(Simulation_floraison!$C$8<=Temp_moyenne!L58,Temp_moyenne!M58,0) -> 0 | O58: 0
L59: 2024-07-27 | M59: =INDEX($B$6:$J$55,Simulation_floraison!$C$6,3) -> 20.8 | N59: =IF(Simulation_floraison!$C$8<=Temp_moyenne!L59,Temp_moyenne!M59,0) -> 0 | O59: 0
L60: 2024-07-28 | M60: =INDEX($B$6:$J$55,Simulation_floraison!$C$6,3) -> 20.8 | N60: =IF(Simulation_floraison!$C$8<=Temp_moyenne!L60,Temp_moyenne!M60,0) -> 0 | O60: 0
L61: 2024-07-29 | M61: =INDEX($B$6:$J$55,Simulation_floraison!$C$6,3) -> 20.8 | N61: =IF(Simulation_floraison!$C$8<=Temp_moyenne!L61,Temp_moyenne!M61,0) -> 0 | O61: 0
L62: 2024-07-30 | M62: =INDEX($B$6:$J$55,Simulation_floraison!$C$6,3) -> 20.8 | N62: =IF(Simulation_floraison!$C$8<=Temp_moyenne!L62,Temp_moyenne!M62,0) -> 0 | O62: 0
L63: 2024-07-31 | M63: =INDEX($B$6:$J$55,Simulation_floraison!$C$6,3) -> 20.8 | N63: =IF(Simulation_floraison!$C$8<=Temp_moyenne!L63,Temp_moyenne!M63,0) -> 0 | O63: 0
L64: 2024-08-01 | M64: =INDEX($B$6:$J$55,Simulation_floraison!$C$6,4) -> 20.4 | N64: =IF(Simulation_floraison!$C$8<=Temp_moyenne!L64,Temp_moyenne!M64,0) -> 0 | O64: 0
L65: 2024-08-02 | M65: =INDEX($B$6:$J$55,Simulation_floraison!$C$6,4) -> 20.4 | N65: =IF(Simulation_floraison!$C$8<=Temp_moyenne!L65,Temp_moyenne!M65,0) -> 0 | O65: 0
L66: 2024-08-03 | M66: =INDEX($B$6:$J$55,Simulation_floraison!$C$6,4) -> 20.4 | N66: =IF(Simulation_floraison!$C$8<=Temp_moyenne!L66,Temp_moyenne!M66,0) -> 0 | O66: 0
L67: 2024-08-04 | M67: =INDEX($B$6:$J$55,Simulation_floraison!$C$6,4) -> 20.4 | N67: =IF(Simulation_floraison!$C$8<=Temp_moyenne!L67,Temp_moyenne!M67,0) -> 0 | O67: 0
L68: 2024-08-05 | M68: =INDEX($B$6:$J$55,Simulation_floraison!$C$6,4) -> 20.4 | N68: =IF(Simulation_floraison!$C$8<=Temp_moyenne!L68,Temp_moyenne!M68,0) -> 0 | O68: 0
L69: 2024-08-06 | M69: =INDEX($B$6:$J$55,Simulation_floraison!$C$6,4) -> 20.4 | N69: =IF(Simulation_floraison!$C$8<=Temp_moyenne!L69,Temp_moyenne!M69,0) -> 0 | O69: =N69+O68 -> 0
L70: 2024-08-07 | M70: =INDEX($B$6:$J$55,Simulation_floraison!$C$6,4) -> 20.4 | N70: =IF(Simulation_floraison!$C$8<=Temp_moyenne!L70,Temp_moyenne!M70,0) -> 0 | O70: 0
L71: 2024-08-08 | M71: =INDEX($B$6:$J$55,Simulation_floraison!$C$6,4) -> 20.4 | N71: =IF(Simulation_floraison!$C$8<=Temp_moyenne!L71,Temp_moyenne!M71,0) -> 0 | O71: 0
L72: 2024-08-09 | M72: =INDEX($B$6:$J$55,Simulation_floraison!$C$6,4) -> 20.4 | N72: =IF(Simulation_floraison!$C$8<=Temp_moyenne!L72,Temp_moyenne!M72,0) -> 0 | O72: 0
L73: 2024-08-10 | M73: =INDEX($B$6:$J$55,Simulation_floraison!$C$6,4) -> 20.4 | N73: =IF(Simulation_floraison!$C$8<=Temp_moyenne!L73,Temp_moyenne!M73,0) -> 0 | O73: 0
L74: 2024-08-11 | M74: =INDEX($B$6:$J$55,Simulation_floraison!$C$6,4) -> 20.4 | N74: =IF(Simulation_floraison!$C$8<=Temp_moyenne!L74,Temp_moyenne!M74,0) -> 0 | O74: 0
L75: 2024-08-12 | M75: =INDEX($B$6:$J$55,Simulation_floraison!$C$6,4) -> 20.4 | N75: =IF(Simulation_floraison!$C$8<=Temp_moyenne!L75,Temp_moyenne!M75,0) -> 0 | O75: 0
L76: 2024-08-13 | M76: =INDEX($B$6:$J$55,Simulation_floraison!$C$6,4) -> 20.4 | N76: =IF(Simulation_floraison!$C$8<=Temp_moyenne!L76,Temp_moyenne!M76,0) -> 0 | O76: 0
L77: 2024-08-14 | M77: =INDEX($B$6:$J$55,Simulation_floraison!$C$6,4) -> 20.4 | N77: =IF(Simulation_floraison!$C$8<=Temp_moyenne!L77,Temp_moyenne!M77,0) -> 0 | O77: 0
L78: 2024-08-15 | M78: =INDEX($B$6:$J$55,Simulation_floraison!$C$6,4) -> 20.4 | N78: =IF(Simulation_floraison!$C$8<=Temp_moyenne!L78,Temp_moyenne!M78,0) -> 20.4 | O78: 20.4
L79: 2024-08-16 | M79: =INDEX($B$6:$J$55,Simulation_floraison!$C$6,4) -> 20.4 | N79: =IF(Simulation_floraison!$C$8<=Temp_moyenne!L79,Temp_moyenne!M79,0) -> 20.4 | O79: 40.8
L80: 2024-08-17 | M80: =INDEX($B$6:$J$55,Simulation_floraison!$C$6,4) -> 20.4 | N80: =IF(Simulation_floraison!$C$8<=Temp_moyenne!L80,Temp_moyenne!M80,0) -> 20.4 | O80: 61.2
L81: 2024-08-18 | M81: =INDEX($B$6:$J$55,Simulation_floraison!$C$6,4) -> 20.4 | N81: =IF(Simulation_floraison!$C$8<=Temp_moyenne!L81,Temp_moyenne!M81,0) -> 20.4 | O81: 81.6
L82: 2024-08-19 | M82: =INDEX($B$6:$J$55,Simulation_floraison!$C$6,4) -> 20.4 | N82: =IF(Simulation_floraison!$C$8<=Temp_moyenne!L82,Temp_moyenne!M82,0) -> 20.4 | O82: 102
L83: 2024-08-20 | M83: =INDEX($B$6:$J$55,Simulation_floraison!$C$6,4) -> 20.4 | N83: =IF(Simulation_floraison!$C$8<=Temp_moyenne!L83,Temp_moyenne!M83,0) -> 20.4 | O83: 122.4
L84: 2024-08-21 | M84: =INDEX($B$6:$J$55,Simulation_floraison!$C$6,4) -> 20.4 | N84: =IF(Simulation_floraison!$C$8<=Temp_moyenne!L84,Temp_moyenne!M84,0) -> 20.4 | O84: 142.8
L85: 2024-08-22 | M85: =INDEX($B$6:$J$55,Simulation_floraison!$C$6,4) -> 20.4 | N85: =IF(Simulation_floraison!$C$8<=Temp_moyenne!L85,Temp_moyenne!M85,0) -> 20.4 | O85: 163.2
L86: 2024-08-23 | M86: =INDEX($B$6:$J$55,Simulation_floraison!$C$6,4) -> 20.4 | N86: =IF(Simulation_floraison!$C$8<=Temp_moyenne!L86,Temp_moyenne!M86,0) -> 20.4 | O86: 183.6
L87: 2024-08-24 | M87: =INDEX($B$6:$J$55,Simulation_floraison!$C$6,4) -> 20.4 | N87: =IF(Simulation_floraison!$C$8<=Temp_moyenne!L87,Temp_moyenne!M87,0) -> 20.4 | O87: 204
L88: 2024-08-25 | M88: =INDEX($B$6:$J$55,Simulation_floraison!$C$6,4) -> 20.4 | N88: =IF(Simulation_floraison!$C$8<=Temp_moyenne!L88,Temp_moyenne!M88,0) -> 20.4 | O88: 224.4
L89: 2024-08-26 | M89: =INDEX($B$6:$J$55,Simulation_floraison!$C$6,4) -> 20.4 | N89: =IF(Simulation_floraison!$C$8<=Temp_moyenne!L89,Temp_moyenne!M89,0) -> 20.4 | O89: 244.8
L90: 2024-08-27 | M90: =INDEX($B$6:$J$55,Simulation_floraison!$C$6,4) -> 20.4 | N90: =IF(Simulation_floraison!$C$8<=Temp_moyenne!L90,Temp_moyenne!M90,0) -> 20.4 | O90: 265.2
L91: 2024-08-28 | M91: =INDEX($B$6:$J$55,Simulation_floraison!$C$6,4) -> 20.4 | N91: =IF(Simulation_floraison!$C$8<=Temp_moyenne!L91,Temp_moyenne!M91,0) -> 20.4 | O91: 285.6
L92: 2024-08-29 | M92: =INDEX($B$6:$J$55,Simulation_floraison!$C$6,4) -> 20.4 | N92: =IF(Simulation_floraison!$C$8<=Temp_moyenne!L92,Temp_moyenne!M92,0) -> 20.4 | O92: 306
L93: 2024-08-30 | M93: =INDEX($B$6:$J$55,Simulation_floraison!$C$6,4) -> 20.4 | N93: =IF(Simulation_floraison!$C$8<=Temp_moyenne!L93,Temp_moyenne!M93,0) -> 20.4 | O93: 326.4
L94: 2024-08-31 | M94: =INDEX($B$6:$J$55,Simulation_floraison!$C$6,4) -> 20.4 | N94: =IF(Simulation_floraison!$C$8<=Temp_moyenne!L94,Temp_moyenne!M94,0) -> 20.4 | O94: 346.8
L95: 2024-09-01 | M95: =INDEX($B$6:$J$55,Simulation_floraison!$C$6,5) -> 16.4 | N95: =IF(Simulation_floraison!$C$8<=Temp_moyenne!L95,Temp_moyenne!M95,0) -> 16.4 | O95: 363.2
L96: 2024-09-02 | M96: =INDEX($B$6:$J$55,Simulation_floraison!$C$6,5) -> 16.4 | N96: =IF(Simulation_floraison!$C$8<=Temp_moyenne!L96,Temp_moyenne!M96,0) -> 16.4 | O96: 379.6
L97: 2024-09-03 | M97: =INDEX($B$6:$J$55,Simulation_floraison!$C$6,5) -> 16.4 | N97: =IF(Simulation_floraison!$C$8<=Temp_moyenne!L97,Temp_moyenne!M97,0) -> 16.4 | O97: 396
L98: 2024-09-04 | M98: =INDEX($B$6:$J$55,Simulation_floraison!$C$6,5) -> 16.4 | N98: =IF(Simulation_floraison!$C$8<=Temp_moyenne!L98,Temp_moyenne!M98,0) -> 16.4 | O98: 412.4
L99: 2024-09-05 | M99: =INDEX($B$6:$J$55,Simulation_floraison!$C$6,5) -> 16.4 | N99: =IF(Simulation_floraison!$C$8<=Temp_moyenne!L99,Temp_moyenne!M99,0) -> 16.4 | O99: 428.8
L100: 2024-09-06 | M100: =INDEX($B$6:$J$55,Simulation_floraison!$C$6,5) -> 16.4 | N100: =IF(Simulation_floraison!$C$8<=Temp_moyenne!L100,Temp_moyenne!M100,0) -> 16.4 | O100: 445.2
L101: 2024-09-07 | M101: =INDEX($B$6:$J$55,Simulation_floraison!$C$6,5) -> 16.4 | N101: =IF(Simulation_floraison!$C$8<=Temp_moyenne!L101,Temp_moyenne!M101,0) -> 16.4 | O101: 461.6
L102: 2024-09-08 | M102: =INDEX($B$6:$J$55,Simulation_floraison!$C$6,5) -> 16.4 | N102: =IF(Simulation_floraison!$C$8<=Temp_moyenne!L102,Temp_moyenne!M102,0) -> 16.4 | O102: 478
L103: 2024-09-09 | M103: =INDEX($B$6:$J$55,Simulation_floraison!$C$6,5) -> 16.4 | N103: =IF(Simulation_floraison!$C$8<=Temp_moyenne!L103,Temp_moyenne!M103,0) -> 16.4 | O103: 494.4
L104: 2024-09-10 | M104: =INDEX($B$6:$J$55,Simulation_floraison!$C$6,5) -> 16.4 | N104: =IF(Simulation_floraison!$C$8<=Temp_moyenne!L104,Temp_moyenne!M104,0) -> 16.4 | O104: 510.8
L105: 2024-09-11 | M105: =INDEX($B$6:$J$55,Simulation_floraison!$C$6,5) -> 16.4 | N105: =IF(Simulation_floraison!$C$8<=Temp_moyenne!L105,Temp_moyenne!M105,0) -> 16.4 | O105: 527.2
L106: 2024-09-12 | M106: =INDEX($B$6:$J$55,Simulation_floraison!$C$6,5) -> 16.4 | N106: =IF(Simulation_floraison!$C$8<=Temp_moyenne!L106,Temp_moyenne!M106,0) -> 16.4 | O106: 543.6
L107: 2024-09-13 | M107: =INDEX($B$6:$J$55,Simulation_floraison!$C$6,5) -> 16.4 | N107: =IF(Simulation_floraison!$C$8<=Temp_moyenne!L107,Temp_moyenne!M107,0) -> 16.4 | O107: 560
L108: 2024-09-14 | M108: =INDEX($B$6:$J$55,Simulation_floraison!$C$6,5) -> 16.4 | N108: =IF(Simulation_floraison!$C$8<=Temp_moyenne!L108,Temp_moyenne!M108,0) -> 16.4 | O108: 576.4
L109: 2024-09-15 | M109: =INDEX($B$6:$J$55,Simulation_floraison!$C$6,5) -> 16.4 | N109: =IF(Simulation_floraison!$C$8<=Temp_moyenne!L109,Temp_moyenne!M109,0) -> 16.4 | O109: 592.8
L110: 2024-09-16 | M110: =INDEX($B$6:$J$55,Simulation_floraison!$C$6,5) -> 16.4 | N110: =IF(Simulation_floraison!$C$8<=Temp_moyenne!L110,Temp_moyenne!M110,0) -> 16.4 | O110: 609.2
L111: 2024-09-17 | M111: =INDEX($B$6:$J$55,Simulation_floraison!$C$6,5) -> 16.4 | N111: =IF(Simulation_floraison!$C$8<=Temp_moyenne!L111,Temp_moyenne!M111,0) -> 16.4 | O111: 625.6
L112: 2024-09-18 | M112: =INDEX($B$6:$J$55,Simulation_floraison!$C$6,5) -> 16.4 | N112: =IF(Simulation_floraison!$C$8<=Temp_moyenne!L112,Temp_moyenne!M112,0) -> 16.4 | O112: 642
L113: 2024-09-19 | M113: =INDEX($B$6:$J$55,Simulation_floraison!$C$6,5) -> 16.4 | N113: =IF(Simulation_floraison!$C$8<=Temp_moyenne!L113,Temp_moyenne!M113,0) -> 16.4 | O113: 658.4
L114: 2024-09-20 | M114: =INDEX($B$6:$J$55,Simulation_floraison!$C$6,5) -> 16.4 | N114: =IF(Simulation_floraison!$C$8<=Temp_moyenne!L114,Temp_moyenne!M114,0) -> 16.4 | O114: 674.8
L115: 2024-09-21 | M115: =INDEX($B$6:$J$55,Simulation_floraison!$C$6,5) -> 16.4 | N115: =IF(Simulation_floraison!$C$8<=Temp_moyenne!L115,Temp_moyenne!M115,0) -> 16.4 | O115: 691.2
L116: 2024-09-22 | M116: =INDEX($B$6:$J$55,Simulation_floraison!$C$6,5) -> 16.4 | N116: =IF(Simulation_floraison!$C$8<=Temp_moyenne!L116,Temp_moyenne!M116,0) -> 16.4 | O116: 707.6
L117: 2024-09-23 | M117: =INDEX($B$6:$J$55,Simulation_floraison!$C$6,5) -> 16.4 | N117: =IF(Simulation_floraison!$C$8<=Temp_moyenne!L117,Temp_moyenne!M117,0) -> 16.4 | O117: 724
L118: 2024-09-24 | M118: =INDEX($B$6:$J$55,Simulation_floraison!$C$6,5) -> 16.4 | N118: =IF(Simulation_floraison!$C$8<=Temp_moyenne!L118,Temp_moyenne!M118,0) -> 16.4 | O118: 740.4
L119: 2024-09-25 | M119: =INDEX($B$6:$J$55,Simulation_floraison!$C$6,5) -> 16.4 | N119: =IF(Simulation_floraison!$C$8<=Temp_moyenne!L119,Temp_moyenne!M119,0) -> 16.4 | O119: 756.8
L120: 2024-09-26 | M120: =INDEX($B$6:$J$55,Simulation_floraison!$C$6,5) -> 16.4 | N120: =IF(Simulation_floraison!$C$8<=Temp_moyenne!L120,Temp_moyenne!M120,0) -> 16.4 | O120: 773.2
L121: 2024-09-27 | M121: =INDEX($B$6:$J$55,Simulation_floraison!$C$6,5) -> 16.4 | N121: =IF(Simulation_floraison!$C$8<=Temp_moyenne!L121,Temp_moyenne!M121,0) -> 16.4 | O121: 789.6
L122: 2024-09-28 | M122: =INDEX($B$6:$J$55,Simulation_floraison!$C$6,5) -> 16.4 | N122: =IF(Simulation_floraison!$C$8<=Temp_moyenne!L122,Temp_moyenne!M122,0) -> 16.4 | O122: 806
L123: 2024-09-29 | M123: =INDEX($B$6:$J$55,Simulation_floraison!$C$6,5) -> 16.4 | N123: =IF(Simulation_floraison!$C$8<=Temp_moyenne!L123,Temp_moyenne!M123,0) -> 16.4 | O123: 822.4
L124: 2024-09-30 | M124: =INDEX($B$6:$J$55,Simulation_floraison!$C$6,5) -> 16.4 | N124: =IF(Simulation_floraison!$C$8<=Temp_moyenne!L124,Temp_moyenne!M124,0) -> 16.4 | O124: 838.8
L125: 2024-10-01 | M125: =INDEX($B$6:$J$55,Simulation_floraison!$C$6,6) -> 11.8 | N125: =IF(Simulation_floraison!$C$8<=Temp_moyenne!L125,Temp_moyenne!M125,0) -> 11.8 | O125: 850.6
L126: 2024-10-02 | M126: =INDEX($B$6:$J$55,Simulation_floraison!$C$6,6) -> 11.8 | N126: =IF(Simulation_floraison!$C$8<=Temp_moyenne!L126,Temp_moyenne!M126,0) -> 11.8 | O126: 862.4
L127: 2024-10-03 | M127: =INDEX($B$6:$J$55,Simulation_floraison!$C$6,6) -> 11.8 | N127: =IF(Simulation_floraison!$C$8<=Temp_moyenne!L127,Temp_moyenne!M127,0) -> 11.8 | O127: 874.2
L128: 2024-10-04 | M128: =INDEX($B$6:$J$55,Simulation_floraison!$C$6,6) -> 11.8 | N128: =IF(Simulation_floraison!$C$8<=Temp_moyenne!L128,Temp_moyenne!M128,0) -> 11.8 | O128: 886
L129: 2024-10-05 | M129: =INDEX($B$6:$J$55,Simulation_floraison!$C$6,6) -> 11.8 | N129: =IF(Simulation_floraison!$C$8<=Temp_moyenne!L129,Temp_moyenne!M129,0) -> 11.8 | O129: 897.8
L130: 2024-10-06 | M130: =INDEX($B$6:$J$55,Simulation_floraison!$C$6,6) -> 11.8 | N130: =IF(Simulation_floraison!$C$8<=Temp_moyenne!L130,Temp_moyenne!M130,0) -> 11.8 | O130: 909.6
L131: 2024-10-07 | M131: =INDEX($B$6:$J$55,Simulation_floraison!$C$6,6) -> 11.8 | N131: =IF(Simulation_floraison!$C$8<=Temp_moyenne!L131,Temp_moyenne!M131,0) -> 11.8 | O131: 921.4
L132: 2024-10-08 | M132: =INDEX($B$6:$J$55,Simulation_floraison!$C$6,6) -> 11.8 | N132: =IF(Simulation_floraison!$C$8<=Temp_moyenne!L132,Temp_moyenne!M132,0) -> 11.8 | O132: 933.2
L133: 2024-10-09 | M133: =INDEX($B$6:$J$55,Simulation_floraison!$C$6,6) -> 11.8 | N133: =IF(Simulation_floraison!$C$8<=Temp_moyenne!L133,Temp_moyenne!M133,0) -> 11.8 | O133: =N133+O132 -> 945
L134: 2024-10-10 | M134: =INDEX($B$6:$J$55,Simulation_floraison!$C$6,6) -> 11.8 | N134: =IF(Simulation_floraison!$C$8<=Temp_moyenne!L134,Temp_moyenne!M134,0) -> 11.8 | O134: 956.8
L135: 2024-10-11 | M135: =INDEX($B$6:$J$55,Simulation_floraison!$C$6,6) -> 11.8 | N135: =IF(Simulation_floraison!$C$8<=Temp_moyenne!L135,Temp_moyenne!M135,0) -> 11.8 | O135: 968.6
L136: 2024-10-12 | M136: =INDEX($B$6:$J$55,Simulation_floraison!$C$6,6) -> 11.8 | N136: =IF(Simulation_floraison!$C$8<=Temp_moyenne!L136,Temp_moyenne!M136,0) -> 11.8 | O136: 980.4
L137: 2024-10-13 | M137: =INDEX($B$6:$J$55,Simulation_floraison!$C$6,6) -> 11.8 | N137: =IF(Simulation_floraison!$C$8<=Temp_moyenne!L137,Temp_moyenne!M137,0) -> 11.8 | O137: 992.2
L138: 2024-10-14 | M138: =INDEX($B$6:$J$55,Simulation_floraison!$C$6,6) -> 11.8 | N138: =IF(Simulation_floraison!$C$8<=Temp_moyenne!L138,Temp_moyenne!M138,0) -> 11.8 | O138: 1004
L139: 2024-10-15 | M139: =INDEX($B$6:$J$55,Simulation_floraison!$C$6,6) -> 11.8 | N139: =IF(Simulation_floraison!$C$8<=Temp_moyenne!L139,Temp_moyenne!M139,0) -> 11.8 | O139: 1015.8
L140: 2024-10-16 | M140: =INDEX($B$6:$J$55,Simulation_floraison!$C$6,6) -> 11.8 | N140: =IF(Simulation_floraison!$C$8<=Temp_moyenne!L140,Temp_moyenne!M140,0) -> 11.8 | O140: 1027.6
L141: 2024-10-17 | M141: =INDEX($B$6:$J$55,Simulation_floraison!$C$6,6) -> 11.8 | N141: =IF(Simulation_floraison!$C$8<=Temp_moyenne!L141,Temp_moyenne!M141,0) -> 11.8 | O141: 1039.4
L142: 2024-10-18 | M142: =INDEX($B$6:$J$55,Simulation_floraison!$C$6,6) -> 11.8 | N142: =IF(Simulation_floraison!$C$8<=Temp_moyenne!L142,Temp_moyenne!M142,0) -> 11.8 | O142: 1051.2
L143: 2024-10-19 | M143: =INDEX($B$6:$J$55,Simulation_floraison!$C$6,6) -> 11.8 | N143: =IF(Simulation_floraison!$C$8<=Temp_moyenne!L143,Temp_moyenne!M143,0) -> 11.8 | O143: 1063
L144: 2024-10-20 | M144: =INDEX($B$6:$J$55,Simulation_floraison!$C$6,6) -> 11.8 | N144: =IF(Simulation_floraison!$C$8<=Temp_moyenne!L144,Temp_moyenne!M144,0) -> 11.8 | O144: 1074.8
L145: 2024-10-21 | M145: =INDEX($B$6:$J$55,Simulation_floraison!$C$6,6) -> 11.8 | N145: =IF(Simulation_floraison!$C$8<=Temp_moyenne!L145,Temp_moyenne!M145,0) -> 11.8 | O145: 1086.6
L146: 2024-10-22 | M146: =INDEX($B$6:$J$55,Simulation_floraison!$C$6,6) -> 11.8 | N146: =IF(Simulation_floraison!$C$8<=Temp_moyenne!L146,Temp_moyenne!M146,0) -> 11.8 | O146: 1098.4
L147: 2024-10-23 | M147: =INDEX($B$6:$J$55,Simulation_floraison!$C$6,6) -> 11.8 | N147: =IF(Simulation_floraison!$C$8<=Temp_moyenne!L147,Temp_moyenne!M147,0) -> 11.8 | O147: 1110.2
L148: 2024-10-24 | M148: =INDEX($B$6:$J$55,Simulation_floraison!$C$6,6) -> 11.8 | N148: =IF(Simulation_floraison!$C$8<=Temp_moyenne!L148,Temp_moyenne!M148,0) -> 11.8 | O148: 1122
L149: 2024-10-25 | M149: =INDEX($B$6:$J$55,Simulation_floraison!$C$6,6) -> 11.8 | N149: =IF(Simulation_floraison!$C$8<=Temp_moyenne!L149,Temp_moyenne!M149,0) -> 11.8 | O149: 1133.8
L150: 2024-10-26 | M150: =INDEX($B$6:$J$55,Simulation_floraison!$C$6,6) -> 11.8 | N150: =IF(Simulation_floraison!$C$8<=Temp_moyenne!L150,Temp_moyenne!M150,0) -> 11.8 | O150: 1145.6
L151: 2024-10-27 | M151: =INDEX($B$6:$J$55,Simulation_floraison!$C$6,6) -> 11.8 | N151: =IF(Simulation_floraison!$C$8<=Temp_moyenne!L151,Temp_moyenne!M151,0) -> 11.8 | O151: 1157.4
L152: 2024-10-28 | M152: =INDEX($B$6:$J$55,Simulation_floraison!$C$6,6) -> 11.8 | N152: =IF(Simulation_floraison!$C$8<=Temp_moyenne!L152,Temp_moyenne!M152,0) -> 11.8 | O152: 1169.2
L153: 2024-10-29 | M153: =INDEX($B$6:$J$55,Simulation_floraison!$C$6,6) -> 11.8 | N153: =IF(Simulation_floraison!$C$8<=Temp_moyenne!L153,Temp_moyenne!M153,0) -> 11.8 | O153: 1181
L154: 2024-10-30 | M154: =INDEX($B$6:$J$55,Simulation_floraison!$C$6,6) -> 11.8 | N154: =IF(Simulation_floraison!$C$8<=Temp_moyenne!L154,Temp_moyenne!M154,0) -> 11.8 | O154: 1192.8
L155: 2024-10-31 | M155: =INDEX($B$6:$J$55,Simulation_floraison!$C$6,6) -> 11.8 | N155: =IF(Simulation_floraison!$C$8<=Temp_moyenne!L155,Temp_moyenne!M155,0) -> 11.8 | O155: 1204.6
L156: 2024-11-01 | M156: =INDEX($B$6:$J$55,Simulation_floraison!$C$6,7) -> 6.5 | N156: =IF(Simulation_floraison!$C$8<=Temp_moyenne!L156,Temp_moyenne!M156,0) -> 6.5 | O156: 1211.1
L157: 2024-11-02 | M157: =INDEX($B$6:$J$55,Simulation_floraison!$C$6,7) -> 6.5 | N157: =IF(Simulation_floraison!$C$8<=Temp_moyenne!L157,Temp_moyenne!M157,0) -> 6.5 | O157: 1217.6
L158: 2024-11-03 | M158: =INDEX($B$6:$J$55,Simulation_floraison!$C$6,7) -> 6.5 | N158: =IF(Simulation_floraison!$C$8<=Temp_moyenne!L158,Temp_moyenne!M158,0) -> 6.5 | O158: 1224.1
L159: 2024-11-04 | M159: =INDEX($B$6:$J$55,Simulation_floraison!$C$6,7) -> 6.5 | N159: =IF(Simulation_floraison!$C$8<=Temp_moyenne!L159,Temp_moyenne!M159,0) -> 6.5 | O159: 1230.6
L160: 2024-11-05 | M160: =INDEX($B$6:$J$55,Simulation_floraison!$C$6,7) -> 6.5 | N160: =IF(Simulation_floraison!$C$8<=Temp_moyenne!L160,Temp_moyenne!M160,0) -> 6.5 | O160: 1237.1
L161: 2024-11-06 | M161: =INDEX($B$6:$J$55,Simulation_floraison!$C$6,7) -> 6.5 | N161: =IF(Simulation_floraison!$C$8<=Temp_moyenne!L161,Temp_moyenne!M161,0) -> 6.5 | O161: 1243.6
L162: 2024-11-07 | M162: =INDEX($B$6:$J$55,Simulation_floraison!$C$6,7) -> 6.5 | N162: =IF(Simulation_floraison!$C$8<=Temp_moyenne!L162,Temp_moyenne!M162,0) -> 6.5 | O162: 1250.1
L163: 2024-11-08 | M163: =INDEX($B$6:$J$55,Simulation_floraison!$C$6,7) -> 6.5 | N163: =IF(Simulation_floraison!$C$8<=Temp_moyenne!L163,Temp_moyenne!M163,0) -> 6.5 | O163: 1256.6
L164: 2024-11-09 | M164: =INDEX($B$6:$J$55,Simulation_floraison!$C$6,7) -> 6.5 | N164: =IF(Simulation_floraison!$C$8<=Temp_moyenne!L164,Temp_moyenne!M164,0) -> 6.5 | O164: 1263.1
L165: 2024-11-10 | M165: =INDEX($B$6:$J$55,Simulation_floraison!$C$6,7) -> 6.5 | N165: =IF(Simulation_floraison!$C$8<=Temp_moyenne!L165,Temp_moyenne!M165,0) -> 6.5 | O165: 1269.6
L166: 2024-11-11 | M166: =INDEX($B$6:$J$55,Simulation_floraison!$C$6,7) -> 6.5 | N166: =IF(Simulation_floraison!$C$8<=Temp_moyenne!L166,Temp_moyenne!M166,0) -> 6.5 | O166: 1276.1
L167: 2024-11-12 | M167: =INDEX($B$6:$J$55,Simulation_floraison!$C$6,7) -> 6.5 | N167: =IF(Simulation_floraison!$C$8<=Temp_moyenne!L167,Temp_moyenne!M167,0) -> 6.5 | O167: 1282.6
L168: 2024-11-13 | M168: =INDEX($B$6:$J$55,Simulation_floraison!$C$6,7) -> 6.5 | N168: =IF(Simulation_floraison!$C$8<=Temp_moyenne!L168,Temp_moyenne!M168,0) -> 6.5 | O168: 1289.1
L169: 2024-11-14 | M169: =INDEX($B$6:$J$55,Simulation_floraison!$C$6,7) -> 6.5 | N169: =IF(Simulation_floraison!$C$8<=Temp_moyenne!L169,Temp_moyenne!M169,0) -> 6.5 | O169: 1295.6
L170: 2024-11-15 | M170: =INDEX($B$6:$J$55,Simulation_floraison!$C$6,7) -> 6.5 | N170: =IF(Simulation_floraison!$C$8<=Temp_moyenne!L170,Temp_moyenne!M170,0) -> 6.5 | O170: 1302.1
L171: 2024-11-16 | M171: =INDEX($B$6:$J$55,Simulation_floraison!$C$6,7) -> 6.5 | N171: =IF(Simulation_floraison!$C$8<=Temp_moyenne!L171,Temp_moyenne!M171,0) -> 6.5 | O171: 1308.6
L172: 2024-11-17 | M172: =INDEX($B$6:$J$55,Simulation_floraison!$C$6,7) -> 6.5 | N172: =IF(Simulation_floraison!$C$8<=Temp_moyenne!L172,Temp_moyenne!M172,0) -> 6.5 | O172: 1315.1
L173: 2024-11-18 | M173: =INDEX($B$6:$J$55,Simulation_floraison!$C$6,7) -> 6.5 | N173: =IF(Simulation_floraison!$C$8<=Temp_moyenne!L173,Temp_moyenne!M173,0) -> 6.5 | O173: 1321.6
L174: 2024-11-19 | M174: =INDEX($B$6:$J$55,Simulation_floraison!$C$6,7) -> 6.5 | N174: =IF(Simulation_floraison!$C$8<=Temp_moyenne!L174,Temp_moyenne!M174,0) -> 6.5 | O174: 1328.1
L175: 2024-11-20 | M175: =INDEX($B$6:$J$55,Simulation_floraison!$C$6,7) -> 6.5 | N175: =IF(Simulation_floraison!$C$8<=Temp_moyenne!L175,Temp_moyenne!M175,0) -> 6.5 | O175: 1334.6
L176: 2024-11-21 | M176: =INDEX($B$6:$J$55,Simulation_floraison!$C$6,7) -> 6.5 | N176: =IF(Simulation_floraison!$C$8<=Temp_moyenne!L176,Temp_moyenne!M176,0) -> 6.5 | O176: 1341.1
L177: 2024-11-22 | M177: =INDEX($B$6:$J$55,Simulation_floraison!$C$6,7) -> 6.5 | N177: =IF(Simulation_floraison!$C$8<=Temp_moyenne!L177,Temp_moyenne!M177,0) -> 6.5 | O177: 1347.6
L178: 2024-11-23 | M178: =INDEX($B$6:$J$55,Simulation_floraison!$C$6,7) -> 6.5 | N178: =IF(Simulation_floraison!$C$8<=Temp_moyenne!L178,Temp_moyenne!M178,0) -> 6.5 | O178: 1354.1
L179: 2024-11-24 | M179: =INDEX($B$6:$J$55,Simulation_floraison!$C$6,7) -> 6.5 | N179: =IF(Simulation_floraison!$C$8<=Temp_moyenne!L179,Temp_moyenne!M179,0) -> 6.5 | O179: 1360.6
L180: 2024-11-25 | M180: =INDEX($B$6:$J$55,Simulation_floraison!$C$6,7) -> 6.5 | N180: =IF(Simulation_floraison!$C$8<=Temp_moyenne!L180,Temp_moyenne!M180,0) -> 6.5 | O180: 1367.1
L181: 2024-11-26 | M181: =INDEX($B$6:$J$55,Simulation_floraison!$C$6,7) -> 6.5 | N181: =IF(Simulation_floraison!$C$8<=Temp_moyenne!L181,Temp_moyenne!M181,0) -> 6.5 | O181: 1373.6
L182: 2024-11-27 | M182: =INDEX($B$6:$J$55,Simulation_floraison!$C$6,7) -> 6.5 | N182: =IF(Simulation_floraison!$C$8<=Temp_moyenne!L182,Temp_moyenne!M182,0) -> 6.5 | O182: 1380.1
L183: 2024-11-28 | M183: =INDEX($B$6:$J$55,Simulation_floraison!$C$6,7) -> 6.5 | N183: =IF(Simulation_floraison!$C$8<=Temp_moyenne!L183,Temp_moyenne!M183,0) -> 6.5 | O183: 1386.6
L184: 2024-11-29 | M184: =INDEX($B$6:$J$55,Simulation_floraison!$C$6,7) -> 6.5 | N184: =IF(Simulation_floraison!$C$8<=Temp_moyenne!L184,Temp_moyenne!M184,0) -> 6.5 | O184: 1393.1
L185: 2024-11-30 | M185: =INDEX($B$6:$J$55,Simulation_floraison!$C$6,7) -> 6.5 | N185: =IF(Simulation_floraison!$C$8<=Temp_moyenne!L185,Temp_moyenne!M185,0) -> 6.5 | O185: 1399.6
L186: 2024-12-01 | M186: =INDEX($B$6:$J$55,Simulation_floraison!$C$6,8) -> 3.4 | N186: =IF(Simulation_floraison!$C$8<=Temp_moyenne!L186,Temp_moyenne!M186,0) -> 3.4 | O186: 1403
L187: 2024-12-02 | M187: =INDEX($B$6:$J$55,Simulation_floraison!$C$6,8) -> 3.4 | N187: =IF(Simulation_floraison!$C$8<=Temp_moyenne!L187,Temp_moyenne!M187,0) -> 3.4 | O187: 1406.4
L188: 2024-12-03 | M188: =INDEX($B$6:$J$55,Simulation_floraison!$C$6,8) -> 3.4 | N188: =IF(Simulation_floraison!$C$8<=Temp_moyenne!L188,Temp_moyenne!M188,0) -> 3.4 | O188: 1409.8
L189: 2024-12-04 | M189: =INDEX($B$6:$J$55,Simulation_floraison!$C$6,8) -> 3.4 | N189: =IF(Simulation_floraison!$C$8<=Temp_moyenne!L189,Temp_moyenne!M189,0) -> 3.4 | O189: 1413.2
L190: 2024-12-05 | M190: =INDEX($B$6:$J$55,Simulation_floraison!$C$6,8) -> 3.4 | N190: =IF(Simulation_floraison!$C$8<=Temp_moyenne!L190,Temp_moyenne!M190,0) -> 3.4 | O190: 1416.6
L191: 2024-12-06 | M191: =INDEX($B$6:$J$55,Simulation_floraison!$C$6,8) -> 3.4 | N191: =IF(Simulation_floraison!$C$8<=Temp_moyenne!L191,Temp_moyenne!M191,0) -> 3.4 | O191: 1420
L192: 2024-12-07 | M192: =INDEX($B$6:$J$55,Simulation_floraison!$C$6,8) -> 3.4 | N192: =IF(Simulation_floraison!$C$8<=Temp_moyenne!L192,Temp_moyenne!M192,0) -> 3.4 | O192: 1423.4
L193: 2024-12-08 | M193: =INDEX($B$6:$J$55,Simulation_floraison!$C$6,8) -> 3.4 | N193: =IF(Simulation_floraison!$C$8<=Temp_moyenne!L193,Temp_moyenne!M193,0) -> 3.4 | O193: 1426.8
L194: 2024-12-09 | M194: =INDEX($B$6:$J$55,Simulation_floraison!$C$6,8) -> 3.4 | N194: =IF(Simulation_floraison!$C$8<=Temp_moyenne!L194,Temp_moyenne!M194,0) -> 3.4 | O194: 1430.2
L195: 2024-12-10 | M195: =INDEX($B$6:$J$55,Simulation_floraison!$C$6,8) -> 3.4 | N195: =IF(Simulation_floraison!$C$8<=Temp_moyenne!L195,Temp_moyenne!M195,0) -> 3.4 | O195: 1433.6
L196: 2024-12-11 | M196: =INDEX($B$6:$J$55,Simulation_floraison!$C$6,8) -> 3.4 | N196: =IF(Simulation_floraison!$C$8<=Temp_moyenne!L196,Temp_moyenne!M196,0) -> 3.4 | O196: 1437
L197: 2024-12-12 | M197: =INDEX($B$6:$J$55,Simulation_floraison!$C$6,8) -> 3.4 | N197: =IF(Simulation_floraison!$C$8<=Temp_moyenne!L197,Temp_moyenne!M197,0) -> 3.4 | O197: =N197+O196 -> 1440.4
L198: 2024-12-13 | M198: =INDEX($B$6:$J$55,Simulation_floraison!$C$6,8) -> 3.4 | N198: =IF(Simulation_floraison!$C$8<=Temp_moyenne!L198,Temp_moyenne!M198,0) -> 3.4 | O198: 1443.8
L199: 2024-12-14 | M199: =INDEX($B$6:$J$55,Simulation_floraison!$C$6,8) -> 3.4 | N199: =IF(Simulation_floraison!$C$8<=Temp_moyenne!L199,Temp_moyenne!M199,0) -> 3.4 | O199: 1447.2
L200: 2024-12-15 | M200: =INDEX($B$6:$J$55,Simulation_floraison!$C$6,8) -> 3.4 | N200: =IF(Simulation_floraison!$C$8<=Temp_moyenne!L200,Temp_moyenne!M200,0) -> 3.4 | O200: 1450.6
L201: 2024-12-16 | M201: =INDEX($B$6:$J$55,Simulation_floraison!$C$6,8) -> 3.4 | N201: =IF(Simulation_floraison!$C$8<=Temp_moyenne!L201,Temp_moyenne!M201,0) -> 3.4 | O201: 1454
... 30 more rows

Sheet Simulation_floraison
C5: Station météo
C6: 19
C7: Date de levée
C8: 2024-08-15
D10: Août | H10: Septembre | L10: Octobre | P10: Novembre | T10: Décembre | X10: Janvier
D11: S1 | E11: S2 | F11: S3 | G11: S4 | H11: S1 | I11: S2 | J11: S3 | K11: S4 | L11: S1 | M11: S2 | N11: S3 | O11: S4 | P11: S1 | Q11: S2 | R11: S3 | S11: S4 | T11: S1 | U11: S2 | V11: S3 | W11: S4 | X11: S1 | Y11: S2 | Z11: Proc Flo | AA11: Flo | AB11: Post flo | AN11: Conseillé | AS11: Ajusté | AW11: PMG | AX11: NB pieds Conseillé | AY11: NB ajusté
B12: =IF(C12="", "", VLOOKUP(Simulation_floraison!C12,BDD!$A$6:$M$64,13,1)) -> 35 | C12: =IF(Composition!C10<>"", Composition!C10, "") -> Radis chinois | D12: =IF(C12<>"",Temp_moyenne!$O$71,"") -> 0 | E12: =IF(C12<>"",Temp_moyenne!$O$79,"") -> 40.8 | F12: =IF(C12<>"",Temp_moyenne!$O$87,"") -> 204 | G12: =IF(C12<>"",Temp_moyenne!$O$94,"") -> 346.8 | H12: =IF(C12<>"",Temp_moyenne!$O$102,"") -> 478 | I12: =IF(C12<>"",Temp_moyenne!$O$110,"") -> 609.2 | J12: =IF(C12<>"",Temp_moyenne!$O$118,"") -> 740.4 | K12: =IF(C12<>"",Temp_moyenne!$O$124,"") -> 838.8 | L12: =IF(C12<>"",Temp_moyenne!$O$132,"") -> 933.2 | M12: =IF(C12<>"",Temp_moyenne!$O$140,"") -> 1027.6 | N12: =IF(C12<>"",Temp_moyenne!$O$148,"") -> 1122 | O12: =IF(C12<>"",Temp_moyenne!$O$155,"") -> 1204.6 | P12: =IF(C12<>"",Temp_moyenne!$O$163,"") -> 1256.6 | Q12: =IF(C12<>"",Temp_moyenne!$O$171,"") -> 1308.6 | R12: =IF(C12<>"",Temp_moyenne!$O$179,"") -> 1360.6 | S12: =IF(C12<>"",Temp_moyenne!$O$185,"") -> 1399.6 | T12: =IF(C12<>"",Temp_moyenne!$O$193,"") -> 1426.8 | U12: =IF(C12<>"",Temp_moyenne!$O$201,"") -> 1454 | V12: =IF(C12<>"",Temp_moyenne!$O$209,"") -> 1481.2 | W12: =IF(C12<>"",Temp_moyenne!$O$216,"") -> 1505 | X12: =IF(C12<>"",Temp_moyenne!$O$224,"") -> 1526.6 | Y12: =IF(C12<>"",Temp_moyenne!$O$231,"") -> 1545.5 | Z12: =AA12-150 -> 1050 | AA12: =VLOOKUP(C12,'Parametres_couverts (2)'!$A$8:$E$67,5) -> 1200 | AB12: =AA12+250 -> 1450 | AH12: =IF(#REF!="", "", AG12*Z12) ->  | AI12: =IF(#REF!="", "",#REF!* 4) ->  | AJ12: =IF(#REF!="", "",#REF!* AC12) ->  | AK12: =AG12 -> 0 | AN12: =IF(#REF!="","",VLOOKUP(#REF!,BDD!$A$5:$I$64,2,0)) ->  | AO12: =IF(AN12="graminée",#REF!, "") ->  | AP12: =IF(AN12="Légumineuse",#REF!, "") ->  | AQ12: =IF(AN12="Crucifère",#REF!, "") ->  | AR12: =IF(SUM(AO12:AQ12)>0, "",#REF!) ->  | AS12: =IF(AN12="graminée",#REF!, "") ->  | AT12: =IF(AN12="Légumineuse",#REF!, "") ->  | AU12: =IF(AN12="Crucifère",#REF!, "") ->  | AV12: =IF(SUM(AS12:AU12)>0, "",#REF!) ->  | AW12: =IF(#REF!="","",VLOOKUP(#REF!,BDD!$A$5:$J$64,10,0)) ->  | AX12: =IF(#REF!="", "", (#REF!*100)/AW12) ->  | AY12: =IF(#REF!= "", "", (#REF!*100)/AW12) ->  | BA12: =IF(#REF!="", "",#REF!) ->  | BB12: =IF($Z$30=TRUE, AY12, AX12) -> 
B13: =IF(C13="", "", VLOOKUP(Simulation_floraison!C13,BDD!$A$6:$M$64,13,1)) -> 29 | C13: =IF(Composition!C11<>"", Composition!C11, "") -> Moutarde d'Abyssinie | D13: =IF(C13<>"",Temp_moyenne!$O$71,"") -> 0 | E13: =IF(C13<>"",Temp_moyenne!$O$79,"") -> 40.8 | F13: =IF(C13<>"",Temp_moyenne!$O$87,"") -> 204 | G13: =IF(C13<>"",Temp_moyenne!$O$94,"") -> 346.8 | H13: =IF(C13<>"",Temp_moyenne!$O$102,"") -> 478 | I13: =IF(C13<>"",Temp_moyenne!$O$110,"") -> 609.2 | J13: =IF(C13<>"",Temp_moyenne!$O$118,"") -> 740.4 | K13: =IF(C13<>"",Temp_moyenne!$O$124,"") -> 838.8 | L13: =IF(C13<>"",Temp_moyenne!$O$132,"") -> 933.2 | M13: =IF(C13<>"",Temp_moyenne!$O$140,"") -> 1027.6 | N13: =IF(C13<>"",Temp_moyenne!$O$148,"") -> 1122 | O13: =IF(C13<>"",Temp_moyenne!$O$155,"") -> 1204.6 | P13: =IF(C13<>"",Temp_moyenne!$O$163,"") -> 1256.6 | Q13: =IF(C13<>"",Temp_moyenne!$O$171,"") -> 1308.6 | R13: =IF(C13<>"",Temp_moyenne!$O$179,"") -> 1360.6 | S13: =IF(C13<>"",Temp_moyenne!$O$185,"") -> 1399.6 | T13: =IF(C13<>"",Temp_moyenne!$O$193,"") -> 1426.8 | U13: =IF(C13<>"",Temp_moyenne!$O$201,"") -> 1454 | V13: =IF(C13<>"",Temp_moyenne!$O$209,"") -> 1481.2 | W13: =IF(C13<>"",Temp_moyenne!$O$216,"") -> 1505 | X13: =IF(C13<>"",Temp_moyenne!$O$224,"") -> 1526.6 | Y13: =IF(C13<>"",Temp_moyenne!$O$231,"") -> 1545.5 | Z13: =AA13-150 -> 1050 | AA13: =VLOOKUP(C13,'Parametres_couverts (2)'!$A$8:$E$67,5) -> 1200 | AB13: =AA13+250 -> 1450 | AH13: =IF(#REF!="", "", AG13*Z13) ->  | AI13: =IF(#REF!="", "",#REF!* 4) ->  | AJ13: =IF(#REF!="", "",#REF!* AC13) ->  | AK13: =AG13 -> 0 | AN13: =IF(#REF!="","",VLOOKUP(#REF!,BDD!$A$5:$I$64,2,0)) ->  | AO13: =IF(AN13="graminée",#REF!, "") ->  | AP13: =IF(AN13="Légumineuse",#REF!, "") ->  | AQ13: =IF(AN13="Crucifère",#REF!, "") ->  | AR13: =IF(SUM(AO13:AQ13)>0, "",#REF!) ->  | AS13: =IF(AN13="graminée",#REF!, "") ->  | AT13: =IF(AN13="Légumineuse",#REF!, "") ->  | AU13: =IF(AN13="Crucifère",#REF!, "") ->  | AV13: =IF(SUM(AS13:AU13)>0, "",#REF!) ->  | AW13: =IF(#REF!="","",VLOOKUP(#REF!,BDD!$A$5:$J$64,10,0)) ->  | AX13: =IF(#REF!="", "", (#REF!*100)/AW13) ->  | AY13: =IF(#REF!= "", "", (#REF!*100)/AW13) ->  | BA13: =IF(#REF!="", "",#REF!) ->  | BB13: =IF($Z$30=TRUE, AY13, AX13) -> 
B14: =IF(C14="", "", VLOOKUP(Simulation_floraison!C14,BDD!$A$6:$M$64,13,1)) -> 32 | C14: =IF(Composition!C12<>"", Composition!C12, "") -> Phacélie | D14: =IF(C14<>"",Temp_moyenne!$O$71,"") -> 0 | E14: =IF(C14<>"",Temp_moyenne!$O$79,"") -> 40.8 | F14: =IF(C14<>"",Temp_moyenne!$O$87,"") -> 204 | G14: =IF(C14<>"",Temp_moyenne!$O$94,"") -> 346.8 | H14: =IF(C14<>"",Temp_moyenne!$O$102,"") -> 478 | I14: =IF(C14<>"",Temp_moyenne!$O$110,"") -> 609.2 | J14: =IF(C14<>"",Temp_moyenne!$O$118,"") -> 740.4 | K14: =IF(C14<>"",Temp_moyenne!$O$124,"") -> 838.8 | L14: =IF(C14<>"",Temp_moyenne!$O$132,"") -> 933.2 | M14: =IF(C14<>"",Temp_moyenne!$O$140,"") -> 1027.6 | N14: =IF(C14<>"",Temp_moyenne!$O$148,"") -> 1122 | O14: =IF(C14<>"",Temp_moyenne!$O$155,"") -> 1204.6 | P14: =IF(C14<>"",Temp_moyenne!$O$163,"") -> 1256.6 | Q14: =IF(C14<>"",Temp_moyenne!$O$171,"") -> 1308.6 | R14: =IF(C14<>"",Temp_moyenne!$O$179,"") -> 1360.6 | S14: =IF(C14<>"",Temp_moyenne!$O$185,"") -> 1399.6 | T14: =IF(C14<>"",Temp_moyenne!$O$193,"") -> 1426.8 | U14: =IF(C14<>"",Temp_moyenne!$O$201,"") -> 1454 | V14: =IF(C14<>"",Temp_moyenne!$O$209,"") -> 1481.2 | W14: =IF(C14<>"",Temp_moyenne!$O$216,"") -> 1505 | X14: =IF(C14<>"",Temp_moyenne!$O$224,"") -> 1526.6 | Y14: =IF(C14<>"",Temp_moyenne!$O$231,"") -> 1545.5 | Z14: 1050 | AA14: =VLOOKUP(C14,'Parametres_couverts (2)'!$A$8:$E$67,5) -> 1200 | AB14: 1450 | AH14: =IF(#REF!="", "", AG14*Z14) ->  | AI14: =IF(#REF!="", "",#REF!* 4) ->  | AJ14: =IF(#REF!="", "",#REF!* AC14) ->  | AK14: 0 | AN14: =IF(#REF!="","",VLOOKUP(#REF!,BDD!$A$5:$I$64,2,0)) ->  | AO14: =IF(AN14="graminée",#REF!, "") ->  | AP14: =IF(AN14="Légumineuse",#REF!, "") ->  | AQ14: =IF(AN14="Crucifère",#REF!, "") ->  | AR14: =IF(SUM(AO14:AQ14)>0, "",#REF!) ->  | AS14: =IF(AN14="graminée",#REF!, "") ->  | AT14: =IF(AN14="Légumineuse",#REF!, "") ->  | AU14: =IF(AN14="Crucifère",#REF!, "") ->  | AV14: =IF(SUM(AS14:AU14)>0, "",#REF!) ->  | AW14: =IF(#REF!="","",VLOOKUP(#REF!,BDD!$A$5:$J$64,10,0)) ->  | AX14: =IF(#REF!="", "", (#REF!*100)/AW14) ->  | AY14: =IF(#REF!= "", "", (#REF!*100)/AW14) ->  | BA14: =IF(#REF!="", "",#REF!) -> 
B15: =IF(C15="", "", VLOOKUP(Simulation_floraison!C15,BDD!$A$6:$M$64,13,1)) -> 46 | C15: =IF(Composition!C13<>"", Composition!C13, "") -> Trèfle d'Alexandrie | D15: =IF(C15<>"",Temp_moyenne!$O$71,"") -> 0 | E15: =IF(C15<>"",Temp_moyenne!$O$79,"") -> 40.8 | F15: =IF(C15<>"",Temp_moyenne!$O$87,"") -> 204 | G15: =IF(C15<>"",Temp_moyenne!$O$94,"") -> 346.8 | H15: =IF(C15<>"",Temp_moyenne!$O$102,"") -> 478 | I15: =IF(C15<>"",Temp_moyenne!$O$110,"") -> 609.2 | J15: =IF(C15<>"",Temp_moyenne!$O$118,"") -> 740.4 | K15: =IF(C15<>"",Temp_moyenne!$O$124,"") -> 838.8 | L15: =IF(C15<>"",Temp_moyenne!$O$132,"") -> 933.2 | M15: =IF(C15<>"",Temp_moyenne!$O$140,"") -> 1027.6 | N15: =IF(C15<>"",Temp_moyenne!$O$148,"") -> 1122 | O15: =IF(C15<>"",Temp_moyenne!$O$155,"") -> 1204.6 | P15: =IF(C15<>"",Temp_moyenne!$O$163,"") -> 1256.6 | Q15: =IF(C15<>"",Temp_moyenne!$O$171,"") -> 1308.6 | R15: =IF(C15<>"",Temp_moyenne!$O$179,"") -> 1360.6 | S15: =IF(C15<>"",Temp_moyenne!$O$185,"") -> 1399.6 | T15: =IF(C15<>"",Temp_moyenne!$O$193,"") -> 1426.8 | U15: =IF(C15<>"",Temp_moyenne!$O$201,"") -> 1454 | V15: =IF(C15<>"",Temp_moyenne!$O$209,"") -> 1481.2 | W15: =IF(C15<>"",Temp_moyenne!$O$216,"") -> 1505 | X15: =IF(C15<>"",Temp_moyenne!$O$224,"") -> 1526.6 | Y15: =IF(C15<>"",Temp_moyenne!$O$231,"") -> 1545.5 | Z15: 900 | AA15: =VLOOKUP(C15,'Parametres_couverts (2)'!$A$8:$E$67,5) -> 1050 | AB15: 1300 | AH15: =IF(#REF!="", "", AG15*Z15) ->  | AI15: =IF(#REF!="", "",#REF!* 4) ->  | AJ15: =IF(#REF!="", "",#REF!* AC15) ->  | AK15: 0 | AN15: =IF(#REF!="","",VLOOKUP(#REF!,BDD!$A$5:$I$64,2,0)) ->  | AO15: =IF(AN15="graminée",#REF!, "") ->  | AP15: =IF(AN15="Légumineuse",#REF!, "") ->  | AQ15: =IF(AN15="Crucifère",#REF!, "") ->  | AR15: =IF(SUM(AO15:AQ15)>0, "",#REF!) ->  | AS15: =IF(AN15="graminée",#REF!, "") ->  | AT15: =IF(AN15="Légumineuse",#REF!, "") ->  | AU15: =IF(AN15="Crucifère",#REF!, "") ->  | AV15: =IF(SUM(AS15:AU15)>0, "",#REF!) ->  | AW15: =IF(#REF!="","",VLOOKUP(#REF!,BDD!$A$5:$J$64,10,0)) ->  | AX15: =IF(#REF!="", "", (#REF!*100)/AW15) ->  | AY15: =IF(#REF!= "", "", (#REF!*100)/AW15) ->  | BA15: =IF(#REF!="", "",#REF!) -> 
B16: =IF(C16="", "", VLOOKUP(Simulation_floraison!C16,BDD!$A$6:$M$64,13,1)) -> 31 | C16: =IF(Composition!C14<>"", Composition!C14, "") -> Niger | D16: =IF(C16<>"",Temp_moyenne!$O$71,"") -> 0 | E16: =IF(C16<>"",Temp_moyenne!$O$79,"") -> 40.8 | F16: =IF(C16<>"",Temp_moyenne!$O$87,"") -> 204 | G16: =IF(C16<>"",Temp_moyenne!$O$94,"") -> 346.8 | H16: =IF(C16<>"",Temp_moyenne!$O$102,"") -> 478 | I16: =IF(C16<>"",Temp_moyenne!$O$110,"") -> 609.2 | J16: =IF(C16<>"",Temp_moyenne!$O$118,"") -> 740.4 | K16: =IF(C16<>"",Temp_moyenne!$O$124,"") -> 838.8 | L16: =IF(C16<>"",Temp_moyenne!$O$132,"") -> 933.2 | M16: =IF(C16<>"",Temp_moyenne!$O$140,"") -> 1027.6 | N16: =IF(C16<>"",Temp_moyenne!$O$148,"") -> 1122 | O16: =IF(C16<>"",Temp_moyenne!$O$155,"") -> 1204.6 | P16: =IF(C16<>"",Temp_moyenne!$O$163,"") -> 1256.6 | Q16: =IF(C16<>"",Temp_moyenne!$O$171,"") -> 1308.6 | R16: =IF(C16<>"",Temp_moyenne!$O$179,"") -> 1360.6 | S16: =IF(C16<>"",Temp_moyenne!$O$185,"") -> 1399.6 | T16: =IF(C16<>"",Temp_moyenne!$O$193,"") -> 1426.8 | U16: =IF(C16<>"",Temp_moyenne!$O$201,"") -> 1454 | V16: =IF(C16<>"",Temp_moyenne!$O$209,"") -> 1481.2 | W16: =IF(C16<>"",Temp_moyenne!$O$216,"") -> 1505 | X16: =IF(C16<>"",Temp_moyenne!$O$224,"") -> 1526.6 | Y16: =IF(C16<>"",Temp_moyenne!$O$231,"") -> 1545.5 | Z16: 900 | AA16: =VLOOKUP(C16,'Parametres_couverts (2)'!$A$8:$E$67,5) -> 1050 | AB16: 1300 | AH16: =IF(#REF!="", "", AG16*Z16) ->  | AI16: =IF(#REF!="", "",#REF!* 4) ->  | AJ16: =IF(#REF!="", "",#REF!* AC16) ->  | AK16: 0 | AN16: =IF(#REF!="","",VLOOKUP(#REF!,BDD!$A$5:$I$64,2,0)) ->  | AO16: =IF(AN16="graminée",#REF!, "") ->  | AP16: =IF(AN16="Légumineuse",#REF!, "") ->  | AQ16: =IF(AN16="Crucifère",#REF!, "") ->  | AR16: =IF(SUM(AO16:AQ16)>0, "",#REF!) ->  | AS16: =IF(AN16="graminée",#REF!, "") ->  | AT16: =IF(AN16="Légumineuse",#REF!, "") ->  | AU16: =IF(AN16="Crucifère",#REF!, "") ->  | AV16: =IF(SUM(AS16:AU16)>0, "",#REF!) ->  | AW16: =IF(#REF!="","",VLOOKUP(#REF!,BDD!$A$5:$J$64,10,0)) ->  | AX16: =IF(#REF!="", "", (#REF!*100)/AW16) ->  | AY16: =IF(#REF!= "", "", (#REF!*100)/AW16) ->  | BA16: =IF(#REF!="", "",#REF!) -> 
B17: =IF(C17="", "", VLOOKUP(Simulation_floraison!C17,BDD!$A$6:$M$64,13,1)) ->  | C17: =IF(Composition!C15<>"", Composition!C15, "") ->  | D17: =IF(C17<>"",Temp_moyenne!$O$71,"") ->  | E17: =IF(C17<>"",Temp_moyenne!$O$79,"") ->  | F17: =IF(C17<>"",Temp_moyenne!$O$87,"") ->  | G17: =IF(C17<>"",Temp_moyenne!$O$94,"") ->  | H17: =IF(C17<>"",Temp_moyenne!$O$102,"") ->  | I17: =IF(C17<>"",Temp_moyenne!$O$110,"") ->  | J17: =IF(C17<>"",Temp_moyenne!$O$118,"") ->  | K17: =IF(C17<>"",Temp_moyenne!$O$124,"") ->  | L17: =IF(C17<>"",Temp_moyenne!$O$132,"") ->  | M17: =IF(C17<>"",Temp_moyenne!$O$140,"") ->  | N17: =IF(C17<>"",Temp_moyenne!$O$148,"") ->  | O17: =IF(C17<>"",Temp_moyenne!$O$155,"") ->  | P17: =IF(C17<>"",Temp_moyenne!$O$163,"") ->  | Q17: =IF(C17<>"",Temp_moyenne!$O$171,"") ->  | R17: =IF(C17<>"",Temp_moyenne!$O$179,"") ->  | S17: =IF(C17<>"",Temp_moyenne!$O$185,"") ->  | T17: =IF(C17<>"",Temp_moyenne!$O$193,"") ->  | U17: =IF(C17<>"",Temp_moyenne!$O$201,"") ->  | V17: =IF(C17<>"",Temp_moyenne!$O$209,"") ->  | W17: =IF(C17<>"",Temp_moyenne!$O$216,"") ->  | X17: =IF(C17<>"",Temp_moyenne!$O$224,"") ->  | Y17: =IF(C17<>"",Temp_moyenne!$O$231,"") ->  | AA17: =VLOOKUP(C17,'Parametres_couverts (2)'!$A$8:$E$67,5) ->  | AH17: =IF(#REF!="", "", AG17*Z17) ->  | AI17: =IF(#REF!="", "",#REF!* 4) ->  | AJ17: =IF(#REF!="", "",#REF!* AC17) ->  | AK17: 0 | AN17: =IF(#REF!="","",VLOOKUP(#REF!,BDD!$A$5:$I$64,2,0)) ->  | AO17: =IF(AN17="graminée",#REF!, "") ->  | AP17: =IF(AN17="Légumineuse",#REF!, "") ->  | AQ17: =IF(AN17="Crucifère",#REF!, "") ->  | AR17: =IF(SUM(AO17:AQ17)>0, "",#REF!) ->  | AS17: =IF(AN17="graminée",#REF!, "") ->  | AT17: =IF(AN17="Légumineuse",#REF!, "") ->  | AU17: =IF(AN17="Crucifère",#REF!, "") ->  | AV17: =IF(SUM(AS17:AU17)>0, "",#REF!) ->  | AW17: =IF(#REF!="","",VLOOKUP(#REF!,BDD!$A$5:$J$64,10,0)) ->  | AX17: =IF(#REF!="", "", (#REF!*100)/AW17) ->  | AY17: =IF(#REF!= "", "", (#REF!*100)/AW17) ->  | BA17: =IF(#REF!="", "",#REF!) -> 
B18: =IF(C18="", "", VLOOKUP(Simulation_floraison!C18,BDD!$A$6:$M$64,13,1)) ->  | C18: =IF(Composition!C16<>"", Composition!C16, "") ->  | D18: =IF(C18<>"",Temp_moyenne!$O$71,"") ->  | E18: =IF(C18<>"",Temp_moyenne!$O$79,"") ->  | F18: =IF(C18<>"",Temp_moyenne!$O$87,"") ->  | G18: =IF(C18<>"",Temp_moyenne!$O$94,"") ->  | H18: =IF(C18<>"",Temp_moyenne!$O$102,"") ->  | I18: =IF(C18<>"",Temp_moyenne!$O$110,"") ->  | J18: =IF(C18<>"",Temp_moyenne!$O$118,"") ->  | K18: =IF(C18<>"",Temp_moyenne!$O$124,"") ->  | L18: =IF(C18<>"",Temp_moyenne!$O$132,"") ->  | M18: =IF(C18<>"",Temp_moyenne!$O$140,"") ->  | N18: =IF(C18<>"",Temp_moyenne!$O$148,"") ->  | O18: =IF(C18<>"",Temp_moyenne!$O$155,"") ->  | P18: =IF(C18<>"",Temp_moyenne!$O$163,"") ->  | Q18: =IF(C18<>"",Temp_moyenne!$O$171,"") ->  | R18: =IF(C18<>"",Temp_moyenne!$O$179,"") ->  | S18: =IF(C18<>"",Temp_moyenne!$O$185,"") ->  | T18: =IF(C18<>"",Temp_moyenne!$O$193,"") ->  | U18: =IF(C18<>"",Temp_moyenne!$O$201,"") ->  | V18: =IF(C18<>"",Temp_moyenne!$O$209,"") ->  | W18: =IF(C18<>"",Temp_moyenne!$O$216,"") ->  | X18: =IF(C18<>"",Temp_moyenne!$O$224,"") ->  | Y18: =IF(C18<>"",Temp_moyenne!$O$231,"") ->  | AA18: =VLOOKUP(C18,'Parametres_couverts (2)'!$A$8:$E$67,5) ->  | AH18: =IF(#REF!="", "", AG18*Z18) ->  | AI18: =IF(#REF!="", "",#REF!* 4) ->  | AJ18: =IF(#REF!="", "",#REF!* AC18) ->  | AK18: 0 | AN18: =IF(#REF!="","",VLOOKUP(#REF!,BDD!$A$5:$I$64,2,0)) ->  | AO18: =IF(AN18="graminée",#REF!, "") ->  | AP18: =IF(AN18="Légumineuse",#REF!, "") ->  | AQ18: =IF(AN18="Crucifère",#REF!, "") ->  | AR18: =IF(SUM(AO18:AQ18)>0, "",#REF!) ->  | AS18: =IF(AN18="graminée",#REF!, "") ->  | AT18: =IF(AN18="Légumineuse",#REF!, "") ->  | AU18: =IF(AN18="Crucifère",#REF!, "") ->  | AV18: =IF(SUM(AS18:AU18)>0, "",#REF!) ->  | AW18: =IF(#REF!="","",VLOOKUP(#REF!,BDD!$A$5:$J$64,10,0)) ->  | AX18: =IF(#REF!="", "", (#REF!*100)/AW18) ->  | AY18: =IF(#REF!= "", "", (#REF!*100)/AW18) ->  | BA18: =IF(#REF!="", "",#REF!) -> 
B19: =IF(C19="", "", VLOOKUP(Simulation_floraison!C19,BDD!$A$6:$M$64,13,1)) ->  | C19: =IF(Composition!C17<>"", Composition!C17, "") ->  | D19: =IF(C19<>"",Temp_moyenne!$O$71,"") ->  | E19: =IF(C19<>"",Temp_moyenne!$O$79,"") ->  | F19: =IF(C19<>"",Temp_moyenne!$O$87,"") ->  | G19: =IF(C19<>"",Temp_moyenne!$O$94,"") ->  | H19: =IF(C19<>"",Temp_moyenne!$O$102,"") ->  | I19: =IF(C19<>"",Temp_moyenne!$O$110,"") ->  | J19: =IF(C19<>"",Temp_moyenne!$O$118,"") ->  | K19: =IF(C19<>"",Temp_moyenne!$O$124,"") ->  | L19: =IF(C19<>"",Temp_moyenne!$O$132,"") ->  | M19: =IF(C19<>"",Temp_moyenne!$O$140,"") ->  | N19: =IF(C19<>"",Temp_moyenne!$O$148,"") ->  | O19: =IF(C19<>"",Temp_moyenne!$O$155,"") ->  | P19: =IF(C19<>"",Temp_moyenne!$O$163,"") ->  | Q19: =IF(C19<>"",Temp_moyenne!$O$171,"") ->  | R19: =IF(C19<>"",Temp_moyenne!$O$179,"") ->  | S19: =IF(C19<>"",Temp_moyenne!$O$185,"") ->  | T19: =IF(C19<>"",Temp_moyenne!$O$193,"") ->  | U19: =IF(C19<>"",Temp_moyenne!$O$201,"") ->  | V19: =IF(C19<>"",Temp_moyenne!$O$209,"") ->  | W19: =IF(C19<>"",Temp_moyenne!$O$216,"") ->  | X19: =IF(C19<>"",Temp_moyenne!$O$224,"") ->  | Y19: =IF(C19<>"",Temp_moyenne!$O$231,"") ->  | AA19: =VLOOKUP(C19,'Parametres_couverts (2)'!$A$8:$E$67,5) ->  | AH19: =IF(#REF!="", "", AG19*Z19) ->  | AI19: =IF(#REF!="", "",#REF!* 4) ->  | AJ19: =IF(#REF!="", "",#REF!* AC19) ->  | AK19: 0 | AN19: =IF(#REF!="","",VLOOKUP(#REF!,BDD!$A$5:$I$64,2,0)) ->  | AO19: =IF(AN19="graminée",#REF!, "") ->  | AP19: =IF(AN19="Légumineuse",#REF!, "") ->  | AQ19: =IF(AN19="Crucifère",#REF!, "") ->  | AR19: =IF(SUM(AO19:AQ19)>0, "",#REF!) ->  | AS19: =IF(AN19="graminée",#REF!, "") ->  | AT19: =IF(AN19="Légumineuse",#REF!, "") ->  | AU19: =IF(AN19="Crucifère",#REF!, "") ->  | AV19: =IF(SUM(AS19:AU19)>0, "",#REF!) ->  | AW19: =IF(#REF!="","",VLOOKUP(#REF!,BDD!$A$5:$J$64,10,0)) ->  | AX19: =IF(#REF!="", "", (#REF!*100)/AW19) ->  | AY19: =IF(#REF!= "", "", (#REF!*100)/AW19) ->  | BA19: =IF(#REF!="", "",#REF!) -> 
B20: =IF(C20="", "", VLOOKUP(Simulation_floraison!C20,BDD!$A$6:$M$64,13,1)) ->  | C20: =IF(Composition!C18<>"", Composition!C18, "") ->  | D20: =IF(C20<>"",Temp_moyenne!$O$71,"") ->  | E20: =IF(C20<>"",Temp_moyenne!$O$79,"") ->  | F20: =IF(C20<>"",Temp_moyenne!$O$87,"") ->  | G20: =IF(C20<>"",Temp_moyenne!$O$94,"") ->  | H20: =IF(C20<>"",Temp_moyenne!$O$102,"") ->  | I20: =IF(C20<>"",Temp_moyenne!$O$110,"") ->  | J20: =IF(C20<>"",Temp_moyenne!$O$118,"") ->  | K20: =IF(C20<>"",Temp_moyenne!$O$124,"") ->  | L20: =IF(C20<>"",Temp_moyenne!$O$132,"") ->  | M20: =IF(C20<>"",Temp_moyenne!$O$140,"") ->  | N20: =IF(C20<>"",Temp_moyenne!$O$148,"") ->  | O20: =IF(C20<>"",Temp_moyenne!$O$155,"") ->  | P20: =IF(C20<>"",Temp_moyenne!$O$163,"") ->  | Q20: =IF(C20<>"",Temp_moyenne!$O$171,"") ->  | R20: =IF(C20<>"",Temp_moyenne!$O$179,"") ->  | S20: =IF(C20<>"",Temp_moyenne!$O$185,"") ->  | T20: =IF(C20<>"",Temp_moyenne!$O$193,"") ->  | U20: =IF(C20<>"",Temp_moyenne!$O$201,"") ->  | V20: =IF(C20<>"",Temp_moyenne!$O$209,"") ->  | W20: =IF(C20<>"",Temp_moyenne!$O$216,"") ->  | X20: =IF(C20<>"",Temp_moyenne!$O$224,"") ->  | Y20: =IF(C20<>"",Temp_moyenne!$O$231,"") ->  | AA20: =VLOOKUP(C20,'Parametres_couverts (2)'!$A$8:$E$67,5) ->  | AH20: =IF(#REF!="", "", AG20*Z20) ->  | AI20: =IF(#REF!="", "",#REF!* 4) ->  | AJ20: =IF(#REF!="", "",#REF!* AC20) ->  | AK20: 0 | AN20: =IF(#REF!="","",VLOOKUP(#REF!,BDD!$A$5:$I$64,2,0)) ->  | AO20: =IF(AN20="graminée",#REF!, "") ->  | AP20: =IF(AN20="Légumineuse",#REF!, "") ->  | AQ20: =IF(AN20="Crucifère",#REF!, "") ->  | AR20: =IF(SUM(AO20:AQ20)>0, "",#REF!) ->  | AS20: =IF(AN20="graminée",#REF!, "") ->  | AT20: =IF(AN20="Légumineuse",#REF!, "") ->  | AU20: =IF(AN20="Crucifère",#REF!, "") ->  | AV20: =IF(SUM(AS20:AU20)>0, "",#REF!) ->  | AW20: =IF(#REF!="","",VLOOKUP(#REF!,BDD!$A$5:$J$64,10,0)) ->  | AX20: =IF(#REF!="", "", (#REF!*100)/AW20) ->  | AY20: =IF(#REF!= "", "", (#REF!*100)/AW20) ->  | BA20: =IF(#REF!="", "",#REF!) -> 
B21: =IF(C21="", "", VLOOKUP(Simulation_floraison!C21,BDD!$A$6:$M$64,13,1)) ->  | C21: =IF(Composition!C19<>"", Composition!C19, "") ->  | D21: =IF(C21<>"",Temp_moyenne!$O$71,"") ->  | E21: =IF(C21<>"",Temp_moyenne!$O$79,"") ->  | F21: =IF(C21<>"",Temp_moyenne!$O$87,"") ->  | G21: =IF(C21<>"",Temp_moyenne!$O$94,"") ->  | H21: =IF(C21<>"",Temp_moyenne!$O$102,"") ->  | I21: =IF(C21<>"",Temp_moyenne!$O$110,"") ->  | J21: =IF(C21<>"",Temp_moyenne!$O$118,"") ->  | K21: =IF(C21<>"",Temp_moyenne!$O$124,"") ->  | L21: =IF(C21<>"",Temp_moyenne!$O$132,"") ->  | M21: =IF(C21<>"",Temp_moyenne!$O$140,"") ->  | N21: =IF(C21<>"",Temp_moyenne!$O$148,"") ->  | O21: =IF(C21<>"",Temp_moyenne!$O$155,"") ->  | P21: =IF(C21<>"",Temp_moyenne!$O$163,"") ->  | Q21: =IF(C21<>"",Temp_moyenne!$O$171,"") ->  | R21: =IF(C21<>"",Temp_moyenne!$O$179,"") ->  | S21: =IF(C21<>"",Temp_moyenne!$O$185,"") ->  | T21: =IF(C21<>"",Temp_moyenne!$O$193,"") ->  | U21: =IF(C21<>"",Temp_moyenne!$O$201,"") ->  | V21: =IF(C21<>"",Temp_moyenne!$O$209,"") ->  | W21: =IF(C21<>"",Temp_moyenne!$O$216,"") ->  | X21: =IF(C21<>"",Temp_moyenne!$O$224,"") ->  | Y21: =IF(C21<>"",Temp_moyenne!$O$231,"") ->  | AA21: =VLOOKUP(C21,'Parametres_couverts (2)'!$A$8:$E$67,5) ->  | AH21: =IF(#REF!="", "", AG21*Z21) ->  | AI21: =IF(#REF!="", "",#REF!* 4) ->  | AJ21: =IF(#REF!="", "",#REF!* AC21) ->  | AK21: 0 | AN21: =IF(#REF!="","",VLOOKUP(#REF!,BDD!$A$5:$I$64,2,0)) ->  | AO21: =IF(AN21="graminée",#REF!, "") ->  | AP21: =IF(AN21="Légumineuse",#REF!, "") ->  | AQ21: =IF(AN21="Crucifère",#REF!, "") ->  | AR21: =IF(SUM(AO21:AQ21)>0, "",#REF!) ->  | AS21: =IF(AN21="graminée",#REF!, "") ->  | AT21: =IF(AN21="Légumineuse",#REF!, "") ->  | AU21: =IF(AN21="Crucifère",#REF!, "") ->  | AV21: =IF(SUM(AS21:AU21)>0, "",#REF!) ->  | AW21: =IF(#REF!="","",VLOOKUP(#REF!,BDD!$A$5:$J$64,10,0)) ->  | AX21: =IF(#REF!="", "", (#REF!*100)/AW21) ->  | AY21: =IF(#REF!= "", "", (#REF!*100)/AW21) ->  | BA21: =IF(#REF!="", "",#REF!) -> 
B22: =IF(C22="", "", VLOOKUP(Simulation_floraison!C22,BDD!$A$6:$M$64,13,1)) ->  | C22: =IF(Composition!C20<>"", Composition!C20, "") ->  | D22: =IF(C22<>"",Temp_moyenne!$O$71,"") ->  | E22: =IF(C22<>"",Temp_moyenne!$O$79,"") ->  | F22: =IF(C22<>"",Temp_moyenne!$O$87,"") ->  | G22: =IF(C22<>"",Temp_moyenne!$O$94,"") ->  | H22: =IF(C22<>"",Temp_moyenne!$O$102,"") ->  | I22: =IF(C22<>"",Temp_moyenne!$O$110,"") ->  | J22: =IF(C22<>"",Temp_moyenne!$O$118,"") ->  | K22: =IF(C22<>"",Temp_moyenne!$O$124,"") ->  | L22: =IF(C22<>"",Temp_moyenne!$O$132,"") ->  | M22: =IF(C22<>"",Temp_moyenne!$O$140,"") ->  | N22: =IF(C22<>"",Temp_moyenne!$O$148,"") ->  | O22: =IF(C22<>"",Temp_moyenne!$O$155,"") ->  | P22: =IF(C22<>"",Temp_moyenne!$O$163,"") ->  | Q22: =IF(C22<>"",Temp_moyenne!$O$171,"") ->  | R22: =IF(C22<>"",Temp_moyenne!$O$179,"") ->  | S22: =IF(C22<>"",Temp_moyenne!$O$185,"") ->  | T22: =IF(C22<>"",Temp_moyenne!$O$193,"") ->  | U22: =IF(C22<>"",Temp_moyenne!$O$201,"") ->  | V22: =IF(C22<>"",Temp_moyenne!$O$209,"") ->  | W22: =IF(C22<>"",Temp_moyenne!$O$216,"") ->  | X22: =IF(C22<>"",Temp_moyenne!$O$224,"") ->  | Y22: =IF(C22<>"",Temp_moyenne!$O$231,"") ->  | AA22: =VLOOKUP(C22,'Parametres_couverts (2)'!$A$8:$E$67,5) ->  | AH22: =IF(#REF!="", "", AG22*Z22) ->  | AI22: =IF(#REF!="", "",#REF!* 4) ->  | AJ22: =IF(#REF!="", "",#REF!* AC22) ->  | AK22: 0 | AN22: =IF(#REF!="","",VLOOKUP(#REF!,BDD!$A$5:$I$64,2,0)) ->  | AO22: =IF(AN22="graminée",#REF!, "") ->  | AP22: =IF(AN22="Légumineuse",#REF!, "") ->  | AQ22: =IF(AN22="Crucifère",#REF!, "") ->  | AR22: =IF(SUM(AO22:AQ22)>0, "",#REF!) ->  | AS22: =IF(AN22="graminée",#REF!, "") ->  | AT22: =IF(AN22="Légumineuse",#REF!, "") ->  | AU22: =IF(AN22="Crucifère",#REF!, "") ->  | AV22: =IF(SUM(AS22:AU22)>0, "",#REF!) ->  | AW22: =IF(#REF!="","",VLOOKUP(#REF!,BDD!$A$5:$J$64,10,0)) ->  | AX22: =IF(#REF!="", "", (#REF!*100)/AW22) ->  | AY22: =IF(#REF!= "", "", (#REF!*100)/AW22) ->  | BA22: =IF(#REF!="", "",#REF!) -> 
B23: =IF(C23="", "", VLOOKUP(Simulation_floraison!C23,BDD!$A$6:$M$64,13,1)) ->  | C23: =IF(Composition!C21<>"", Composition!C21, "") ->  | D23: =IF(C23<>"",Temp_moyenne!$O$71,"") ->  | E23: =IF(C23<>"",Temp_moyenne!$O$79,"") ->  | F23: =IF(C23<>"",Temp_moyenne!$O$87,"") ->  | G23: =IF(C23<>"",Temp_moyenne!$O$94,"") ->  | H23: =IF(C23<>"",Temp_moyenne!$O$102,"") ->  | I23: =IF(C23<>"",Temp_moyenne!$O$110,"") ->  | J23: =IF(C23<>"",Temp_moyenne!$O$118,"") ->  | K23: =IF(C23<>"",Temp_moyenne!$O$124,"") ->  | L23: =IF(C23<>"",Temp_moyenne!$O$132,"") ->  | M23: =IF(C23<>"",Temp_moyenne!$O$140,"") ->  | N23: =IF(C23<>"",Temp_moyenne!$O$148,"") ->  | O23: =IF(C23<>"",Temp_moyenne!$O$155,"") ->  | P23: =IF(C23<>"",Temp_moyenne!$O$163,"") ->  | Q23: =IF(C23<>"",Temp_moyenne!$O$171,"") ->  | R23: =IF(C23<>"",Temp_moyenne!$O$179,"") ->  | S23: =IF(C23<>"",Temp_moyenne!$O$185,"") ->  | T23: =IF(C23<>"",Temp_moyenne!$O$193,"") ->  | U23: =IF(C23<>"",Temp_moyenne!$O$201,"") ->  | V23: =IF(C23<>"",Temp_moyenne!$O$209,"") ->  | W23: =IF(C23<>"",Temp_moyenne!$O$216,"") ->  | X23: =IF(C23<>"",Temp_moyenne!$O$224,"") ->  | Y23: =IF(C23<>"",Temp_moyenne!$O$231,"") ->  | AA23: =VLOOKUP(C23,'Parametres_couverts (2)'!$A$8:$E$67,5) ->  | AH23: =IF(#REF!="", "", AG23*Z23) ->  | AI23: =IF(#REF!="", "",#REF!* 4) ->  | AJ23: =IF(#REF!="", "",#REF!* AC23) ->  | AK23: 0 | AN23: =IF(#REF!="","",VLOOKUP(#REF!,BDD!$A$5:$I$64,2,0)) ->  | AO23: =IF(AN23="graminée",#REF!, "") ->  | AP23: =IF(AN23="Légumineuse",#REF!, "") ->  | AQ23: =IF(AN23="Crucifère",#REF!, "") ->  | AR23: =IF(SUM(AO23:AQ23)>0, "",#REF!) ->  | AS23: =IF(AN23="graminée",#REF!, "") ->  | AT23: =IF(AN23="Légumineuse",#REF!, "") ->  | AU23: =IF(AN23="Crucifère",#REF!, "") ->  | AV23: =IF(SUM(AS23:AU23)>0, "",#REF!) ->  | AW23: =IF(#REF!="","",VLOOKUP(#REF!,BDD!$A$5:$J$64,10,0)) ->  | AX23: =IF(#REF!="", "", (#REF!*100)/AW23) ->  | AY23: =IF(#REF!= "", "", (#REF!*100)/AW23) ->  | BA23: =IF(#REF!="", "",#REF!) -> 
B24: =IF(C24="", "", VLOOKUP(Simulation_floraison!C24,BDD!$A$6:$M$64,13,1)) ->  | C24: =IF(Composition!C22<>"", Composition!C22, "") ->  | D24: =IF(C24<>"",Temp_moyenne!$O$71,"") ->  | E24: =IF(C24<>"",Temp_moyenne!$O$79,"") ->  | F24: =IF(C24<>"",Temp_moyenne!$O$87,"") ->  | G24: =IF(C24<>"",Temp_moyenne!$O$94,"") ->  | H24: =IF(C24<>"",Temp_moyenne!$O$102,"") ->  | I24: =IF(C24<>"",Temp_moyenne!$O$110,"") ->  | J24: =IF(C24<>"",Temp_moyenne!$O$118,"") ->  | K24: =IF(C24<>"",Temp_moyenne!$O$124,"") ->  | L24: =IF(C24<>"",Temp_moyenne!$O$132,"") ->  | M24: =IF(C24<>"",Temp_moyenne!$O$140,"") ->  | N24: =IF(C24<>"",Temp_moyenne!$O$148,"") ->  | O24: =IF(C24<>"",Temp_moyenne!$O$155,"") ->  | P24: =IF(C24<>"",Temp_moyenne!$O$163,"") ->  | Q24: =IF(C24<>"",Temp_moyenne!$O$171,"") ->  | R24: =IF(C24<>"",Temp_moyenne!$O$179,"") ->  | S24: =IF(C24<>"",Temp_moyenne!$O$185,"") ->  | T24: =IF(C24<>"",Temp_moyenne!$O$193,"") ->  | U24: =IF(C24<>"",Temp_moyenne!$O$201,"") ->  | V24: =IF(C24<>"",Temp_moyenne!$O$209,"") ->  | W24: =IF(C24<>"",Temp_moyenne!$O$216,"") ->  | X24: =IF(C24<>"",Temp_moyenne!$O$224,"") ->  | Y24: =IF(C24<>"",Temp_moyenne!$O$231,"") ->  | AA24: =VLOOKUP(C24,'Parametres_couverts (2)'!$A$8:$E$67,5) ->  | AH24: =IF(#REF!="", "", AG24*Z24) ->  | AI24: =IF(#REF!="", "",#REF!* 4) ->  | AJ24: =IF(#REF!="", "",#REF!* AC24) ->  | AK24: 0 | AN24: =IF(#REF!="","",VLOOKUP(#REF!,BDD!$A$5:$I$64,2,0)) ->  | AO24: =IF(AN24="graminée",#REF!, "") ->  | AP24: =IF(AN24="Légumineuse",#REF!, "") ->  | AQ24: =IF(AN24="Crucifère",#REF!, "") ->  | AR24: =IF(SUM(AO24:AQ24)>0, "",#REF!) ->  | AS24: =IF(AN24="graminée",#REF!, "") ->  | AT24: =IF(AN24="Légumineuse",#REF!, "") ->  | AU24: =IF(AN24="Crucifère",#REF!, "") ->  | AV24: =IF(SUM(AS24:AU24)>0, "",#REF!) ->  | AW24: =IF(#REF!="","",VLOOKUP(#REF!,BDD!$A$5:$J$64,10,0)) ->  | AX24: =IF(#REF!="", "", (#REF!*100)/AW24) ->  | AY24: =IF(#REF!= "", "", (#REF!*100)/AW24) ->  | BA24: =IF(#REF!="", "",#REF!) -> 
B25: =IF(C25="", "", VLOOKUP(Simulation_floraison!C25,BDD!$A$6:$M$64,13,1)) ->  | C25: =IF(Composition!C23<>"", Composition!C23, "") ->  | D25: =IF(C25<>"",Temp_moyenne!$O$71,"") ->  | E25: =IF(C25<>"",Temp_moyenne!$O$79,"") ->  | F25: =IF(C25<>"",Temp_moyenne!$O$87,"") ->  | G25: =IF(C25<>"",Temp_moyenne!$O$94,"") ->  | H25: =IF(C25<>"",Temp_moyenne!$O$102,"") ->  | I25: =IF(C25<>"",Temp_moyenne!$O$110,"") ->  | J25: =IF(C25<>"",Temp_moyenne!$O$118,"") ->  | K25: =IF(C25<>"",Temp_moyenne!$O$124,"") ->  | L25: =IF(C25<>"",Temp_moyenne!$O$132,"") ->  | M25: =IF(C25<>"",Temp_moyenne!$O$140,"") ->  | N25: =IF(C25<>"",Temp_moyenne!$O$148,"") ->  | O25: =IF(C25<>"",Temp_moyenne!$O$155,"") ->  | P25: =IF(C25<>"",Temp_moyenne!$O$163,"") ->  | Q25: =IF(C25<>"",Temp_moyenne!$O$171,"") ->  | R25: =IF(C25<>"",Temp_moyenne!$O$179,"") ->  | S25: =IF(C25<>"",Temp_moyenne!$O$185,"") ->  | T25: =IF(C25<>"",Temp_moyenne!$O$193,"") ->  | U25: =IF(C25<>"",Temp_moyenne!$O$201,"") ->  | V25: =IF(C25<>"",Temp_moyenne!$O$209,"") ->  | W25: =IF(C25<>"",Temp_moyenne!$O$216,"") ->  | X25: =IF(C25<>"",Temp_moyenne!$O$224,"") ->  | Y25: =IF(C25<>"",Temp_moyenne!$O$231,"") ->  | AA25: =VLOOKUP(C25,'Parametres_couverts (2)'!$A$8:$E$67,5) ->  | AH25: =IF(#REF!="", "", AG25*Z25) ->  | AI25: =IF(#REF!="", "",#REF!* 4) ->  | AJ25: =IF(#REF!="", "",#REF!* AC25) ->  | AK25: 0 | AN25: =IF(#REF!="","",VLOOKUP(#REF!,BDD!$A$5:$I$64,2,0)) ->  | AO25: =IF(AN25="graminée",#REF!, "") ->  | AP25: =IF(AN25="Légumineuse",#REF!, "") ->  | AQ25: =IF(AN25="Crucifère",#REF!, "") ->  | AR25: =IF(SUM(AO25:AQ25)>0, "",#REF!) ->  | AS25: =IF(AN25="graminée",#REF!, "") ->  | AT25: =IF(AN25="Légumineuse",#REF!, "") ->  | AU25: =IF(AN25="Crucifère",#REF!, "") ->  | AV25: =IF(SUM(AS25:AU25)>0, "",#REF!) ->  | AW25: =IF(#REF!="","",VLOOKUP(#REF!,BDD!$A$5:$J$64,10,0)) ->  | AX25: =IF(#REF!="", "", (#REF!*100)/AW25) ->  | AY25: =IF(#REF!= "", "", (#REF!*100)/AW25) ->  | BA25: =IF(#REF!="", "",#REF!) -> 
B26: =IF(C26="", "", VLOOKUP(Simulation_floraison!C26,BDD!$A$6:$M$64,13,1)) ->  | C26: =IF(Composition!C24<>"", Composition!C24, "") ->  | D26: =IF(C26<>"",Temp_moyenne!$O$71,"") ->  | E26: =IF(C26<>"",Temp_moyenne!$O$79,"") ->  | F26: =IF(C26<>"",Temp_moyenne!$O$87,"") ->  | G26: =IF(C26<>"",Temp_moyenne!$O$94,"") ->  | H26: =IF(C26<>"",Temp_moyenne!$O$102,"") ->  | I26: =IF(C26<>"",Temp_moyenne!$O$110,"") ->  | J26: =IF(C26<>"",Temp_moyenne!$O$118,"") ->  | K26: =IF(C26<>"",Temp_moyenne!$O$124,"") ->  | L26: =IF(C26<>"",Temp_moyenne!$O$132,"") ->  | M26: =IF(C26<>"",Temp_moyenne!$O$140,"") ->  | N26: =IF(C26<>"",Temp_moyenne!$O$148,"") ->  | O26: =IF(C26<>"",Temp_moyenne!$O$155,"") ->  | P26: =IF(C26<>"",Temp_moyenne!$O$163,"") ->  | Q26: =IF(C26<>"",Temp_moyenne!$O$171,"") ->  | R26: =IF(C26<>"",Temp_moyenne!$O$179,"") ->  | S26: =IF(C26<>"",Temp_moyenne!$O$185,"") ->  | T26: =IF(C26<>"",Temp_moyenne!$O$193,"") ->  | U26: =IF(C26<>"",Temp_moyenne!$O$201,"") ->  | V26: =IF(C26<>"",Temp_moyenne!$O$209,"") ->  | W26: =IF(C26<>"",Temp_moyenne!$O$216,"") ->  | X26: =IF(C26<>"",Temp_moyenne!$O$224,"") ->  | Y26: =IF(C26<>"",Temp_moyenne!$O$231,"") ->  | AA26: =VLOOKUP(C26,'Parametres_couverts (2)'!$A$8:$E$67,5) ->  | AH26: =IF(#REF!="", "", AG26*Z26) ->  | AI26: =IF(#REF!="", "",#REF!* 4) ->  | AJ26: =IF(#REF!="", "",#REF!* AC26) ->  | AK26: 0 | AN26: =IF(#REF!="","",VLOOKUP(#REF!,BDD!$A$5:$I$64,2,0)) ->  | AO26: =IF(AN26="graminée",#REF!, "") ->  | AP26: =IF(AN26="Légumineuse",#REF!, "") ->  | AQ26: =IF(AN26="Crucifère",#REF!, "") ->  | AR26: =IF(SUM(AO26:AQ26)>0, "",#REF!) ->  | AS26: =IF(AN26="graminée",#REF!, "") ->  | AT26: =IF(AN26="Légumineuse",#REF!, "") ->  | AU26: =IF(AN26="Crucifère",#REF!, "") ->  | AV26: =IF(SUM(AS26:AU26)>0, "",#REF!) ->  | AW26: =IF(#REF!="","",VLOOKUP(#REF!,BDD!$A$5:$J$64,10,0)) ->  | AX26: =IF(#REF!="", "", (#REF!*100)/AW26) ->  | AY26: =IF(#REF!= "", "", (#REF!*100)/AW26) ->  | BA26: =IF(#REF!="", "",#REF!) -> 
AI27: 200 | AJ27: =SUM(AJ12:AJ26) ->  | AN27: SOMME | AO27: =SUM(AO12:AO26) ->  | AP27: =SUM(AP12:AP26) -> 
C28: S1 : première semaine | AJ28: =#REF!*4 ->  | AN28: Maximum | AO28: =#REF! ->  | AP28: =#REF! ->  | AQ28: =#REF! ->  | AR28: =#REF! ->  | AS28: =#REF! ->  | AT28: =#REF! ->  | AU28: =#REF! ->  | AV28: =#REF! -> 
C29: S2 : deuxième semaine | AJ29: =IF(AJ27<AI27, (AJ27*100)/AI27, 99) ->  | AN29: % | AO29: =(AO27*100)/AO28 ->  | AP29: =(AP27*100)/AP28 -> 
C30: S3 : troisième semaine | Z30: TRUE | AA30: FALSE
C31: S4 : quatrième semaine
D35: 1 | E35: 1 | F35: 1
D36: 2 | E36: 2 | F36: 2
D37: 3 | E37: 3 | F37: 3
D46: TYPE | E46: NB | F46: % | G46: NB conseillé | H46: NB Ajusté
D47: Graminées | E47: =IF($Z$30=FALSE, G47,H47) ->  | F47: =E47 ->  | G47: =AO29 ->  | H47: =AS29 -> 
D48: Légumineuses | E48: =IF($Z$30=FALSE, G48,H48) ->  | F48: =E48 ->  | G48: =AP29 ->  | H48: =AT29 -> 
D49: Crucifères | E49: =IF($Z$30=FALSE, G49,H49) ->  | G49: =AQ29 ->  | H49: =AU29 -> 
D50: Autres | E50: =IF($Z$30=FALSE, G50,H50) ->  | G50: =AR29 ->  | H50: =AV29 -> 
D52: HAUTEUR | E52: NB | F52: %
D53: Basse | E53: =COUNTIFS($K$12:$K$26,"1") -> 0 | F53: =(E53*100)/#REF! -> 
D54: Intermédiaire | E54: =COUNTIFS($K$12:$K$26,"2") -> 0 | F54: =(E54*100)/#REF! -> 
D55: Haute | E55: =COUNTIFS($K$12:$K$26,"3") -> 0 | F55: =(E55*100)/#REF! -> 
D57: RACINES | E57: NB | F57: %
D58: Superficiel | E58: =COUNTIFS($L$12:$L$26,"1") -> 0 | F58: =(E58*100)/#REF! -> 
D59: Intermédiaire | E59: =COUNTIFS($L$12:$L$26,"2") -> 0 | F59: =(E59*100)/#REF! -> 
D60: Profonde | E60: =COUNTIFS($L$12:$L$26,"3") -> 0 | F60: =(E60*100)/#REF! -> 

Sheet Parametres_couverts (2)
A2: LES PARAMETRES DES COUVERTS D'INTERCULTURE
H5: Retour
A7: Couvert | B7: Coût | C7: Dose/ha | D7: PMG (g) | E7: Somme de T°C
A9: Alpiste des canaries | B9: 2.5 | C9: =Parametres_couverts!C6 -> 15 | D9: 6 | E9: 1200
A10: Aneth | B10: 3.5 | C10: 8 | D10: 1.8 | E10: 600
A11: Avoine bresilienne | B11: 1.6 | C11: 35 | D11: 22 | E11: 900
A12: Avoine de printemps | B12: 0.85 | C12: 60 | D12: =Parametres_couverts!D8 -> 35 | E12: 1000
A13: Avoine d'hiver | B13: =Parametres_couverts!B9 -> 0.25 | C13: =Parametres_couverts!C9 -> 60 | D13: =Parametres_couverts!D9 -> 20 | E13: 1600
A14: Cameline | B14: =Parametres_couverts!B10 -> 0.25 | C14: 4 | D14: 1.2 | E14: 800
A15: Carthame | B15: 5.45 | C15: 15 | D15: 50 | E15: 1200
A16: Chia | B16: 5 | C16: 5 | D16: 1.3 | E16: 1100
A17: Colza | B17: =Parametres_couverts!B14 -> 2.49 | C17: =Parametres_couverts!C14 -> 5 | D17: =Parametres_couverts!D14 -> 6 | E17: 1500
A18: Crotalaire | B18: 3.6 | C18: 60 | D18: 33 | E18: 1100
A19: Cowpea | B19: 3.5 | C19: 12 | D19: 66 | E19: 800
A20: Dactyle | B20: 4.2 | C20: 20 | D20: 1.2 | E20: 1000
A21: Fénugrec | B21: =Parametres_couverts!B17 -> 4.2 | C21: 15 | D21: =Parametres_couverts!D17 -> 1.2 | E21: 1000
A22: Fetuque élevée | B22: 3.9 | C22: 18 | D22: 2 | E22: 1100
A23: Féverole | B23: 1.15 | C23: 180 | D23: 500 | E23: 950
A24: Gesse | B24: =Parametres_couverts!B19 -> 3.9 | C24: 50 | D24: 170 | E24: 1000
A25: Lentille fourragère | B25: =Parametres_couverts!B20 -> 0.26 | C25: 15 | D25: 20 | E25: 940
A26: Lin | B26: =Parametres_couverts!B21 -> 1.52 | C26: =Parametres_couverts!C21 -> 50 | D26: 5.5 | E26: 650
A27: Lotier Corniculé | B27: =Parametres_couverts!B22 -> 2.4 | C27: 10 | D27: 1.1 | E27: 1000
A28: Luzerne Flamande | B28: =Parametres_couverts!B23 -> 1.25 | C28: 20 | D28: 2 | E28: 900
A29: Mauve | B29: 0 | C29: 5 | D29: 2 | E29: 700
A30: Mélilot | B30: =Parametres_couverts!B24 -> 6.1 | C30: =Parametres_couverts!C24 -> 10 | D30: =Parametres_couverts!D24 -> 1.1 | E30: 1100
A31: Millet perlé | B31: 3.1 | C31: 15 | D31: =Parametres_couverts!D25 -> 2 | E31: 800
A32: Minette | B32: =Parametres_couverts!B26 -> 4.95 | C32: =Parametres_couverts!C26 -> 20 | D32: =Parametres_couverts!D26 -> 2 | E32: 900
A33: Moha fourrager | B33: =Parametres_couverts!B27 -> 2.99 | C33: =Parametres_couverts!C27 -> 15 | D33: 2.3 | E33: 800
A34: Moutarde blanche précoce | B34: 4.9 | C34: 10 | D34: 1.7 | E34: 800
A35: Moutarde blanche tardive | B35: =Parametres_couverts!B28 -> 4.9 | C35: =Parametres_couverts!C28 -> 10 | D35: =Parametres_couverts!D28 -> 1.7 | E35: 1200
A36: Moutarde brune | B36: =Parametres_couverts!B29 -> 1.49 | C36: 2 | D36: 3 | E36: 1000
A37: Moutarde d'Abyssinie | B37: =Parametres_couverts!B31 -> 1.65 | C37: 6 | D37: 5 | E37: 1200
A38: Navette | B38: 4 | C38: 5 | D38: 3.9 | E38: 1200
A39: Niger | B39: =Parametres_couverts!B32 -> 8.4 | C39: =Parametres_couverts!C32 -> 3 | D39: =Parametres_couverts!D32 -> 2.5 | E39: 1050
A40: Phacélie | B40: =Parametres_couverts!B33 -> 5.15 | C40: 8 | D40: 2 | E40: 1200
A41: Pois fourrager | B41: =Parametres_couverts!B35 -> 4.1 | C41: 100 | D41: 182 | E41: 600
A42: Pois protéagineux | B42: =Parametres_couverts!B36 -> 3.59 | C42: 180 | D42: 280 | E42: 520
A43: Radis chinois | B43: =Parametres_couverts!B37 -> 1.49 | C43: 8 | D43: 14 | E43: 1200
A44: Radis fourrager | B44: =Parametres_couverts!B38 -> 0.2 | C44: 8 | D44: 17 | E44: 900
A45: Ray-grass Italien | B45: =Parametres_couverts!B40 -> 2.99 | C45: =Parametres_couverts!C40 -> 12 | D45: =Parametres_couverts!D40 -> 12 | E45: 1100
A46: Sainfoin (cosse) | B46: =Parametres_couverts!B41 -> 2.05 | C46: =Parametres_couverts!C41 -> 20 | D46: 21 | E46: 1100
A47: Sainfoin (décortiqué) | B47: =Parametres_couverts!B42 -> 1.99 | C47: =Parametres_couverts!C42 -> 130 | D47: =Parametres_couverts!D42 -> 22 | E47: 1100
A48: Sarrasin | B48: 2.1 | C48: =Parametres_couverts!C43 -> 40 | D48: =Parametres_couverts!D43 -> 22 | E48: 450
A49: Seigle forestier | B49: =Parametres_couverts!B44 -> 2.1 | C49: 25 | D49: 15 | E49: 2000
A50: Seigle fourrager | B50: =Parametres_couverts!B45 -> 1.1 | C50: 60 | D50: 32 | E50: 2000
A51: Sorgho fourrager | B51: =Parametres_couverts!B46 -> 1.5 | C51: 20 | D51: 15 | E51: 985
A52: Tournesol | B52: =Parametres_couverts!B47 -> 4.74 | C52: =Parametres_couverts!C47 -> 15 | D52: 40 | E52: 800
A53: Trèfle Blanc | B53: =Parametres_couverts!B48 -> 0.2 | C53: 3 | D53: 0.6 | E53: 1000
A54: Trèfle d'Alexandrie | B54: =Parametres_couverts!B49 -> 5.8 | C54: =Parametres_couverts!C49 -> 4 | D54: 3.1 | E54: 1050
A55: Trèfle de Micheli | B55: =Parametres_couverts!B50 -> 3.1 | C55: 10 | D55: 0.82 | E55: 900
A56: Trèfle de perse | B56: =Parametres_couverts!B51 -> 3.99 | C56: =Parametres_couverts!C51 -> 10 | D56: =Parametres_couverts!D51 -> 0.8 | E56: 900
A57: Trèfle incarnat | B57: =Parametres_couverts!B52 -> 5.85 | C57: 18 | D57: 3.5 | E57: 1100
A58: Trèfle squarrosum | B58: 2.6 | C58: 25 | D58: 4.2 | E58: 900
A59: Triticale | B59: 0.3 | C59: 150 | D59: 45 | E59: 1100
A60: Trèfle vesiculeux | B60: 3.5 | C60: 10 | D60: 1.5 | E60: 900
A61: Trèfle violet | B61: =Parametres_couverts!B54 -> 0.3 | C61: 15 | D61: 2 | E61: 1300
A62: Vesce commune | B62: =Parametres_couverts!B55 -> 5.8 | C62: 40 | D62: 40 | E62: 1000
A63: Vesce érigée | B63: 0 | C63: 40 | D63: 23 | E63: 900
A64: Vesce de Narbonne | B64: 0.3 | C64: 120 | D64: 200 | E64: 1000
A65: Vesce de Pannonie | B65: 2.5 | C65: 50 | D65: 38 | E65: 1100
A66: Vesce pourpre | B66: =Parametres_couverts!B56 -> 1.85 | C66: =Parametres_couverts!C56 -> 50 | D66: =Parametres_couverts!D56 -> 60 | E66: 800
A67: Vesce velue | B67: =Parametres_couverts!B57 -> 1.99 | C67: =Parametres_couverts!C57 -> 40 | D67: =Parametres_couverts!D57 -> 60 | E67: 800

Sheet Parametres_couverts
A2: LES PARAMETRES DES COUVERTS D'INTERCULTURE
B5: Coût | C5: Dose/ha | D5: PMG (g) | H5: Retour
A6: Alpiste des canaries | B6: 2.5 | C6: 15 | D6: 6
A7: Aneth | C7: 12 | D7: 2
A8: Avoine bresilienne | B8: 1.7 | C8: 35 | D8: 35
A9: Avoine de printemps | B9: 0.25 | C9: 60 | D9: 20
A10: Avoine d'hiver | B10: 0.25 | C10: 60 | D10: 20
A11: Cameline | B11: 5.7 | C11: 5 | D11: 1.2
A12: Carthame | C12: 15 | D12: 50
A13: Chia | C13: 4 | D13: 1
A14: Colza | B14: 2.49 | C14: 5 | D14: 6
A15: Crotalaire
A16: Cowpea | B16: 3.5 | C16: 12 | D16: 66
A17: Dactyle | B17: 4.2 | C17: 20 | D17: 1.2
A18: Fénugrec | B18: 2.6 | C18: 30 | D18: 22
A19: Fetuque élevée | B19: 3.9 | C19: 18 | D19: 2
A20: Féverole | B20: 0.26 | C20: 180 | D20: 500
A21: Gesse | B21: 1.52 | C21: 50 | D21: 180
A22: Lentille fourragère | B22: 2.4 | C22: 45 | D22: 22
A23: Lin | B23: 1.25 | C23: 40 | D23: 7
A24: Lotier Corniculé | B24: 6.1 | C24: 10 | D24: 1.1
A25: Luzerne Flamande | B25: 5.69 | C25: 8 | D25: 2
A26: Mélilot | B26: 4.95 | C26: 20 | D26: 2
A27: Millet perlé | B27: 2.99 | C27: 15 | D27: 8
A28: Minette | B28: 4.9 | C28: 10 | D28: 1.7
A29: Moha fourrager | B29: 1.49 | C29: 20 | D29: 5
A30: Moutarde blanche précoce
A31: Moutarde blanche tardive | B31: 1.65 | C31: 8 | D31: 7
A32: Moutarde brune | B32: 8.4 | C32: 3 | D32: 2.5
A33: Moutarde d'Abyssinie | B33: 5.15 | C33: 6 | D33: 6
A34: Navette | B34: 4 | C34: 5 | D34: 3.9
A35: Niger | B35: 4.1 | C35: 8 | D35: 3
A36: Phacélie | B36: 3.59 | C36: 10 | D36: 2
A37: Pois fourrager | B37: 1.49 | C37: 100 | D37: 100
A38: Pois protéagineux | B38: 0.2 | C38: 200 | D38: 200
A39: Radis chinois | B39: 5.1 | C39: 10 | D39: 14
A40: Radis fourrager | B40: 2.99 | C40: 12 | D40: 12
A41: Ray-grass Italien | B41: 2.05 | C41: 20 | D41: 2
A42: Sainfoin (cosse) | B42: 1.99 | C42: 130 | D42: 22
A43: Sainfoin (décortiqué) | B43: 2.79 | C43: 40 | D43: 22
A44: Sarrasin | B44: 2.1 | C44: 35 | D44: 25
A45: Seigle forestier | B45: 1.1 | C45: 25 | D45: 30
A46: Seigle fourrager | B46: 1.5 | C46: 60 | D46: 45
A47: Sorgho fourrager | B47: 4.74 | C47: 15 | D47: 30
A48: Tournesol | B48: 0.2 | C48: 50 | D48: 60
A49: Trèfle Blanc | B49: 5.8 | C49: 4 | D49: 0.6
A50: Trèfle d'Alexandrie | B50: 3.1 | C50: 15 | D50: 2.5
A51: Trèfle de Micheli | B51: 3.99 | C51: 10 | D51: 0.8
A52: Trèfle de perse | B52: 5.85 | C52: 20 | D52: 2
A53: Trèfle incarnat | B53: 2.69 | C53: 15 | D53: 2.5
A54: Triticale | B54: 0.3 | C54: 150 | D54: 32
A55: Trèfle violet | B55: 5.8 | C55: 15 | D55: 1.9
A56: Vesce commune | B56: 1.85 | C56: 50 | D56: 60
A57: Vesce pourpre | B57: 1.99 | C57: 40 | D57: 60
A58: Vesce velue | B58: 3.13 | C58: 35 | D58: 60
A59: =BDD!A66 -> 0
A60: =BDD!A67 -> 0
A61: =BDD!A68 -> 0
A62: =BDD!A69 -> 0
A63: =BDD!A70 -> 0

Sheet Culture-suivante_BDD
B2: 0 | C2: 1 | D2: 2 | E2: 3 | F2: 4 | G2: 5 | H2: 6 | I2: 7 | J2: 8 | K2: 9 | L2: 10
A3: Couvert | B3: Choisir | C3: Maïs | D3: Tournesol | E3: Soja | F3: Pois | G3: Feverole | H3: Lentille | I3: Pois Chiche | J3: Betterave | K3: Chanvre | L3: Orge de printemps
A5: Alpistre des Canaries | C5: 3 | D5: 1 | E5: 1 | F5: 1 | G5: 1 | H5: 1 | I5: 1 | J5: 1 | K5: 1 | L5: 3
A6: Aneth | C6: 1 | D6: 1 | E6: 1 | F6: 1 | G6: 1 | H6: 1 | I6: 1 | J6: 1 | K6: 1 | L6: 1
A7: Avoine bresilienne | C7: 1 | D7: 1 | E7: 1 | F7: 1 | G7: 1 | H7: 1 | I7: 1 | J7: 1 | K7: 1 | L7: 3
A8: Avoine de printemps | C8: 1 | D8: 1 | E8: 1 | F8: 1 | G8: 1 | H8: 1 | I8: 1 | J8: 1 | K8: 1 | L8: 3
A9: Avoine d'hiver | C9: 1 | D9: 1 | E9: 1 | F9: 1 | G9: 1 | H9: 1 | I9: 1 | J9: 1 | K9: 1 | L9: 3 | N9: 1 | O9: oui
A10: Cameline | C10: 1 | D10: 1 | E10: 1 | F10: 1 | G10: 1 | H10: 1 | I10: 1 | J10: 2 | K10: 1 | L10: 1 | N10: 2 | O10: Sous condition
A11: Carthame | C11: 1 | D11: 1 | E11: 1 | F11: 1 | G11: 1 | H11: 1 | I11: 1 | J11: 1 | K11: 1 | L11: 1
A12: Chia | C12: 1 | D12: 1 | E12: 1 | F12: 1 | G12: 1 | H12: 1 | I12: 1 | J12: 1 | K12: 1 | L12: 1
A13: Colza | C13: 1 | D13: 1 | E13: 1 | F13: 1 | G13: 1 | H13: 1 | I13: 1 | J13: 2 | K13: 3 | L13: 1 | N13: 3 | O13: NON
A14: Crotalaire | C14: 1 | D14: 1 | E14: 3 | F14: 3 | G14: 3 | H14: 3 | I14: 3 | J14: 1 | K14: 1 | L14: 1
A15: Cowpea | C15: 1 | D15: 1 | E15: 2 | F15: 3 | G15: 3 | H15: 3 | I15: 3 | J15: 1 | K15: 1 | L15: 1
A16: Dactyle | C16: 3 | D16: 2 | E16: 2 | F16: 2 | G16: 2 | H16: 2 | I16: 2 | J16: 2 | K16: 2 | L16: 3
A17: Fénugrec | C17: 1 | D17: 1 | E17: 3 | F17: 3 | G17: 3 | H17: 3 | I17: 3 | J17: 1 | K17: 1 | L17: 1
A18: Fetuque | C18: 3 | D18: 2 | E18: 2 | F18: 2 | G18: 2 | H18: 2 | I18: 2 | J18: 2 | K18: 2 | L18: 3
A19: Féverole | C19: 1 | D19: 1 | E19: 3 | F19: 3 | G19: 3 | H19: 3 | I19: 3 | J19: 1 | K19: 1 | L19: 1
A20: Gesse | C20: 1 | D20: 1 | E20: 3 | F20: 3 | G20: 3 | H20: 3 | I20: 3 | J20: 1 | K20: 1 | L20: 1
A21: Lentille fourragère | C21: 1 | D21: 1 | E21: 3 | F21: 3 | G21: 3 | H21: 3 | I21: 3 | J21: 1 | K21: 1 | L21: 1
A22: Lin | C22: 1 | D22: 1 | E22: 1 | F22: 1 | G22: 1 | H22: 1 | I22: 1 | J22: 1 | K22: 1 | L22: 1
A23: Lotier Corniculé | C23: 1 | D23: 1 | E23: 3 | F23: 3 | G23: 3 | H23: 3 | I23: 3 | J23: 1 | K23: 1 | L23: 1
A24: Luzerne Flamande | C24: 1 | D24: 1 | E24: 3 | F24: 3 | G24: 3 | H24: 3 | I24: 3 | J24: 1 | K24: 1 | L24: 1
A25: Mauve | C25: 1 | D25: 1 | E25: 1 | F25: 1 | G25: 1 | H25: 1 | I25: 1 | J25: 1 | K25: 1 | L25: 1
A26: Mélilot | C26: 1 | D26: 1 | E26: 3 | F26: 3 | G26: 3 | H26: 3 | I26: 3 | J26: 1 | K26: 1 | L26: 1
A27: Millet perlé | C27: 3 | D27: 1 | E27: 1 | F27: 1 | G27: 1 | H27: 1 | I27: 1 | J27: 1 | K27: 1 | L27: 3
A28: Minette | C28: 1 | D28: 1 | E28: 3 | F28: 3 | G28: 3 | H28: 3 | I28: 3 | J28: 1 | K28: 1 | L28: 1
A29: Moha fourrager | C29: 3 | D29: 1 | E29: 1 | F29: 1 | G29: 1 | H29: 1 | I29: 1 | J29: 1 | K29: 1 | L29: 3
A30: Moutarde blanche | C30: 2 | D30: 1 | E30: 1 | F30: 1 | G30: 1 | H30: 1 | I30: 1 | J30: 3 | K30: 3 | L30: 2
A31: Moutarde brune | C31: 2 | D31: 1 | E31: 1 | F31: 1 | G31: 1 | H31: 1 | I31: 1 | J31: 3 | K31: 3 | L31: 2
A32: Moutarde d'Abyssinie | C32: 2 | D32: 1 | E32: 1 | F32: 1 | G32: 1 | H32: 1 | I32: 1 | J32: 3 | K32: 3 | L32: 2 | M32: Espèce tardive
A33: Navette | C33: 2 | D33: 1 | E33: 1 | F33: 1 | G33: 1 | H33: 1 | I33: 1 | J33: 3 | K33: 3 | L33: 1
A34: Niger | C34: 1 | D34: 3 | E34: 1 | F34: 1 | G34: 1 | H34: 1 | I34: 1 | J34: 1 | K34: 1 | L34: 1
A35: Phacélie | C35: 1 | D35: 1 | E35: 1 | F35: 1 | G35: 1 | H35: 1 | I35: 1 | J35: 2 | K35: 1 | L35: 1 | M35: Famille botanique différente
A36: Pois fourrager | C36: 1 | D36: 1 | E36: 3 | F36: 3 | G36: 3 | H36: 3 | I36: 3 | J36: 1 | K36: 1 | L36: 1
A37: Pois protéagineux | C37: 1 | D37: 1 | E37: 3 | F37: 3 | G37: 3 | H37: 3 | I37: 3 | J37: 1 | K37: 1 | L37: 1
A38: Radis chinois | C38: 2 | D38: 1 | E38: 1 | F38: 1 | G38: 1 | H38: 1 | I38: 1 | J38: 1 | K38: 3 | L38: 1
A39: Radis fourrager | C39: 2 | D39: 1 | E39: 1 | F39: 1 | G39: 1 | H39: 1 | I39: 1 | J39: 1 | K39: 3 | L39: 2
A40: Ray-grass Italien | C40: 2 | D40: 1 | E40: 1 | F40: 1 | G40: 1 | H40: 1 | I40: 1 | J40: 1 | K40: 3 | L40: 1
A41: Sainfoin (cosse) | C41: 1 | D41: 1 | E41: 3 | F41: 3 | G41: 3 | H41: 3 | I41: 3 | J41: 1 | K41: 1 | L41: 1
A42: Sainfoin (décortiqué) | C42: 1 | D42: 1 | E42: 3 | F42: 3 | G42: 3 | H42: 3 | I42: 3 | J42: 1 | K42: 1 | L42: 1
A43: Sarrasin | C43: 2 | D43: 2 | E43: 2 | F43: 2 | G43: 2 | H43: 2 | I43: 2 | J43: 1 | K43: 2 | L43: 1 | M43: Attention à la grenaison
A44: Seigle forestier | C44: 2 | D44: 2 | E44: 1 | F44: 1 | G44: 1 | H44: 1 | I44: 1 | J44: 3 | K44: 1 | L44: 3
A45: Seigle fourrager | C45: 2 | D45: 2 | E45: 1 | F45: 1 | G45: 1 | H45: 1 | I45: 1 | J45: 3 | K45: 1 | L45: 3
A46: Sorgho fourrager | C46: 3 | D46: 1 | E46: 1 | F46: 1 | G46: 1 | H46: 1 | I46: 1 | J46: 3 | K46: 1 | L46: 3
A47: Tournesol | C47: 1 | D47: 3 | E47: 1 | F47: 1 | G47: 1 | H47: 1 | I47: 1 | J47: 1 | K47: 1 | L47: 1
A48: Trèfle Blanc | C48: 1 | D48: 1 | E48: 3 | F48: 3 | G48: 3 | H48: 3 | I48: 3 | J48: 1 | K48: 1 | L48: 1
A49: Trèfle d'Alexandrie | C49: 1 | D49: 1 | E49: 3 | F49: 3 | G49: 3 | H49: 3 | I49: 3 | J49: 1 | K49: 1 | L49: 1
A50: Trèfle de Micheli | C50: 1 | D50: 1 | E50: 3 | F50: 3 | G50: 3 | H50: 3 | I50: 3 | J50: 1 | K50: 1 | L50: 1
A51: Trèfle de perse | C51: 1 | D51: 1 | E51: 3 | F51: 3 | G51: 3 | H51: 3 | I51: 3 | J51: 1 | K51: 1 | L51: 1
A52: Trèfle incarnat | C52: 1 | D52: 1 | E52: 3 | F52: 3 | G52: 3 | H52: 3 | I52: 3 | J52: 1 | K52: 1 | L52: 1
A53: Trèfle squarossum | C53: 1 | D53: 1 | E53: 3 | F53: 3 | G53: 3 | H53: 3 | I53: 3 | J53: 1 | K53: 1 | L53: 1
A54: Triticale | C54: 1 | D54: 1 | E54: 1 | F54: 1 | G54: 1 | H54: 1 | I54: 1 | J54: 3 | K54: 1 | L54: 3
A55: Trèfle vésiculeux | C55: 1 | D55: 1 | E55: 3 | F55: 3 | G55: 3 | H55: 3 | I55: 3 | J55: 1 | K55: 1 | L55: 1
A56: Trèfle violet | C56: 1 | D56: 1 | E56: 3 | F56: 3 | G56: 3 | H56: 3 | I56: 3 | J56: 1 | K56: 1 | L56: 1
A57: Vesce commune | C57: 1 | D57: 1 | E57: 3 | F57: 3 | G57: 3 | H57: 3 | I57: 3 | J57: 1 | K57: 1 | L57: 1
A58: Vesce érigée | C58: 1 | D58: 1 | E58: 3 | F58: 3 | G58: 3 | H58: 3 | I58: 3 | J58: 1 | K58: 1 | L58: 1
A59: Vesce de Narbonne | C59: 1 | D59: 1 | E59: 3 | F59: 3 | G59: 3 | H59: 3 | I59: 3 | J59: 1 | K59: 1 | L59: 1
A60: Vesce de Pannonie | C60: 1 | D60: 1 | E60: 3 | F60: 3 | G60: 3 | H60: 3 | I60: 3 | J60: 1 | K60: 1 | L60: 1
A61: Vesce pourpre | C61: 1 | D61: 1 | E61: 3 | F61: 3 | G61: 3 | H61: 3 | I61: 3 | J61: 1 | K61: 1 | L61: 1
A62: Vesce velue | C62: 1 | D62: 1 | E62: 3 | F62: 3 | G62: 3 | H62: 3 | I62: 3 | J62: 1 | K62: 1 | L62: 1 | M62: Destruction mécanique délicate

Sheet Choix_culture_suivante
D8: =VLOOKUP(D9,BDD!$D$82:$E$92,2,0) -> 2 | E8: =VLOOKUP(E9,BDD!$D$82:$E$92,2,0) -> 2 | F8: =VLOOKUP(F9,BDD!$D$82:$E$92,2,0) -> 3 | M8: FALSE | AN8: Conseillé | AS8: Ajusté | AW8: PMG | AX8: NB pieds Conseillé | AY8: NB ajusté
D9: Tournesol | E9: Tournesol | F9: Soja | J9: Type | K9: Hauteur | L9: Racine | Z9: Conseillé Biomasse | AA9: Dose | AB9: Note | AC9: Conseillé Azote | AD9: Dose | AE9: Note | AF9: Ajusté Biomasse | AG9: Dose | AH9: Note | AI9: Ajusté max | AJ9: Ajustée Azote | AK9: Dose | AL9: Note | AO9: Graminées | AP9: Legumineuse | AQ9: Crucifères | AR9: Autres | AS9: Graminées | AT9: Legumineuse | AU9: Crucifères | AV9: Autres | BA9: Couvert | BB9: NB Pieds
B10: =IF(C10="", "", VLOOKUP(Choix_culture_suivante!C10,BDD!$A$6:$M$64,13,1)) -> 35 | C10: =IF(Composition!C10<>"", Composition!C10, "") -> Radis chinois | D10: =IF(C10="", " ", INDEX('Culture-suivante_BDD'!$C$5:$L$62,B10,$D$8)) -> 1 | E10: =IF(C10="", " ", INDEX('Culture-suivante_BDD'!$C$5:$L$62,B10,$E$8)) -> 1 | F10: =IF(C10="", " ", INDEX('Culture-suivante_BDD'!$C$5:$L$62,B10,$F$8)) -> 1 | G10: =IF(C10="", " ", INDEX(BDD!$A$6:$AE$64,B10,31)) -> Intérêt dans la lutte contre les adventices | J10: =IF(#REF!="","",VLOOKUP(#REF!,BDD!$A$5:$I$64,2,0)) ->  | K10: =IF(#REF!="","",VLOOKUP(#REF!,BDD!$A$5:$I$64,3,0)) ->  | L10: =IF(#REF!="","",VLOOKUP(#REF!,BDD!$A$5:$I$64,4,0)) ->  | Z10: =IF(#REF!="","",VLOOKUP(#REF!,BDD!$A$5:$I$64,5,0)) ->  | AA10: =#REF! ->  | AB10: =IF(#REF!="", "", Z10*AA10) ->  | AC10: =IF(#REF!="","",VLOOKUP(#REF!,BDD!$A$5:$I$64,7,0)) ->  | AD10: =#REF! ->  | AE10: =IF(#REF!="", "", AC10*AD10) ->  | AF10: =IF(#REF!="", "",#REF!* Z10) ->  | AG10: =#REF! ->  | AH10: =IF(#REF!="", "", AG10*Z10) ->  | AI10: =IF(#REF!="", "",#REF!* 4) ->  | AJ10: =IF(#REF!="", "",#REF!* AC10) ->  | AK10: =AG10 ->  | AN10: =IF(#REF!="","",VLOOKUP(#REF!,BDD!$A$5:$I$64,2,0)) ->  | AO10: =IF(AN10="graminée",#REF!, "") ->  | AP10: =IF(AN10="Légumineuse",#REF!, "") ->  | AQ10: =IF(AN10="Crucifère",#REF!, "") ->  | AR10: =IF(SUM(AO10:AQ10)>0, "",#REF!) ->  | AS10: =IF(AN10="graminée",#REF!, "") ->  | AT10: =IF(AN10="Légumineuse",#REF!, "") ->  | AU10: =IF(AN10="Crucifère",#REF!, "") ->  | AV10: =IF(SUM(AS10:AU10)>0, "",#REF!) ->  | AW10: =IF(#REF!="","",VLOOKUP(#REF!,BDD!$A$5:$J$64,10,0)) ->  | AX10: =IF(#REF!="", "", (#REF!*100)/AW10) ->  | AY10: =IF(#REF!= "", "", (#REF!*100)/AW10) ->  | BA10: =IF(#REF!="", "",#REF!) ->  | BB10: =IF($Z$28=TRUE, AY10, AX10) -> 
B11: =IF(C11="", "", VLOOKUP(Choix_culture_suivante!C11,BDD!$A$6:$M$64,13,1)) -> 29 | C11: =IF(Composition!C11<>"", Composition!C11, "") -> Moutarde d'Abyssinie | D11: =IF(C11="", " ", INDEX('Culture-suivante_BDD'!$C$5:$L$62,B11,$D$8)) -> 1 | E11: =IF(C11="", " ", INDEX('Culture-suivante_BDD'!$C$5:$L$62,B11,$E$8)) -> 1 | F11: =IF(C11="", " ", INDEX('Culture-suivante_BDD'!$C$5:$L$62,B11,$F$8)) -> 1 | G11: =IF(C11="", " ", INDEX(BDD!$A$6:$AE$64,B11,31)) -> Tardive à floraison | J11: =IF(#REF!="","",VLOOKUP(#REF!,BDD!$A$5:$I$64,2,0)) ->  | K11: =IF(#REF!="","",VLOOKUP(#REF!,BDD!$A$5:$I$64,3,0)) ->  | L11: =IF(#REF!="","",VLOOKUP(#REF!,BDD!$A$5:$I$64,4,0)) ->  | M11: FALSE | Z11: =IF(#REF!="","",VLOOKUP(#REF!,BDD!$A$5:$I$64,5,0)) ->  | AA11: =#REF! ->  | AB11: =IF(#REF!="", "", Z11*AA11) ->  | AC11: =IF(#REF!="","",VLOOKUP(#REF!,BDD!$A$5:$I$64,7,0)) ->  | AD11: =#REF! ->  | AE11: =IF(#REF!="", "", AC11*AD11) ->  | AF11: =IF(#REF!="", "",#REF!* Z11) ->  | AG11: =#REF! ->  | AH11: =IF(#REF!="", "", AG11*Z11) ->  | AI11: =IF(#REF!="", "",#REF!* 4) ->  | AJ11: =IF(#REF!="", "",#REF!* AC11) ->  | AK11: =AG11 ->  | AN11: =IF(#REF!="","",VLOOKUP(#REF!,BDD!$A$5:$I$64,2,0)) ->  | AO11: =IF(AN11="graminée",#REF!, "") ->  | AP11: =IF(AN11="Légumineuse",#REF!, "") ->  | AQ11: =IF(AN11="Crucifère",#REF!, "") ->  | AR11: =IF(SUM(AO11:AQ11)>0, "",#REF!) ->  | AS11: =IF(AN11="graminée",#REF!, "") ->  | AT11: =IF(AN11="Légumineuse",#REF!, "") ->  | AU11: =IF(AN11="Crucifère",#REF!, "") ->  | AV11: =IF(SUM(AS11:AU11)>0, "",#REF!) ->  | AW11: =IF(#REF!="","",VLOOKUP(#REF!,BDD!$A$5:$J$64,10,0)) ->  | AX11: =IF(#REF!="", "", (#REF!*100)/AW11) ->  | AY11: =IF(#REF!= "", "", (#REF!*100)/AW11) ->  | BA11: =IF(#REF!="", "",#REF!) ->  | BB11: =IF($Z$28=TRUE, AY11, AX11) -> 
B12: =IF(C12="", "", VLOOKUP(Choix_culture_suivante!C12,BDD!$A$6:$M$64,13,1)) -> 32 | C12: =IF(Composition!C12<>"", Composition!C12, "") -> Phacélie | D12: =IF(C12="", " ", INDEX('Culture-suivante_BDD'!$C$5:$L$62,B12,$D$8)) -> 1 | E12: =IF(C12="", " ", INDEX('Culture-suivante_BDD'!$C$5:$L$62,B12,$E$8)) -> 1 | F12: =IF(C12="", " ", INDEX('Culture-suivante_BDD'!$C$5:$L$62,B12,$F$8)) -> 3 | G12: =IF(C12="", " ", INDEX(BDD!$A$6:$AE$64,B12,31)) -> Famille botanique différente | J12: =IF(#REF!="","",VLOOKUP(#REF!,BDD!$A$5:$I$64,2,0)) ->  | K12: =IF(#REF!="","",VLOOKUP(#REF!,BDD!$A$5:$I$64,3,0)) ->  | L12: =IF(#REF!="","",VLOOKUP(#REF!,BDD!$A$5:$I$64,4,0)) ->  | Z12: =IF(#REF!="","",VLOOKUP(#REF!,BDD!$A$5:$I$64,5,0)) ->  | AA12: =#REF! ->  | AB12: =IF(#REF!="", "", Z12*AA12) ->  | AC12: =IF(#REF!="","",VLOOKUP(#REF!,BDD!$A$5:$I$64,7,0)) ->  | AD12: =#REF! ->  | AE12: =IF(#REF!="", "", AC12*AD12) ->  | AF12: =IF(#REF!="", "",#REF!* Z12) ->  | AG12: =#REF! ->  | AH12: =IF(#REF!="", "", AG12*Z12) ->  | AI12: =IF(#REF!="", "",#REF!* 4) ->  | AJ12: =IF(#REF!="", "",#REF!* AC12) ->  | AN12: =IF(#REF!="","",VLOOKUP(#REF!,BDD!$A$5:$I$64,2,0)) ->  | AO12: =IF(AN12="graminée",#REF!, "") ->  | AP12: =IF(AN12="Légumineuse",#REF!, "") ->  | AQ12: =IF(AN12="Crucifère",#REF!, "") ->  | AR12: =IF(SUM(AO12:AQ12)>0, "",#REF!) ->  | AS12: =IF(AN12="graminée",#REF!, "") ->  | AT12: =IF(AN12="Légumineuse",#REF!, "") ->  | AU12: =IF(AN12="Crucifère",#REF!, "") ->  | AV12: =IF(SUM(AS12:AU12)>0, "",#REF!) ->  | AW12: =IF(#REF!="","",VLOOKUP(#REF!,BDD!$A$5:$J$64,10,0)) ->  | AX12: =IF(#REF!="", "", (#REF!*100)/AW12) ->  | AY12: =IF(#REF!= "", "", (#REF!*100)/AW12) ->  | BA12: =IF(#REF!="", "",#REF!) -> 
B13: =IF(C13="", "", VLOOKUP(Choix_culture_suivante!C13,BDD!$A$6:$M$64,13,1)) -> 46 | C13: =IF(Composition!C13<>"", Composition!C13, "") -> Trèfle d'Alexandrie | D13: =IF(C13="", " ", INDEX('Culture-suivante_BDD'!$C$5:$L$62,B13,$D$8)) -> 1 | E13: =IF(C13="", " ", INDEX('Culture-suivante_BDD'!$C$5:$L$62,B13,$E$8)) -> 1 | F13: =IF(C13="", " ", INDEX('Culture-suivante_BDD'!$C$5:$L$62,B13,$F$8)) -> 3 | G13: =IF(C13="", " ", INDEX(BDD!$A$6:$AE$64,B13,31)) -> Intérêt en interculture courte | J13: =IF(#REF!="","",VLOOKUP(#REF!,BDD!$A$5:$I$64,2,0)) ->  | K13: =IF(#REF!="","",VLOOKUP(#REF!,BDD!$A$5:$I$64,3,0)) ->  | L13: =IF(#REF!="","",VLOOKUP(#REF!,BDD!$A$5:$I$64,4,0)) ->  | Z13: =IF(#REF!="","",VLOOKUP(#REF!,BDD!$A$5:$I$64,5,0)) ->  | AA13: =#REF! ->  | AB13: =IF(#REF!="", "", Z13*AA13) ->  | AC13: =IF(#REF!="","",VLOOKUP(#REF!,BDD!$A$5:$I$64,7,0)) ->  | AD13: =#REF! ->  | AE13: =IF(#REF!="", "", AC13*AD13) ->  | AF13: =IF(#REF!="", "",#REF!* Z13) ->  | AG13: =#REF! ->  | AH13: =IF(#REF!="", "", AG13*Z13) ->  | AI13: =IF(#REF!="", "",#REF!* 4) ->  | AJ13: =IF(#REF!="", "",#REF!* AC13) ->  | AN13: =IF(#REF!="","",VLOOKUP(#REF!,BDD!$A$5:$I$64,2,0)) ->  | AO13: =IF(AN13="graminée",#REF!, "") ->  | AP13: =IF(AN13="Légumineuse",#REF!, "") ->  | AQ13: =IF(AN13="Crucifère",#REF!, "") ->  | AR13: =IF(SUM(AO13:AQ13)>0, "",#REF!) ->  | AS13: =IF(AN13="graminée",#REF!, "") ->  | AT13: =IF(AN13="Légumineuse",#REF!, "") ->  | AU13: =IF(AN13="Crucifère",#REF!, "") ->  | AV13: =IF(SUM(AS13:AU13)>0, "",#REF!) ->  | AW13: =IF(#REF!="","",VLOOKUP(#REF!,BDD!$A$5:$J$64,10,0)) ->  | AX13: =IF(#REF!="", "", (#REF!*100)/AW13) ->  | AY13: =IF(#REF!= "", "", (#REF!*100)/AW13) ->  | BA13: =IF(#REF!="", "",#REF!) -> 
B14: =IF(C14="", "", VLOOKUP(Choix_culture_suivante!C14,BDD!$A$6:$M$64,13,1)) -> 31 | C14: =IF(Composition!C14<>"", Composition!C14, "") -> Niger | D14: =IF(C14="", " ", INDEX('Culture-suivante_BDD'!$C$5:$L$62,B14,$D$8)) -> 1 | E14: =IF(C14="", " ", INDEX('Culture-suivante_BDD'!$C$5:$L$62,B14,$E$8)) -> 1 | F14: =IF(C14="", " ", INDEX('Culture-suivante_BDD'!$C$5:$L$62,B14,$F$8)) -> 1 | G14: =IF(C14="", " ", INDEX(BDD!$A$6:$AE$64,B14,31)) -> Intérêt en interculture courte | J14: =IF(#REF!="","",VLOOKUP(#REF!,BDD!$A$5:$I$64,2,0)) ->  | K14: =IF(#REF!="","",VLOOKUP(#REF!,BDD!$A$5:$I$64,3,0)) ->  | L14: =IF(#REF!="","",VLOOKUP(#REF!,BDD!$A$5:$I$64,4,0)) ->  | Z14: =IF(#REF!="","",VLOOKUP(#REF!,BDD!$A$5:$I$64,5,0)) ->  | AA14: =#REF! ->  | AB14: =IF(#REF!="", "", Z14*AA14) ->  | AC14: =IF(#REF!="","",VLOOKUP(#REF!,BDD!$A$5:$I$64,7,0)) ->  | AD14: =#REF! ->  | AE14: =IF(#REF!="", "", AC14*AD14) ->  | AF14: =IF(#REF!="", "",#REF!* Z14) ->  | AG14: =#REF! ->  | AH14: =IF(#REF!="", "", AG14*Z14) ->  | AI14: =IF(#REF!="", "",#REF!* 4) ->  | AJ14: =IF(#REF!="", "",#REF!* AC14) ->  | AN14: =IF(#REF!="","",VLOOKUP(#REF!,BDD!$A$5:$I$64,2,0)) ->  | AO14: =IF(AN14="graminée",#REF!, "") ->  | AP14: =IF(AN14="Légumineuse",#REF!, "") ->  | AQ14: =IF(AN14="Crucifère",#REF!, "") ->  | AR14: =IF(SUM(AO14:AQ14)>0, "",#REF!) ->  | AS14: =IF(AN14="graminée",#REF!, "") ->  | AT14: =IF(AN14="Légumineuse",#REF!, "") ->  | AU14: =IF(AN14="Crucifère",#REF!, "") ->  | AV14: =IF(SUM(AS14:AU14)>0, "",#REF!) ->  | AW14: =IF(#REF!="","",VLOOKUP(#REF!,BDD!$A$5:$J$64,10,0)) ->  | AX14: =IF(#REF!="", "", (#REF!*100)/AW14) ->  | AY14: =IF(#REF!= "", "", (#REF!*100)/AW14) ->  | BA14: =IF(#REF!="", "",#REF!) -> 
B15: =IF(C15="", "", VLOOKUP(Choix_culture_suivante!C15,BDD!$A$6:$M$64,13,1)) ->  | C15: =IF(Composition!C15<>"", Composition!C15, "") ->  | D15: =IF(C15="", " ", INDEX('Culture-suivante_BDD'!$C$5:$L$62,B15,$D$8)) ->  | E15: =IF(C15="", " ", INDEX('Culture-suivante_BDD'!$C$5:$L$62,B15,$E$8)) ->  | F15: =IF(C15="", " ", INDEX('Culture-suivante_BDD'!$C$5:$L$62,B15,$F$8)) ->  | G15: =IF(C15="", " ", INDEX(BDD!$A$6:$AE$64,B15,31)) ->  | J15: =IF(#REF!="","",VLOOKUP(#REF!,BDD!$A$5:$I$64,2,0)) ->  | K15: =IF(#REF!="","",VLOOKUP(#REF!,BDD!$A$5:$I$64,3,0)) ->  | L15: =IF(#REF!="","",VLOOKUP(#REF!,BDD!$A$5:$I$64,4,0)) ->  | Z15: =IF(#REF!="","",VLOOKUP(#REF!,BDD!$A$5:$I$64,5,0)) ->  | AA15: =#REF! ->  | AB15: =IF(#REF!="", "", Z15*AA15) ->  | AC15: =IF(#REF!="","",VLOOKUP(#REF!,BDD!$A$5:$I$64,7,0)) ->  | AD15: =#REF! ->  | AE15: =IF(#REF!="", "", AC15*AD15) ->  | AF15: =IF(#REF!="", "",#REF!* Z15) ->  | AG15: =#REF! ->  | AH15: =IF(#REF!="", "", AG15*Z15) ->  | AI15: =IF(#REF!="", "",#REF!* 4) ->  | AJ15: =IF(#REF!="", "",#REF!* AC15) ->  | AN15: =IF(#REF!="","",VLOOKUP(#REF!,BDD!$A$5:$I$64,2,0)) ->  | AO15: =IF(AN15="graminée",#REF!, "") ->  | AP15: =IF(AN15="Légumineuse",#REF!, "") ->  | AQ15: =IF(AN15="Crucifère",#REF!, "") ->  | AR15: =IF(SUM(AO15:AQ15)>0, "",#REF!) ->  | AS15: =IF(AN15="graminée",#REF!, "") ->  | AT15: =IF(AN15="Légumineuse",#REF!, "") ->  | AU15: =IF(AN15="Crucifère",#REF!, "") ->  | AV15: =IF(SUM(AS15:AU15)>0, "",#REF!) ->  | AW15: =IF(#REF!="","",VLOOKUP(#REF!,BDD!$A$5:$J$64,10,0)) ->  | AX15: =IF(#REF!="", "", (#REF!*100)/AW15) ->  | AY15: =IF(#REF!= "", "", (#REF!*100)/AW15) ->  | BA15: =IF(#REF!="", "",#REF!) -> 
B16: =IF(C16="", "", VLOOKUP(Choix_culture_suivante!C16,BDD!$A$6:$M$64,13,1)) ->  | C16: =IF(Composition!C16<>"", Composition!C16, "") ->  | D16: =IF(C16="", " ", INDEX('Culture-suivante_BDD'!$C$5:$L$62,B16,$D$8)) ->  | E16: =IF(C16="", " ", INDEX('Culture-suivante_BDD'!$C$5:$L$62,B16,$E$8)) ->  | F16: =IF(C16="", " ", INDEX('Culture-suivante_BDD'!$C$5:$L$62,B16,$F$8)) ->  | G16: =IF(C16="", " ", INDEX(BDD!$A$6:$AE$64,B16,31)) ->  | J16: =IF(#REF!="","",VLOOKUP(#REF!,BDD!$A$5:$I$64,2,0)) ->  | K16: =IF(#REF!="","",VLOOKUP(#REF!,BDD!$A$5:$I$64,3,0)) ->  | L16: =IF(#REF!="","",VLOOKUP(#REF!,BDD!$A$5:$I$64,4,0)) ->  | Z16: =IF(#REF!="","",VLOOKUP(#REF!,BDD!$A$5:$I$64,5,0)) ->  | AA16: =#REF! ->  | AB16: =IF(#REF!="", "", Z16*AA16) ->  | AC16: =IF(#REF!="","",VLOOKUP(#REF!,BDD!$A$5:$I$64,7,0)) ->  | AD16: =#REF! ->  | AE16: =IF(#REF!="", "", AC16*AD16) ->  | AF16: =IF(#REF!="", "",#REF!* Z16) ->  | AG16: =#REF! ->  | AH16: =IF(#REF!="", "", AG16*Z16) ->  | AI16: =IF(#REF!="", "",#REF!* 4) ->  | AJ16: =IF(#REF!="", "",#REF!* AC16) ->  | AN16: =IF(#REF!="","",VLOOKUP(#REF!,BDD!$A$5:$I$64,2,0)) ->  | AO16: =IF(AN16="graminée",#REF!, "") ->  | AP16: =IF(AN16="Légumineuse",#REF!, "") ->  | AQ16: =IF(AN16="Crucifère",#REF!, "") ->  | AR16: =IF(SUM(AO16:AQ16)>0, "",#REF!) ->  | AS16: =IF(AN16="graminée",#REF!, "") ->  | AT16: =IF(AN16="Légumineuse",#REF!, "") ->  | AU16: =IF(AN16="Crucifère",#REF!, "") ->  | AV16: =IF(SUM(AS16:AU16)>0, "",#REF!) ->  | AW16: =IF(#REF!="","",VLOOKUP(#REF!,BDD!$A$5:$J$64,10,0)) ->  | AX16: =IF(#REF!="", "", (#REF!*100)/AW16) ->  | AY16: =IF(#REF!= "", "", (#REF!*100)/AW16) ->  | BA16: =IF(#REF!="", "",#REF!) -> 
B17: =IF(C17="", "", VLOOKUP(Choix_culture_suivante!C17,BDD!$A$6:$M$64,13,1)) ->  | C17: =IF(Composition!C17<>"", Composition!C17, "") ->  | D17: =IF(C17="", " ", INDEX('Culture-suivante_BDD'!$C$5:$L$62,B17,$D$8)) ->  | E17: =IF(C17="", " ", INDEX('Culture-suivante_BDD'!$C$5:$L$62,B17,$E$8)) ->  | F17: =IF(C17="", " ", INDEX('Culture-suivante_BDD'!$C$5:$L$62,B17,$F$8)) ->  | G17: =IF(C17="", " ", INDEX(BDD!$A$6:$AE$64,B17,31)) ->  | J17: =IF(#REF!="","",VLOOKUP(#REF!,BDD!$A$5:$I$64,2,0)) ->  | K17: =IF(#REF!="","",VLOOKUP(#REF!,BDD!$A$5:$I$64,3,0)) ->  | L17: =IF(#REF!="","",VLOOKUP(#REF!,BDD!$A$5:$I$64,4,0)) ->  | Z17: =IF(#REF!="","",VLOOKUP(#REF!,BDD!$A$5:$I$64,5,0)) ->  | AA17: =#REF! ->  | AB17: =IF(#REF!="", "", Z17*AA17) ->  | AC17: =IF(#REF!="","",VLOOKUP(#REF!,BDD!$A$5:$I$64,7,0)) ->  | AD17: =#REF! ->  | AE17: =IF(#REF!="", "", AC17*AD17) ->  | AF17: =IF(#REF!="", "",#REF!* Z17) ->  | AG17: =#REF! ->  | AH17: =IF(#REF!="", "", AG17*Z17) ->  | AI17: =IF(#REF!="", "",#REF!* 4) ->  | AJ17: =IF(#REF!="", "",#REF!* AC17) ->  | AN17: =IF(#REF!="","",VLOOKUP(#REF!,BDD!$A$5:$I$64,2,0)) ->  | AO17: =IF(AN17="graminée",#REF!, "") ->  | AP17: =IF(AN17="Légumineuse",#REF!, "") ->  | AQ17: =IF(AN17="Crucifère",#REF!, "") ->  | AR17: =IF(SUM(AO17:AQ17)>0, "",#REF!) ->  | AS17: =IF(AN17="graminée",#REF!, "") ->  | AT17: =IF(AN17="Légumineuse",#REF!, "") ->  | AU17: =IF(AN17="Crucifère",#REF!, "") ->  | AV17: =IF(SUM(AS17:AU17)>0, "",#REF!) ->  | AW17: =IF(#REF!="","",VLOOKUP(#REF!,BDD!$A$5:$J$64,10,0)) ->  | AX17: =IF(#REF!="", "", (#REF!*100)/AW17) ->  | AY17: =IF(#REF!= "", "", (#REF!*100)/AW17) ->  | BA17: =IF(#REF!="", "",#REF!) -> 
B18: =IF(C18="", "", VLOOKUP(Choix_culture_suivante!C18,BDD!$A$6:$M$64,13,1)) ->  | C18: =IF(Composition!C18<>"", Composition!C18, "") ->  | D18: =IF(C18="", " ", INDEX('Culture-suivante_BDD'!$C$5:$L$62,B18,$D$8)) ->  | E18: =IF(C18="", " ", INDEX('Culture-suivante_BDD'!$C$5:$L$62,B18,$E$8)) ->  | F18: =IF(C18="", " ", INDEX('Culture-suivante_BDD'!$C$5:$L$62,B18,$F$8)) ->  | G18: =IF(C18="", " ", INDEX(BDD!$A$6:$AE$64,B18,31)) ->  | J18: =IF(#REF!="","",VLOOKUP(#REF!,BDD!$A$5:$I$64,2,0)) ->  | K18: =IF(#REF!="","",VLOOKUP(#REF!,BDD!$A$5:$I$64,3,0)) ->  | L18: =IF(#REF!="","",VLOOKUP(#REF!,BDD!$A$5:$I$64,4,0)) ->  | Z18: =IF(#REF!="","",VLOOKUP(#REF!,BDD!$A$5:$I$64,5,0)) ->  | AA18: =#REF! ->  | AB18: =IF(#REF!="", "", Z18*AA18) ->  | AC18: =IF(#REF!="","",VLOOKUP(#REF!,BDD!$A$5:$I$64,7,0)) ->  | AD18: =#REF! ->  | AE18: =IF(#REF!="", "", AC18*AD18) ->  | AF18: =IF(#REF!="", "",#REF!* Z18) ->  | AG18: =#REF! ->  | AH18: =IF(#REF!="", "", AG18*Z18) ->  | AI18: =IF(#REF!="", "",#REF!* 4) ->  | AJ18: =IF(#REF!="", "",#REF!* AC18) ->  | AN18: =IF(#REF!="","",VLOOKUP(#REF!,BDD!$A$5:$I$64,2,0)) ->  | AO18: =IF(AN18="graminée",#REF!, "") ->  | AP18: =IF(AN18="Légumineuse",#REF!, "") ->  | AQ18: =IF(AN18="Crucifère",#REF!, "") ->  | AR18: =IF(SUM(AO18:AQ18)>0, "",#REF!) ->  | AS18: =IF(AN18="graminée",#REF!, "") ->  | AT18: =IF(AN18="Légumineuse",#REF!, "") ->  | AU18: =IF(AN18="Crucifère",#REF!, "") ->  | AV18: =IF(SUM(AS18:AU18)>0, "",#REF!) ->  | AW18: =IF(#REF!="","",VLOOKUP(#REF!,BDD!$A$5:$J$64,10,0)) ->  | AX18: =IF(#REF!="", "", (#REF!*100)/AW18) ->  | AY18: =IF(#REF!= "", "", (#REF!*100)/AW18) ->  | BA18: =IF(#REF!="", "",#REF!) -> 
B19: =IF(C19="", "", VLOOKUP(Choix_culture_suivante!C19,BDD!$A$6:$M$64,13,1)) ->  | C19: =IF(Composition!C19<>"", Composition!C19, "") ->  | D19: =IF(C19="", " ", INDEX('Culture-suivante_BDD'!$C$5:$L$62,B19,$D$8)) ->  | E19: =IF(C19="", " ", INDEX('Culture-suivante_BDD'!$C$5:$L$62,B19,$E$8)) ->  | F19: =IF(C19="", " ", INDEX('Culture-suivante_BDD'!$C$5:$L$62,B19,$F$8)) ->  | G19: =IF(C19="", " ", INDEX(BDD!$A$6:$AE$64,B19,31)) ->  | J19: =IF(#REF!="","",VLOOKUP(#REF!,BDD!$A$5:$I$64,2,0)) ->  | K19: =IF(#REF!="","",VLOOKUP(#REF!,BDD!$A$5:$I$64,3,0)) ->  | L19: =IF(#REF!="","",VLOOKUP(#REF!,BDD!$A$5:$I$64,4,0)) ->  | Z19: =IF(#REF!="","",VLOOKUP(#REF!,BDD!$A$5:$I$64,5,0)) ->  | AA19: =#REF! ->  | AB19: =IF(#REF!="", "", Z19*AA19) ->  | AC19: =IF(#REF!="","",VLOOKUP(#REF!,BDD!$A$5:$I$64,7,0)) ->  | AD19: =#REF! ->  | AE19: =IF(#REF!="", "", AC19*AD19) ->  | AF19: =IF(#REF!="", "",#REF!* Z19) ->  | AG19: =#REF! ->  | AH19: =IF(#REF!="", "", AG19*Z19) ->  | AI19: =IF(#REF!="", "",#REF!* 4) ->  | AJ19: =IF(#REF!="", "",#REF!* AC19) ->  | AN19: =IF(#REF!="","",VLOOKUP(#REF!,BDD!$A$5:$I$64,2,0)) ->  | AO19: =IF(AN19="graminée",#REF!, "") ->  | AP19: =IF(AN19="Légumineuse",#REF!, "") ->  | AQ19: =IF(AN19="Crucifère",#REF!, "") ->  | AR19: =IF(SUM(AO19:AQ19)>0, "",#REF!) ->  | AS19: =IF(AN19="graminée",#REF!, "") ->  | AT19: =IF(AN19="Légumineuse",#REF!, "") ->  | AU19: =IF(AN19="Crucifère",#REF!, "") ->  | AV19: =IF(SUM(AS19:AU19)>0, "",#REF!) ->  | AW19: =IF(#REF!="","",VLOOKUP(#REF!,BDD!$A$5:$J$64,10,0)) ->  | AX19: =IF(#REF!="", "", (#REF!*100)/AW19) ->  | AY19: =IF(#REF!= "", "", (#REF!*100)/AW19) ->  | BA19: =IF(#REF!="", "",#REF!) -> 
B20: =IF(C20="", "", VLOOKUP(Choix_culture_suivante!C20,BDD!$A$6:$M$64,13,1)) ->  | C20: =IF(Composition!C20<>"", Composition!C20, "") ->  | D20: =IF(C20="", " ", INDEX('Culture-suivante_BDD'!$C$5:$L$62,B20,$D$8)) ->  | E20: =IF(C20="", " ", INDEX('Culture-suivante_BDD'!$C$5:$L$62,B20,$E$8)) ->  | F20: =IF(C20="", " ", INDEX('Culture-suivante_BDD'!$C$5:$L$62,B20,$F$8)) ->  | G20: =IF(C20="", " ", INDEX(BDD!$A$6:$AE$64,B20,31)) ->  | J20: =IF(#REF!="","",VLOOKUP(#REF!,BDD!$A$5:$I$64,2,0)) ->  | K20: =IF(#REF!="","",VLOOKUP(#REF!,BDD!$A$5:$I$64,3,0)) ->  | L20: =IF(#REF!="","",VLOOKUP(#REF!,BDD!$A$5:$I$64,4,0)) ->  | Z20: =IF(#REF!="","",VLOOKUP(#REF!,BDD!$A$5:$I$64,5,0)) ->  | AA20: =#REF! ->  | AB20: =IF(#REF!="", "", Z20*AA20) ->  | AC20: =IF(#REF!="","",VLOOKUP(#REF!,BDD!$A$5:$I$64,7,0)) ->  | AD20: =#REF! ->  | AE20: =IF(#REF!="", "", AC20*AD20) ->  | AF20: =IF(#REF!="", "",#REF!* Z20) ->  | AG20: =#REF! ->  | AH20: =IF(#REF!="", "", AG20*Z20) ->  | AI20: =IF(#REF!="", "",#REF!* 4) ->  | AJ20: =IF(#REF!="", "",#REF!* AC20) ->  | AN20: =IF(#REF!="","",VLOOKUP(#REF!,BDD!$A$5:$I$64,2,0)) ->  | AO20: =IF(AN20="graminée",#REF!, "") ->  | AP20: =IF(AN20="Légumineuse",#REF!, "") ->  | AQ20: =IF(AN20="Crucifère",#REF!, "") ->  | AR20: =IF(SUM(AO20:AQ20)>0, "",#REF!) ->  | AS20: =IF(AN20="graminée",#REF!, "") ->  | AT20: =IF(AN20="Légumineuse",#REF!, "") ->  | AU20: =IF(AN20="Crucifère",#REF!, "") ->  | AV20: =IF(SUM(AS20:AU20)>0, "",#REF!) ->  | AW20: =IF(#REF!="","",VLOOKUP(#REF!,BDD!$A$5:$J$64,10,0)) ->  | AX20: =IF(#REF!="", "", (#REF!*100)/AW20) ->  | AY20: =IF(#REF!= "", "", (#REF!*100)/AW20) ->  | BA20: =IF(#REF!="", "",#REF!) -> 
B21: =IF(C21="", "", VLOOKUP(Choix_culture_suivante!C21,BDD!$A$6:$M$64,13,1)) ->  | C21: =IF(Composition!C21<>"", Composition!C21, "") ->  | D21: =IF(C21="", " ", INDEX('Culture-suivante_BDD'!$C$5:$L$62,B21,$D$8)) ->  | E21: =IF(C21="", " ", INDEX('Culture-suivante_BDD'!$C$5:$L$62,B21,$E$8)) ->  | F21: =IF(C21="", " ", INDEX('Culture-suivante_BDD'!$C$5:$L$62,B21,$F$8)) ->  | G21: =IF(C21="", " ", INDEX(BDD!$A$6:$AE$64,B21,31)) ->  | J21: =IF(#REF!="","",VLOOKUP(#REF!,BDD!$A$5:$I$64,2,0)) ->  | K21: =IF(#REF!="","",VLOOKUP(#REF!,BDD!$A$5:$I$64,3,0)) ->  | L21: =IF(#REF!="","",VLOOKUP(#REF!,BDD!$A$5:$I$64,4,0)) ->  | Z21: =IF(#REF!="","",VLOOKUP(#REF!,BDD!$A$5:$I$64,5,0)) ->  | AA21: =#REF! ->  | AB21: =IF(#REF!="", "", Z21*AA21) ->  | AC21: =IF(#REF!="","",VLOOKUP(#REF!,BDD!$A$5:$I$64,7,0)) ->  | AD21: =#REF! ->  | AE21: =IF(#REF!="", "", AC21*AD21) ->  | AF21: =IF(#REF!="", "",#REF!* Z21) ->  | AG21: =#REF! ->  | AH21: =IF(#REF!="", "", AG21*Z21) ->  | AI21: =IF(#REF!="", "",#REF!* 4) ->  | AJ21: =IF(#REF!="", "",#REF!* AC21) ->  | AN21: =IF(#REF!="","",VLOOKUP(#REF!,BDD!$A$5:$I$64,2,0)) ->  | AO21: =IF(AN21="graminée",#REF!, "") ->  | AP21: =IF(AN21="Légumineuse",#REF!, "") ->  | AQ21: =IF(AN21="Crucifère",#REF!, "") ->  | AR21: =IF(SUM(AO21:AQ21)>0, "",#REF!) ->  | AS21: =IF(AN21="graminée",#REF!, "") ->  | AT21: =IF(AN21="Légumineuse",#REF!, "") ->  | AU21: =IF(AN21="Crucifère",#REF!, "") ->  | AV21: =IF(SUM(AS21:AU21)>0, "",#REF!) ->  | AW21: =IF(#REF!="","",VLOOKUP(#REF!,BDD!$A$5:$J$64,10,0)) ->  | AX21: =IF(#REF!="", "", (#REF!*100)/AW21) ->  | AY21: =IF(#REF!= "", "", (#REF!*100)/AW21) ->  | BA21: =IF(#REF!="", "",#REF!) -> 
B22: =IF(C22="", "", VLOOKUP(Choix_culture_suivante!C22,BDD!$A$6:$M$64,13,1)) ->  | C22: =IF(Composition!C22<>"", Composition!C22, "") ->  | D22: =IF(C22="", " ", INDEX('Culture-suivante_BDD'!$C$5:$L$62,B22,$D$8)) ->  | E22: =IF(C22="", " ", INDEX('Culture-suivante_BDD'!$C$5:$L$62,B22,$E$8)) ->  | F22: =IF(C22="", " ", INDEX('Culture-suivante_BDD'!$C$5:$L$62,B22,$F$8)) ->  | G22: =IF(C22="", " ", INDEX(BDD!$A$6:$AE$64,B22,31)) ->  | J22: =IF(#REF!="","",VLOOKUP(#REF!,BDD!$A$5:$I$64,2,0)) ->  | K22: =IF(#REF!="","",VLOOKUP(#REF!,BDD!$A$5:$I$64,3,0)) ->  | L22: =IF(#REF!="","",VLOOKUP(#REF!,BDD!$A$5:$I$64,4,0)) ->  | Z22: =IF(#REF!="","",VLOOKUP(#REF!,BDD!$A$5:$I$64,5,0)) ->  | AA22: =#REF! ->  | AB22: =IF(#REF!="", "", Z22*AA22) ->  | AC22: =IF(#REF!="","",VLOOKUP(#REF!,BDD!$A$5:$I$64,7,0)) ->  | AD22: =#REF! ->  | AE22: =IF(#REF!="", "", AC22*AD22) ->  | AF22: =IF(#REF!="", "",#REF!* Z22) ->  | AG22: =#REF! ->  | AH22: =IF(#REF!="", "", AG22*Z22) ->  | AI22: =IF(#REF!="", "",#REF!* 4) ->  | AJ22: =IF(#REF!="", "",#REF!* AC22) ->  | AN22: =IF(#REF!="","",VLOOKUP(#REF!,BDD!$A$5:$I$64,2,0)) ->  | AO22: =IF(AN22="graminée",#REF!, "") ->  | AP22: =IF(AN22="Légumineuse",#REF!, "") ->  | AQ22: =IF(AN22="Crucifère",#REF!, "") ->  | AR22: =IF(SUM(AO22:AQ22)>0, "",#REF!) ->  | AS22: =IF(AN22="graminée",#REF!, "") ->  | AT22: =IF(AN22="Légumineuse",#REF!, "") ->  | AU22: =IF(AN22="Crucifère",#REF!, "") ->  | AV22: =IF(SUM(AS22:AU22)>0, "",#REF!) ->  | AW22: =IF(#REF!="","",VLOOKUP(#REF!,BDD!$A$5:$J$64,10,0)) ->  | AX22: =IF(#REF!="", "", (#REF!*100)/AW22) ->  | AY22: =IF(#REF!= "", "", (#REF!*100)/AW22) ->  | BA22: =IF(#REF!="", "",#REF!) -> 
B23: =IF(C23="", "", VLOOKUP(Choix_culture_suivante!C23,BDD!$A$6:$M$64,13,1)) ->  | C23: =IF(Composition!C23<>"", Composition!C23, "") ->  | D23: =IF(C23="", " ", INDEX('Culture-suivante_BDD'!$C$5:$L$62,B23,$D$8)) ->  | E23: =IF(C23="", " ", INDEX('Culture-suivante_BDD'!$C$5:$L$62,B23,$E$8)) ->  | F23: =IF(C23="", " ", INDEX('Culture-suivante_BDD'!$C$5:$L$62,B23,$F$8)) ->  | G23: =IF(C23="", " ", INDEX(BDD!$A$6:$AE$64,B23,31)) ->  | J23: =IF(#REF!="","",VLOOKUP(#REF!,BDD!$A$5:$I$64,2,0)) ->  | K23: =IF(#REF!="","",VLOOKUP(#REF!,BDD!$A$5:$I$64,3,0)) ->  | L23: =IF(#REF!="","",VLOOKUP(#REF!,BDD!$A$5:$I$64,4,0)) ->  | Z23: =IF(#REF!="","",VLOOKUP(#REF!,BDD!$A$5:$I$64,5,0)) ->  | AA23: =#REF! ->  | AB23: =IF(#REF!="", "", Z23*AA23) ->  | AC23: =IF(#REF!="","",VLOOKUP(#REF!,BDD!$A$5:$I$64,7,0)) ->  | AD23: =#REF! ->  | AE23: =IF(#REF!="", "", AC23*AD23) ->  | AF23: =IF(#REF!="", "",#REF!* Z23) ->  | AG23: =#REF! ->  | AH23: =IF(#REF!="", "", AG23*Z23) ->  | AI23: =IF(#REF!="", "",#REF!* 4) ->  | AJ23: =IF(#REF!="", "",#REF!* AC23) ->  | AN23: =IF(#REF!="","",VLOOKUP(#REF!,BDD!$A$5:$I$64,2,0)) ->  | AO23: =IF(AN23="graminée",#REF!, "") ->  | AP23: =IF(AN23="Légumineuse",#REF!, "") ->  | AQ23: =IF(AN23="Crucifère",#REF!, "") ->  | AR23: =IF(SUM(AO23:AQ23)>0, "",#REF!) ->  | AS23: =IF(AN23="graminée",#REF!, "") ->  | AT23: =IF(AN23="Légumineuse",#REF!, "") ->  | AU23: =IF(AN23="Crucifère",#REF!, "") ->  | AV23: =IF(SUM(AS23:AU23)>0, "",#REF!) ->  | AW23: =IF(#REF!="","",VLOOKUP(#REF!,BDD!$A$5:$J$64,10,0)) ->  | AX23: =IF(#REF!="", "", (#REF!*100)/AW23) ->  | AY23: =IF(#REF!= "", "", (#REF!*100)/AW23) ->  | BA23: =IF(#REF!="", "",#REF!) -> 
B24: =IF(C24="", "", VLOOKUP(Choix_culture_suivante!C24,BDD!$A$6:$M$64,13,1)) ->  | C24: =IF(Composition!C24<>"", Composition!C24, "") ->  | D24: =IF(C24="", " ", INDEX('Culture-suivante_BDD'!$C$5:$L$62,B24,$D$8)) ->  | E24: =IF(C24="", " ", INDEX('Culture-suivante_BDD'!$C$5:$L$62,B24,$E$8)) ->  | F24: =IF(C24="", " ", INDEX('Culture-suivante_BDD'!$C$5:$L$62,B24,$F$8)) ->  | G24: =IF(C24="", " ", INDEX(BDD!$A$6:$AE$64,B24,31)) ->  | J24: =IF(#REF!="","",VLOOKUP(#REF!,BDD!$A$5:$I$64,2,0)) ->  | K24: =IF(#REF!="","",VLOOKUP(#REF!,BDD!$A$5:$I$64,3,0)) ->  | L24: =IF(#REF!="","",VLOOKUP(#REF!,BDD!$A$5:$I$64,4,0)) ->  | Z24: =IF(#REF!="","",VLOOKUP(#REF!,BDD!$A$5:$I$64,5,0)) ->  | AA24: =#REF! ->  | AB24: =IF(#REF!="", "", Z24*AA24) ->  | AC24: =IF(#REF!="","",VLOOKUP(#REF!,BDD!$A$5:$I$64,7,0)) ->  | AD24: =#REF! ->  | AE24: =IF(#REF!="", "", AC24*AD24) ->  | AF24: =IF(#REF!="", "",#REF!* Z24) ->  | AG24: =#REF! ->  | AH24: =IF(#REF!="", "", AG24*Z24) ->  | AI24: =IF(#REF!="", "",#REF!* 4) ->  | AJ24: =IF(#REF!="", "",#REF!* AC24) ->  | AN24: =IF(#REF!="","",VLOOKUP(#REF!,BDD!$A$5:$I$64,2,0)) ->  | AO24: =IF(AN24="graminée",#REF!, "") ->  | AP24: =IF(AN24="Légumineuse",#REF!, "") ->  | AQ24: =IF(AN24="Crucifère",#REF!, "") ->  | AR24: =IF(SUM(AO24:AQ24)>0, "",#REF!) ->  | AS24: =IF(AN24="graminée",#REF!, "") ->  | AT24: =IF(AN24="Légumineuse",#REF!, "") ->  | AU24: =IF(AN24="Crucifère",#REF!, "") ->  | AV24: =IF(SUM(AS24:AU24)>0, "",#REF!) ->  | AW24: =IF(#REF!="","",VLOOKUP(#REF!,BDD!$A$5:$J$64,10,0)) ->  | AX24: =IF(#REF!="", "", (#REF!*100)/AW24) ->  | AY24: =IF(#REF!= "", "", (#REF!*100)/AW24) ->  | BA24: =IF(#REF!="", "",#REF!) -> 
Y25: Total | Z25: =SUM(Z10:Z24) ->  | AA25: =SUM(AA10:AA24) ->  | AC25: =SUM(AC10:AC24) ->  | AD25: =SUM(AD10:AD24) ->  | AH25: =SUM(AH10:AH24) ->  | AI25: 200 | AJ25: =SUM(AJ10:AJ24) ->  | AN25: SOMME | AO25: =SUM(AO10:AO24) ->  | AP25: =SUM(AP10:AP24) -> 
E26: 1 | F26: Couvert possible | Y26: Maximum | Z26: =4*#REF! ->  | AA26: 200 | AC26: =4*#REF! ->  | AD26: 200 | AF26: 200 | AJ26: =#REF!*4 ->  | AN26: Maximum | AO26: =#REF! ->  | AP26: =#REF! ->  | AQ26: =#REF! ->  | AR26: =#REF! ->  | AS26: =#REF! ->  | AT26: =#REF! ->  | AU26: =#REF! ->  | AV26: =#REF! -> 
E27: 2 | F27: Couvert possible sous condition | Y27: % | Z27: =(Z25*100)/Z26 ->  | AB27: =IF(AB25<AA26, (AB25*100)/AA26, 99) ->  | AC27: =(AC25*100)/AC26 ->  | AE27: =IF(AE25<AD26, IF(#REF!="", 0, (AE25*100)/AD26), 99) ->  | AF27: =(AF25*100)/AI25 ->  | AH27: =IF(AH25<AI25, (AH25*100)/AF26, 99) ->  | AJ27: =IF(AJ25<AI25, (AJ25*100)/AI25, 99) ->  | AN27: % | AO27: =(AO25*100)/AO26 ->  | AP27: =(AP25*100)/AP26 -> 
E28: 3 | F28: Couvert déconseillé | Z28: TRUE | AA28: FALSE
D33: 1 | E33: 1 | F33: 1
D34: 2 | E34: 2 | F34: 2
D35: 3 | E35: 3 | F35: 3
D44: TYPE | E44: NB | F44: % | G44: NB conseillé | H44: NB Ajusté
D45: Graminées | E45: =IF($Z$28=FALSE, G45,H45) ->  | F45: =E45 ->  | G45: =AO27 ->  | H45: =AS27 -> 
D46: Légumineuses | E46: =IF($Z$28=FALSE, G46,H46) ->  | F46: =E46 ->  | G46: =AP27 ->  | H46: =AT27 -> 
D47: Crucifères | E47: =IF($Z$28=FALSE, G47,H47) ->  | G47: =AQ27 ->  | H47: =AU27 -> 
D48: Autres | E48: =IF($Z$28=FALSE, G48,H48) ->  | G48: =AR27 ->  | H48: =AV27 -> 
D50: HAUTEUR | E50: NB | F50: %
D51: Basse | E51: =COUNTIFS($K$10:$K$24,"1") -> 0 | F51: =(E51*100)/#REF! -> 
D52: Intermédiaire | E52: =COUNTIFS($K$10:$K$24,"2") -> 0 | F52: =(E52*100)/#REF! -> 
D53: Haute | E53: =COUNTIFS($K$10:$K$24,"3") -> 0 | F53: =(E53*100)/#REF! -> 
D55: RACINES | E55: NB | F55: %
D56: Superficiel | E56: =COUNTIFS($L$10:$L$24,"1") -> 0 | F56: =(E56*100)/#REF! -> 
D57: Intermédiaire | E57: =COUNTIFS($L$10:$L$24,"2") -> 0 | F57: =(E57*100)/#REF! -> 
D58: Profonde | E58: =COUNTIFS($L$10:$L$24,"3") -> 0 | F58: =(E58*100)/#REF! -> 

Sheet Feuil4
I3: LES AUTRES ESPECES DE TREFLE
S29: RETOUR

Sheet Vesce N
A1: Couvert | B1: Type | C1: Hauteur | D1: Racine | E1: Biomasse | F1: Piégeage N | G1: Fourniture N | H1: Coût | I1: Dose/ha | J1: PMG (g) | L1: Interculture | M1: Numéro couvert | O1: Type de couvert | P1: Profondeur de semis | Q1: Profondeur de semis | R1: Appetence limace | S1: Vitesse de développement | T1: Sensibilité au gel | U1: Avant le 05 août | V1: Du 05 au 25 août | W1: Après le 25 août | X1: Type cynegetique | Y1: Méllifères | Z1: Semis à la volée | AA1: Travail du sol | AB1: Semis direct | AC1: Fourrage | AD1: Maitrise adventice | AE1: Observation
A2: Vesce velue | B2: Légumineuse | C2: 1 | D2: 2 | E2: 2.5 | G2: 4.3 | H2: 3.13 | I2: 35 | J2: 60 | K2: 150.5 | L2: longue | M2: 44 | N2: 87.5 | O2: annuel | P2: 2 | Q2: 3 | R2: Faible | S2: Lent | T2: > -15°C | U2: 1 | V2: 1 | W2: 2 | X2: Jungle | Y2: oui | Z2: 2 | AA2: 1 | AB2: 1 | AC2: oui | AD2: 3 | AE2: Destruction mécanique compliquée
G5: VESCE DE NARBONNE | S5: RETOUR
G8: Type | H8: =B2 -> Légumineuse | K8: Type d'interculture possible | Q8: Vitesse de développement | R8: =S2 -> Lent
G9: Dose de semis (kg/ha) | H9: 120 | K9: Courte | L9: Longue
G10: PMG (g) | H10: 200
G11: Coût (€/kg) | K11: Type de couvert | L11: =O2 -> annuel | Q11: Utilisation possible en production de fourrage | R11: =AC2 -> oui
C15: Min | D15: Max | H15: Date de semis | N15: Mode d'implantation
A16: Profondeur de semis (cm) | C16: =P2 -> 2 | D16: =Q2 -> 3 | G16: Avant le 05 août | H16: Du 05 au 25 août | I16: Après le 25 août | M16: Semis à la volée | N16: Travail du sol | O16: Semis direct
B18: Appétence limace | C18: =R2 -> Faible
B19: Sensibilité au gel | C19: -5°C
B21: Maitrise des adventices | C21: Bonne
A23: NOTRE AVIS :
A24: Profil proche de celui de la féverole. Bonne tenue de tige. PMG plus faible que la féverole donc meilleure germination en condition sèche. Moins sensible à l'ascochytose.

Sheet Vesce V
A1: Couvert | B1: Type | C1: Hauteur | D1: Racine | E1: Biomasse | F1: Piégeage N | G1: Fourniture N | H1: Coût | I1: Dose/ha | J1: PMG (g) | L1: Interculture | M1: Numéro couvert | O1: Type de couvert | P1: Profondeur de semis | Q1: Profondeur de semis | R1: Appetence limace | S1: Vitesse de développement | T1: Sensibilité au gel | U1: Avant le 05 août | V1: Du 05 au 25 août | W1: Après le 25 août | X1: Type cynegetique | Y1: Méllifères | Z1: Semis à la volée | AA1: Travail du sol | AB1: Semis direct | AC1: Fourrage | AD1: Maitrise adventice | AE1: Observation
A2: Vesce velue | B2: Légumineuse | C2: 1 | D2: 2 | E2: 2.5 | G2: 4.3 | H2: 3.13 | I2: 35 | J2: 60 | K2: 150.5 | L2: longue | M2: 44 | N2: 87.5 | O2: annuel | P2: 2 | Q2: 3 | R2: Faible | S2: Lent | T2: > -15°C | U2: 1 | V2: 1 | W2: 2 | X2: Jungle | Y2: oui | Z2: 2 | AA2: 1 | AB2: 1 | AC2: oui | AD2: 3 | AE2: Destruction mécanique compliquée
G5: VESCE VELUE | S5: RETOUR
G8: Type | H8: =B2 -> Légumineuse | K8: Type d'interculture possible | Q8: Vitesse de développement | R8: =S2 -> Lent
G9: Dose de semis (kg/ha) | H9: =I2 -> 35 | K9: Courte | L9: Longue
G10: PMG (g) | H10: =J2 -> 60
G11: Coût (€/kg) | H11: =H2 -> 3.13 | K11: Type de couvert | L11: =O2 -> annuel | Q11: Utilisation possible en production de fourrage | R11: =AC2 -> oui
C15: Min | D15: Max | H15: Date de semis | N15: Mode d'implantation
A16: Profondeur de semis (cm) | C16: =P2 -> 2 | D16: =Q2 -> 3 | G16: Avant le 05 août | H16: Du 05 au 25 août | I16: Après le 25 août | M16: Semis à la volée | N16: Travail du sol | O16: Semis direct
B18: Appétence limace | C18: =R2 -> Faible
B19: Sensibilité au gel | C19: =T2 -> > -15°C
B21: Maitrise des adventices | C21: Bonne
A23: NOTRE AVIS :
A24: Attention à sa présence dans les cultures suivantes (agressivité). Destruction mécanique ou chimique compliquée. Développement plus lent que la vesce commune. Adapté au interculture longue. Pousse bien en conditions froides. Bonne tolérance au froid

Sheet Vesce P
A1: Couvert | B1: Type | C1: Hauteur | D1: Racine | E1: Biomasse | F1: Piégeage N | G1: Fourniture N | H1: Coût | I1: Dose/ha | J1: PMG (g) | L1: Interculture | M1: Numéro couvert | O1: Type de couvert | P1: Profondeur de semis | Q1: Profondeur de semis | R1: Appetence limace | S1: Vitesse de développement | T1: Sensibilité au gel | U1: Avant le 05 août | V1: Du 05 au 25 août | W1: Après le 25 août | X1: Type cynegetique | Y1: Méllifères | Z1: Semis à la volée | AA1: Travail du sol | AB1: Semis direct | AC1: Fourrage | AD1: Maitrise adventice | AE1: Observation
A2: Vesce pourpre | B2: Légumineuse | C2: 1 | D2: 2 | E2: 2.2 | G2: 3.8 | H2: 1.99 | I2: 40 | J2: 60 | K2: 152 | L2: courte | M2: 43 | N2: 88 | O2: annuel | P2: 2 | Q2: 3 | R2: Faible | S2: Lent | T2: -10°C | U2: 1 | V2: 1 | W2: 2 | X2: Jungle | Y2: oui | Z2: 1 | AA2: 1 | AB2: 1 | AC2: oui | AD2: 3 | AE2: A semer tôt
G5: VESCE POURPRE | S5: RETOUR
G8: Type | H8: =B2 -> Légumineuse | K8: Type d'interculture possible | Q8: Vitesse de développement | R8: =S2 -> Lent
G9: Dose de semis (kg/ha) | H9: =I2 -> 40 | K9: Courte | L9: Longue
G10: PMG (g) | H10: =J2 -> 60
G11: Coût (€/kg) | H11: =H2 -> 1.99 | K11: Type de couvert | L11: =O2 -> annuel | Q11: Utilisation possible en production de fourrage | R11: =AC2 -> oui
C15: Min | D15: Max | H15: Date de semis | N15: Mode d'implantation
A16: Profondeur de semis (cm) | C16: =P2 -> 2 | D16: =Q2 -> 3 | G16: Avant le 05 août | H16: Du 05 au 25 août | I16: Après le 25 août | M16: Semis à la volée | N16: Travail du sol | O16: Semis direct
B18: Appétence limace | C18: =R2 -> Faible
B19: Sensibilité au gel | C19: =T2 -> -10°C
B21: Maitrise des adventices | C21: Bonne
A23: NOTRE AVIS :
A24: Nécessite de la chaleur pour pousser donc apprécie les semis précoces. Intérêt en interculture courte. Bonne aptitude à concurrencer les adventices. Sensibilité au froid différente selon la variété. Implantation assez facile. Bonne production d'azote.

Sheet Vesce C
A1: Couvert | B1: Type | C1: Hauteur | D1: Racine | E1: Biomasse | F1: Piégeage N | G1: Fourniture N | H1: Coût | I1: Dose/ha | J1: PMG (g) | L1: Interculture | M1: Numéro couvert | O1: Type de couvert | P1: Profondeur de semis | Q1: Profondeur de semis | R1: Appetence limace | S1: Vitesse de développement | T1: Sensibilité au gel | U1: Avant le 05 août | V1: Du 05 au 25 août | W1: Après le 25 août | X1: Type cynegetique | Y1: Méllifères | Z1: Semis à la volée | AA1: Travail du sol | AB1: Semis direct | AC1: Fourrage | AD1: Maitrise adventice | AE1: Observation
A2: Vesce commune | B2: Légumineuse | C2: 1 | D2: 2 | E2: 1 | G2: 3 | H2: 1.85 | I2: 50 | J2: 60 | K2: 150 | L2: courte | M2: 42 | N2: 50 | O2: annuel | P2: 2 | Q2: 3 | R2: Faible | S2: Lent | T2: -10°C | U2: 1 | V2: 1 | W2: 2 | X2: Jungle | Y2: oui | Z2: 1 | AA2: 1 | AB2: 1 | AC2: oui | AD2: 3 | AE2: A semer tôt
G5: VESCE COMMUNE | S5: RETOUR
G8: Type | H8: =B2 -> Légumineuse | K8: Type d'interculture possible | Q8: Vitesse de développement | R8: =S2 -> Lent
G9: Dose de semis (kg/ha) | H9: =I2 -> 50 | K9: Courte | L9: Longue
G10: PMG (g) | H10: =J2 -> 60
G11: Coût (€/kg) | H11: =H2 -> 1.85 | K11: Type de couvert | L11: =O2 -> annuel | Q11: Utilisation possible en production de fourrage | R11: =AC2 -> oui
C15: Min | D15: Max | H15: Date de semis | N15: Mode d'implantation
A16: Profondeur de semis (cm) | C16: =P2 -> 2 | D16: =Q2 -> 3 | G16: Avant le 05 août | H16: Du 05 au 25 août | I16: Après le 25 août | M16: Semis à la volée | N16: Travail du sol | O16: Semis direct
B18: Appétence limace | C18: =R2 -> Faible
B19: Sensibilité au gel | C19: =T2 -> -10°C
B21: Maitrise des adventices | C21: Bonne
A23: NOTRE AVIS :
A24: Espèce intéressante pour la production d'azote. Bon comportement en mélange (occupe la strate inférieure). Nécessite de la chaleur pour pousser donc apprécie les semis précoces. Vesce la plus sensible au gel. Capacité à concurrencer les adventices si son développement est rapide.

Sheet Vesce E
A1: Couvert | B1: Type | C1: Hauteur | D1: Racine | E1: Biomasse | F1: Piégeage N | G1: Fourniture N | H1: Coût | I1: Dose/ha | J1: PMG (g) | L1: Interculture | M1: Numéro couvert | O1: Type de couvert | P1: Profondeur de semis | Q1: Profondeur de semis | R1: Appetence limace | S1: Vitesse de développement | T1: Sensibilité au gel | U1: Avant le 05 août | V1: Du 05 au 25 août | W1: Après le 25 août | X1: Type cynegetique | Y1: Méllifères | Z1: Semis à la volée | AA1: Travail du sol | AB1: Semis direct | AC1: Fourrage | AD1: Maitrise adventice | AE1: Observation
A2: Vesce pourpre | B2: Légumineuse | C2: 1 | D2: 2 | E2: 2.2 | G2: 3.8 | H2: 1.99 | I2: 40 | J2: 60 | K2: 152 | L2: courte | M2: 43 | N2: 88 | O2: annuel | P2: 2 | Q2: 3 | R2: Faible | S2: Lent | T2: -10°C | U2: 1 | V2: 1 | W2: 2 | X2: Jungle | Y2: oui | Z2: 1 | AA2: 1 | AB2: 1 | AC2: oui | AD2: 3 | AE2: A semer tôt
G5: VESCE ERIGEE | S5: RETOUR
G8: Type | H8: =B2 -> Légumineuse | K8: Type d'interculture possible | Q8: Vitesse de développement | R8: =S2 -> Lent
G9: Dose de semis (kg/ha) | H9: =I2 -> 40 | K9: Courte | L9: Longue
G10: PMG (g) | H10: =J2 -> 60
G11: Coût (€/kg) | H11: =H2 -> 1.99 | K11: Type de couvert | L11: =O2 -> annuel | Q11: Utilisation possible en production de fourrage | R11: =AC2 -> oui
C15: Min | D15: Max | H15: Date de semis | N15: Mode d'implantation
A16: Profondeur de semis (cm) | C16: 1.5 | D16: 2.5 | G16: Avant le 05 août | H16: Du 05 au 25 août | I16: Après le 25 août | M16: Semis à la volée | N16: Travail du sol | O16: Semis direct
B18: Appétence limace | C18: =R2 -> Faible
B19: Sensibilité au gel | C19: -4°C
B21: Maitrise des adventices | C21: Bonne
A23: NOTRE AVIS :
A24: Profil proche de celui de la lentille (biomasse un peu supérieure à la lentille). Bon développement à l'automne. Plus sensible au froid que les autres vesces (-4°C).

Sheet Trefle V
A1: Couvert | B1: Type | C1: Hauteur | D1: Racine | E1: Biomasse | F1: Piégeage N | G1: Fourniture N | H1: Coût | I1: Dose/ha | J1: PMG (g) | L1: Interculture | M1: Numéro couvert | O1: Type de couvert | P1: Profondeur de semis | Q1: Profondeur de semis | R1: Appetence limace | S1: Vitesse de développement | T1: Sensibilité au gel | U1: Avant le 05 août | V1: Du 05 au 25 août | W1: Après le 25 août | X1: Type cynegetique | Y1: Méllifères | Z1: Semis à la volée | AA1: Travail du sol | AB1: Semis direct | AC1: Fourrage | AD1: Maitrise adventice | AE1: Observation
A2: Trèfle violet | B2: Légumineuse | C2: 1 | D2: 2 | E2: 4 | G2: 10 | H2: 5.8 | I2: 15 | J2: 1.9 | K2: 150 | L2: longue | M2: 41 | N2: 60 | O2: Permanent | P2: 1 | Q2: 2 | R2: Moyen | S2: Rapide | T2: -4°C | U2: 1 | V2: 1 | W2: 2 | X2: Gazon | Y2: oui | Z2: 1 | AA2: 1 | AB2: 1 | AC2: oui | AD2: 2 | AE2: Intérêt en couvert permanent
G5: TREFLE VIOLET | S5: RETOUR
G8: Type | H8: =B2 -> Légumineuse | K8: Type d'interculture possible | Q8: Vitesse de développement | R8: =S2 -> Rapide
G9: Dose de semis (kg/ha) | H9: =I2 -> 15 | K9: Courte | L9: Longue
G10: PMG (g) | H10: =J2 -> 1.9
G11: Coût (€/kg) | H11: =H2 -> 5.8 | K11: Type de couvert | L11: =O2 -> Permanent | Q11: Utilisation possible en production de fourrage | R11: =AC2 -> oui
C15: Min | D15: Max | H15: Date de semis | N15: Mode d'implantation
A16: Profondeur de semis (cm) | C16: =P2 -> 1 | D16: =Q2 -> 2 | G16: Avant le 05 août | H16: Du 05 au 25 août | I16: Après le 25 août | M16: Semis à la volée | N16: Travail du sol | O16: Semis direct
B18: Appétence limace | C18: =R2 -> Moyen
B19: Sensibilité au gel | C19: =T2 -> -4°C
B21: Maitrise des adventices | C21: Moyenne
A23: NOTRE AVIS :
A24: Bien adapté aux associations. Instalation rapide. Intérêt au couvert pluri-annuel. Pérénité : 2 à 3 ans. Production fourragère possible. Espèce assez polyvalente. Peu résistant à la chaleur et à la sécheresse.

Sheet Triticale
A1: Couvert | B1: Type | C1: Hauteur | D1: Racine | E1: Biomasse | F1: Piégeage N | G1: Fourniture N | H1: Coût | I1: Dose/ha | J1: PMG (g) | L1: Interculture | M1: Numéro couvert | O1: Type de couvert | P1: Profondeur de semis | Q1: Profondeur de semis | R1: Appetence limace | S1: Vitesse de développement | T1: Sensibilité au gel | U1: Avant le 05 août | V1: Du 05 au 25 août | W1: Après le 25 août | X1: Type cynegetique | Y1: Méllifères | Z1: Semis à la volée | AA1: Travail du sol | AB1: Semis direct | AC1: Fourrage | AD1: Maitrise adventice | AE1: Observation
A2: Triticale | B2: graminée | H2: 0 | I2: 0 | J2: 0 | M2: 40 | R2: Moyen | S2: Lent | T2: > -15°C | U2: 2 | V2: 1 | W2: 1 | X2: Gazon | Y2: non | Z2: 3 | AA2: 1 | AB2: 1 | AC2: oui | AD2: 2 | AE2: Intérêt en méteil
G5: TRITICALE | S5: RETOUR
G8: Type | H8: =B2 -> graminée | K8: Type d'interculture possible | Q8: Vitesse de développement | R8: =S2 -> Lent
G9: Dose de semis (kg/ha) | H9: 100 | K9: Courte | L9: Longue
G10: PMG (g) | H10: 35
G11: Coût (€/kg) | H11: 0.25 | K11: Type de couvert | L11: Annuel | Q11: Utilisation possible en production de fourrage | R11: =AC2 -> oui
C15: Min | D15: Max | H15: Date de semis | N15: Mode d'implantation
A16: Profondeur de semis (cm) | C16: 2 | D16: 3 | G16: Avant le 05 août | H16: Du 05 au 25 août | I16: Après le 25 août | M16: Semis à la volée | N16: Travail du sol | O16: Semis direct
B18: Appétence limace | C18: =R2 -> Moyen
B19: Sensibilité au gel | C19: =T2 -> > -15°C
B21: Maitrise des adventices | C21: Moyenne
A23: NOTRE AVIS :
A24: Graminée intéressante en mélange (plante tutrice). Adapté au méteil.

Sheet Trefle I
A1: Couvert | B1: Type | C1: Hauteur | D1: Racine | E1: Biomasse | F1: Piégeage N | G1: Fourniture N | H1: Coût | I1: Dose/ha | J1: PMG (g) | L1: Interculture | M1: Numéro couvert | O1: Type de couvert | P1: Profondeur de semis | Q1: Profondeur de semis | R1: Appetence limace | S1: Vitesse de développement | T1: Sensibilité au gel | U1: Avant le 05 août | V1: Du 05 au 25 août | W1: Après le 25 août | X1: Type cynegetique | Y1: Méllifères | Z1: Semis à la volée | AA1: Travail du sol | AB1: Semis direct | AC1: Fourrage | AD1: Maitrise adventice | AE1: Observation
A2: Trèfle incarnat | B2: Légumineuse | C2: 1 | D2: 2 | E2: 6 | G2: 10 | H2: 2.69 | I2: 15 | J2: 2.5 | K2: 150 | L2: longue | M2: 39 | N2: 90 | O2: annuel | P2: 1 | Q2: 2 | R2: Moyen à Fort | S2: Lent | T2: -10°C | U2: 1 | V2: 1 | W2: 2 | X2: Gazon | Y2: oui | Z2: 1 | AA2: 1 | AB2: 1 | AC2: oui | AD2: 2 | AE2: Intérêt en interculture longue
G5: TREFLE INCARNAT | S5: RETOUR
G8: Type | H8: =B2 -> Légumineuse | K8: Type d'interculture possible | Q8: Vitesse de développement | R8: =S2 -> Lent
G9: Dose de semis (kg/ha) | H9: =I2 -> 15 | K9: Courte | L9: Longue
G10: PMG (g) | H10: =J2 -> 2.5
G11: Coût (€/kg) | H11: =H2 -> 2.69 | K11: Type de couvert | L11: =O2 -> annuel | Q11: Utilisation possible en production de fourrage | R11: =AC2 -> oui
C15: Min | D15: Max | H15: Date de semis | N15: Mode d'implantation
A16: Profondeur de semis (cm) | C16: =P2 -> 1 | D16: =Q2 -> 2 | G16: Avant le 05 août | H16: Du 05 au 25 août | I16: Après le 25 août | M16: Semis à la volée | N16: Travail du sol | O16: Semis direct
B18: Appétence limace | C18: =R2 -> Moyen à Fort
B19: Sensibilité au gel | C19: =T2 -> -10°C
B21: Maitrise des adventices | C21: Moyenne
A23: NOTRE AVIS :
A24: Déconseillé en sol séchant. Possible en sol argileux. Peu sensible au froid. Bonne production de biomasse. Bien avant maïs.

Sheet Trefle P
A1: Couvert | B1: Type | C1: Hauteur | D1: Racine | E1: Biomasse | F1: Piégeage N | G1: Fourniture N | H1: Coût | I1: Dose/ha | J1: PMG (g) | L1: Interculture | M1: Numéro couvert | O1: Type de couvert | P1: Profondeur de semis | Q1: Profondeur de semis | R1: Appetence limace | S1: Vitesse de développement | T1: Sensibilité au gel | U1: Avant le 05 août | V1: Du 05 au 25 août | W1: Après le 25 août | X1: Type cynegetique | Y1: Méllifères | Z1: Semis à la volée | AA1: Travail du sol | AB1: Semis direct | AC1: Fourrage | AD1: Maitrise adventice | AE1: Observation
A2: Trèfle de perse | B2: Légumineuse | C2: 1 | D2: 2 | E2: 3 | G2: 6 | H2: 5.85 | I2: 20 | J2: 2 | K2: 120 | L2: courte | M2: 38 | N2: 60 | O2: annuel | P2: 1 | Q2: 2 | R2: Moyen à Fort | S2: Lent | T2: -10°C | U2: 1 | V2: 1 | W2: 2 | X2: Parapluie | Y2: oui | Z2: 1 | AA2: 1 | AB2: 1 | AC2: oui | AD2: 2 | AE2: Intérêt en interculture courte
G5: TREFLE DE PERSE | S5: RETOUR
G8: Type | H8: =B2 -> Légumineuse | K8: Type d'interculture possible | Q8: Vitesse de développement | R8: =S2 -> Lent
G9: Dose de semis (kg/ha) | H9: =I2 -> 20 | K9: Courte | L9: Longue
G10: PMG (g) | H10: =J2 -> 2
G11: Coût (€/kg) | H11: =H2 -> 5.85 | K11: Type de couvert | L11: =O2 -> annuel | Q11: Utilisation possible en production de fourrage | R11: =AC2 -> oui
C15: Min | D15: Max | H15: Date de semis | N15: Mode d'implantation
A16: Profondeur de semis (cm) | C16: =P2 -> 1 | D16: =Q2 -> 2 | G16: Avant le 05 août | H16: Du 05 au 25 août | I16: Après le 25 août | M16: Semis à la volée | N16: Travail du sol | O16: Semis direct
B18: Appétence limace | C18: =R2 -> Moyen à Fort
B19: Sensibilité au gel | C19: =T2 -> -10°C
B21: Maitrise des adventices | C21: Moyenne
A23: NOTRE AVIS :
A24: Proche du trèfle incarnat. Adapté aux sols lourds et humides. A éviter en sols acides. Peu sensible au froid. Plante méllifère. Restitution d'azote inférieure à celle du trèfle d'Alexandrie.

Sheet Trefle M
A1: Couvert | B1: Type | C1: Hauteur | D1: Racine | E1: Biomasse | F1: Piégeage N | G1: Fourniture N | H1: Coût | I1: Dose/ha | J1: PMG (g) | L1: Interculture | M1: Numéro couvert | O1: Type de couvert | P1: Profondeur de semis | Q1: Profondeur de semis | R1: Appetence limace | S1: Vitesse de développement | T1: Sensibilité au gel | U1: Avant le 05 août | V1: Du 05 au 25 août | W1: Après le 25 août | X1: Type cynegetique | Y1: Méllifères | Z1: Semis à la volée | AA1: Travail du sol | AB1: Semis direct | AC1: Fourrage | AD1: Maitrise adventice | AE1: Observation
A2: Trèfle de Micheli | B2: Légumineuse | C2: 1 | D2: 2 | E2: 7 | G2: 15 | H2: 3.99 | I2: 10 | J2: 0.8 | K2: 150 | L2: longue | M2: 37 | N2: 70 | O2: annuel | P2: 1 | Q2: 2 | R2: Moyen à Fort | S2: Lent | T2: -10°C | U2: 1 | V2: 1 | W2: 2 | X2: Jungle | Y2: oui | Z2: 1 | AA2: 1 | AB2: 1 | AC2: oui | AD2: 2 | AE2: Intérêt en interculture longue
G5: TREFLE DE MICHELI | S5: RETOUR
G8: Type | H8: =B2 -> Légumineuse | K8: Type d'interculture possible | Q8: Vitesse de développement | R8: =S2 -> Lent
G9: Dose de semis (kg/ha) | H9: =I2 -> 10 | K9: Courte | L9: Longue
G10: PMG (g) | H10: =J2 -> 0.8
G11: Coût (€/kg) | H11: =H2 -> 3.99 | K11: Type de couvert | L11: =O2 -> annuel | Q11: Utilisation possible en production de fourrage | R11: =AC2 -> oui
C15: Min | D15: Max | H15: Date de semis | N15: Mode d'implantation
A16: Profondeur de semis (cm) | C16: =P2 -> 1 | D16: =Q2 -> 2 | G16: Avant le 05 août | H16: Du 05 au 25 août | I16: Après le 25 août | M16: Semis à la volée | N16: Travail du sol | O16: Semis direct
B18: Appétence limace | C18: =R2 -> Moyen à Fort
B19: Sensibilité au gel | C19: =T2 -> -10°C
B21: Maitrise des adventices | C21: Moyenne
A23: NOTRE AVIS :
A24: Préfère les sols acides. Figure parmi les trèfles les moins concurrenciels vis-à-vis des adventices. Non gélif.

Sheet Trefle A
B1: Type | C1: Hauteur | D1: Racine | E1: Biomasse | F1: Piégeage N | G1: Fourniture N | H1: Coût | I1: Dose/ha | J1: PMG (g) | L1: Interculture | M1: Numéro couvert | O1: Type de couvert | P1: Profondeur de semis | Q1: Profondeur de semis | R1: Appetence limace | S1: Vitesse de développement | T1: Sensibilité au gel | U1: Avant le 05 août | V1: Du 05 au 25 août | W1: Après le 25 août | X1: Type cynegetique | Y1: Méllifères | Z1: Semis à la volée | AA1: Travail du sol | AB1: Semis direct | AC1: Fourrage | AD1: Maitrise adventice | AE1: Observation
A2: Trèfle d'Alexandrie | B2: Légumineuse | C2: 1 | D2: 2 | E2: 3.5 | G2: 10 | H2: 2.39 | I2: 15 | J2: 2.5 | K2: 150 | L2: courte | M2: 36 | N2: 52.5 | O2: annuel | P2: 1 | Q2: 2 | R2: Moyen | S2: Rapide | T2: -5°C | U2: 1 | V2: 1 | W2: 2 | X2: Jungle | Y2: oui | Z2: 1 | AA2: 1 | AB2: 1 | AC2: oui | AD2: 2 | AE2: Intérêt en interculture courte
G5: TREFLE D'ALEXANDRIE | S5: RETOUR
G8: Type | H8: =B2 -> Légumineuse | K8: Type d'interculture possible | Q8: Vitesse de développement | R8: =S2 -> Rapide
G9: Dose de semis (kg/ha) | H9: =I2 -> 15 | K9: Courte | L9: Longue
G10: PMG (g) | H10: =J2 -> 2.5
G11: Coût (€/kg) | H11: =H2 -> 2.39 | K11: Type de couvert | L11: =O2 -> annuel | Q11: Utilisation possible en production de fourrage | R11: =AC2 -> oui
C15: Min | D15: Max | H15: Date de semis | N15: Mode d'implantation
A16: Profondeur de semis (cm) | C16: =P2 -> 1 | D16: =Q2 -> 2 | G16: Avant le 05 août | H16: Du 05 au 25 août | I16: Après le 25 août | M16: Semis à la volée | N16: Travail du sol | O16: Semis direct
B18: Appétence limace | C18: =R2 -> Moyen
B19: Sensibilité au gel | C19: =T2 -> -5°C
B21: Maitrise des adventices | C21: Moyenne
A23: NOTRE AVIS :
A24: Installation rapide. Bonne dynamique de croissance. Sensible au froid donc adapté aux intercultures courtes. Eviter les sols argileux ou acides. Bonne restitution d'azote.

Sheet Trefle B
A1: Couvert | B1: Type | C1: Hauteur | D1: Racine | E1: Biomasse | F1: Piégeage N | G1: Fourniture N | H1: Coût | I1: Dose/ha | J1: PMG (g) | L1: Interculture | M1: Numéro couvert | O1: Type de couvert | P1: Profondeur de semis | Q1: Profondeur de semis | R1: Appetence limace | S1: Vitesse de développement | T1: Sensibilité au gel | U1: Avant le 05 août | V1: Du 05 au 25 août | W1: Après le 25 août | X1: Type cynegetique | Y1: Méllifères | Z1: Semis à la volée | AA1: Travail du sol | AB1: Semis direct | AC1: Fourrage | AD1: Maitrise adventice | AE1: Observation
A2: Trèfle Blanc | B2: Légumineuse | C2: 1 | D2: 2 | E2: 18 | G2: 40 | H2: 5.8 | I2: 4 | J2: 0.6 | K2: 160 | L2: longue | M2: 35 | N2: 72 | O2: Permanent | P2: 1 | Q2: 2 | R2: Faible | S2: Lent | T2: -4°C | U2: 1 | V2: 1 | W2: 2 | X2: Jungle | Y2: oui | Z2: 1 | AA2: 1 | AB2: 1 | AC2: oui | AD2: 3 | AE2: Intérêt en couvert permanent
G5: TREFLE BLANC | S5: RETOUR
G8: Type | H8: =B2 -> Légumineuse | K8: Type d'interculture possible | Q8: Vitesse de développement | R8: =S2 -> Lent
G9: Dose de semis (kg/ha) | H9: =I2 -> 4 | K9: Courte | L9: Longue
G10: PMG (g) | H10: =J2 -> 0.6
G11: Coût (€/kg) | H11: =H2 -> 5.8 | K11: Type de couvert | L11: =O2 -> Permanent | Q11: Utilisation possible en production de fourrage | R11: =AC2 -> oui
C15: Min | D15: Max | H15: Date de semis | N15: Mode d'implantation
A16: Profondeur de semis (cm) | C16: =P2 -> 1 | D16: =Q2 -> 2 | G16: Avant le 05 août | H16: Du 05 au 25 août | I16: Après le 25 août | M16: Semis à la volée | N16: Travail du sol | O16: Semis direct
B18: Appétence limace | C18: =R2 -> Faible
B19: Sensibilité au gel | C19: =T2 -> -4°C
B21: Maitrise des adventices | C21: Forte
A23: NOTRE AVIS :
A24: Installation lente. Peu sensible au froid. Apprécie les sols profonds. Bonne production de fourrage. Adapté aux couverts permanents (attention à la concurrence du fait d'un enracinement proche de celui des espèces cultivées).

Sheet Mauve
A1: Couvert | B1: Type | C1: Hauteur | D1: Racine | E1: Biomasse | F1: Piégeage N | G1: Fourniture N | H1: Coût | I1: Dose/ha | J1: PMG (g) | L1: Interculture | M1: Numéro couvert | O1: Type de couvert | P1: Profondeur de semis | Q1: Profondeur de semis | R1: Appetence limace | S1: Vitesse de développement | T1: Sensibilité au gel | U1: Avant le 05 août | V1: Du 05 au 25 août | W1: Après le 25 août | X1: Type cynegetique | Y1: Méllifères | Z1: Semis à la volée | AA1: Travail du sol | AB1: Semis direct | AC1: Fourrage | AD1: Maitrise adventice | AE1: Observation
A2: Cameline | B2: Crucifère | C2: 1 | D2: 1 | E2: 6 | F2: 3 | G2: 7 | H2: 5.7 | I2: 5 | J2: 1.2 | K2: 35 | L2: longue | M2: 5 | N2: 30 | O2: annuel | P2: 1 | Q2: 1.5 | R2: Faible | S2: Rapide | T2: -10°C | U2: 1 | V2: 1 | W2: 1 | X2: Parapluie | Y2: non | Z2: 1 | AA2: 1 | AB2: 1 | AC2: non | AD2: 2 | AE2: Bon effet étouffant des adventices
G5: MAUVE | S5: RETOUR
G8: Type | H8: Malvacée | K8: Type d'interculture possible | Q8: Vitesse de développement | R8: Moyen
G9: Dose de semis (kg/ha) | H9: 5 | K9: Courte | L9: Longue
G10: PMG (g) | H10: 2
G11: Coût (€/kg) | K11: Type de couvert | L11: =O2 -> annuel | Q11: Utilisation possible en production de fourrage | R11: oui
C15: Min | D15: Max | H15: Date de semis | N15: Mode d'implantation
A16: Profondeur de semis (cm) | C16: =P2 -> 1 | D16: =Q2 -> 1.5 | G16: Avant le 05 août | H16: Du 05 au 25 août | I16: Après le 25 août | M16: Semis à la volée | N16: Travail du sol | O16: Semis direct
B18: Appétence limace | C18: Moyen
B19: Sensibilité au gel | C19: -5°C
B21: Maitrise des adventices | C21: Moyenne
A23: NOTRE AVIS :
